Workbook

Sheet Hauptmenue
B1: Mensa-Profit-Check
B7: mit * gekennzeichnete Felder müssen unbedingt ausgefüllt werden
B9: Bitte wählen Sie das Jahr für die Kalkulation aus: | E9: 2024-01-01
B11: Welchen Monat möchten Sie kalkulieren? | E11: 2024-07-01 | G11: =MONTH(E11) -> 7
B13: Zu welcher Kalenderwoche möchten Sie wechseln? | E13: 28 | G13: =TRUNC((E11-DAY(E11)-MOD(E11-DAY(E11)-1,7)-DATE(YEAR(E11-DAY(E11)+4-MOD(E11-DAY(E11)-1,7)),1,-10))/7) -> 27 | H13: =IF(AND(MONTH($E$11)=1,G13>50),1,G13+1) -> 28 | I13: =IF(AND(MONTH($E$11)=1,H13>50),1,H13+1) -> 29 | J13: 30 | K13: 31
G14: =G15 -> 2024-07-01 | H14: =H15 -> 2024-07-08 | I14: 2024-07-15 | J14: 2024-07-22 | K14: 2024-07-29
E15: KW beginnt am: | G15: =VLOOKUP(G13,Hilfstabelle!$D$3:$F$54,3,2) -> 44012 | H15: =VLOOKUP(H13,Hilfstabelle!$D$3:$F$54,3,2) -> 44019 | I15: =VLOOKUP(I13,Hilfstabelle!$D$3:$F$54,3,2) -> 44026 | J15: =VLOOKUP(J13,Hilfstabelle!$D$3:$F$54,3,2) -> 44033 | K15: =VLOOKUP(K13,Hilfstabelle!$D$3:$F$54,3,2) -> 44040
B17: Was möchten Sie? | C17: Erlösdaten | E17: Beim Klicken auf den Link wird das Blatt für den oben ausgewählten Monat/KW angezeigt!
C19: Kostendaten
O20: 2024-01-01
C21: Ergebnisse | O21: 2025-01-01
O22: 2026-01-01
C23: Monatsübersicht | G23: Alle Monate drucken | O23: 2027-01-01
O24: 2028-01-01
C25: Jahresübersicht | O25: 2029-01-01
O26: 2030-01-01
B27: Die Schaltfläche | O27: 2031-01-01
C28: bringt Sie zurück zum Hauptmenü | O28: 2032-01-01
O29: 2033-01-01
O30: 2034-01-01
C31: druckt das aktuelle Blatt | O31: 2035-01-01
O32: 2036-01-01
O33: 2037-01-01
C34: wechselt in die aktuelle Monatsübersicht | O34: 2038-01-01
O35: 2039-01-01
O36: 2040-01-01
C37: wechselt in die Jahresübersicht | O37: 2041-01-01
O38: 2042-01-01
O39: 2043-01-01
C40: blättert vorwärts/rückwärts zum nächsten Tabellenblatt | O40: 2044-01-01
O41: 2045-01-01

Sheet Hilfstabelle (hidden)
F1: neue KW am Mo
A2: Datum | B2: AuswahlJahr | C2: AuswahlMonat | D2: KW | E2: KW in Monat | F2: =YEAR(A3) -> 2024 | I2: Schultyp | K2: MwSt | M2: Wochen | O2: Blattnamen
A3: =Hauptmenue!E9 -> 43830 | B3: 39447 | C3: =A3 -> 2024-01-01 | D3: 1 | E3: =KWMonat(D3,$F$2) -> 1 | F3: =DATE($F$2,1,7*D3-3-WEEKDAY(DATE($F$2,,),3)) -> 43830 | I3: Berufsschule/Berufsfachschule | K3: 0.19 | M3: Schulwoche | O3: ErlösKW
A4: =A3+1 -> 43831 | B4: 39813 | C4: =DATE(YEAR(C3),MONTH(C3)+1,DAY(C3)) -> 2024-02-01 | D4: 2 | E4: 1 | F4: 43837 | I4: Förderzentrum/Förderschule | K4: 0.07 | M4: Ferienwoche | O4: KostenKW
A5: =A4+1 -> 43832 | B5: 40178 | C5: =DATE(YEAR(C4),MONTH(C4)+1,DAY(C4)) -> 2024-03-01 | D5: 3 | E5: 1 | F5: 43844 | I5: Grund- und Haupt-/Mittelschule | K5: 0 | M5: Woche mit Feiertag(en) | O5: ErgebnisKW
A6: 43833 | B6: 40543 | C6: 2024-04-01 | D6: 4 | E6: 1 | F6: 43851 | I6: Grundschule
A7: 43834 | B7: 40908 | C7: 2024-05-01 | D7: 5 | E7: 1 | F7: 43858 | I7: Gymnasium
A8: 43835 | B8: 41274 | C8: 2024-06-01 | D8: 6 | E8: 2 | F8: 43865 | I8: Haupt-/Mittelschule
A9: 43836 | B9: 41639 | C9: 2024-07-01 | D9: 7 | E9: 2 | F9: 43872 | I9: Realschule
A10: 43837 | B10: 42004 | C10: 2024-08-01 | D10: 8 | E10: 2 | F10: 43879 | I10: Schulzentrum
A11: 43838 | B11: 42369 | C11: 2024-09-01 | D11: 9 | E11: 2 | F11: 43886
A12: 43839 | C12: =DATE(YEAR(C11),MONTH(C11)+1,DAY(C11)) -> 2024-10-01 | D12: 10 | E12: 3 | F12: 43893
A13: 43840 | C13: 2024-11-01 | D13: 11 | E13: 3 | F13: 43900
A14: 43841 | C14: 2024-12-01 | D14: 12 | E14: 3 | F14: 43907
A15: 43842 | D15: 13 | E15: 3 | F15: 43914
A16: 43843 | D16: 14 | E16: 4 | F16: 43921
A17: 43844 | D17: 15 | E17: 4 | F17: 43928
A18: 43845 | D18: 16 | E18: 4 | F18: 43935
A19: 43846 | D19: 17 | E19: 4 | F19: 43942
A20: 43847 | D20: 18 | E20: 4 | F20: 43949
A21: 43848 | D21: 19 | E21: 5 | F21: 43956
A22: 43849 | D22: 20 | E22: 5 | F22: 43963
A23: 43850 | D23: 21 | E23: 5 | F23: 43970
A24: 43851 | D24: 22 | E24: 5 | F24: 43977
A25: 43852 | D25: 23 | E25: 6 | F25: 43984
A26: 43853 | D26: 24 | E26: 6 | F26: 43991
A27: 43854 | D27: 25 | E27: 6 | F27: 43998
A28: 43855 | D28: 26 | E28: 6 | F28: 44005
A29: 43856 | D29: 27 | E29: 7 | F29: 44012
A30: 43857 | D30: 28 | E30: 7 | F30: 44019
A31: 43858 | D31: 29 | E31: 7 | F31: 44026
A32: 43859 | D32: 30 | E32: 7 | F32: 44033
A33: 43860 | D33: 31 | E33: 7 | F33: 44040
A34: 43861 | D34: 32 | E34: 8 | F34: 44047
A35: 43862 | D35: 33 | E35: =KWMonat(D35,$F$2) -> 8 | F35: =DATE($F$2,1,7*D35-3-WEEKDAY(DATE($F$2,,),3)) -> 44054
A36: 43863 | D36: 34 | E36: 8 | F36: 44061
A37: 43864 | D37: 35 | E37: 8 | F37: 44068
A38: 43865 | D38: 36 | E38: 9 | F38: 44075
A39: 43866 | D39: 37 | E39: 9 | F39: 44082
A40: 43867 | D40: 38 | E40: 9 | F40: 44089
A41: 43868 | D41: 39 | E41: 9 | F41: 44096
A42: 43869 | D42: 40 | E42: 9 | F42: 44103
A43: 43870 | D43: 41 | E43: 10 | F43: 44110
A44: 43871 | D44: 42 | E44: 10 | F44: 44117
A45: 43872 | D45: 43 | E45: 10 | F45: 44124
A46: 43873 | D46: 44 | E46: 10 | F46: 44131
A47: 43874 | D47: 45 | E47: 11 | F47: 44138
A48: 43875 | D48: 46 | E48: 11 | F48: 44145
A49: 43876 | D49: 47 | E49: 11 | F49: 44152
A50: 43877 | D50: 48 | E50: 11 | F50: 44159
A51: 43878 | D51: 49 | E51: 12 | F51: 44166
A52: 43879 | D52: 50 | E52: 12 | F52: 44173
A53: 43880 | D53: 51 | E53: 12 | F53: 44180
A54: 43881 | D54: 52 | E54: 12 | F54: 44187
A55: 43882
A56: 43883
A57: 43884
A58: 43885
A59: 43886
A60: 43887
A61: 43888
A62: 43889
A63: 43890
A64: 43891
A65: 43892
A66: 43893
A67: 43894
A68: 43895
A69: =A68+1 -> 43896
A70: 43897
A71: 43898
A72: 43899
A73: 43900
A74: 43901
A75: 43902
A76: 43903
A77: 43904
A78: 43905
A79: 43906
A80: 43907
A81: 43908
A82: 43909
A83: 43910
A84: 43911
A85: 43912
A86: 43913
A87: 43914
A88: 43915
A89: 43916
A90: 43917
A91: 43918
A92: 43919
A93: 43920
A94: 43921
A95: 43922
A96: 43923
A97: 43924
A98: 43925
A99: 43926
A100: 43927
A101: 43928
A102: 43929
A103: 43930
A104: 43931
A105: 43932
A106: 43933
A107: 43934
A108: 43935
A109: 43936
A110: 43937
A111: 43938
A112: 43939
A113: 43940
A114: 43941
A115: 43942
A116: 43943
A117: 43944
A118: 43945
A119: 43946
A120: 43947
A121: 43948
A122: 43949
A123: 43950
A124: 43951
A125: 43952
A126: 43953
A127: 43954
A128: 43955
A129: 43956
A130: 43957
A131: 43958
A132: 43959
A133: =A132+1 -> 43960
A134: 43961
A135: 43962
A136: 43963
A137: 43964
A138: 43965
A139: 43966
A140: 43967
A141: 43968
A142: 43969
A143: 43970
A144: 43971
A145: 43972
A146: 43973
A147: 43974
A148: 43975
A149: 43976
A150: 43977
A151: 43978
A152: 43979
A153: 43980
A154: 43981
A155: 43982
A156: 43983
A157: 43984
A158: 43985
A159: 43986
A160: 43987
A161: 43988
A162: 43989
A163: 43990
A164: 43991
A165: 43992
A166: 43993
A167: 43994
A168: 43995
A169: 43996
A170: 43997
A171: 43998
A172: 43999
A173: 44000
A174: 44001
A175: 44002
A176: 44003
A177: 44004
A178: 44005
A179: 44006
A180: 44007
A181: 44008
A182: 44009
A183: 44010
A184: 44011
A185: 44012
A186: 44013
A187: 44014
A188: 44015
A189: 44016
A190: 44017
A191: 44018
A192: 44019
A193: 44020
A194: 44021
A195: 44022
A196: 44023
A197: =A196+1 -> 44024
A198: 44025
A199: 44026
A200: 44027
... 168 more rows

Sheet Jahresübersicht
A1: Kalkulations-Check
A2: Ergebnisausgabe: Jahresübersicht | E2: =Hauptmenue!E9 -> 2024-01-01
A8: Monat | B8: =Monat01!$D$2 -> 2024-01-01 | C8: =Monat02!$D$2 -> 2024-02-01 | D8: =Monat03!$D$2 -> 2024-03-01 | E8: =Monat04!$D$2 -> 2024-04-01 | F8: =Monat05!$D$2 -> 2024-05-01 | G8: =Monat06!$D$2 -> 2024-06-01 | H8: =Monat07!$D$2 -> 2024-07-01 | I8: =Monat08!$D$2 -> 2024-08-01 | J8: =Monat09!$D$2 -> 2024-09-01 | K8: =Monat10!$D$2 -> 2024-10-01 | L8: =Monat11!$D$2 -> 2024-11-01 | M8: =Monat12!$D$2 -> 2024-12-01
A10: Report Mittag | B10: =Monat01!$G$25 -> 0 | C10: =Monat02!$G$25 -> 0 | D10: =Monat03!$G$25 -> 0 | E10: =Monat04!$G$25 -> 0 | F10: =Monat05!$G$25 -> 0 | G10: =Monat06!$G$25 -> 0 | H10: =Monat07!$G$25 -> 568.74 | I10: =Monat08!$G$25 -> 0 | J10: =Monat09!$G$25 -> 0 | K10: =Monat10!$G$25 -> 0 | L10: =Monat11!$G$25 -> 0 | M10: =Monat12!$G$25 -> 0

Sheet Monat01
A1: Kalkulations-Check
A2: Ergebnisausgabe: Monatsübersicht | D2: =Hilfstabelle!C3 -> 2024-01-01
A6: Nettowerte vor Steuer…
A8: Erlöse Mittagsverpflegung | B8: =ErlösKW01!F9 -> 1 | C8: =B8+1 -> 2 | D8: =C8+1 -> 3 | E8: 4 | F8: 5 | G8: Summe pro Monat
B9: =VLOOKUP(B8,Hilfstabelle!$D$3:$F$54,3,2) -> 2024-01-01 | C9: =VLOOKUP(C8,Hilfstabelle!$D$3:$F$54,3,2) -> 2024-01-08 | D9: =VLOOKUP(D8,Hilfstabelle!$D$3:$F$54,3,2) -> 2024-01-15 | E9: =VLOOKUP(E8,Hilfstabelle!$D$3:$F$54,3,2) -> 2024-01-22 | F9: =VLOOKUP(F8,Hilfstabelle!$D$3:$F$54,3,2) -> 2024-01-29
B10: =IF(OR(B8=1,B8=2,B8=3,B8=4,B8=5,B8=6,B8=7,B8=8,B8=9),INDIRECT(CONCATENATE(Hilfstabelle!$O$3,0,B8,"!I77")),INDIRECT(CONCATENATE(Hilfstabelle!$O$3,B8,"!I77"))) -> 0 | C10: =IF(OR(C8=1,C8=2,C8=3,C8=4,C8=5,C8=6,C8=7,C8=8,C8=9),INDIRECT(CONCATENATE(Hilfstabelle!$O$3,0,C8,"!I77")),INDIRECT(CONCATENATE(Hilfstabelle!$O$3,C8,"!I77"))) -> 0 | D10: =IF(OR(D8=1,D8=2,D8=3,D8=4,D8=5,D8=6,D8=7,D8=8,D8=9),INDIRECT(CONCATENATE(Hilfstabelle!$O$3,0,D8,"!I77")),INDIRECT(CONCATENATE(Hilfstabelle!$O$3,D8,"!I77"))) -> 0 | E10: =IF(OR(E8=1,E8=2,E8=3,E8=4,E8=5,E8=6,E8=7,E8=8,E8=9),INDIRECT(CONCATENATE(Hilfstabelle!$O$3,0,E8,"!I77")),INDIRECT(CONCATENATE(Hilfstabelle!$O$3,E8,"!I77"))) -> 0 | F10: =IF(F8>52,0,IF(OR(F8=1,F8=2,F8=3,F8=4,F8=5,F8=6,F8=7,F8=8,F8=9),INDIRECT(CONCATENATE(Hilfstabelle!$O$3,0,F8,"!I77")),INDIRECT(CONCATENATE(Hilfstabelle!$O$3,F8,"!I77")))) -> 0 | G10: =SUM(B10:F10) -> 0
A12: Erlöse Zwischenverpflegung | B12: =B8 -> 1 | C12: =C8 -> 2 | D12: 3 | E12: 4 | F12: 5 | G12: Summe pro Monat
B13: =IF(OR(B12=1,B12=2,B12=3,B12=4,B12=5,B12=6,B12=7,B12=8,B12=9),INDIRECT(CONCATENATE(Hilfstabelle!$O$3,0,B12,"!I83")),INDIRECT(CONCATENATE(Hilfstabelle!$O$3,B12,"!I83"))) -> 0 | C13: =IF(OR(C12=1,C12=2,C12=3,C12=4,C12=5,C12=6,C12=7,C12=8,C12=9),INDIRECT(CONCATENATE(Hilfstabelle!$O$3,0,C12,"!I83")),INDIRECT(CONCATENATE(Hilfstabelle!$O$3,C12,"!I83"))) -> 0 | D13: =IF(OR(D12=1,D12=2,D12=3,D12=4,D12=5,D12=6,D12=7,D12=8,D12=9),INDIRECT(CONCATENATE(Hilfstabelle!$O$3,0,D12,"!I83")),INDIRECT(CONCATENATE(Hilfstabelle!$O$3,D12,"!I83"))) -> 0 | E13: =IF(OR(E12=1,E12=2,E12=3,E12=4,E12=5,E12=6,E12=7,E12=8,E12=9),INDIRECT(CONCATENATE(Hilfstabelle!$O$3,0,E12,"!I83")),INDIRECT(CONCATENATE(Hilfstabelle!$O$3,E12,"!I83"))) -> 0 | F13: =IF(F12>52,0,IF(OR(F12=1,F12=2,F12=3,F12=4,F12=5,F12=6,F12=7,F12=8,F12=9),INDIRECT(CONCATENATE(Hilfstabelle!$O$3,0,F12,"!I83")),INDIRECT(CONCATENATE(Hilfstabelle!$O$3,F12,"!I83")))) -> 0 | G13: =SUM(B13:F13) -> 0
A16: Gesamtgemeinkosten | B16: =B8 -> 1 | C16: =C8 -> 2 | D16: 3 | E16: 4 | F16: 5 | G16: Summe pro Monat
B17: =IF(OR(B16=1,B16=2,B16=3,B16=4,B16=5,B16=6,B16=7,B16=8,B16=9),INDIRECT(CONCATENATE(Hilfstabelle!$O$4,0,B16,"!E48")),INDIRECT(CONCATENATE(Hilfstabelle!$O$4,B16,"!E48"))) -> 0 | C17: =IF(OR(C16=1,C16=2,C16=3,C16=4,C16=5,C16=6,C16=7,C16=8,C16=9),INDIRECT(CONCATENATE(Hilfstabelle!$O$4,0,C16,"!E48")),INDIRECT(CONCATENATE(Hilfstabelle!$O$4,C16,"!E48"))) -> 0 | D17: =IF(OR(D16=1,D16=2,D16=3,D16=4,D16=5,D16=6,D16=7,D16=8,D16=9),INDIRECT(CONCATENATE(Hilfstabelle!$O$4,0,D16,"!E48")),INDIRECT(CONCATENATE(Hilfstabelle!$O$4,D16,"!E48"))) -> 0 | E17: =IF(OR(E16=1,E16=2,E16=3,E16=4,E16=5,E16=6,E16=7,E16=8,E16=9),INDIRECT(CONCATENATE(Hilfstabelle!$O$4,0,E16,"!E48")),INDIRECT(CONCATENATE(Hilfstabelle!$O$4,E16,"!E48"))) -> 0 | F17: =IF(F16>52,0,IF(OR(F16=1,F16=2,F16=3,F16=4,F16=5,F16=6,F16=7,F16=8,F16=9),INDIRECT(CONCATENATE(Hilfstabelle!$O$4,0,F16,"!E48")),INDIRECT(CONCATENATE(Hilfstabelle!$O$4,F16,"!E48")))) -> 0 | G17: =SUM(B17:F17) -> 0
A19: Gesamtpersonalkosten | B19: =B8 -> 1 | C19: =C8 -> 2 | D19: 3 | E19: 4 | F19: 5 | G19: Summe pro Monat
B20: =IF(OR(B19=1,B19=2,B19=3,B19=4,B19=5,B19=6,B19=7,B19=8,B19=9),INDIRECT(CONCATENATE(Hilfstabelle!$O$4,0,B19,"!E57")),INDIRECT(CONCATENATE(Hilfstabelle!$O$4,B19,"!E57"))) -> 0 | C20: =IF(OR(C19=1,C19=2,C19=3,C19=4,C19=5,C19=6,C19=7,C19=8,C19=9),INDIRECT(CONCATENATE(Hilfstabelle!$O$4,0,C19,"!E57")),INDIRECT(CONCATENATE(Hilfstabelle!$O$4,C19,"!E57"))) -> 0 | D20: =IF(OR(D19=1,D19=2,D19=3,D19=4,D19=5,D19=6,D19=7,D19=8,D19=9),INDIRECT(CONCATENATE(Hilfstabelle!$O$4,0,D19,"!E57")),INDIRECT(CONCATENATE(Hilfstabelle!$O$4,D19,"!E57"))) -> 0 | E20: =IF(OR(E19=1,E19=2,E19=3,E19=4,E19=5,E19=6,E19=7,E19=8,E19=9),INDIRECT(CONCATENATE(Hilfstabelle!$O$4,0,E19,"!E57")),INDIRECT(CONCATENATE(Hilfstabelle!$O$4,E19,"!E57"))) -> 0 | F20: =IF(F19>52,0,IF(OR(F19=1,F19=2,F19=3,F19=4,F19=5,F19=6,F19=7,F19=8,F19=9),INDIRECT(CONCATENATE(Hilfstabelle!$O$4,0,F19,"!E57")),INDIRECT(CONCATENATE(Hilfstabelle!$O$4,F19,"!E57")))) -> 0 | G20: =SUM(B20:F20) -> 0
A22: Gesamtkosten Mittagsverpflegung | B22: =B8 -> 1 | C22: =C8 -> 2 | D22: 3 | E22: 4 | F22: 5 | G22: Summe pro Monat
B23: =IF(OR(B22=1,B22=2,B22=3,B22=4,B22=5,B22=6,B22=7,B22=8,B22=9),INDIRECT(CONCATENATE(Hilfstabelle!$O$5,0,B22,"!C20")),INDIRECT(CONCATENATE(Hilfstabelle!$O$5,B22,"!C20"))) -> 0 | C23: =IF(OR(C22=1,C22=2,C22=3,C22=4,C22=5,C22=6,C22=7,C22=8,C22=9),INDIRECT(CONCATENATE(Hilfstabelle!$O$5,0,C22,"!C20")),INDIRECT(CONCATENATE(Hilfstabelle!$O$5,C22,"!C20"))) -> 0 | D23: =IF(OR(D22=1,D22=2,D22=3,D22=4,D22=5,D22=6,D22=7,D22=8,D22=9),INDIRECT(CONCATENATE(Hilfstabelle!$O$5,0,D22,"!C20")),INDIRECT(CONCATENATE(Hilfstabelle!$O$5,D22,"!C20"))) -> 0 | E23: =IF(OR(E22=1,E22=2,E22=3,E22=4,E22=5,E22=6,E22=7,E22=8,E22=9),INDIRECT(CONCATENATE(Hilfstabelle!$O$5,0,E22,"!C20")),INDIRECT(CONCATENATE(Hilfstabelle!$O$5,E22,"!C20"))) -> 0 | F23: =IF(F22>52,0,IF(OR(F22=1,F22=2,F22=3,F22=4,F22=5,F22=6,F22=7,F22=8,F22=9),INDIRECT(CONCATENATE(Hilfstabelle!$O$5,0,F22,"!C20")),INDIRECT(CONCATENATE(Hilfstabelle!$O$5,F22,"!C20")))) -> 0 | G23: =SUM(B23:F23) -> 0
F25: Report Mittag | G25: =G10-G23 -> 0

Sheet Monat02
A1: Kalkulations-Check
A2: Ergebnisausgabe: Monatsübersicht | D2: =Hilfstabelle!C4 -> 2024-02-01
A6: Nettowerte vor Steuer…
A8: Erlöse Mittagsverpflegung | B8: =ErlösKW05!$F$9 -> 5 | C8: =B8+1 -> 6 | D8: =C8+1 -> 7 | E8: 8 | F8: 9 | G8: Summe pro Monat
B9: =VLOOKUP(B8,Hilfstabelle!$D$3:$F$54,3,2) -> 2024-01-29 | C9: =VLOOKUP(C8,Hilfstabelle!$D$3:$F$54,3,2) -> 2024-02-05 | D9: =VLOOKUP(D8,Hilfstabelle!$D$3:$F$54,3,2) -> 2024-02-12 | E9: =VLOOKUP(E8,Hilfstabelle!$D$3:$F$54,3,2) -> 2024-02-19 | F9: =VLOOKUP(F8,Hilfstabelle!$D$3:$F$54,3,2) -> 2024-02-26
B10: =IF(OR(B8=1,B8=2,B8=3,B8=4,B8=5,B8=6,B8=7,B8=8,B8=9),INDIRECT(CONCATENATE(Hilfstabelle!$O$3,0,B8,"!I77")),INDIRECT(CONCATENATE(Hilfstabelle!$O$3,B8,"!I77"))) -> 0 | C10: =IF(OR(C8=1,C8=2,C8=3,C8=4,C8=5,C8=6,C8=7,C8=8,C8=9),INDIRECT(CONCATENATE(Hilfstabelle!$O$3,0,C8,"!I77")),INDIRECT(CONCATENATE(Hilfstabelle!$O$3,C8,"!I77"))) -> 0 | D10: =IF(OR(D8=1,D8=2,D8=3,D8=4,D8=5,D8=6,D8=7,D8=8,D8=9),INDIRECT(CONCATENATE(Hilfstabelle!$O$3,0,D8,"!I77")),INDIRECT(CONCATENATE(Hilfstabelle!$O$3,D8,"!I77"))) -> 0 | E10: =IF(OR(E8=1,E8=2,E8=3,E8=4,E8=5,E8=6,E8=7,E8=8,E8=9),INDIRECT(CONCATENATE(Hilfstabelle!$O$3,0,E8,"!I77")),INDIRECT(CONCATENATE(Hilfstabelle!$O$3,E8,"!I77"))) -> 0 | F10: =IF(F8>52,0,IF(OR(F8=1,F8=2,F8=3,F8=4,F8=5,F8=6,F8=7,F8=8,F8=9),INDIRECT(CONCATENATE(Hilfstabelle!$O$3,0,F8,"!I77")),INDIRECT(CONCATENATE(Hilfstabelle!$O$3,F8,"!I77")))) -> 0 | G10: =SUM(B10:F10) -> 0
A12: Erlöse Zwischenverpflegung | B12: =B8 -> 5 | C12: =C8 -> 6 | D12: 7 | E12: 8 | F12: 9 | G12: Summe pro Monat
B13: =IF(OR(B12=1,B12=2,B12=3,B12=4,B12=5,B12=6,B12=7,B12=8,B12=9),INDIRECT(CONCATENATE(Hilfstabelle!$O$3,0,B12,"!I83")),INDIRECT(CONCATENATE(Hilfstabelle!$O$3,B12,"!I83"))) -> 0 | C13: =IF(OR(C12=1,C12=2,C12=3,C12=4,C12=5,C12=6,C12=7,C12=8,C12=9),INDIRECT(CONCATENATE(Hilfstabelle!$O$3,0,C12,"!I83")),INDIRECT(CONCATENATE(Hilfstabelle!$O$3,C12,"!I83"))) -> 0 | D13: =IF(OR(D12=1,D12=2,D12=3,D12=4,D12=5,D12=6,D12=7,D12=8,D12=9),INDIRECT(CONCATENATE(Hilfstabelle!$O$3,0,D12,"!I83")),INDIRECT(CONCATENATE(Hilfstabelle!$O$3,D12,"!I83"))) -> 0 | E13: =IF(OR(E12=1,E12=2,E12=3,E12=4,E12=5,E12=6,E12=7,E12=8,E12=9),INDIRECT(CONCATENATE(Hilfstabelle!$O$3,0,E12,"!I83")),INDIRECT(CONCATENATE(Hilfstabelle!$O$3,E12,"!I83"))) -> 0 | F13: =IF(F12>52,0,IF(OR(F12=1,F12=2,F12=3,F12=4,F12=5,F12=6,F12=7,F12=8,F12=9),INDIRECT(CONCATENATE(Hilfstabelle!$O$3,0,F12,"!I83")),INDIRECT(CONCATENATE(Hilfstabelle!$O$3,F12,"!I83")))) -> 0 | G13: =SUM(B13:F13) -> 0
A16: Gesamtgemeinkosten | B16: =B8 -> 5 | C16: =C8 -> 6 | D16: 7 | E16: 8 | F16: 9 | G16: Summe pro Monat
B17: =IF(OR(B16=1,B16=2,B16=3,B16=4,B16=5,B16=6,B16=7,B16=8,B16=9),INDIRECT(CONCATENATE(Hilfstabelle!$O$4,0,B16,"!E48")),INDIRECT(CONCATENATE(Hilfstabelle!$O$4,B16,"!E48"))) -> 0 | C17: =IF(OR(C16=1,C16=2,C16=3,C16=4,C16=5,C16=6,C16=7,C16=8,C16=9),INDIRECT(CONCATENATE(Hilfstabelle!$O$4,0,C16,"!E48")),INDIRECT(CONCATENATE(Hilfstabelle!$O$4,C16,"!E48"))) -> 0 | D17: =IF(OR(D16=1,D16=2,D16=3,D16=4,D16=5,D16=6,D16=7,D16=8,D16=9),INDIRECT(CONCATENATE(Hilfstabelle!$O$4,0,D16,"!E48")),INDIRECT(CONCATENATE(Hilfstabelle!$O$4,D16,"!E48"))) -> 0 | E17: =IF(OR(E16=1,E16=2,E16=3,E16=4,E16=5,E16=6,E16=7,E16=8,E16=9),INDIRECT(CONCATENATE(Hilfstabelle!$O$4,0,E16,"!E48")),INDIRECT(CONCATENATE(Hilfstabelle!$O$4,E16,"!E48"))) -> 0 | F17: =IF(F16>52,0,IF(OR(F16=1,F16=2,F16=3,F16=4,F16=5,F16=6,F16=7,F16=8,F16=9),INDIRECT(CONCATENATE(Hilfstabelle!$O$4,0,F16,"!E48")),INDIRECT(CONCATENATE(Hilfstabelle!$O$4,F16,"!E48")))) -> 0 | G17: =SUM(B17:F17) -> 0
A19: Gesamtpersonalkosten | B19: =B8 -> 5 | C19: =C8 -> 6 | D19: 7 | E19: 8 | F19: 9 | G19: Summe pro Monat
B20: =IF(OR(B19=1,B19=2,B19=3,B19=4,B19=5,B19=6,B19=7,B19=8,B19=9),INDIRECT(CONCATENATE(Hilfstabelle!$O$4,0,B19,"!E57")),INDIRECT(CONCATENATE(Hilfstabelle!$O$4,B19,"!E57"))) -> 0 | C20: =IF(OR(C19=1,C19=2,C19=3,C19=4,C19=5,C19=6,C19=7,C19=8,C19=9),INDIRECT(CONCATENATE(Hilfstabelle!$O$4,0,C19,"!E57")),INDIRECT(CONCATENATE(Hilfstabelle!$O$4,C19,"!E57"))) -> 0 | D20: =IF(OR(D19=1,D19=2,D19=3,D19=4,D19=5,D19=6,D19=7,D19=8,D19=9),INDIRECT(CONCATENATE(Hilfstabelle!$O$4,0,D19,"!E57")),INDIRECT(CONCATENATE(Hilfstabelle!$O$4,D19,"!E57"))) -> 0 | E20: =IF(OR(E19=1,E19=2,E19=3,E19=4,E19=5,E19=6,E19=7,E19=8,E19=9),INDIRECT(CONCATENATE(Hilfstabelle!$O$4,0,E19,"!E57")),INDIRECT(CONCATENATE(Hilfstabelle!$O$4,E19,"!E57"))) -> 0 | F20: =IF(F19>52,0,IF(OR(F19=1,F19=2,F19=3,F19=4,F19=5,F19=6,F19=7,F19=8,F19=9),INDIRECT(CONCATENATE(Hilfstabelle!$O$4,0,F19,"!E57")),INDIRECT(CONCATENATE(Hilfstabelle!$O$4,F19,"!E57")))) -> 0 | G20: =SUM(B20:F20) -> 0
A22: Gesamtkosten Mittagsverpflegung | B22: =B8 -> 5 | C22: =C8 -> 6 | D22: 7 | E22: 8 | F22: 9 | G22: Summe pro Monat
B23: =IF(OR(B22=1,B22=2,B22=3,B22=4,B22=5,B22=6,B22=7,B22=8,B22=9),INDIRECT(CONCATENATE(Hilfstabelle!$O$5,0,B22,"!C20")),INDIRECT(CONCATENATE(Hilfstabelle!$O$5,B22,"!C20"))) -> 0 | C23: =IF(OR(C22=1,C22=2,C22=3,C22=4,C22=5,C22=6,C22=7,C22=8,C22=9),INDIRECT(CONCATENATE(Hilfstabelle!$O$5,0,C22,"!C20")),INDIRECT(CONCATENATE(Hilfstabelle!$O$5,C22,"!C20"))) -> 0 | D23: =IF(OR(D22=1,D22=2,D22=3,D22=4,D22=5,D22=6,D22=7,D22=8,D22=9),INDIRECT(CONCATENATE(Hilfstabelle!$O$5,0,D22,"!C20")),INDIRECT(CONCATENATE(Hilfstabelle!$O$5,D22,"!C20"))) -> 0 | E23: =IF(OR(E22=1,E22=2,E22=3,E22=4,E22=5,E22=6,E22=7,E22=8,E22=9),INDIRECT(CONCATENATE(Hilfstabelle!$O$5,0,E22,"!C20")),INDIRECT(CONCATENATE(Hilfstabelle!$O$5,E22,"!C20"))) -> 0 | F23: =IF(F22>52,0,IF(OR(F22=1,F22=2,F22=3,F22=4,F22=5,F22=6,F22=7,F22=8,F22=9),INDIRECT(CONCATENATE(Hilfstabelle!$O$5,0,F22,"!C20")),INDIRECT(CONCATENATE(Hilfstabelle!$O$5,F22,"!C20")))) -> 0 | G23: =SUM(B23:F23) -> 0
F25: Report Mittag | G25: =G10-G23 -> 0

Sheet Monat03
A1: Kalkulations-Check
A2: Ergebnisausgabe: Monatsübersicht | D2: =Hilfstabelle!C5 -> 2024-03-01
A6: Nettowerte vor Steuer…
A8: Erlöse Mittagsverpflegung | B8: =ErlösKW09!$F$9 -> 9 | C8: =B8+1 -> 10 | D8: =C8+1 -> 11 | E8: 12 | F8: 13 | G8: Summe pro Monat
B9: =VLOOKUP(B8,Hilfstabelle!$D$3:$F$54,3,2) -> 2024-02-26 | C9: =VLOOKUP(C8,Hilfstabelle!$D$3:$F$54,3,2) -> 2024-03-04 | D9: =VLOOKUP(D8,Hilfstabelle!$D$3:$F$54,3,2) -> 2024-03-11 | E9: =VLOOKUP(E8,Hilfstabelle!$D$3:$F$54,3,2) -> 2024-03-18 | F9: =VLOOKUP(F8,Hilfstabelle!$D$3:$F$54,3,2) -> 2024-03-25
B10: =IF(OR(B8=1,B8=2,B8=3,B8=4,B8=5,B8=6,B8=7,B8=8,B8=9),INDIRECT(CONCATENATE(Hilfstabelle!$O$3,0,B8,"!I77")),INDIRECT(CONCATENATE(Hilfstabelle!$O$3,B8,"!I77"))) -> 0 | C10: =IF(OR(C8=1,C8=2,C8=3,C8=4,C8=5,C8=6,C8=7,C8=8,C8=9),INDIRECT(CONCATENATE(Hilfstabelle!$O$3,0,C8,"!I77")),INDIRECT(CONCATENATE(Hilfstabelle!$O$3,C8,"!I77"))) -> 0 | D10: =IF(OR(D8=1,D8=2,D8=3,D8=4,D8=5,D8=6,D8=7,D8=8,D8=9),INDIRECT(CONCATENATE(Hilfstabelle!$O$3,0,D8,"!I77")),INDIRECT(CONCATENATE(Hilfstabelle!$O$3,D8,"!I77"))) -> 0 | E10: =IF(OR(E8=1,E8=2,E8=3,E8=4,E8=5,E8=6,E8=7,E8=8,E8=9),INDIRECT(CONCATENATE(Hilfstabelle!$O$3,0,E8,"!I77")),INDIRECT(CONCATENATE(Hilfstabelle!$O$3,E8,"!I77"))) -> 0 | F10: =IF(F8>52,0,IF(OR(F8=1,F8=2,F8=3,F8=4,F8=5,F8=6,F8=7,F8=8,F8=9),INDIRECT(CONCATENATE(Hilfstabelle!$O$3,0,F8,"!I77")),INDIRECT(CONCATENATE(Hilfstabelle!$O$3,F8,"!I77")))) -> 0 | G10: =SUM(B10:F10) -> 0
A12: Erlöse Zwischenverpflegung | B12: =B8 -> 9 | C12: =C8 -> 10 | D12: 11 | E12: 12 | F12: 13 | G12: Summe pro Monat
B13: =IF(OR(B12=1,B12=2,B12=3,B12=4,B12=5,B12=6,B12=7,B12=8,B12=9),INDIRECT(CONCATENATE(Hilfstabelle!$O$3,0,B12,"!I83")),INDIRECT(CONCATENATE(Hilfstabelle!$O$3,B12,"!I83"))) -> 0 | C13: =IF(OR(C12=1,C12=2,C12=3,C12=4,C12=5,C12=6,C12=7,C12=8,C12=9),INDIRECT(CONCATENATE(Hilfstabelle!$O$3,0,C12,"!I83")),INDIRECT(CONCATENATE(Hilfstabelle!$O$3,C12,"!I83"))) -> 0 | D13: =IF(OR(D12=1,D12=2,D12=3,D12=4,D12=5,D12=6,D12=7,D12=8,D12=9),INDIRECT(CONCATENATE(Hilfstabelle!$O$3,0,D12,"!I83")),INDIRECT(CONCATENATE(Hilfstabelle!$O$3,D12,"!I83"))) -> 0 | E13: =IF(OR(E12=1,E12=2,E12=3,E12=4,E12=5,E12=6,E12=7,E12=8,E12=9),INDIRECT(CONCATENATE(Hilfstabelle!$O$3,0,E12,"!I83")),INDIRECT(CONCATENATE(Hilfstabelle!$O$3,E12,"!I83"))) -> 0 | F13: =IF(F12>52,0,IF(OR(F12=1,F12=2,F12=3,F12=4,F12=5,F12=6,F12=7,F12=8,F12=9),INDIRECT(CONCATENATE(Hilfstabelle!$O$3,0,F12,"!I83")),INDIRECT(CONCATENATE(Hilfstabelle!$O$3,F12,"!I83")))) -> 0 | G13: =SUM(B13:F13) -> 0
A16: Gesamtgemeinkosten | B16: =B8 -> 9 | C16: =C8 -> 10 | D16: 11 | E16: 12 | F16: 13 | G16: Summe pro Monat
B17: =IF(OR(B16=1,B16=2,B16=3,B16=4,B16=5,B16=6,B16=7,B16=8,B16=9),INDIRECT(CONCATENATE(Hilfstabelle!$O$4,0,B16,"!E48")),INDIRECT(CONCATENATE(Hilfstabelle!$O$4,B16,"!E48"))) -> 0 | C17: =IF(OR(C16=1,C16=2,C16=3,C16=4,C16=5,C16=6,C16=7,C16=8,C16=9),INDIRECT(CONCATENATE(Hilfstabelle!$O$4,0,C16,"!E48")),INDIRECT(CONCATENATE(Hilfstabelle!$O$4,C16,"!E48"))) -> 0 | D17: =IF(OR(D16=1,D16=2,D16=3,D16=4,D16=5,D16=6,D16=7,D16=8,D16=9),INDIRECT(CONCATENATE(Hilfstabelle!$O$4,0,D16,"!E48")),INDIRECT(CONCATENATE(Hilfstabelle!$O$4,D16,"!E48"))) -> 0 | E17: =IF(OR(E16=1,E16=2,E16=3,E16=4,E16=5,E16=6,E16=7,E16=8,E16=9),INDIRECT(CONCATENATE(Hilfstabelle!$O$4,0,E16,"!E48")),INDIRECT(CONCATENATE(Hilfstabelle!$O$4,E16,"!E48"))) -> 0 | F17: =IF(F16>52,0,IF(OR(F16=1,F16=2,F16=3,F16=4,F16=5,F16=6,F16=7,F16=8,F16=9),INDIRECT(CONCATENATE(Hilfstabelle!$O$4,0,F16,"!E48")),INDIRECT(CONCATENATE(Hilfstabelle!$O$4,F16,"!E48")))) -> 0 | G17: =SUM(B17:F17) -> 0
A19: Gesamtpersonalkosten | B19: =B8 -> 9 | C19: =C8 -> 10 | D19: 11 | E19: 12 | F19: 13 | G19: Summe pro Monat
B20: =IF(OR(B19=1,B19=2,B19=3,B19=4,B19=5,B19=6,B19=7,B19=8,B19=9),INDIRECT(CONCATENATE(Hilfstabelle!$O$4,0,B19,"!E57")),INDIRECT(CONCATENATE(Hilfstabelle!$O$4,B19,"!E57"))) -> 0 | C20: =IF(OR(C19=1,C19=2,C19=3,C19=4,C19=5,C19=6,C19=7,C19=8,C19=9),INDIRECT(CONCATENATE(Hilfstabelle!$O$4,0,C19,"!E57")),INDIRECT(CONCATENATE(Hilfstabelle!$O$4,C19,"!E57"))) -> 0 | D20: =IF(OR(D19=1,D19=2,D19=3,D19=4,D19=5,D19=6,D19=7,D19=8,D19=9),INDIRECT(CONCATENATE(Hilfstabelle!$O$4,0,D19,"!E57")),INDIRECT(CONCATENATE(Hilfstabelle!$O$4,D19,"!E57"))) -> 0 | E20: =IF(OR(E19=1,E19=2,E19=3,E19=4,E19=5,E19=6,E19=7,E19=8,E19=9),INDIRECT(CONCATENATE(Hilfstabelle!$O$4,0,E19,"!E57")),INDIRECT(CONCATENATE(Hilfstabelle!$O$4,E19,"!E57"))) -> 0 | F20: =IF(F19>52,0,IF(OR(F19=1,F19=2,F19=3,F19=4,F19=5,F19=6,F19=7,F19=8,F19=9),INDIRECT(CONCATENATE(Hilfstabelle!$O$4,0,F19,"!E57")),INDIRECT(CONCATENATE(Hilfstabelle!$O$4,F19,"!E57")))) -> 0 | G20: =SUM(B20:F20) -> 0
A22: Gesamtkosten Mittagsverpflegung | B22: =B8 -> 9 | C22: =C8 -> 10 | D22: 11 | E22: 12 | F22: 13 | G22: Summe pro Monat
B23: =IF(OR(B22=1,B22=2,B22=3,B22=4,B22=5,B22=6,B22=7,B22=8,B22=9),INDIRECT(CONCATENATE(Hilfstabelle!$O$5,0,B22,"!C20")),INDIRECT(CONCATENATE(Hilfstabelle!$O$5,B22,"!C20"))) -> 0 | C23: =IF(OR(C22=1,C22=2,C22=3,C22=4,C22=5,C22=6,C22=7,C22=8,C22=9),INDIRECT(CONCATENATE(Hilfstabelle!$O$5,0,C22,"!C20")),INDIRECT(CONCATENATE(Hilfstabelle!$O$5,C22,"!C20"))) -> 0 | D23: =IF(OR(D22=1,D22=2,D22=3,D22=4,D22=5,D22=6,D22=7,D22=8,D22=9),INDIRECT(CONCATENATE(Hilfstabelle!$O$5,0,D22,"!C20")),INDIRECT(CONCATENATE(Hilfstabelle!$O$5,D22,"!C20"))) -> 0 | E23: =IF(OR(E22=1,E22=2,E22=3,E22=4,E22=5,E22=6,E22=7,E22=8,E22=9),INDIRECT(CONCATENATE(Hilfstabelle!$O$5,0,E22,"!C20")),INDIRECT(CONCATENATE(Hilfstabelle!$O$5,E22,"!C20"))) -> 0 | F23: =IF(F22>52,0,IF(OR(F22=1,F22=2,F22=3,F22=4,F22=5,F22=6,F22=7,F22=8,F22=9),INDIRECT(CONCATENATE(Hilfstabelle!$O$5,0,F22,"!C20")),INDIRECT(CONCATENATE(Hilfstabelle!$O$5,F22,"!C20")))) -> 0 | G23: =SUM(B23:F23) -> 0
F25: Report Mittag | G25: =G10-G23 -> 0

Sheet Monat04
A1: Kalkulations-Check
A2: Ergebnisausgabe: Monatsübersicht | D2: =Hilfstabelle!C6 -> 2024-04-01
A6: Nettowerte vor Steuer…
A8: Erlöse Mittagsverpflegung | B8: =ErlösKW14!$F$9 -> 14 | C8: =B8+1 -> 15 | D8: =C8+1 -> 16 | E8: 17 | F8: 18 | G8: Summe pro Monat
B9: =VLOOKUP(B8,Hilfstabelle!$D$3:$F$54,3,2) -> 2024-04-01 | C9: =VLOOKUP(C8,Hilfstabelle!$D$3:$F$54,3,2) -> 2024-04-08 | D9: =VLOOKUP(D8,Hilfstabelle!$D$3:$F$54,3,2) -> 2024-04-15 | E9: =VLOOKUP(E8,Hilfstabelle!$D$3:$F$54,3,2) -> 2024-04-22 | F9: =VLOOKUP(F8,Hilfstabelle!$D$3:$F$54,3,2) -> 2024-04-29
B10: =IF(OR(B8=1,B8=2,B8=3,B8=4,B8=5,B8=6,B8=7,B8=8,B8=9),INDIRECT(CONCATENATE(Hilfstabelle!$O$3,0,B8,"!I77")),INDIRECT(CONCATENATE(Hilfstabelle!$O$3,B8,"!I77"))) -> 0 | C10: =IF(OR(C8=1,C8=2,C8=3,C8=4,C8=5,C8=6,C8=7,C8=8,C8=9),INDIRECT(CONCATENATE(Hilfstabelle!$O$3,0,C8,"!I77")),INDIRECT(CONCATENATE(Hilfstabelle!$O$3,C8,"!I77"))) -> 0 | D10: =IF(OR(D8=1,D8=2,D8=3,D8=4,D8=5,D8=6,D8=7,D8=8,D8=9),INDIRECT(CONCATENATE(Hilfstabelle!$O$3,0,D8,"!I77")),INDIRECT(CONCATENATE(Hilfstabelle!$O$3,D8,"!I77"))) -> 0 | E10: =IF(OR(E8=1,E8=2,E8=3,E8=4,E8=5,E8=6,E8=7,E8=8,E8=9),INDIRECT(CONCATENATE(Hilfstabelle!$O$3,0,E8,"!I77")),INDIRECT(CONCATENATE(Hilfstabelle!$O$3,E8,"!I77"))) -> 0 | F10: =IF(F8>52,0,IF(OR(F8=1,F8=2,F8=3,F8=4,F8=5,F8=6,F8=7,F8=8,F8=9),INDIRECT(CONCATENATE(Hilfstabelle!$O$3,0,F8,"!I77")),INDIRECT(CONCATENATE(Hilfstabelle!$O$3,F8,"!I77")))) -> 0 | G10: =SUM(B10:F10) -> 0
A12: Erlöse Zwischenverpflegung | B12: =B8 -> 14 | C12: =C8 -> 15 | D12: 16 | E12: 17 | F12: 18 | G12: Summe pro Monat
B13: =IF(OR(B12=1,B12=2,B12=3,B12=4,B12=5,B12=6,B12=7,B12=8,B12=9),INDIRECT(CONCATENATE(Hilfstabelle!$O$3,0,B12,"!I83")),INDIRECT(CONCATENATE(Hilfstabelle!$O$3,B12,"!I83"))) -> 0 | C13: =IF(OR(C12=1,C12=2,C12=3,C12=4,C12=5,C12=6,C12=7,C12=8,C12=9),INDIRECT(CONCATENATE(Hilfstabelle!$O$3,0,C12,"!I83")),INDIRECT(CONCATENATE(Hilfstabelle!$O$3,C12,"!I83"))) -> 0 | D13: =IF(OR(D12=1,D12=2,D12=3,D12=4,D12=5,D12=6,D12=7,D12=8,D12=9),INDIRECT(CONCATENATE(Hilfstabelle!$O$3,0,D12,"!I83")),INDIRECT(CONCATENATE(Hilfstabelle!$O$3,D12,"!I83"))) -> 0 | E13: =IF(OR(E12=1,E12=2,E12=3,E12=4,E12=5,E12=6,E12=7,E12=8,E12=9),INDIRECT(CONCATENATE(Hilfstabelle!$O$3,0,E12,"!I83")),INDIRECT(CONCATENATE(Hilfstabelle!$O$3,E12,"!I83"))) -> 0 | F13: =IF(F12>52,0,IF(OR(F12=1,F12=2,F12=3,F12=4,F12=5,F12=6,F12=7,F12=8,F12=9),INDIRECT(CONCATENATE(Hilfstabelle!$O$3,0,F12,"!I83")),INDIRECT(CONCATENATE(Hilfstabelle!$O$3,F12,"!I83")))) -> 0 | G13: =SUM(B13:F13) -> 0
A16: Gesamtgemeinkosten | B16: =B8 -> 14 | C16: =C8 -> 15 | D16: 16 | E16: 17 | F16: 18 | G16: Summe pro Monat
B17: =IF(OR(B16=1,B16=2,B16=3,B16=4,B16=5,B16=6,B16=7,B16=8,B16=9),INDIRECT(CONCATENATE(Hilfstabelle!$O$4,0,B16,"!E48")),INDIRECT(CONCATENATE(Hilfstabelle!$O$4,B16,"!E48"))) -> 0 | C17: =IF(OR(C16=1,C16=2,C16=3,C16=4,C16=5,C16=6,C16=7,C16=8,C16=9),INDIRECT(CONCATENATE(Hilfstabelle!$O$4,0,C16,"!E48")),INDIRECT(CONCATENATE(Hilfstabelle!$O$4,C16,"!E48"))) -> 0 | D17: =IF(OR(D16=1,D16=2,D16=3,D16=4,D16=5,D16=6,D16=7,D16=8,D16=9),INDIRECT(CONCATENATE(Hilfstabelle!$O$4,0,D16,"!E48")),INDIRECT(CONCATENATE(Hilfstabelle!$O$4,D16,"!E48"))) -> 0 | E17: =IF(OR(E16=1,E16=2,E16=3,E16=4,E16=5,E16=6,E16=7,E16=8,E16=9),INDIRECT(CONCATENATE(Hilfstabelle!$O$4,0,E16,"!E48")),INDIRECT(CONCATENATE(Hilfstabelle!$O$4,E16,"!E48"))) -> 0 | F17: =IF(F16>52,0,IF(OR(F16=1,F16=2,F16=3,F16=4,F16=5,F16=6,F16=7,F16=8,F16=9),INDIRECT(CONCATENATE(Hilfstabelle!$O$4,0,F16,"!E48")),INDIRECT(CONCATENATE(Hilfstabelle!$O$4,F16,"!E48")))) -> 0 | G17: =SUM(B17:F17) -> 0
A19: Gesamtpersonalkosten | B19: =B8 -> 14 | C19: =C8 -> 15 | D19: 16 | E19: 17 | F19: 18 | G19: Summe pro Monat
B20: =IF(OR(B19=1,B19=2,B19=3,B19=4,B19=5,B19=6,B19=7,B19=8,B19=9),INDIRECT(CONCATENATE(Hilfstabelle!$O$4,0,B19,"!E57")),INDIRECT(CONCATENATE(Hilfstabelle!$O$4,B19,"!E57"))) -> 0 | C20: =IF(OR(C19=1,C19=2,C19=3,C19=4,C19=5,C19=6,C19=7,C19=8,C19=9),INDIRECT(CONCATENATE(Hilfstabelle!$O$4,0,C19,"!E57")),INDIRECT(CONCATENATE(Hilfstabelle!$O$4,C19,"!E57"))) -> 0 | D20: =IF(OR(D19=1,D19=2,D19=3,D19=4,D19=5,D19=6,D19=7,D19=8,D19=9),INDIRECT(CONCATENATE(Hilfstabelle!$O$4,0,D19,"!E57")),INDIRECT(CONCATENATE(Hilfstabelle!$O$4,D19,"!E57"))) -> 0 | E20: =IF(OR(E19=1,E19=2,E19=3,E19=4,E19=5,E19=6,E19=7,E19=8,E19=9),INDIRECT(CONCATENATE(Hilfstabelle!$O$4,0,E19,"!E57")),INDIRECT(CONCATENATE(Hilfstabelle!$O$4,E19,"!E57"))) -> 0 | F20: =IF(F19>52,0,IF(OR(F19=1,F19=2,F19=3,F19=4,F19=5,F19=6,F19=7,F19=8,F19=9),INDIRECT(CONCATENATE(Hilfstabelle!$O$4,0,F19,"!E57")),INDIRECT(CONCATENATE(Hilfstabelle!$O$4,F19,"!E57")))) -> 0 | G20: =SUM(B20:F20) -> 0
A22: Gesamtkosten Mittagsverpflegung | B22: =B8 -> 14 | C22: =C8 -> 15 | D22: 16 | E22: 17 | F22: 18 | G22: Summe pro Monat
B23: =IF(OR(B22=1,B22=2,B22=3,B22=4,B22=5,B22=6,B22=7,B22=8,B22=9),INDIRECT(CONCATENATE(Hilfstabelle!$O$5,0,B22,"!C20")),INDIRECT(CONCATENATE(Hilfstabelle!$O$5,B22,"!C20"))) -> 0 | C23: =IF(OR(C22=1,C22=2,C22=3,C22=4,C22=5,C22=6,C22=7,C22=8,C22=9),INDIRECT(CONCATENATE(Hilfstabelle!$O$5,0,C22,"!C20")),INDIRECT(CONCATENATE(Hilfstabelle!$O$5,C22,"!C20"))) -> 0 | D23: =IF(OR(D22=1,D22=2,D22=3,D22=4,D22=5,D22=6,D22=7,D22=8,D22=9),INDIRECT(CONCATENATE(Hilfstabelle!$O$5,0,D22,"!C20")),INDIRECT(CONCATENATE(Hilfstabelle!$O$5,D22,"!C20"))) -> 0 | E23: =IF(OR(E22=1,E22=2,E22=3,E22=4,E22=5,E22=6,E22=7,E22=8,E22=9),INDIRECT(CONCATENATE(Hilfstabelle!$O$5,0,E22,"!C20")),INDIRECT(CONCATENATE(Hilfstabelle!$O$5,E22,"!C20"))) -> 0 | F23: =IF(F22>52,0,IF(OR(F22=1,F22=2,F22=3,F22=4,F22=5,F22=6,F22=7,F22=8,F22=9),INDIRECT(CONCATENATE(Hilfstabelle!$O$5,0,F22,"!C20")),INDIRECT(CONCATENATE(Hilfstabelle!$O$5,F22,"!C20")))) -> 0 | G23: =SUM(B23:F23) -> 0
F25: Report Mittag | G25: =G10-G23 -> 0

Sheet Monat05
A1: Kalkulations-Check
A2: Ergebnisausgabe: Monatsübersicht | D2: =Hilfstabelle!C7 -> 2024-05-01
A6: Nettowerte vor Steuer…
A8: Erlöse Mittagsverpflegung | B8: =ErlösKW18!$F$9 -> 18 | C8: =B8+1 -> 19 | D8: =C8+1 -> 20 | E8: 21 | F8: 22 | G8: Summe pro Monat
B9: =VLOOKUP(B8,Hilfstabelle!$D$3:$F$54,3,2) -> 2024-04-29 | C9: =VLOOKUP(C8,Hilfstabelle!$D$3:$F$54,3,2) -> 2024-05-06 | D9: =VLOOKUP(D8,Hilfstabelle!$D$3:$F$54,3,2) -> 2024-05-13 | E9: =VLOOKUP(E8,Hilfstabelle!$D$3:$F$54,3,2) -> 2024-05-20 | F9: =VLOOKUP(F8,Hilfstabelle!$D$3:$F$54,3,2) -> 2024-05-27
B10: =IF(OR(B8=1,B8=2,B8=3,B8=4,B8=5,B8=6,B8=7,B8=8,B8=9),INDIRECT(CONCATENATE(Hilfstabelle!$O$3,0,B8,"!I77")),INDIRECT(CONCATENATE(Hilfstabelle!$O$3,B8,"!I77"))) -> 0 | C10: =IF(OR(C8=1,C8=2,C8=3,C8=4,C8=5,C8=6,C8=7,C8=8,C8=9),INDIRECT(CONCATENATE(Hilfstabelle!$O$3,0,C8,"!I77")),INDIRECT(CONCATENATE(Hilfstabelle!$O$3,C8,"!I77"))) -> 0 | D10: =IF(OR(D8=1,D8=2,D8=3,D8=4,D8=5,D8=6,D8=7,D8=8,D8=9),INDIRECT(CONCATENATE(Hilfstabelle!$O$3,0,D8,"!I77")),INDIRECT(CONCATENATE(Hilfstabelle!$O$3,D8,"!I77"))) -> 0 | E10: =IF(OR(E8=1,E8=2,E8=3,E8=4,E8=5,E8=6,E8=7,E8=8,E8=9),INDIRECT(CONCATENATE(Hilfstabelle!$O$3,0,E8,"!I77")),INDIRECT(CONCATENATE(Hilfstabelle!$O$3,E8,"!I77"))) -> 0 | F10: =IF(F8>52,0,IF(OR(F8=1,F8=2,F8=3,F8=4,F8=5,F8=6,F8=7,F8=8,F8=9),INDIRECT(CONCATENATE(Hilfstabelle!$O$3,0,F8,"!I77")),INDIRECT(CONCATENATE(Hilfstabelle!$O$3,F8,"!I77")))) -> 0 | G10: =SUM(B10:F10) -> 0
A12: Erlöse Zwischenverpflegung | B12: =B8 -> 18 | C12: =C8 -> 19 | D12: 20 | E12: 21 | F12: 22 | G12: Summe pro Monat
B13: =IF(OR(B12=1,B12=2,B12=3,B12=4,B12=5,B12=6,B12=7,B12=8,B12=9),INDIRECT(CONCATENATE(Hilfstabelle!$O$3,0,B12,"!I83")),INDIRECT(CONCATENATE(Hilfstabelle!$O$3,B12,"!I83"))) -> 0 | C13: =IF(OR(C12=1,C12=2,C12=3,C12=4,C12=5,C12=6,C12=7,C12=8,C12=9),INDIRECT(CONCATENATE(Hilfstabelle!$O$3,0,C12,"!I83")),INDIRECT(CONCATENATE(Hilfstabelle!$O$3,C12,"!I83"))) -> 0 | D13: =IF(OR(D12=1,D12=2,D12=3,D12=4,D12=5,D12=6,D12=7,D12=8,D12=9),INDIRECT(CONCATENATE(Hilfstabelle!$O$3,0,D12,"!I83")),INDIRECT(CONCATENATE(Hilfstabelle!$O$3,D12,"!I83"))) -> 0 | E13: =IF(OR(E12=1,E12=2,E12=3,E12=4,E12=5,E12=6,E12=7,E12=8,E12=9),INDIRECT(CONCATENATE(Hilfstabelle!$O$3,0,E12,"!I83")),INDIRECT(CONCATENATE(Hilfstabelle!$O$3,E12,"!I83"))) -> 0 | F13: =IF(F12>52,0,IF(OR(F12=1,F12=2,F12=3,F12=4,F12=5,F12=6,F12=7,F12=8,F12=9),INDIRECT(CONCATENATE(Hilfstabelle!$O$3,0,F12,"!I83")),INDIRECT(CONCATENATE(Hilfstabelle!$O$3,F12,"!I83")))) -> 0 | G13: =SUM(B13:F13) -> 0
A16: Gesamtgemeinkosten | B16: =B8 -> 18 | C16: =C8 -> 19 | D16: 20 | E16: 21 | F16: 22 | G16: Summe pro Monat
B17: =IF(OR(B16=1,B16=2,B16=3,B16=4,B16=5,B16=6,B16=7,B16=8,B16=9),INDIRECT(CONCATENATE(Hilfstabelle!$O$4,0,B16,"!E48")),INDIRECT(CONCATENATE(Hilfstabelle!$O$4,B16,"!E48"))) -> 0 | C17: =IF(OR(C16=1,C16=2,C16=3,C16=4,C16=5,C16=6,C16=7,C16=8,C16=9),INDIRECT(CONCATENATE(Hilfstabelle!$O$4,0,C16,"!E48")),INDIRECT(CONCATENATE(Hilfstabelle!$O$4,C16,"!E48"))) -> 0 | D17: =IF(OR(D16=1,D16=2,D16=3,D16=4,D16=5,D16=6,D16=7,D16=8,D16=9),INDIRECT(CONCATENATE(Hilfstabelle!$O$4,0,D16,"!E48")),INDIRECT(CONCATENATE(Hilfstabelle!$O$4,D16,"!E48"))) -> 0 | E17: =IF(OR(E16=1,E16=2,E16=3,E16=4,E16=5,E16=6,E16=7,E16=8,E16=9),INDIRECT(CONCATENATE(Hilfstabelle!$O$4,0,E16,"!E48")),INDIRECT(CONCATENATE(Hilfstabelle!$O$4,E16,"!E48"))) -> 0 | F17: =IF(F16>52,0,IF(OR(F16=1,F16=2,F16=3,F16=4,F16=5,F16=6,F16=7,F16=8,F16=9),INDIRECT(CONCATENATE(Hilfstabelle!$O$4,0,F16,"!E48")),INDIRECT(CONCATENATE(Hilfstabelle!$O$4,F16,"!E48")))) -> 0 | G17: =SUM(B17:F17) -> 0
A19: Gesamtpersonalkosten | B19: =B8 -> 18 | C19: =C8 -> 19 | D19: 20 | E19: 21 | F19: 22 | G19: Summe pro Monat
B20: =IF(OR(B19=1,B19=2,B19=3,B19=4,B19=5,B19=6,B19=7,B19=8,B19=9),INDIRECT(CONCATENATE(Hilfstabelle!$O$4,0,B19,"!E57")),INDIRECT(CONCATENATE(Hilfstabelle!$O$4,B19,"!E57"))) -> 0 | C20: =IF(OR(C19=1,C19=2,C19=3,C19=4,C19=5,C19=6,C19=7,C19=8,C19=9),INDIRECT(CONCATENATE(Hilfstabelle!$O$4,0,C19,"!E57")),INDIRECT(CONCATENATE(Hilfstabelle!$O$4,C19,"!E57"))) -> 0 | D20: =IF(OR(D19=1,D19=2,D19=3,D19=4,D19=5,D19=6,D19=7,D19=8,D19=9),INDIRECT(CONCATENATE(Hilfstabelle!$O$4,0,D19,"!E57")),INDIRECT(CONCATENATE(Hilfstabelle!$O$4,D19,"!E57"))) -> 0 | E20: =IF(OR(E19=1,E19=2,E19=3,E19=4,E19=5,E19=6,E19=7,E19=8,E19=9),INDIRECT(CONCATENATE(Hilfstabelle!$O$4,0,E19,"!E57")),INDIRECT(CONCATENATE(Hilfstabelle!$O$4,E19,"!E57"))) -> 0 | F20: =IF(F19>52,0,IF(OR(F19=1,F19=2,F19=3,F19=4,F19=5,F19=6,F19=7,F19=8,F19=9),INDIRECT(CONCATENATE(Hilfstabelle!$O$4,0,F19,"!E57")),INDIRECT(CONCATENATE(Hilfstabelle!$O$4,F19,"!E57")))) -> 0 | G20: =SUM(B20:F20) -> 0
A22: Gesamtkosten Mittagsverpflegung | B22: =B8 -> 18 | C22: =C8 -> 19 | D22: 20 | E22: 21 | F22: 22 | G22: Summe pro Monat
B23: =IF(OR(B22=1,B22=2,B22=3,B22=4,B22=5,B22=6,B22=7,B22=8,B22=9),INDIRECT(CONCATENATE(Hilfstabelle!$O$5,0,B22,"!C20")),INDIRECT(CONCATENATE(Hilfstabelle!$O$5,B22,"!C20"))) -> 0 | C23: =IF(OR(C22=1,C22=2,C22=3,C22=4,C22=5,C22=6,C22=7,C22=8,C22=9),INDIRECT(CONCATENATE(Hilfstabelle!$O$5,0,C22,"!C20")),INDIRECT(CONCATENATE(Hilfstabelle!$O$5,C22,"!C20"))) -> 0 | D23: =IF(OR(D22=1,D22=2,D22=3,D22=4,D22=5,D22=6,D22=7,D22=8,D22=9),INDIRECT(CONCATENATE(Hilfstabelle!$O$5,0,D22,"!C20")),INDIRECT(CONCATENATE(Hilfstabelle!$O$5,D22,"!C20"))) -> 0 | E23: =IF(OR(E22=1,E22=2,E22=3,E22=4,E22=5,E22=6,E22=7,E22=8,E22=9),INDIRECT(CONCATENATE(Hilfstabelle!$O$5,0,E22,"!C20")),INDIRECT(CONCATENATE(Hilfstabelle!$O$5,E22,"!C20"))) -> 0 | F23: =IF(F22>52,0,IF(OR(F22=1,F22=2,F22=3,F22=4,F22=5,F22=6,F22=7,F22=8,F22=9),INDIRECT(CONCATENATE(Hilfstabelle!$O$5,0,F22,"!C20")),INDIRECT(CONCATENATE(Hilfstabelle!$O$5,F22,"!C20")))) -> 0 | G23: =SUM(B23:F23) -> 0
F25: Report Mittag | G25: =G10-G23 -> 0

Sheet Monat06
A1: Kalkulations-Check
A2: Ergebnisausgabe: Monatsübersicht | D2: =Hilfstabelle!C8 -> 2024-06-01
A6: Nettowerte vor Steuer…
A8: Erlöse Mittagsverpflegung | B8: =ErlösKW22!$F$9 -> 22 | C8: =B8+1 -> 23 | D8: =C8+1 -> 24 | E8: 25 | F8: 26 | G8: Summe pro Monat
B9: =VLOOKUP(B8,Hilfstabelle!$D$3:$F$54,3,2) -> 2024-05-27 | C9: =VLOOKUP(C8,Hilfstabelle!$D$3:$F$54,3,2) -> 2024-06-03 | D9: =VLOOKUP(D8,Hilfstabelle!$D$3:$F$54,3,2) -> 2024-06-10 | E9: =VLOOKUP(E8,Hilfstabelle!$D$3:$F$54,3,2) -> 2024-06-17 | F9: =VLOOKUP(F8,Hilfstabelle!$D$3:$F$54,3,2) -> 2024-06-24
B10: =IF(OR(B8=1,B8=2,B8=3,B8=4,B8=5,B8=6,B8=7,B8=8,B8=9),INDIRECT(CONCATENATE(Hilfstabelle!$O$3,0,B8,"!I77")),INDIRECT(CONCATENATE(Hilfstabelle!$O$3,B8,"!I77"))) -> 0 | C10: =IF(OR(C8=1,C8=2,C8=3,C8=4,C8=5,C8=6,C8=7,C8=8,C8=9),INDIRECT(CONCATENATE(Hilfstabelle!$O$3,0,C8,"!I77")),INDIRECT(CONCATENATE(Hilfstabelle!$O$3,C8,"!I77"))) -> 0 | D10: =IF(OR(D8=1,D8=2,D8=3,D8=4,D8=5,D8=6,D8=7,D8=8,D8=9),INDIRECT(CONCATENATE(Hilfstabelle!$O$3,0,D8,"!I77")),INDIRECT(CONCATENATE(Hilfstabelle!$O$3,D8,"!I77"))) -> 0 | E10: =IF(OR(E8=1,E8=2,E8=3,E8=4,E8=5,E8=6,E8=7,E8=8,E8=9),INDIRECT(CONCATENATE(Hilfstabelle!$O$3,0,E8,"!I77")),INDIRECT(CONCATENATE(Hilfstabelle!$O$3,E8,"!I77"))) -> 0 | F10: =IF(F8>52,0,IF(OR(F8=1,F8=2,F8=3,F8=4,F8=5,F8=6,F8=7,F8=8,F8=9),INDIRECT(CONCATENATE(Hilfstabelle!$O$3,0,F8,"!I77")),INDIRECT(CONCATENATE(Hilfstabelle!$O$3,F8,"!I77")))) -> 0 | G10: =SUM(B10:F10) -> 0
A12: Erlöse Zwischenverpflegung | B12: =B8 -> 22 | C12: =C8 -> 23 | D12: 24 | E12: 25 | F12: 26 | G12: Summe pro Monat
B13: =IF(OR(B12=1,B12=2,B12=3,B12=4,B12=5,B12=6,B12=7,B12=8,B12=9),INDIRECT(CONCATENATE(Hilfstabelle!$O$3,0,B12,"!I83")),INDIRECT(CONCATENATE(Hilfstabelle!$O$3,B12,"!I83"))) -> 0 | C13: =IF(OR(C12=1,C12=2,C12=3,C12=4,C12=5,C12=6,C12=7,C12=8,C12=9),INDIRECT(CONCATENATE(Hilfstabelle!$O$3,0,C12,"!I83")),INDIRECT(CONCATENATE(Hilfstabelle!$O$3,C12,"!I83"))) -> 0 | D13: =IF(OR(D12=1,D12=2,D12=3,D12=4,D12=5,D12=6,D12=7,D12=8,D12=9),INDIRECT(CONCATENATE(Hilfstabelle!$O$3,0,D12,"!I83")),INDIRECT(CONCATENATE(Hilfstabelle!$O$3,D12,"!I83"))) -> 0 | E13: =IF(OR(E12=1,E12=2,E12=3,E12=4,E12=5,E12=6,E12=7,E12=8,E12=9),INDIRECT(CONCATENATE(Hilfstabelle!$O$3,0,E12,"!I83")),INDIRECT(CONCATENATE(Hilfstabelle!$O$3,E12,"!I83"))) -> 0 | F13: =IF(F12>52,0,IF(OR(F12=1,F12=2,F12=3,F12=4,F12=5,F12=6,F12=7,F12=8,F12=9),INDIRECT(CONCATENATE(Hilfstabelle!$O$3,0,F12,"!I83")),INDIRECT(CONCATENATE(Hilfstabelle!$O$3,F12,"!I83")))) -> 0 | G13: =SUM(B13:F13) -> 0
A16: Gesamtgemeinkosten | B16: =B8 -> 22 | C16: =C8 -> 23 | D16: 24 | E16: 25 | F16: 26 | G16: Summe pro Monat
B17: =IF(OR(B16=1,B16=2,B16=3,B16=4,B16=5,B16=6,B16=7,B16=8,B16=9),INDIRECT(CONCATENATE(Hilfstabelle!$O$4,0,B16,"!E48")),INDIRECT(CONCATENATE(Hilfstabelle!$O$4,B16,"!E48"))) -> 0 | C17: =IF(OR(C16=1,C16=2,C16=3,C16=4,C16=5,C16=6,C16=7,C16=8,C16=9),INDIRECT(CONCATENATE(Hilfstabelle!$O$4,0,C16,"!E48")),INDIRECT(CONCATENATE(Hilfstabelle!$O$4,C16,"!E48"))) -> 0 | D17: =IF(OR(D16=1,D16=2,D16=3,D16=4,D16=5,D16=6,D16=7,D16=8,D16=9),INDIRECT(CONCATENATE(Hilfstabelle!$O$4,0,D16,"!E48")),INDIRECT(CONCATENATE(Hilfstabelle!$O$4,D16,"!E48"))) -> 0 | E17: =IF(OR(E16=1,E16=2,E16=3,E16=4,E16=5,E16=6,E16=7,E16=8,E16=9),INDIRECT(CONCATENATE(Hilfstabelle!$O$4,0,E16,"!E48")),INDIRECT(CONCATENATE(Hilfstabelle!$O$4,E16,"!E48"))) -> 0 | F17: =IF(F16>52,0,IF(OR(F16=1,F16=2,F16=3,F16=4,F16=5,F16=6,F16=7,F16=8,F16=9),INDIRECT(CONCATENATE(Hilfstabelle!$O$4,0,F16,"!E48")),INDIRECT(CONCATENATE(Hilfstabelle!$O$4,F16,"!E48")))) -> 0 | G17: =SUM(B17:F17) -> 0
A19: Gesamtpersonalkosten | B19: =B8 -> 22 | C19: =C8 -> 23 | D19: 24 | E19: 25 | F19: 26 | G19: Summe pro Monat
B20: =IF(OR(B19=1,B19=2,B19=3,B19=4,B19=5,B19=6,B19=7,B19=8,B19=9),INDIRECT(CONCATENATE(Hilfstabelle!$O$4,0,B19,"!E57")),INDIRECT(CONCATENATE(Hilfstabelle!$O$4,B19,"!E57"))) -> 0 | C20: =IF(OR(C19=1,C19=2,C19=3,C19=4,C19=5,C19=6,C19=7,C19=8,C19=9),INDIRECT(CONCATENATE(Hilfstabelle!$O$4,0,C19,"!E57")),INDIRECT(CONCATENATE(Hilfstabelle!$O$4,C19,"!E57"))) -> 0 | D20: =IF(OR(D19=1,D19=2,D19=3,D19=4,D19=5,D19=6,D19=7,D19=8,D19=9),INDIRECT(CONCATENATE(Hilfstabelle!$O$4,0,D19,"!E57")),INDIRECT(CONCATENATE(Hilfstabelle!$O$4,D19,"!E57"))) -> 0 | E20: =IF(OR(E19=1,E19=2,E19=3,E19=4,E19=5,E19=6,E19=7,E19=8,E19=9),INDIRECT(CONCATENATE(Hilfstabelle!$O$4,0,E19,"!E57")),INDIRECT(CONCATENATE(Hilfstabelle!$O$4,E19,"!E57"))) -> 0 | F20: =IF(F19>52,0,IF(OR(F19=1,F19=2,F19=3,F19=4,F19=5,F19=6,F19=7,F19=8,F19=9),INDIRECT(CONCATENATE(Hilfstabelle!$O$4,0,F19,"!E57")),INDIRECT(CONCATENATE(Hilfstabelle!$O$4,F19,"!E57")))) -> 0 | G20: =SUM(B20:F20) -> 0
A22: Gesamtkosten Mittagsverpflegung | B22: =B8 -> 22 | C22: =C8 -> 23 | D22: 24 | E22: 25 | F22: 26 | G22: Summe pro Monat
B23: =IF(OR(B22=1,B22=2,B22=3,B22=4,B22=5,B22=6,B22=7,B22=8,B22=9),INDIRECT(CONCATENATE(Hilfstabelle!$O$5,0,B22,"!C20")),INDIRECT(CONCATENATE(Hilfstabelle!$O$5,B22,"!C20"))) -> 0 | C23: =IF(OR(C22=1,C22=2,C22=3,C22=4,C22=5,C22=6,C22=7,C22=8,C22=9),INDIRECT(CONCATENATE(Hilfstabelle!$O$5,0,C22,"!C20")),INDIRECT(CONCATENATE(Hilfstabelle!$O$5,C22,"!C20"))) -> 0 | D23: =IF(OR(D22=1,D22=2,D22=3,D22=4,D22=5,D22=6,D22=7,D22=8,D22=9),INDIRECT(CONCATENATE(Hilfstabelle!$O$5,0,D22,"!C20")),INDIRECT(CONCATENATE(Hilfstabelle!$O$5,D22,"!C20"))) -> 0 | E23: =IF(OR(E22=1,E22=2,E22=3,E22=4,E22=5,E22=6,E22=7,E22=8,E22=9),INDIRECT(CONCATENATE(Hilfstabelle!$O$5,0,E22,"!C20")),INDIRECT(CONCATENATE(Hilfstabelle!$O$5,E22,"!C20"))) -> 0 | F23: =IF(F22>52,0,IF(OR(F22=1,F22=2,F22=3,F22=4,F22=5,F22=6,F22=7,F22=8,F22=9),INDIRECT(CONCATENATE(Hilfstabelle!$O$5,0,F22,"!C20")),INDIRECT(CONCATENATE(Hilfstabelle!$O$5,F22,"!C20")))) -> 0 | G23: =SUM(B23:F23) -> 0
F25: Report Mittag | G25: =G10-G23 -> 0

Sheet Monat07
A1: Kalkulations-Check
A2: Ergebnisausgabe: Monatsübersicht | D2: =Hilfstabelle!C9 -> 2024-07-01
A6: Nettowerte vor Steuer…
A8: Erlöse Mittagsverpflegung | B8: =ErlösKW27!$F$9 -> 27 | C8: =B8+1 -> 28 | D8: =C8+1 -> 29 | E8: 30 | F8: 31 | G8: Summe pro Monat
B9: =VLOOKUP(B8,Hilfstabelle!$D$3:$F$54,3,2) -> 2024-07-01 | C9: =VLOOKUP(C8,Hilfstabelle!$D$3:$F$54,3,2) -> 2024-07-08 | D9: =VLOOKUP(D8,Hilfstabelle!$D$3:$F$54,3,2) -> 2024-07-15 | E9: =VLOOKUP(E8,Hilfstabelle!$D$3:$F$54,3,2) -> 2024-07-22 | F9: =VLOOKUP(F8,Hilfstabelle!$D$3:$F$54,3,2) -> 2024-07-29
B10: =IF(OR(B8=1,B8=2,B8=3,B8=4,B8=5,B8=6,B8=7,B8=8,B8=9),INDIRECT(CONCATENATE(Hilfstabelle!$O$3,0,B8,"!I77")),INDIRECT(CONCATENATE(Hilfstabelle!$O$3,B8,"!I77"))) -> 0 | C10: =IF(OR(C8=1,C8=2,C8=3,C8=4,C8=5,C8=6,C8=7,C8=8,C8=9),INDIRECT(CONCATENATE(Hilfstabelle!$O$3,0,C8,"!I77")),INDIRECT(CONCATENATE(Hilfstabelle!$O$3,C8,"!I77"))) -> 3188.24 | D10: =IF(OR(D8=1,D8=2,D8=3,D8=4,D8=5,D8=6,D8=7,D8=8,D8=9),INDIRECT(CONCATENATE(Hilfstabelle!$O$3,0,D8,"!I77")),INDIRECT(CONCATENATE(Hilfstabelle!$O$3,D8,"!I77"))) -> 0 | E10: =IF(OR(E8=1,E8=2,E8=3,E8=4,E8=5,E8=6,E8=7,E8=8,E8=9),INDIRECT(CONCATENATE(Hilfstabelle!$O$3,0,E8,"!I77")),INDIRECT(CONCATENATE(Hilfstabelle!$O$3,E8,"!I77"))) -> 0 | F10: =IF(F8>52,0,IF(OR(F8=1,F8=2,F8=3,F8=4,F8=5,F8=6,F8=7,F8=8,F8=9),INDIRECT(CONCATENATE(Hilfstabelle!$O$3,0,F8,"!I77")),INDIRECT(CONCATENATE(Hilfstabelle!$O$3,F8,"!I77")))) -> 0 | G10: =SUM(B10:F10) -> 3188.24
A12: Erlöse Zwischenverpflegung | B12: =B8 -> 27 | C12: =C8 -> 28 | D12: 29 | E12: 30 | F12: 31 | G12: Summe pro Monat
B13: =IF(OR(B12=1,B12=2,B12=3,B12=4,B12=5,B12=6,B12=7,B12=8,B12=9),INDIRECT(CONCATENATE(Hilfstabelle!$O$3,0,B12,"!I83")),INDIRECT(CONCATENATE(Hilfstabelle!$O$3,B12,"!I83"))) -> 0 | C13: =IF(OR(C12=1,C12=2,C12=3,C12=4,C12=5,C12=6,C12=7,C12=8,C12=9),INDIRECT(CONCATENATE(Hilfstabelle!$O$3,0,C12,"!I83")),INDIRECT(CONCATENATE(Hilfstabelle!$O$3,C12,"!I83"))) -> 1401.87 | D13: =IF(OR(D12=1,D12=2,D12=3,D12=4,D12=5,D12=6,D12=7,D12=8,D12=9),INDIRECT(CONCATENATE(Hilfstabelle!$O$3,0,D12,"!I83")),INDIRECT(CONCATENATE(Hilfstabelle!$O$3,D12,"!I83"))) -> 0 | E13: =IF(OR(E12=1,E12=2,E12=3,E12=4,E12=5,E12=6,E12=7,E12=8,E12=9),INDIRECT(CONCATENATE(Hilfstabelle!$O$3,0,E12,"!I83")),INDIRECT(CONCATENATE(Hilfstabelle!$O$3,E12,"!I83"))) -> 0 | F13: =IF(F12>52,0,IF(OR(F12=1,F12=2,F12=3,F12=4,F12=5,F12=6,F12=7,F12=8,F12=9),INDIRECT(CONCATENATE(Hilfstabelle!$O$3,0,F12,"!I83")),INDIRECT(CONCATENATE(Hilfstabelle!$O$3,F12,"!I83")))) -> 0 | G13: =SUM(B13:F13) -> 1401.87
A16: Gesamtgemeinkosten | B16: =B8 -> 27 | C16: =C8 -> 28 | D16: 29 | E16: 30 | F16: 31 | G16: Summe pro Monat
B17: =IF(OR(B16=1,B16=2,B16=3,B16=4,B16=5,B16=6,B16=7,B16=8,B16=9),INDIRECT(CONCATENATE(Hilfstabelle!$O$4,0,B16,"!E48")),INDIRECT(CONCATENATE(Hilfstabelle!$O$4,B16,"!E48"))) -> 0 | C17: =IF(OR(C16=1,C16=2,C16=3,C16=4,C16=5,C16=6,C16=7,C16=8,C16=9),INDIRECT(CONCATENATE(Hilfstabelle!$O$4,0,C16,"!E48")),INDIRECT(CONCATENATE(Hilfstabelle!$O$4,C16,"!E48"))) -> 228 | D17: =IF(OR(D16=1,D16=2,D16=3,D16=4,D16=5,D16=6,D16=7,D16=8,D16=9),INDIRECT(CONCATENATE(Hilfstabelle!$O$4,0,D16,"!E48")),INDIRECT(CONCATENATE(Hilfstabelle!$O$4,D16,"!E48"))) -> 0 | E17: =IF(OR(E16=1,E16=2,E16=3,E16=4,E16=5,E16=6,E16=7,E16=8,E16=9),INDIRECT(CONCATENATE(Hilfstabelle!$O$4,0,E16,"!E48")),INDIRECT(CONCATENATE(Hilfstabelle!$O$4,E16,"!E48"))) -> 0 | F17: =IF(F16>52,0,IF(OR(F16=1,F16=2,F16=3,F16=4,F16=5,F16=6,F16=7,F16=8,F16=9),INDIRECT(CONCATENATE(Hilfstabelle!$O$4,0,F16,"!E48")),INDIRECT(CONCATENATE(Hilfstabelle!$O$4,F16,"!E48")))) -> 0 | G17: =SUM(B17:F17) -> 228
A19: Gesamtpersonalkosten | B19: =B8 -> 27 | C19: =C8 -> 28 | D19: 29 | E19: 30 | F19: 31 | G19: Summe pro Monat
B20: =IF(OR(B19=1,B19=2,B19=3,B19=4,B19=5,B19=6,B19=7,B19=8,B19=9),INDIRECT(CONCATENATE(Hilfstabelle!$O$4,0,B19,"!E57")),INDIRECT(CONCATENATE(Hilfstabelle!$O$4,B19,"!E57"))) -> 0 | C20: =IF(OR(C19=1,C19=2,C19=3,C19=4,C19=5,C19=6,C19=7,C19=8,C19=9),INDIRECT(CONCATENATE(Hilfstabelle!$O$4,0,C19,"!E57")),INDIRECT(CONCATENATE(Hilfstabelle!$O$4,C19,"!E57"))) -> 1750 | D20: =IF(OR(D19=1,D19=2,D19=3,D19=4,D19=5,D19=6,D19=7,D19=8,D19=9),INDIRECT(CONCATENATE(Hilfstabelle!$O$4,0,D19,"!E57")),INDIRECT(CONCATENATE(Hilfstabelle!$O$4,D19,"!E57"))) -> 0 | E20: =IF(OR(E19=1,E19=2,E19=3,E19=4,E19=5,E19=6,E19=7,E19=8,E19=9),INDIRECT(CONCATENATE(Hilfstabelle!$O$4,0,E19,"!E57")),INDIRECT(CONCATENATE(Hilfstabelle!$O$4,E19,"!E57"))) -> 0 | F20: =IF(F19>52,0,IF(OR(F19=1,F19=2,F19=3,F19=4,F19=5,F19=6,F19=7,F19=8,F19=9),INDIRECT(CONCATENATE(Hilfstabelle!$O$4,0,F19,"!E57")),INDIRECT(CONCATENATE(Hilfstabelle!$O$4,F19,"!E57")))) -> 0 | G20: =SUM(B20:F20) -> 1750
A22: Gesamtkosten Mittagsverpflegung | B22: =B8 -> 27 | C22: =C8 -> 28 | D22: 29 | E22: 30 | F22: 31 | G22: Summe pro Monat
B23: =IF(OR(B22=1,B22=2,B22=3,B22=4,B22=5,B22=6,B22=7,B22=8,B22=9),INDIRECT(CONCATENATE(Hilfstabelle!$O$5,0,B22,"!C20")),INDIRECT(CONCATENATE(Hilfstabelle!$O$5,B22,"!C20"))) -> 0 | C23: =IF(OR(C22=1,C22=2,C22=3,C22=4,C22=5,C22=6,C22=7,C22=8,C22=9),INDIRECT(CONCATENATE(Hilfstabelle!$O$5,0,C22,"!C20")),INDIRECT(CONCATENATE(Hilfstabelle!$O$5,C22,"!C20"))) -> 2619.5 | D23: =IF(OR(D22=1,D22=2,D22=3,D22=4,D22=5,D22=6,D22=7,D22=8,D22=9),INDIRECT(CONCATENATE(Hilfstabelle!$O$5,0,D22,"!C20")),INDIRECT(CONCATENATE(Hilfstabelle!$O$5,D22,"!C20"))) -> 0 | E23: =IF(OR(E22=1,E22=2,E22=3,E22=4,E22=5,E22=6,E22=7,E22=8,E22=9),INDIRECT(CONCATENATE(Hilfstabelle!$O$5,0,E22,"!C20")),INDIRECT(CONCATENATE(Hilfstabelle!$O$5,E22,"!C20"))) -> 0 | F23: =IF(F22>52,0,IF(OR(F22=1,F22=2,F22=3,F22=4,F22=5,F22=6,F22=7,F22=8,F22=9),INDIRECT(CONCATENATE(Hilfstabelle!$O$5,0,F22,"!C20")),INDIRECT(CONCATENATE(Hilfstabelle!$O$5,F22,"!C20")))) -> 0 | G23: =SUM(B23:F23) -> 2619.5
F25: Report Mittag | G25: =G10-G23 -> 568.74

Sheet Monat08
A1: Kalkulations-Check
A2: Ergebnisausgabe: Monatsübersicht | D2: =Hilfstabelle!C10 -> 2024-08-01
A6: Nettowerte vor Steuer…
A8: Erlöse Mittagsverpflegung | B8: =ErlösKW31!$F$9 -> 31 | C8: =B8+1 -> 32 | D8: =C8+1 -> 33 | E8: 34 | F8: 35 | G8: Summe pro Monat
B9: =VLOOKUP(B8,Hilfstabelle!$D$3:$F$54,3,2) -> 2024-07-29 | C9: =VLOOKUP(C8,Hilfstabelle!$D$3:$F$54,3,2) -> 2024-08-05 | D9: =VLOOKUP(D8,Hilfstabelle!$D$3:$F$54,3,2) -> 2024-08-12 | E9: =VLOOKUP(E8,Hilfstabelle!$D$3:$F$54,3,2) -> 2024-08-19 | F9: =VLOOKUP(F8,Hilfstabelle!$D$3:$F$54,3,2) -> 2024-08-26
B10: =IF(OR(B8=1,B8=2,B8=3,B8=4,B8=5,B8=6,B8=7,B8=8,B8=9),INDIRECT(CONCATENATE(Hilfstabelle!$O$3,0,B8,"!I77")),INDIRECT(CONCATENATE(Hilfstabelle!$O$3,B8,"!I77"))) -> 0 | C10: =IF(OR(C8=1,C8=2,C8=3,C8=4,C8=5,C8=6,C8=7,C8=8,C8=9),INDIRECT(CONCATENATE(Hilfstabelle!$O$3,0,C8,"!I77")),INDIRECT(CONCATENATE(Hilfstabelle!$O$3,C8,"!I77"))) -> 0 | D10: =IF(OR(D8=1,D8=2,D8=3,D8=4,D8=5,D8=6,D8=7,D8=8,D8=9),INDIRECT(CONCATENATE(Hilfstabelle!$O$3,0,D8,"!I77")),INDIRECT(CONCATENATE(Hilfstabelle!$O$3,D8,"!I77"))) -> 0 | E10: =IF(OR(E8=1,E8=2,E8=3,E8=4,E8=5,E8=6,E8=7,E8=8,E8=9),INDIRECT(CONCATENATE(Hilfstabelle!$O$3,0,E8,"!I77")),INDIRECT(CONCATENATE(Hilfstabelle!$O$3,E8,"!I77"))) -> 0 | F10: =IF(F8>52,0,IF(OR(F8=1,F8=2,F8=3,F8=4,F8=5,F8=6,F8=7,F8=8,F8=9),INDIRECT(CONCATENATE(Hilfstabelle!$O$3,0,F8,"!I77")),INDIRECT(CONCATENATE(Hilfstabelle!$O$3,F8,"!I77")))) -> 0 | G10: =SUM(B10:F10) -> 0
A12: Erlöse Zwischenverpflegung | B12: =B8 -> 31 | C12: =C8 -> 32 | D12: 33 | E12: 34 | F12: 35 | G12: Summe pro Monat
B13: =IF(OR(B12=1,B12=2,B12=3,B12=4,B12=5,B12=6,B12=7,B12=8,B12=9),INDIRECT(CONCATENATE(Hilfstabelle!$O$3,0,B12,"!I83")),INDIRECT(CONCATENATE(Hilfstabelle!$O$3,B12,"!I83"))) -> 0 | C13: =IF(OR(C12=1,C12=2,C12=3,C12=4,C12=5,C12=6,C12=7,C12=8,C12=9),INDIRECT(CONCATENATE(Hilfstabelle!$O$3,0,C12,"!I83")),INDIRECT(CONCATENATE(Hilfstabelle!$O$3,C12,"!I83"))) -> 0 | D13: =IF(OR(D12=1,D12=2,D12=3,D12=4,D12=5,D12=6,D12=7,D12=8,D12=9),INDIRECT(CONCATENATE(Hilfstabelle!$O$3,0,D12,"!I83")),INDIRECT(CONCATENATE(Hilfstabelle!$O$3,D12,"!I83"))) -> 0 | E13: =IF(OR(E12=1,E12=2,E12=3,E12=4,E12=5,E12=6,E12=7,E12=8,E12=9),INDIRECT(CONCATENATE(Hilfstabelle!$O$3,0,E12,"!I83")),INDIRECT(CONCATENATE(Hilfstabelle!$O$3,E12,"!I83"))) -> 0 | F13: =IF(F12>52,0,IF(OR(F12=1,F12=2,F12=3,F12=4,F12=5,F12=6,F12=7,F12=8,F12=9),INDIRECT(CONCATENATE(Hilfstabelle!$O$3,0,F12,"!I83")),INDIRECT(CONCATENATE(Hilfstabelle!$O$3,F12,"!I83")))) -> 0 | G13: =SUM(B13:F13) -> 0
A16: Gesamtgemeinkosten | B16: =B8 -> 31 | C16: =C8 -> 32 | D16: 33 | E16: 34 | F16: 35 | G16: Summe pro Monat
B17: =IF(OR(B16=1,B16=2,B16=3,B16=4,B16=5,B16=6,B16=7,B16=8,B16=9),INDIRECT(CONCATENATE(Hilfstabelle!$O$4,0,B16,"!E48")),INDIRECT(CONCATENATE(Hilfstabelle!$O$4,B16,"!E48"))) -> 0 | C17: =IF(OR(C16=1,C16=2,C16=3,C16=4,C16=5,C16=6,C16=7,C16=8,C16=9),INDIRECT(CONCATENATE(Hilfstabelle!$O$4,0,C16,"!E48")),INDIRECT(CONCATENATE(Hilfstabelle!$O$4,C16,"!E48"))) -> 0 | D17: =IF(OR(D16=1,D16=2,D16=3,D16=4,D16=5,D16=6,D16=7,D16=8,D16=9),INDIRECT(CONCATENATE(Hilfstabelle!$O$4,0,D16,"!E48")),INDIRECT(CONCATENATE(Hilfstabelle!$O$4,D16,"!E48"))) -> 0 | E17: =IF(OR(E16=1,E16=2,E16=3,E16=4,E16=5,E16=6,E16=7,E16=8,E16=9),INDIRECT(CONCATENATE(Hilfstabelle!$O$4,0,E16,"!E48")),INDIRECT(CONCATENATE(Hilfstabelle!$O$4,E16,"!E48"))) -> 0 | F17: =IF(F16>52,0,IF(OR(F16=1,F16=2,F16=3,F16=4,F16=5,F16=6,F16=7,F16=8,F16=9),INDIRECT(CONCATENATE(Hilfstabelle!$O$4,0,F16,"!E48")),INDIRECT(CONCATENATE(Hilfstabelle!$O$4,F16,"!E48")))) -> 0 | G17: =SUM(B17:F17) -> 0
A19: Gesamtpersonalkosten | B19: =B8 -> 31 | C19: =C8 -> 32 | D19: 33 | E19: 34 | F19: 35 | G19: Summe pro Monat
B20: =IF(OR(B19=1,B19=2,B19=3,B19=4,B19=5,B19=6,B19=7,B19=8,B19=9),INDIRECT(CONCATENATE(Hilfstabelle!$O$4,0,B19,"!E57")),INDIRECT(CONCATENATE(Hilfstabelle!$O$4,B19,"!E57"))) -> 0 | C20: =IF(OR(C19=1,C19=2,C19=3,C19=4,C19=5,C19=6,C19=7,C19=8,C19=9),INDIRECT(CONCATENATE(Hilfstabelle!$O$4,0,C19,"!E57")),INDIRECT(CONCATENATE(Hilfstabelle!$O$4,C19,"!E57"))) -> 0 | D20: =IF(OR(D19=1,D19=2,D19=3,D19=4,D19=5,D19=6,D19=7,D19=8,D19=9),INDIRECT(CONCATENATE(Hilfstabelle!$O$4,0,D19,"!E57")),INDIRECT(CONCATENATE(Hilfstabelle!$O$4,D19,"!E57"))) -> 0 | E20: =IF(OR(E19=1,E19=2,E19=3,E19=4,E19=5,E19=6,E19=7,E19=8,E19=9),INDIRECT(CONCATENATE(Hilfstabelle!$O$4,0,E19,"!E57")),INDIRECT(CONCATENATE(Hilfstabelle!$O$4,E19,"!E57"))) -> 0 | F20: =IF(F19>52,0,IF(OR(F19=1,F19=2,F19=3,F19=4,F19=5,F19=6,F19=7,F19=8,F19=9),INDIRECT(CONCATENATE(Hilfstabelle!$O$4,0,F19,"!E57")),INDIRECT(CONCATENATE(Hilfstabelle!$O$4,F19,"!E57")))) -> 0 | G20: =SUM(B20:F20) -> 0
A22: Gesamtkosten Mittagsverpflegung | B22: =B8 -> 31 | C22: =C8 -> 32 | D22: 33 | E22: 34 | F22: 35 | G22: Summe pro Monat
B23: =IF(OR(B22=1,B22=2,B22=3,B22=4,B22=5,B22=6,B22=7,B22=8,B22=9),INDIRECT(CONCATENATE(Hilfstabelle!$O$5,0,B22,"!C20")),INDIRECT(CONCATENATE(Hilfstabelle!$O$5,B22,"!C20"))) -> 0 | C23: =IF(OR(C22=1,C22=2,C22=3,C22=4,C22=5,C22=6,C22=7,C22=8,C22=9),INDIRECT(CONCATENATE(Hilfstabelle!$O$5,0,C22,"!C20")),INDIRECT(CONCATENATE(Hilfstabelle!$O$5,C22,"!C20"))) -> 0 | D23: =IF(OR(D22=1,D22=2,D22=3,D22=4,D22=5,D22=6,D22=7,D22=8,D22=9),INDIRECT(CONCATENATE(Hilfstabelle!$O$5,0,D22,"!C20")),INDIRECT(CONCATENATE(Hilfstabelle!$O$5,D22,"!C20"))) -> 0 | E23: =IF(OR(E22=1,E22=2,E22=3,E22=4,E22=5,E22=6,E22=7,E22=8,E22=9),INDIRECT(CONCATENATE(Hilfstabelle!$O$5,0,E22,"!C20")),INDIRECT(CONCATENATE(Hilfstabelle!$O$5,E22,"!C20"))) -> 0 | F23: =IF(F22>52,0,IF(OR(F22=1,F22=2,F22=3,F22=4,F22=5,F22=6,F22=7,F22=8,F22=9),INDIRECT(CONCATENATE(Hilfstabelle!$O$5,0,F22,"!C20")),INDIRECT(CONCATENATE(Hilfstabelle!$O$5,F22,"!C20")))) -> 0 | G23: =SUM(B23:F23) -> 0
F25: Report Mittag | G25: =G10-G23 -> 0

Sheet Monat09
A1: Kalkulations-Check
A2: Ergebnisausgabe: Monatsübersicht | D2: =Hilfstabelle!C11 -> 2024-09-01
A6: Nettowerte vor Steuer…
A8: Erlöse Mittagsverpflegung | B8: =ErlösKW36!$F$9 -> 36 | C8: =B8+1 -> 37 | D8: =C8+1 -> 38 | E8: 39 | F8: 40 | G8: Summe pro Monat
B9: =VLOOKUP(B8,Hilfstabelle!$D$3:$F$54,3,2) -> 2024-09-02 | C9: =VLOOKUP(C8,Hilfstabelle!$D$3:$F$54,3,2) -> 2024-09-09 | D9: =VLOOKUP(D8,Hilfstabelle!$D$3:$F$54,3,2) -> 2024-09-16 | E9: =VLOOKUP(E8,Hilfstabelle!$D$3:$F$54,3,2) -> 2024-09-23 | F9: =VLOOKUP(F8,Hilfstabelle!$D$3:$F$54,3,2) -> 2024-09-30
B10: =IF(OR(B8=1,B8=2,B8=3,B8=4,B8=5,B8=6,B8=7,B8=8,B8=9),INDIRECT(CONCATENATE(Hilfstabelle!$O$3,0,B8,"!I77")),INDIRECT(CONCATENATE(Hilfstabelle!$O$3,B8,"!I77"))) -> 0 | C10: =IF(OR(C8=1,C8=2,C8=3,C8=4,C8=5,C8=6,C8=7,C8=8,C8=9),INDIRECT(CONCATENATE(Hilfstabelle!$O$3,0,C8,"!I77")),INDIRECT(CONCATENATE(Hilfstabelle!$O$3,C8,"!I77"))) -> 0 | D10: =IF(OR(D8=1,D8=2,D8=3,D8=4,D8=5,D8=6,D8=7,D8=8,D8=9),INDIRECT(CONCATENATE(Hilfstabelle!$O$3,0,D8,"!I77")),INDIRECT(CONCATENATE(Hilfstabelle!$O$3,D8,"!I77"))) -> 0 | E10: =IF(OR(E8=1,E8=2,E8=3,E8=4,E8=5,E8=6,E8=7,E8=8,E8=9),INDIRECT(CONCATENATE(Hilfstabelle!$O$3,0,E8,"!I77")),INDIRECT(CONCATENATE(Hilfstabelle!$O$3,E8,"!I77"))) -> 0 | F10: =IF(F8>52,0,IF(OR(F8=1,F8=2,F8=3,F8=4,F8=5,F8=6,F8=7,F8=8,F8=9),INDIRECT(CONCATENATE(Hilfstabelle!$O$3,0,F8,"!I77")),INDIRECT(CONCATENATE(Hilfstabelle!$O$3,F8,"!I77")))) -> 0 | G10: =SUM(B10:F10) -> 0
A12: Erlöse Zwischenverpflegung | B12: =B8 -> 36 | C12: =C8 -> 37 | D12: 38 | E12: 39 | F12: 40 | G12: Summe pro Monat
B13: =IF(OR(B12=1,B12=2,B12=3,B12=4,B12=5,B12=6,B12=7,B12=8,B12=9),INDIRECT(CONCATENATE(Hilfstabelle!$O$3,0,B12,"!I83")),INDIRECT(CONCATENATE(Hilfstabelle!$O$3,B12,"!I83"))) -> 0 | C13: =IF(OR(C12=1,C12=2,C12=3,C12=4,C12=5,C12=6,C12=7,C12=8,C12=9),INDIRECT(CONCATENATE(Hilfstabelle!$O$3,0,C12,"!I83")),INDIRECT(CONCATENATE(Hilfstabelle!$O$3,C12,"!I83"))) -> 0 | D13: =IF(OR(D12=1,D12=2,D12=3,D12=4,D12=5,D12=6,D12=7,D12=8,D12=9),INDIRECT(CONCATENATE(Hilfstabelle!$O$3,0,D12,"!I83")),INDIRECT(CONCATENATE(Hilfstabelle!$O$3,D12,"!I83"))) -> 0 | E13: =IF(OR(E12=1,E12=2,E12=3,E12=4,E12=5,E12=6,E12=7,E12=8,E12=9),INDIRECT(CONCATENATE(Hilfstabelle!$O$3,0,E12,"!I83")),INDIRECT(CONCATENATE(Hilfstabelle!$O$3,E12,"!I83"))) -> 0 | F13: =IF(F12>52,0,IF(OR(F12=1,F12=2,F12=3,F12=4,F12=5,F12=6,F12=7,F12=8,F12=9),INDIRECT(CONCATENATE(Hilfstabelle!$O$3,0,F12,"!I83")),INDIRECT(CONCATENATE(Hilfstabelle!$O$3,F12,"!I83")))) -> 0 | G13: =SUM(B13:F13) -> 0
A16: Gesamtgemeinkosten | B16: =B8 -> 36 | C16: =C8 -> 37 | D16: 38 | E16: 39 | F16: 40 | G16: Summe pro Monat
B17: =IF(OR(B16=1,B16=2,B16=3,B16=4,B16=5,B16=6,B16=7,B16=8,B16=9),INDIRECT(CONCATENATE(Hilfstabelle!$O$4,0,B16,"!E48")),INDIRECT(CONCATENATE(Hilfstabelle!$O$4,B16,"!E48"))) -> 0 | C17: =IF(OR(C16=1,C16=2,C16=3,C16=4,C16=5,C16=6,C16=7,C16=8,C16=9),INDIRECT(CONCATENATE(Hilfstabelle!$O$4,0,C16,"!E48")),INDIRECT(CONCATENATE(Hilfstabelle!$O$4,C16,"!E48"))) -> 0 | D17: =IF(OR(D16=1,D16=2,D16=3,D16=4,D16=5,D16=6,D16=7,D16=8,D16=9),INDIRECT(CONCATENATE(Hilfstabelle!$O$4,0,D16,"!E48")),INDIRECT(CONCATENATE(Hilfstabelle!$O$4,D16,"!E48"))) -> 0 | E17: =IF(OR(E16=1,E16=2,E16=3,E16=4,E16=5,E16=6,E16=7,E16=8,E16=9),INDIRECT(CONCATENATE(Hilfstabelle!$O$4,0,E16,"!E48")),INDIRECT(CONCATENATE(Hilfstabelle!$O$4,E16,"!E48"))) -> 0 | F17: =IF(F16>52,0,IF(OR(F16=1,F16=2,F16=3,F16=4,F16=5,F16=6,F16=7,F16=8,F16=9),INDIRECT(CONCATENATE(Hilfstabelle!$O$4,0,F16,"!E48")),INDIRECT(CONCATENATE(Hilfstabelle!$O$4,F16,"!E48")))) -> 0 | G17: =SUM(B17:F17) -> 0
A19: Gesamtpersonalkosten | B19: =B8 -> 36 | C19: =C8 -> 37 | D19: 38 | E19: 39 | F19: 40 | G19: Summe pro Monat
B20: =IF(OR(B19=1,B19=2,B19=3,B19=4,B19=5,B19=6,B19=7,B19=8,B19=9),INDIRECT(CONCATENATE(Hilfstabelle!$O$4,0,B19,"!E57")),INDIRECT(CONCATENATE(Hilfstabelle!$O$4,B19,"!E57"))) -> 0 | C20: =IF(OR(C19=1,C19=2,C19=3,C19=4,C19=5,C19=6,C19=7,C19=8,C19=9),INDIRECT(CONCATENATE(Hilfstabelle!$O$4,0,C19,"!E57")),INDIRECT(CONCATENATE(Hilfstabelle!$O$4,C19,"!E57"))) -> 0 | D20: =IF(OR(D19=1,D19=2,D19=3,D19=4,D19=5,D19=6,D19=7,D19=8,D19=9),INDIRECT(CONCATENATE(Hilfstabelle!$O$4,0,D19,"!E57")),INDIRECT(CONCATENATE(Hilfstabelle!$O$4,D19,"!E57"))) -> 0 | E20: =IF(OR(E19=1,E19=2,E19=3,E19=4,E19=5,E19=6,E19=7,E19=8,E19=9),INDIRECT(CONCATENATE(Hilfstabelle!$O$4,0,E19,"!E57")),INDIRECT(CONCATENATE(Hilfstabelle!$O$4,E19,"!E57"))) -> 0 | F20: =IF(F19>52,0,IF(OR(F19=1,F19=2,F19=3,F19=4,F19=5,F19=6,F19=7,F19=8,F19=9),INDIRECT(CONCATENATE(Hilfstabelle!$O$4,0,F19,"!E57")),INDIRECT(CONCATENATE(Hilfstabelle!$O$4,F19,"!E57")))) -> 0 | G20: =SUM(B20:F20) -> 0
A22: Gesamtkosten Mittagsverpflegung | B22: =B8 -> 36 | C22: =C8 -> 37 | D22: 38 | E22: 39 | F22: 40 | G22: Summe pro Monat
B23: =IF(OR(B22=1,B22=2,B22=3,B22=4,B22=5,B22=6,B22=7,B22=8,B22=9),INDIRECT(CONCATENATE(Hilfstabelle!$O$5,0,B22,"!C20")),INDIRECT(CONCATENATE(Hilfstabelle!$O$5,B22,"!C20"))) -> 0 | C23: =IF(OR(C22=1,C22=2,C22=3,C22=4,C22=5,C22=6,C22=7,C22=8,C22=9),INDIRECT(CONCATENATE(Hilfstabelle!$O$5,0,C22,"!C20")),INDIRECT(CONCATENATE(Hilfstabelle!$O$5,C22,"!C20"))) -> 0 | D23: =IF(OR(D22=1,D22=2,D22=3,D22=4,D22=5,D22=6,D22=7,D22=8,D22=9),INDIRECT(CONCATENATE(Hilfstabelle!$O$5,0,D22,"!C20")),INDIRECT(CONCATENATE(Hilfstabelle!$O$5,D22,"!C20"))) -> 0 | E23: =IF(OR(E22=1,E22=2,E22=3,E22=4,E22=5,E22=6,E22=7,E22=8,E22=9),INDIRECT(CONCATENATE(Hilfstabelle!$O$5,0,E22,"!C20")),INDIRECT(CONCATENATE(Hilfstabelle!$O$5,E22,"!C20"))) -> 0 | F23: =IF(F22>52,0,IF(OR(F22=1,F22=2,F22=3,F22=4,F22=5,F22=6,F22=7,F22=8,F22=9),INDIRECT(CONCATENATE(Hilfstabelle!$O$5,0,F22,"!C20")),INDIRECT(CONCATENATE(Hilfstabelle!$O$5,F22,"!C20")))) -> 0 | G23: =SUM(B23:F23) -> 0
F25: Report Mittag | G25: =G10-G23 -> 0

Sheet Monat10
A1: Kalkulations-Check
A2: Ergebnisausgabe: Monatsübersicht | D2: =Hilfstabelle!C12 -> 2024-10-01
A6: Nettowerte vor Steuer…
A8: Erlöse Mittagsverpflegung | B8: =ErlösKW40!$F$9 -> 40 | C8: =B8+1 -> 41 | D8: =C8+1 -> 42 | E8: 43 | F8: 44 | G8: Summe pro Monat
B9: =VLOOKUP(B8,Hilfstabelle!$D$3:$F$54,3,2) -> 2024-09-30 | C9: =VLOOKUP(C8,Hilfstabelle!$D$3:$F$54,3,2) -> 2024-10-07 | D9: =VLOOKUP(D8,Hilfstabelle!$D$3:$F$54,3,2) -> 2024-10-14 | E9: =VLOOKUP(E8,Hilfstabelle!$D$3:$F$54,3,2) -> 2024-10-21 | F9: =VLOOKUP(F8,Hilfstabelle!$D$3:$F$54,3,2) -> 2024-10-28
B10: =IF(OR(B8=1,B8=2,B8=3,B8=4,B8=5,B8=6,B8=7,B8=8,B8=9),INDIRECT(CONCATENATE(Hilfstabelle!$O$3,0,B8,"!I77")),INDIRECT(CONCATENATE(Hilfstabelle!$O$3,B8,"!I77"))) -> 0 | C10: =IF(OR(C8=1,C8=2,C8=3,C8=4,C8=5,C8=6,C8=7,C8=8,C8=9),INDIRECT(CONCATENATE(Hilfstabelle!$O$3,0,C8,"!I77")),INDIRECT(CONCATENATE(Hilfstabelle!$O$3,C8,"!I77"))) -> 0 | D10: =IF(OR(D8=1,D8=2,D8=3,D8=4,D8=5,D8=6,D8=7,D8=8,D8=9),INDIRECT(CONCATENATE(Hilfstabelle!$O$3,0,D8,"!I77")),INDIRECT(CONCATENATE(Hilfstabelle!$O$3,D8,"!I77"))) -> 0 | E10: =IF(OR(E8=1,E8=2,E8=3,E8=4,E8=5,E8=6,E8=7,E8=8,E8=9),INDIRECT(CONCATENATE(Hilfstabelle!$O$3,0,E8,"!I77")),INDIRECT(CONCATENATE(Hilfstabelle!$O$3,E8,"!I77"))) -> 0 | F10: =IF(F8>52,0,IF(OR(F8=1,F8=2,F8=3,F8=4,F8=5,F8=6,F8=7,F8=8,F8=9),INDIRECT(CONCATENATE(Hilfstabelle!$O$3,0,F8,"!I77")),INDIRECT(CONCATENATE(Hilfstabelle!$O$3,F8,"!I77")))) -> 0 | G10: =SUM(B10:F10) -> 0
A12: Erlöse Zwischenverpflegung | B12: =B8 -> 40 | C12: =C8 -> 41 | D12: 42 | E12: 43 | F12: 44 | G12: Summe pro Monat
B13: =IF(OR(B12=1,B12=2,B12=3,B12=4,B12=5,B12=6,B12=7,B12=8,B12=9),INDIRECT(CONCATENATE(Hilfstabelle!$O$3,0,B12,"!I83")),INDIRECT(CONCATENATE(Hilfstabelle!$O$3,B12,"!I83"))) -> 0 | C13: =IF(OR(C12=1,C12=2,C12=3,C12=4,C12=5,C12=6,C12=7,C12=8,C12=9),INDIRECT(CONCATENATE(Hilfstabelle!$O$3,0,C12,"!I83")),INDIRECT(CONCATENATE(Hilfstabelle!$O$3,C12,"!I83"))) -> 0 | D13: =IF(OR(D12=1,D12=2,D12=3,D12=4,D12=5,D12=6,D12=7,D12=8,D12=9),INDIRECT(CONCATENATE(Hilfstabelle!$O$3,0,D12,"!I83")),INDIRECT(CONCATENATE(Hilfstabelle!$O$3,D12,"!I83"))) -> 0 | E13: =IF(OR(E12=1,E12=2,E12=3,E12=4,E12=5,E12=6,E12=7,E12=8,E12=9),INDIRECT(CONCATENATE(Hilfstabelle!$O$3,0,E12,"!I83")),INDIRECT(CONCATENATE(Hilfstabelle!$O$3,E12,"!I83"))) -> 0 | F13: =IF(F12>52,0,IF(OR(F12=1,F12=2,F12=3,F12=4,F12=5,F12=6,F12=7,F12=8,F12=9),INDIRECT(CONCATENATE(Hilfstabelle!$O$3,0,F12,"!I83")),INDIRECT(CONCATENATE(Hilfstabelle!$O$3,F12,"!I83")))) -> 0 | G13: =SUM(B13:F13) -> 0
A16: Gesamtgemeinkosten | B16: =B8 -> 40 | C16: =C8 -> 41 | D16: 42 | E16: 43 | F16: 44 | G16: Summe pro Monat
B17: =IF(OR(B16=1,B16=2,B16=3,B16=4,B16=5,B16=6,B16=7,B16=8,B16=9),INDIRECT(CONCATENATE(Hilfstabelle!$O$4,0,B16,"!E48")),INDIRECT(CONCATENATE(Hilfstabelle!$O$4,B16,"!E48"))) -> 0 | C17: =IF(OR(C16=1,C16=2,C16=3,C16=4,C16=5,C16=6,C16=7,C16=8,C16=9),INDIRECT(CONCATENATE(Hilfstabelle!$O$4,0,C16,"!E48")),INDIRECT(CONCATENATE(Hilfstabelle!$O$4,C16,"!E48"))) -> 0 | D17: =IF(OR(D16=1,D16=2,D16=3,D16=4,D16=5,D16=6,D16=7,D16=8,D16=9),INDIRECT(CONCATENATE(Hilfstabelle!$O$4,0,D16,"!E48")),INDIRECT(CONCATENATE(Hilfstabelle!$O$4,D16,"!E48"))) -> 0 | E17: =IF(OR(E16=1,E16=2,E16=3,E16=4,E16=5,E16=6,E16=7,E16=8,E16=9),INDIRECT(CONCATENATE(Hilfstabelle!$O$4,0,E16,"!E48")),INDIRECT(CONCATENATE(Hilfstabelle!$O$4,E16,"!E48"))) -> 0 | F17: =IF(F16>52,0,IF(OR(F16=1,F16=2,F16=3,F16=4,F16=5,F16=6,F16=7,F16=8,F16=9),INDIRECT(CONCATENATE(Hilfstabelle!$O$4,0,F16,"!E48")),INDIRECT(CONCATENATE(Hilfstabelle!$O$4,F16,"!E48")))) -> 0 | G17: =SUM(B17:F17) -> 0
A19: Gesamtpersonalkosten | B19: =B8 -> 40 | C19: =C8 -> 41 | D19: 42 | E19: 43 | F19: 44 | G19: Summe pro Monat
B20: =IF(OR(B19=1,B19=2,B19=3,B19=4,B19=5,B19=6,B19=7,B19=8,B19=9),INDIRECT(CONCATENATE(Hilfstabelle!$O$4,0,B19,"!E57")),INDIRECT(CONCATENATE(Hilfstabelle!$O$4,B19,"!E57"))) -> 0 | C20: =IF(OR(C19=1,C19=2,C19=3,C19=4,C19=5,C19=6,C19=7,C19=8,C19=9),INDIRECT(CONCATENATE(Hilfstabelle!$O$4,0,C19,"!E57")),INDIRECT(CONCATENATE(Hilfstabelle!$O$4,C19,"!E57"))) -> 0 | D20: =IF(OR(D19=1,D19=2,D19=3,D19=4,D19=5,D19=6,D19=7,D19=8,D19=9),INDIRECT(CONCATENATE(Hilfstabelle!$O$4,0,D19,"!E57")),INDIRECT(CONCATENATE(Hilfstabelle!$O$4,D19,"!E57"))) -> 0 | E20: =IF(OR(E19=1,E19=2,E19=3,E19=4,E19=5,E19=6,E19=7,E19=8,E19=9),INDIRECT(CONCATENATE(Hilfstabelle!$O$4,0,E19,"!E57")),INDIRECT(CONCATENATE(Hilfstabelle!$O$4,E19,"!E57"))) -> 0 | F20: =IF(F19>52,0,IF(OR(F19=1,F19=2,F19=3,F19=4,F19=5,F19=6,F19=7,F19=8,F19=9),INDIRECT(CONCATENATE(Hilfstabelle!$O$4,0,F19,"!E57")),INDIRECT(CONCATENATE(Hilfstabelle!$O$4,F19,"!E57")))) -> 0 | G20: =SUM(B20:F20) -> 0
A22: Gesamtkosten Mittagsverpflegung | B22: =B8 -> 40 | C22: =C8 -> 41 | D22: 42 | E22: 43 | F22: 44 | G22: Summe pro Monat
B23: =IF(OR(B22=1,B22=2,B22=3,B22=4,B22=5,B22=6,B22=7,B22=8,B22=9),INDIRECT(CONCATENATE(Hilfstabelle!$O$5,0,B22,"!C20")),INDIRECT(CONCATENATE(Hilfstabelle!$O$5,B22,"!C20"))) -> 0 | C23: =IF(OR(C22=1,C22=2,C22=3,C22=4,C22=5,C22=6,C22=7,C22=8,C22=9),INDIRECT(CONCATENATE(Hilfstabelle!$O$5,0,C22,"!C20")),INDIRECT(CONCATENATE(Hilfstabelle!$O$5,C22,"!C20"))) -> 0 | D23: =IF(OR(D22=1,D22=2,D22=3,D22=4,D22=5,D22=6,D22=7,D22=8,D22=9),INDIRECT(CONCATENATE(Hilfstabelle!$O$5,0,D22,"!C20")),INDIRECT(CONCATENATE(Hilfstabelle!$O$5,D22,"!C20"))) -> 0 | E23: =IF(OR(E22=1,E22=2,E22=3,E22=4,E22=5,E22=6,E22=7,E22=8,E22=9),INDIRECT(CONCATENATE(Hilfstabelle!$O$5,0,E22,"!C20")),INDIRECT(CONCATENATE(Hilfstabelle!$O$5,E22,"!C20"))) -> 0 | F23: =IF(F22>52,0,IF(OR(F22=1,F22=2,F22=3,F22=4,F22=5,F22=6,F22=7,F22=8,F22=9),INDIRECT(CONCATENATE(Hilfstabelle!$O$5,0,F22,"!C20")),INDIRECT(CONCATENATE(Hilfstabelle!$O$5,F22,"!C20")))) -> 0 | G23: =SUM(B23:F23) -> 0
F25: Report Mittag | G25: =G10-G23 -> 0

Sheet Monat11
A1: Kalkulations-Check
A2: Ergebnisausgabe: Monatsübersicht | D2: =Hilfstabelle!C13 -> 2024-11-01
A6: Nettowerte vor Steuer…
A8: Erlöse Mittagsverpflegung | B8: =ErlösKW45!$F$9 -> 45 | C8: =B8+1 -> 46 | D8: =C8+1 -> 47 | E8: 48 | F8: 49 | G8: Summe pro Monat
B9: =VLOOKUP(B8,Hilfstabelle!$D$3:$F$54,3,2) -> 2024-11-04 | C9: =VLOOKUP(C8,Hilfstabelle!$D$3:$F$54,3,2) -> 2024-11-11 | D9: =VLOOKUP(D8,Hilfstabelle!$D$3:$F$54,3,2) -> 2024-11-18 | E9: =VLOOKUP(E8,Hilfstabelle!$D$3:$F$54,3,2) -> 2024-11-25 | F9: =VLOOKUP(F8,Hilfstabelle!$D$3:$F$54,3,2) -> 2024-12-02
B10: =IF(OR(B8=1,B8=2,B8=3,B8=4,B8=5,B8=6,B8=7,B8=8,B8=9),INDIRECT(CONCATENATE(Hilfstabelle!$O$3,0,B8,"!I77")),INDIRECT(CONCATENATE(Hilfstabelle!$O$3,B8,"!I77"))) -> 0 | C10: =IF(OR(C8=1,C8=2,C8=3,C8=4,C8=5,C8=6,C8=7,C8=8,C8=9),INDIRECT(CONCATENATE(Hilfstabelle!$O$3,0,C8,"!I77")),INDIRECT(CONCATENATE(Hilfstabelle!$O$3,C8,"!I77"))) -> 0 | D10: =IF(OR(D8=1,D8=2,D8=3,D8=4,D8=5,D8=6,D8=7,D8=8,D8=9),INDIRECT(CONCATENATE(Hilfstabelle!$O$3,0,D8,"!I77")),INDIRECT(CONCATENATE(Hilfstabelle!$O$3,D8,"!I77"))) -> 0 | E10: =IF(OR(E8=1,E8=2,E8=3,E8=4,E8=5,E8=6,E8=7,E8=8,E8=9),INDIRECT(CONCATENATE(Hilfstabelle!$O$3,0,E8,"!I77")),INDIRECT(CONCATENATE(Hilfstabelle!$O$3,E8,"!I77"))) -> 0 | F10: =IF(F8>52,0,IF(OR(F8=1,F8=2,F8=3,F8=4,F8=5,F8=6,F8=7,F8=8,F8=9),INDIRECT(CONCATENATE(Hilfstabelle!$O$3,0,F8,"!I77")),INDIRECT(CONCATENATE(Hilfstabelle!$O$3,F8,"!I77")))) -> 0 | G10: =SUM(B10:F10) -> 0
A12: Erlöse Zwischenverpflegung | B12: =B8 -> 45 | C12: =C8 -> 46 | D12: 47 | E12: 48 | F12: 49 | G12: Summe pro Monat
B13: =IF(OR(B12=1,B12=2,B12=3,B12=4,B12=5,B12=6,B12=7,B12=8,B12=9),INDIRECT(CONCATENATE(Hilfstabelle!$O$3,0,B12,"!I83")),INDIRECT(CONCATENATE(Hilfstabelle!$O$3,B12,"!I83"))) -> 0 | C13: =IF(OR(C12=1,C12=2,C12=3,C12=4,C12=5,C12=6,C12=7,C12=8,C12=9),INDIRECT(CONCATENATE(Hilfstabelle!$O$3,0,C12,"!I83")),INDIRECT(CONCATENATE(Hilfstabelle!$O$3,C12,"!I83"))) -> 0 | D13: =IF(OR(D12=1,D12=2,D12=3,D12=4,D12=5,D12=6,D12=7,D12=8,D12=9),INDIRECT(CONCATENATE(Hilfstabelle!$O$3,0,D12,"!I83")),INDIRECT(CONCATENATE(Hilfstabelle!$O$3,D12,"!I83"))) -> 0 | E13: =IF(OR(E12=1,E12=2,E12=3,E12=4,E12=5,E12=6,E12=7,E12=8,E12=9),INDIRECT(CONCATENATE(Hilfstabelle!$O$3,0,E12,"!I83")),INDIRECT(CONCATENATE(Hilfstabelle!$O$3,E12,"!I83"))) -> 0 | F13: =IF(F12>52,0,IF(OR(F12=1,F12=2,F12=3,F12=4,F12=5,F12=6,F12=7,F12=8,F12=9),INDIRECT(CONCATENATE(Hilfstabelle!$O$3,0,F12,"!I83")),INDIRECT(CONCATENATE(Hilfstabelle!$O$3,F12,"!I83")))) -> 0 | G13: =SUM(B13:F13) -> 0
A16: Gesamtgemeinkosten | B16: =B8 -> 45 | C16: =C8 -> 46 | D16: 47 | E16: 48 | F16: 49 | G16: Summe pro Monat
B17: =IF(OR(B16=1,B16=2,B16=3,B16=4,B16=5,B16=6,B16=7,B16=8,B16=9),INDIRECT(CONCATENATE(Hilfstabelle!$O$4,0,B16,"!E48")),INDIRECT(CONCATENATE(Hilfstabelle!$O$4,B16,"!E48"))) -> 0 | C17: =IF(OR(C16=1,C16=2,C16=3,C16=4,C16=5,C16=6,C16=7,C16=8,C16=9),INDIRECT(CONCATENATE(Hilfstabelle!$O$4,0,C16,"!E48")),INDIRECT(CONCATENATE(Hilfstabelle!$O$4,C16,"!E48"))) -> 0 | D17: =IF(OR(D16=1,D16=2,D16=3,D16=4,D16=5,D16=6,D16=7,D16=8,D16=9),INDIRECT(CONCATENATE(Hilfstabelle!$O$4,0,D16,"!E48")),INDIRECT(CONCATENATE(Hilfstabelle!$O$4,D16,"!E48"))) -> 0 | E17: =IF(OR(E16=1,E16=2,E16=3,E16=4,E16=5,E16=6,E16=7,E16=8,E16=9),INDIRECT(CONCATENATE(Hilfstabelle!$O$4,0,E16,"!E48")),INDIRECT(CONCATENATE(Hilfstabelle!$O$4,E16,"!E48"))) -> 0 | F17: =IF(F16>52,0,IF(OR(F16=1,F16=2,F16=3,F16=4,F16=5,F16=6,F16=7,F16=8,F16=9),INDIRECT(CONCATENATE(Hilfstabelle!$O$4,0,F16,"!E48")),INDIRECT(CONCATENATE(Hilfstabelle!$O$4,F16,"!E48")))) -> 0 | G17: =SUM(B17:F17) -> 0
A19: Gesamtpersonalkosten | B19: =B8 -> 45 | C19: =C8 -> 46 | D19: 47 | E19: 48 | F19: 49 | G19: Summe pro Monat
B20: =IF(OR(B19=1,B19=2,B19=3,B19=4,B19=5,B19=6,B19=7,B19=8,B19=9),INDIRECT(CONCATENATE(Hilfstabelle!$O$4,0,B19,"!E57")),INDIRECT(CONCATENATE(Hilfstabelle!$O$4,B19,"!E57"))) -> 0 | C20: =IF(OR(C19=1,C19=2,C19=3,C19=4,C19=5,C19=6,C19=7,C19=8,C19=9),INDIRECT(CONCATENATE(Hilfstabelle!$O$4,0,C19,"!E57")),INDIRECT(CONCATENATE(Hilfstabelle!$O$4,C19,"!E57"))) -> 0 | D20: =IF(OR(D19=1,D19=2,D19=3,D19=4,D19=5,D19=6,D19=7,D19=8,D19=9),INDIRECT(CONCATENATE(Hilfstabelle!$O$4,0,D19,"!E57")),INDIRECT(CONCATENATE(Hilfstabelle!$O$4,D19,"!E57"))) -> 0 | E20: =IF(OR(E19=1,E19=2,E19=3,E19=4,E19=5,E19=6,E19=7,E19=8,E19=9),INDIRECT(CONCATENATE(Hilfstabelle!$O$4,0,E19,"!E57")),INDIRECT(CONCATENATE(Hilfstabelle!$O$4,E19,"!E57"))) -> 0 | F20: =IF(F19>52,0,IF(OR(F19=1,F19=2,F19=3,F19=4,F19=5,F19=6,F19=7,F19=8,F19=9),INDIRECT(CONCATENATE(Hilfstabelle!$O$4,0,F19,"!E57")),INDIRECT(CONCATENATE(Hilfstabelle!$O$4,F19,"!E57")))) -> 0 | G20: =SUM(B20:F20) -> 0
A22: Gesamtkosten Mittagsverpflegung | B22: =B8 -> 45 | C22: =C8 -> 46 | D22: 47 | E22: 48 | F22: 49 | G22: Summe pro Monat
B23: =IF(OR(B22=1,B22=2,B22=3,B22=4,B22=5,B22=6,B22=7,B22=8,B22=9),INDIRECT(CONCATENATE(Hilfstabelle!$O$5,0,B22,"!C20")),INDIRECT(CONCATENATE(Hilfstabelle!$O$5,B22,"!C20"))) -> 0 | C23: =IF(OR(C22=1,C22=2,C22=3,C22=4,C22=5,C22=6,C22=7,C22=8,C22=9),INDIRECT(CONCATENATE(Hilfstabelle!$O$5,0,C22,"!C20")),INDIRECT(CONCATENATE(Hilfstabelle!$O$5,C22,"!C20"))) -> 0 | D23: =IF(OR(D22=1,D22=2,D22=3,D22=4,D22=5,D22=6,D22=7,D22=8,D22=9),INDIRECT(CONCATENATE(Hilfstabelle!$O$5,0,D22,"!C20")),INDIRECT(CONCATENATE(Hilfstabelle!$O$5,D22,"!C20"))) -> 0 | E23: =IF(OR(E22=1,E22=2,E22=3,E22=4,E22=5,E22=6,E22=7,E22=8,E22=9),INDIRECT(CONCATENATE(Hilfstabelle!$O$5,0,E22,"!C20")),INDIRECT(CONCATENATE(Hilfstabelle!$O$5,E22,"!C20"))) -> 0 | F23: =IF(F22>52,0,IF(OR(F22=1,F22=2,F22=3,F22=4,F22=5,F22=6,F22=7,F22=8,F22=9),INDIRECT(CONCATENATE(Hilfstabelle!$O$5,0,F22,"!C20")),INDIRECT(CONCATENATE(Hilfstabelle!$O$5,F22,"!C20")))) -> 0 | G23: =SUM(B23:F23) -> 0
F25: Report Mittag | G25: =G10-G23 -> 0

Sheet Monat12
A1: Kalkulations-Check
A2: Ergebnisausgabe: Monatsübersicht | D2: =Hilfstabelle!C14 -> 2024-12-01
A6: Nettowerte vor Steuer…
A8: Erlöse Mittagsverpflegung | B8: =ErlösKW49!$F$9 -> 49 | C8: =B8+1 -> 50 | D8: =C8+1 -> 51 | E8: 52 | F8: 53 | G8: Summe pro Monat
B9: =VLOOKUP(B8,Hilfstabelle!$D$3:$F$54,3,2) -> 2024-12-02 | C9: =VLOOKUP(C8,Hilfstabelle!$D$3:$F$54,3,2) -> 2024-12-09 | D9: =VLOOKUP(D8,Hilfstabelle!$D$3:$F$54,3,2) -> 2024-12-16 | E9: =VLOOKUP(E8,Hilfstabelle!$D$3:$F$54,3,2) -> 2024-12-23 | F9: =VLOOKUP(F8,Hilfstabelle!$D$3:$F$54,3,2) -> 2024-12-23
B10: =IF(OR(B8=1,B8=2,B8=3,B8=4,B8=5,B8=6,B8=7,B8=8,B8=9),INDIRECT(CONCATENATE(Hilfstabelle!$O$3,0,B8,"!I77")),INDIRECT(CONCATENATE(Hilfstabelle!$O$3,B8,"!I77"))) -> 0 | C10: =IF(OR(C8=1,C8=2,C8=3,C8=4,C8=5,C8=6,C8=7,C8=8,C8=9),INDIRECT(CONCATENATE(Hilfstabelle!$O$3,0,C8,"!I77")),INDIRECT(CONCATENATE(Hilfstabelle!$O$3,C8,"!I77"))) -> 0 | D10: =IF(OR(D8=1,D8=2,D8=3,D8=4,D8=5,D8=6,D8=7,D8=8,D8=9),INDIRECT(CONCATENATE(Hilfstabelle!$O$3,0,D8,"!I77")),INDIRECT(CONCATENATE(Hilfstabelle!$O$3,D8,"!I77"))) -> 0 | E10: =IF(OR(E8=1,E8=2,E8=3,E8=4,E8=5,E8=6,E8=7,E8=8,E8=9),INDIRECT(CONCATENATE(Hilfstabelle!$O$3,0,E8,"!I77")),INDIRECT(CONCATENATE(Hilfstabelle!$O$3,E8,"!I77"))) -> 0 | F10: =IF(F8>52,0,IF(OR(F8=1,F8=2,F8=3,F8=4,F8=5,F8=6,F8=7,F8=8,F8=9),INDIRECT(CONCATENATE(Hilfstabelle!$O$3,0,F8,"!I77")),INDIRECT(CONCATENATE(Hilfstabelle!$O$3,F8,"!I77")))) -> 0 | G10: =SUM(B10:F10) -> 0
A12: Erlöse Zwischenverpflegung | B12: =B8 -> 49 | C12: =C8 -> 50 | D12: 51 | E12: 52 | F12: 53 | G12: Summe pro Monat
B13: =IF(OR(B12=1,B12=2,B12=3,B12=4,B12=5,B12=6,B12=7,B12=8,B12=9),INDIRECT(CONCATENATE(Hilfstabelle!$O$3,0,B12,"!I83")),INDIRECT(CONCATENATE(Hilfstabelle!$O$3,B12,"!I83"))) -> 0 | C13: =IF(OR(C12=1,C12=2,C12=3,C12=4,C12=5,C12=6,C12=7,C12=8,C12=9),INDIRECT(CONCATENATE(Hilfstabelle!$O$3,0,C12,"!I83")),INDIRECT(CONCATENATE(Hilfstabelle!$O$3,C12,"!I83"))) -> 0 | D13: =IF(OR(D12=1,D12=2,D12=3,D12=4,D12=5,D12=6,D12=7,D12=8,D12=9),INDIRECT(CONCATENATE(Hilfstabelle!$O$3,0,D12,"!I83")),INDIRECT(CONCATENATE(Hilfstabelle!$O$3,D12,"!I83"))) -> 0 | E13: =IF(OR(E12=1,E12=2,E12=3,E12=4,E12=5,E12=6,E12=7,E12=8,E12=9),INDIRECT(CONCATENATE(Hilfstabelle!$O$3,0,E12,"!I83")),INDIRECT(CONCATENATE(Hilfstabelle!$O$3,E12,"!I83"))) -> 0 | F13: =IF(F12>52,0,IF(OR(F12=1,F12=2,F12=3,F12=4,F12=5,F12=6,F12=7,F12=8,F12=9),INDIRECT(CONCATENATE(Hilfstabelle!$O$3,0,F12,"!I83")),INDIRECT(CONCATENATE(Hilfstabelle!$O$3,F12,"!I83")))) -> 0 | G13: =SUM(B13:F13) -> 0
A16: Gesamtgemeinkosten | B16: =B8 -> 49 | C16: =C8 -> 50 | D16: 51 | E16: 52 | F16: 53 | G16: Summe pro Monat
B17: =IF(OR(B16=1,B16=2,B16=3,B16=4,B16=5,B16=6,B16=7,B16=8,B16=9),INDIRECT(CONCATENATE(Hilfstabelle!$O$4,0,B16,"!E48")),INDIRECT(CONCATENATE(Hilfstabelle!$O$4,B16,"!E48"))) -> 0 | C17: =IF(OR(C16=1,C16=2,C16=3,C16=4,C16=5,C16=6,C16=7,C16=8,C16=9),INDIRECT(CONCATENATE(Hilfstabelle!$O$4,0,C16,"!E48")),INDIRECT(CONCATENATE(Hilfstabelle!$O$4,C16,"!E48"))) -> 0 | D17: =IF(OR(D16=1,D16=2,D16=3,D16=4,D16=5,D16=6,D16=7,D16=8,D16=9),INDIRECT(CONCATENATE(Hilfstabelle!$O$4,0,D16,"!E48")),INDIRECT(CONCATENATE(Hilfstabelle!$O$4,D16,"!E48"))) -> 0 | E17: =IF(OR(E16=1,E16=2,E16=3,E16=4,E16=5,E16=6,E16=7,E16=8,E16=9),INDIRECT(CONCATENATE(Hilfstabelle!$O$4,0,E16,"!E48")),INDIRECT(CONCATENATE(Hilfstabelle!$O$4,E16,"!E48"))) -> 0 | F17: =IF(F16>52,0,IF(OR(F16=1,F16=2,F16=3,F16=4,F16=5,F16=6,F16=7,F16=8,F16=9),INDIRECT(CONCATENATE(Hilfstabelle!$O$4,0,F16,"!E48")),INDIRECT(CONCATENATE(Hilfstabelle!$O$4,F16,"!E48")))) -> 0 | G17: =SUM(B17:F17) -> 0
A19: Gesamtpersonalkosten | B19: =B8 -> 49 | C19: =C8 -> 50 | D19: 51 | E19: 52 | F19: 53 | G19: Summe pro Monat
B20: =IF(OR(B19=1,B19=2,B19=3,B19=4,B19=5,B19=6,B19=7,B19=8,B19=9),INDIRECT(CONCATENATE(Hilfstabelle!$O$4,0,B19,"!E57")),INDIRECT(CONCATENATE(Hilfstabelle!$O$4,B19,"!E57"))) -> 0 | C20: =IF(OR(C19=1,C19=2,C19=3,C19=4,C19=5,C19=6,C19=7,C19=8,C19=9),INDIRECT(CONCATENATE(Hilfstabelle!$O$4,0,C19,"!E57")),INDIRECT(CONCATENATE(Hilfstabelle!$O$4,C19,"!E57"))) -> 0 | D20: =IF(OR(D19=1,D19=2,D19=3,D19=4,D19=5,D19=6,D19=7,D19=8,D19=9),INDIRECT(CONCATENATE(Hilfstabelle!$O$4,0,D19,"!E57")),INDIRECT(CONCATENATE(Hilfstabelle!$O$4,D19,"!E57"))) -> 0 | E20: =IF(OR(E19=1,E19=2,E19=3,E19=4,E19=5,E19=6,E19=7,E19=8,E19=9),INDIRECT(CONCATENATE(Hilfstabelle!$O$4,0,E19,"!E57")),INDIRECT(CONCATENATE(Hilfstabelle!$O$4,E19,"!E57"))) -> 0 | F20: =IF(F19>52,0,IF(OR(F19=1,F19=2,F19=3,F19=4,F19=5,F19=6,F19=7,F19=8,F19=9),INDIRECT(CONCATENATE(Hilfstabelle!$O$4,0,F19,"!E57")),INDIRECT(CONCATENATE(Hilfstabelle!$O$4,F19,"!E57")))) -> 0 | G20: =SUM(B20:F20) -> 0
A22: Gesamtkosten Mittagsverpflegung | B22: =B8 -> 49 | C22: =C8 -> 50 | D22: 51 | E22: 52 | F22: 53 | G22: Summe pro Monat
B23: =IF(OR(B22=1,B22=2,B22=3,B22=4,B22=5,B22=6,B22=7,B22=8,B22=9),INDIRECT(CONCATENATE(Hilfstabelle!$O$5,0,B22,"!C20")),INDIRECT(CONCATENATE(Hilfstabelle!$O$5,B22,"!C20"))) -> 0 | C23: =IF(OR(C22=1,C22=2,C22=3,C22=4,C22=5,C22=6,C22=7,C22=8,C22=9),INDIRECT(CONCATENATE(Hilfstabelle!$O$5,0,C22,"!C20")),INDIRECT(CONCATENATE(Hilfstabelle!$O$5,C22,"!C20"))) -> 0 | D23: =IF(OR(D22=1,D22=2,D22=3,D22=4,D22=5,D22=6,D22=7,D22=8,D22=9),INDIRECT(CONCATENATE(Hilfstabelle!$O$5,0,D22,"!C20")),INDIRECT(CONCATENATE(Hilfstabelle!$O$5,D22,"!C20"))) -> 0 | E23: =IF(OR(E22=1,E22=2,E22=3,E22=4,E22=5,E22=6,E22=7,E22=8,E22=9),INDIRECT(CONCATENATE(Hilfstabelle!$O$5,0,E22,"!C20")),INDIRECT(CONCATENATE(Hilfstabelle!$O$5,E22,"!C20"))) -> 0 | F23: =IF(F22>52,0,IF(OR(F22=1,F22=2,F22=3,F22=4,F22=5,F22=6,F22=7,F22=8,F22=9),INDIRECT(CONCATENATE(Hilfstabelle!$O$5,0,F22,"!C20")),INDIRECT(CONCATENATE(Hilfstabelle!$O$5,F22,"!C20")))) -> 0 | G23: =SUM(B23:F23) -> 0
F25: Report Mittag | G25: =G10-G23 -> 0

Sheet ErlösKW01
A1: Kalkulations-Check | F1: =KWMonat(F9,Hilfstabelle!F2) -> 1 | G1: =KWMonat(F9,Hilfstabelle!F2) -> 1
A2: Rahmen- und Erlösdaten
A6: =F8 -> 2024-01-01 | B6: =F9 -> 1
A8: Zunächst werden einige Basisdaten zur Mittagsverpflegung an Ihrer Schule benötigt: | F8: =IF($F$9=1,Hauptmenue!E9,VLOOKUP($F$9,Hilfstabelle!$D$3:$F$54,3,2)) -> 2024-01-01 | G8: =Hauptmenue!E9 -> 2024-01-01
F9: 1 | G9: Kalenderwoche
A11: Es könnten an diese Stelle auch die Daten der Schule eingetragen werden
A13: Schulart:
A15: gesamte Schülerzahl der Schule: *
A17: An wievielen Tagen pro Woche gibt es ein warmes Mittagessen? *
A19: Wieviele Hauptgerichte gibt es zur Auswahl:
A21: Welches Küchensystem liegt an der Schule vor: (bitte ankreuzen) | D21: Zubereitungsküche | E21: Aufbereitungsküche | F21: Verteilerküche
A24: Nur bei Aufbereitungs- und Verteilerküche: Welches Belieferungssystem liegt vor? | D24: Cook & Chill | E24: Cook & Freeze | F24: Cook & Hold
A27: Abzuführende Umsatzsteuer Mittagsverpflegung: (0%, 7% oder 19%) | D27: 0.19 | E27: Woche: | G27: z. B. Schulwoche, Ferien
A28: Abzuführende Umsatzsteuer Zwischenverpflegung: (0%, 7% oder 19%) | D28: 0.07
D30: Essensteilnehmerzahlen pro Speise
D31: =VLOOKUP(F9,Hilfstabelle!$D$3:$F$54,3,2) -> 43830 | E31: =D31+1 -> 43831 | F31: =E31+1 -> 43832 | G31: =F31+1 -> 43833 | H31: 43834
B32: Eingabe individueller Bezeichnungen möglich | D32: Montag | E32: Dienstag | F32: Mittwoch | G32: Donnerstag | H32: Freitag | I32: Woche gesamt
A33: Hauptspeise 1: | I33: =SUM(D33:H33) -> 0
A34: Hauptspeise 2: | I34: 0
A35: Hauptspeise 3: | I35: 0
A36: Hauptspeise 4: | I36: 0
A37: Hauptspeise 5: | I37: 0
A38: Speise 4: | I38: 0
A39: Speise 5: | I39: 0
A40: Speise 6: | I40: 0
A41: Speise 7: | I41: 0
A42: Speise 8: | I42: 0
A43: Speise 9: | I43: 0
A44: Speise 10: | I44: 0
D47: Bruttopreise | H47: Summe Hauptspeisen/Woche: | I47: =SUM(I33:I37) -> 0
A48: Hauptspeise 1: | B48: =B33 -> 0
A49: Hauptspeise 2: | B49: =B34 -> 0
A50: Hauptspeise 3: | B50: =B35 -> 0
A51: Hauptspeise 4: | B51: 0
A52: Hauptspeise 5: | B52: =B37 -> 0
A53: Speise 4: | B53: =B38 -> 0
A54: Speise 5: | B54: 0
A55: Speise 6: | B55: 0
A56: Speise 7: | B56: 0
A57: Speise 8: | B57: 0
A58: Speise 9: | B58: 0
A59: Speise 10: | B59: 0
D61: Erlössumme Brutto
D62: =D31 -> 43830 | E62: =E31 -> 43831 | F62: 43832 | G62: 43833 | H62: 43834
D63: Montag | E63: Dienstag | F63: Mittwoch | G63: Donnerstag | H63: Freitag | I63: Erlös/Woche
A64: Hauptspeise 1: | B64: =B33 -> 0 | D64: =D33*$D$48 -> 0 | E64: =E33*$D$48 -> 0 | F64: 0 | G64: 0 | H64: 0 | I64: =SUM(D64:H64) -> 0
A65: Hauptspeise 2: | B65: =B34 -> 0 | D65: =D34*$D$49 -> 0 | E65: =E34*$D$49 -> 0 | F65: =F34*$D$49 -> 0 | G65: 0 | H65: 0 | I65: 0
A66: Hauptspeise 3: | B66: 0 | D66: =D35*$D$50 -> 0 | E66: =E35*$D$50 -> 0 | F66: =F35*$D$50 -> 0 | G66: 0 | H66: 0 | I66: 0
A67: Hauptspeise 4: | B67: 0 | D67: =D36*$D$51 -> 0 | E67: =E36*$D$51 -> 0 | F67: =F36*$D$51 -> 0 | G67: 0 | H67: 0 | I67: 0
A68: Hauptspeise 5: | B68: 0 | D68: =D37*$D$52 -> 0 | E68: =E37*$D$52 -> 0 | F68: =F37*$D$52 -> 0 | G68: 0 | H68: 0 | I68: 0
A69: Speise 4: | B69: 0 | D69: =D38*$D$53 -> 0 | E69: =E38*$D$53 -> 0 | F69: =F38*$D$53 -> 0 | G69: 0 | H69: 0 | I69: 0
A70: Speise 5: | B70: 0 | D70: =D39*$D$54 -> 0 | E70: =E39*$D$54 -> 0 | F70: =F39*$D$54 -> 0 | G70: 0 | H70: 0 | I70: 0
A71: Speise 6: | B71: 0 | D71: =D40*$D$55 -> 0 | E71: =E40*$D$55 -> 0 | F71: =F40*$D$55 -> 0 | G71: 0 | H71: 0 | I71: 0
A72: Speise 7: | B72: 0 | D72: =D41*$D$56 -> 0 | E72: =E41*$D$56 -> 0 | F72: =F41*$D$56 -> 0 | G72: 0 | H72: 0 | I72: 0
A73: Speise 8: | B73: 0 | D73: =D42*$D$57 -> 0 | E73: =E42*$D$57 -> 0 | F73: =F42*$D$57 -> 0 | G73: 0 | H73: 0 | I73: 0
A74: Speise 9: | B74: 0 | D74: =D43*$D$58 -> 0 | E74: =E43*$D$58 -> 0 | F74: =F43*$D$58 -> 0 | G74: 0 | H74: 0 | I74: 0
A75: Speise 10: | B75: 0 | D75: =D44*$D$59 -> 0 | E75: =E44*$D$59 -> 0 | F75: =F44*$D$59 -> 0 | G75: 0 | H75: 0 | I75: 0
A76: Brutto-Erlössummen gesamt | D76: =SUM(D64:D75) -> 0 | E76: 0 | F76: 0 | G76: 0 | H76: 0 | I76: 0
A77: Netto-Erlössummen gesamt | D77: =D76*100/(100+(100*$D27)) -> 0 | E77: =E76*100/(100+(100*$D27)) -> 0 | F77: =F76*100/(100+(100*$D27)) -> 0 | G77: =G76*100/(100+(100*$D27)) -> 0 | H77: =H76*100/(100+(100*$D27)) -> 0 | I77: =SUM(D77:H77) -> 0
D80: Montag | E80: Dienstag | F80: Mittwoch | G80: Donnerstag | H80: Freitag | I80: Erlös/Woche
D81: =D31 -> 43830 | E81: =E31 -> 43831 | F81: 43832 | G81: 43833 | H81: 43834
A82: Gesamtbruttotageserlös durch sonstige Verpflegung (Zwischenverpflegung)* | I82: =SUM(D82:H82) -> 0
A83: Nettogesamterlöse | D83: =D82*100/(100+(100*$D28)) -> 0 | E83: =E82*100/(100+(100*$D28)) -> 0 | F83: =F82*100/(100+(100*$D28)) -> 0 | G83: =G82*100/(100+(100*$D28)) -> 0 | H83: =H82*100/(100+(100*$D28)) -> 0 | I83: =SUM(D83:H83) -> 0
A86: Sonstige Nettoerlöse pro Monat | D86: Subventionen pro Monat

Sheet KostenKW01
A1: Kalkulations-Check | F1: =KWMonat(ErlösKW01!F9,Hilfstabelle!F2) -> 1
A2: Kostendaten
A6: =ErlösKW01!F8 -> 2024-01-01 | B6: =ErlösKW01!F9 -> 1
A8: Nun geben Sie bitte die folgenden Kostendaten zur Mittagsverpflegung ein:
A10: Geben Sie einen ungefähren, gerundeten Anteil an, der auf die warme Mittagsverpflegung entfällt, z.B. entfällt 70 % Ihres gesamten Wareneinsatzes auf die Mittagsverpflegung, die restlichen 30% sind dem Bereich Zwischenverpflegung zuzuordnen. Kosten die unabhängig von der Verpflegungform anfallen (z.B. Miete) werden zu 50% aufgeteilt. Falls Sie nur Mittagsverpflegung anbieten, geben Sie als Anteil bei allen Kostenpunkten 100% ein.
E13: Gesamtwert in € | F13: %-Anteil Mittagsverpflegung
A15: Wareneinsatz | C15: Nettowarenwert pro Woche | D15: (alle Speisen und Getränke für eine Woche) | G15: Wareneinkaufspreis abzüglich 7% Umsatzsteuer
G16: (Rechenweg Einkaufspreis * 100 / 107 = Nettowarenwert)
A17: Gemeinkosten | C17: Fixe Kosten pro Woche | D17: Miete / Pacht
D18: Kosten für Müllabfuhr | G18: kann meist in der Schule oder beim Sach-aufwandsträger eingesehen werden
D19: Kosten für Versicherungen (Brand-, Wasserschäden)
D20: Sonstiges
C27: Variable Kosten pro Woche | D27: Reinigungs- und Desinfektionsmittel
D28: Energiekosten | G28: kann meist in der Schule oder beim Sach-aufwandsträger eingesehen werden
D29: Wasser- und Abwasserkosten
D30: Heizungskosten
D31: Kosten für Schädlingsbekämpfung
D32: Kosten für Reinigung der Mensa | G32: kann meist in der Schule oder beim Sach-aufwandsträger eingesehen werden
D33: Verbrauchsgüter (Servietten, Alufolie…)
D34: Ersatzbeschaffungen bis ca. 100 € (Geschirr, kleine Küchengeräte…)
D35: Wäschekosten (Personal-, Küche- und Tischwäsche)
D36: Kosten für Reparatur- und Wartungsarbeiten
D37: Kosten für Schulungs- und Weiterbildungsmaßnahmen
D38: Beiträge (z.B. Berufsgenossenschaft)
D39: Verwaltungskosten ( z.B. für Essensabrechnung, Bürobedarf...)
D46: Sonstige Gemeinkosten
D48: Gesamtgemeinkosten pro Woche | E48: =SUM(E17:E25,E27:E46) -> 0
A50: Personalkosten | C50: gesamte Lohnkosten inklusive Lohnnebenkosten (Sozialabgaben) pro Woche für:
D51: Küchenleiter
D52: Küchenmitarbeiter
D53: Spül- und Putzkräfte
D54: Praktikanten, Azubis…
D55: sonstiges
D57: Gesamtpersonalkosten pro Woche | E57: =SUM(E51:E55) -> 0
D59: Sonstiges
D61: Gesamtkosten pro Schulwoche | E61: =SUM(E15,E48,E57,E59) -> 0

Sheet ErgebnisKW01
A1: Kalkulations-Check | F1: =KWMonat(ErlösKW01!F9,Hilfstabelle!F2) -> 1
A2: Ergebnisausgabe: Daten der aktuellen Kalenderwoche
A6: =ErlösKW01!$F$8 -> 2024-01-01 | B6: =ErlösKW01!$F$9 & " KW" -> 1 KW
B9: Bericht
A11: Gesamtnettoerlös pro Schulwoche | B11: =ErlösKW01!I77+ErlösKW01!I83+ErlösKW01!G86 -> 0
A12: Gesamtkosten pro Schulwoche | B12: =KostenKW01!E61 -> 0
A13: Überschuss / Unterdeckung pro Schulwoche | B13: =B11-B12 -> 0
C16: Bericht
A17: Ergebnisart | B17: Verpflegungsform | C17: pro Woche
A18: Nettoerlös | B18: Mittagsverpflegung | C18: =ErlösKW01!I77 -> 0
B19: Zwischenverpflegung | C19: =ErlösKW01!I83 -> 0
A20: Kosten | B20: Mittagsverpflegung | C20: =KostenKW01!E15*KostenKW01!F15+KostenKW01!E17*KostenKW01!F17+KostenKW01!E18*KostenKW01!F18+KostenKW01!E19*KostenKW01!F19+KostenKW01!E20*KostenKW01!F20+KostenKW01!E27*KostenKW01!F27+KostenKW01!E28*KostenKW01!F28+KostenKW01!E29*KostenKW01!F29+KostenKW01!E30*KostenKW01!F30+KostenKW01!E31*KostenKW01!F31+KostenKW01!E32*KostenKW01!F32+KostenKW01!E33*KostenKW01!F33+KostenKW01!E34*KostenKW01!F34+KostenKW01!E35*KostenKW01!F35+KostenKW01!E36*KostenKW01!F36+KostenKW01!E37*KostenKW01!F37+KostenKW01!E38*KostenKW01!F38+KostenKW01!E39*KostenKW01!F39+KostenKW01!E46*KostenKW01!F46+KostenKW01!E51*KostenKW01!F51+KostenKW01!E52*KostenKW01!F52+KostenKW01!E53*KostenKW01!F53+KostenKW01!E54*KostenKW01!F54+KostenKW01!E55*KostenKW01!F55+KostenKW01!E59*KostenKW01!F59 -> 0
B21: Zwischenverpflegung | C21: =ErgebnisKW01!B12-ErgebnisKW01!C20 -> 0
A22: Überschuss / Unterdeckung | B22: Mittagsverpflegung | C22: =C18-C20 -> 0
B23: Zwischenverpflegung | C23: =C19-C21 -> 0
A25: Kennzahlen (bezogen auf eine Schulwoche)
A26: Ergebnisart | B26: Gesamt | C26: Mittagsverpflegung | D26: Zwischenverpflegung
A27: Erlös | B27: =B11/B11 ->  | C27: =C18/B11 ->  | D27: =C19/B11 -> 
A28: Kosten | B28: =B12/B12 ->  | C28: =C20/B12 ->  | D28: =C21/B12 -> 
A29: Überschuss / Unterdeckung | B29: =B13/B13 ->  | C29: =C22/B13 ->  | D29: =C23/B13 ->  | F29: Richtwerte Kostenverteilung Mittagsverpflegung¹:
A30: Personalkosten | B30: =KostenKW01!E57/ErgebnisKW01!B12 ->  | C30: =(KostenKW01!E51*KostenKW01!F51+KostenKW01!E52*KostenKW01!F52+KostenKW01!E53*KostenKW01!F53+KostenKW01!E54*KostenKW01!F54+KostenKW01!E55*KostenKW01!F55)/ErgebnisKW01!C20 ->  | D30: =(KostenKW01!E57-(KostenKW01!E51*KostenKW01!F51+KostenKW01!E52*KostenKW01!F52+KostenKW01!E53*KostenKW01!F53+KostenKW01!E54*KostenKW01!F54+KostenKW01!E55*KostenKW01!F55))/C21 ->  | G30: Frisch- und Mischküche | H30: Kühlkostsystem | I30: Warmverpflegung
A31: Wareneinsatzkosten | B31: =KostenKW01!E15/ErgebnisKW01!B12 ->  | C31: =(KostenKW01!E15*KostenKW01!F15)/ErgebnisKW01!C20 ->  | D31: =(KostenKW01!E15-(KostenKW01!E15*KostenKW01!F15))/ErgebnisKW01!C21 ->  | F31: Wareneinstandskosten | G31: 0.45 | H31: 55- 57 % | I31: 60 - 63 %
A32: Gemeinkosten | B32: =KostenKW01!E48/ErgebnisKW01!B12 ->  | C32: =(KostenKW01!E17*KostenKW01!F17+KostenKW01!E18*KostenKW01!F18+KostenKW01!E19*KostenKW01!F19+KostenKW01!E20*KostenKW01!F20+KostenKW01!E27*KostenKW01!F27+KostenKW01!E28*KostenKW01!F28+KostenKW01!E29*KostenKW01!F29+KostenKW01!E30*KostenKW01!F30+KostenKW01!E31*KostenKW01!F31+KostenKW01!E32*KostenKW01!F32+KostenKW01!E33*KostenKW01!F33+KostenKW01!E34*KostenKW01!F34+KostenKW01!E35*KostenKW01!F35+KostenKW01!E36*KostenKW01!F36+KostenKW01!E37*KostenKW01!F37+KostenKW01!E38*KostenKW01!F38+KostenKW01!E39*KostenKW01!F39+KostenKW01!E46*KostenKW01!F46)/ErgebnisKW01!C20 ->  | D32: =(KostenKW01!E48-(KostenKW01!E17*KostenKW01!F17+KostenKW01!E18*KostenKW01!F18+KostenKW01!E19*KostenKW01!F19+KostenKW01!E20*KostenKW01!F20+KostenKW01!E27*KostenKW01!F27+KostenKW01!E28*KostenKW01!F28+KostenKW01!E29*KostenKW01!F29+KostenKW01!E30*KostenKW01!F30+KostenKW01!E31*KostenKW01!F31+KostenKW01!E32*KostenKW01!F32+KostenKW01!E33*KostenKW01!F33+KostenKW01!E34*KostenKW01!F34+KostenKW01!E35*KostenKW01!F35+KostenKW01!E36*KostenKW01!F36+KostenKW01!E37*KostenKW01!F37+KostenKW01!E38*KostenKW01!F38+KostenKW01!E39*KostenKW01!F39+KostenKW01!E46*KostenKW01!F46))/ErgebnisKW01!C21 ->  | F32: Personalkosten | G32: 50- 52 % | H32: 40- 42 % | I32: 0.02
A33: Sonstige Kosten | B33: =KostenKW01!E59/ErgebnisKW01!B12 ->  | C33: =(KostenKW01!E59*KostenKW01!F59)/ErgebnisKW01!C20 ->  | D33: =(KostenKW01!E59-(KostenKW01!E59*KostenKW01!F59))/ErgebnisKW01!C21 ->  | F33: Gemeinkosten | G33: 3- 5 % | H33: 0.03 | I33: 35 - 38 %
A35: Akzeptanzquote der Mittagsverpflegung | B35: =ErlösKW01!I47/(ErlösKW01!D15*ErlösKW01!D17) -> 
A37: Grafische Darstellungen (alle bezogen auf eine Woche)
A74: ¹ Arens-Azevêdo, U. und Lichtenberg, W., 2007: Planung kleiner Küchen in Schulen, Kitas und Heimen. hrsg. von AID infodienst, Bonn, S. 33

Sheet ForecastKW01
A1: Kalkulations-Check | F1: =KWMonat(ErlösKW01!F9,Hilfstabelle!F2) -> 1
A2: Hochrechnung
A6: =ErlösKW01!$F$8 -> 2024-01-01 | B6: =ErlösKW01!$F$9 -> 1
B9: Hochrechnung | E9: Hochrechnung
A11: Gesamtnettoerlös pro vollem Schulmonat | B11: =ErgebnisKW01!B11*4.3 -> 0 | D11: Gesamtnettoerlös pro Schuljahr | E11: =ErgebnisKW01!B11*(52-14.5) -> 0
A12: Gesamtkosten pro vollem Schulmonat | B12: =ErgebnisKW01!B12*4.3 -> 0 | D12: Gesamtkosten pro Schuljahr | E12: =ErgebnisKW01!B12*(52-14.5) -> 0
A13: Überschuss / Unterdeckung pro vollem Schulmonat | B13: =B11-B12 -> 0 | D13: Überschuss / Unterdeckung pro Schuljahr | E13: =E11-E12 -> 0
C15: Bericht | D15: Hochrechnung | E15: Hochrechnung
A16: Ergebnisart | B16: Verpflegungsform | C16: pro Woche | D16: pro Monat | E16: pro Jahr
A17: Nettoerlös | B17: Mittagsverpflegung | C17: =ErlösKW01!I77 -> 0 | D17: =ForecastKW01!$C17*4.3 -> 0 | E17: =Tabelle62[[#This Row],[pro Woche]]*(52-14.5) -> 0
B18: Zwischenverpflegung | C18: =ErlösKW01!I83 -> 0 | D18: =ForecastKW01!$C18*4.3 -> 0 | E18: =E11-E17 -> 0
A19: Kosten | B19: Mittagsverpflegung | C19: =KostenKW01!E15*KostenKW01!F15+KostenKW01!E17*KostenKW01!F17+KostenKW01!E18*KostenKW01!F18+KostenKW01!E19*KostenKW01!F19+KostenKW01!E20*KostenKW01!F20+KostenKW01!E27*KostenKW01!F27+KostenKW01!E28*KostenKW01!F28+KostenKW01!E29*KostenKW01!F29+KostenKW01!E30*KostenKW01!F30+KostenKW01!E31*KostenKW01!F31+KostenKW01!E32*KostenKW01!F32+KostenKW01!E33*KostenKW01!F33+KostenKW01!E34*KostenKW01!F34+KostenKW01!E35*KostenKW01!F35+KostenKW01!E36*KostenKW01!F36+KostenKW01!E37*KostenKW01!F37+KostenKW01!E38*KostenKW01!F38+KostenKW01!E39*KostenKW01!F39+KostenKW01!E46*KostenKW01!F46+KostenKW01!E51*KostenKW01!F51+KostenKW01!E52*KostenKW01!F52+KostenKW01!E53*KostenKW01!F53+KostenKW01!E54*KostenKW01!F54+KostenKW01!E55*KostenKW01!F55+KostenKW01!E59*KostenKW01!F59 -> 0 | D19: =ForecastKW01!$C19*4.3 -> 0 | E19: =Tabelle62[[#This Row],[pro Woche]]*(52-14.5) -> 0
B20: Zwischenverpflegung | C20: =ErgebnisKW01!B12-ForecastKW01!C19 -> 0 | D20: =ForecastKW01!$C20*4.3 -> 0 | E20: =E12-E19 -> 0
A21: Überschuss / Unterdeckung | B21: Mittagsverpflegung | C21: =C17-C19 -> 0 | D21: =ForecastKW01!$C21*4.3 -> 0 | E21: =E17-E19 -> 0
B22: Zwischenverpflegung | C22: =C18-C20 -> 0 | D22: =ForecastKW01!$C22*4.3 -> 0 | E22: =E18-E20 -> 0

Sheet ErlösKW02
A1: Kalkulations-Check | F1: =KWMonat(F9,Hilfstabelle!F2) -> 1 | G1: =KWMonat(F9,Hilfstabelle!F2) -> 1
A2: Rahmen- und Erlösdaten
A6: =F8 -> 2024-01-08 | B6: =F9 -> 2
A8: Zunächst werden einige Basisdaten zur Mittagsverpflegung an Ihrer Schule benötigt: | F8: =IF($F$9=1,Hauptmenue!E9,VLOOKUP($F$9,Hilfstabelle!$D$3:$F$54,3,2)) -> 2024-01-08 | G8: =Hauptmenue!E9 -> 2024-01-01
F9: 2 | G9: Kalenderwoche
A11: Es könnten an diese Stelle auch die Daten der Schule eingetragen werden
A13: Schulart:
A15: gesamte Schülerzahl der Schule: *
A17: An wievielen Tagen pro Woche gibt es ein warmes Mittagessen? *
A19: Wieviele Hauptgerichte gibt es zur Auswahl:
A21: Welches Küchensystem liegt an der Schule vor: (bitte ankreuzen) | D21: Zubereitungsküche | E21: Aufbereitungsküche | F21: Verteilerküche
A24: Nur bei Aufbereitungs- und Verteilerküche: Welches Belieferungssystem liegt vor? | D24: Cook & Chill | E24: Cook & Freeze | F24: Cook & Hold
A27: Abzuführende Umsatzsteuer Mittagsverpflegung: (0%, 7% oder 19%) | D27: 0.19 | E27: Woche: | G27: z. B. Schulwoche, Ferien
A28: Abzuführende Umsatzsteuer Zwischenverpflegung: (0%, 7% oder 19%) | D28: 0.07
D30: Essensteilnehmerzahlen pro Speise
D31: =VLOOKUP(F9,Hilfstabelle!$D$3:$F$54,3,2) -> 43837 | E31: =D31+1 -> 43838 | F31: =E31+1 -> 43839 | G31: =F31+1 -> 43840 | H31: 43841
B32: Eingabe individueller Bezeichnungen möglich | D32: Montag | E32: Dienstag | F32: Mittwoch | G32: Donnerstag | H32: Freitag | I32: Woche gesamt
A33: Hauptspeise 1: | I33: =SUM(D33:H33) -> 0
A34: Hauptspeise 2: | I34: 0
A35: Hauptspeise 3: | I35: 0
A36: Hauptspeise 4: | I36: 0
A37: Hauptspeise 5: | I37: 0
A38: Speise 4: | I38: 0
A39: Speise 5: | I39: 0
A40: Speise 6: | I40: 0
A41: Speise 7: | I41: 0
A42: Speise 8: | I42: 0
A43: Speise 9: | I43: 0
A44: Speise 10: | I44: 0
D47: Bruttopreise | H47: Summe Hauptspeisen/Woche: | I47: =SUM(I33:I37) -> 0
A48: Hauptspeise 1: | B48: =B33 -> 0
A49: Hauptspeise 2: | B49: =B34 -> 0
A50: Hauptspeise 3: | B50: =B35 -> 0
A51: Hauptspeise 4: | B51: 0
A52: Hauptspeise 5: | B52: =B37 -> 0
A53: Speise 4: | B53: =B38 -> 0
A54: Speise 5: | B54: 0
A55: Speise 6: | B55: 0
A56: Speise 7: | B56: 0
A57: Speise 8: | B57: 0
A58: Speise 9: | B58: 0
A59: Speise 10: | B59: 0
D61: Erlössumme Brutto
D62: =D31 -> 43837 | E62: =E31 -> 43838 | F62: 43839 | G62: 43840 | H62: 43841
D63: Montag | E63: Dienstag | F63: Mittwoch | G63: Donnerstag | H63: Freitag | I63: Erlös/Woche
A64: Hauptspeise 1: | B64: =B33 -> 0 | D64: =D33*$D$48 -> 0 | E64: =E33*$D$48 -> 0 | F64: 0 | G64: 0 | H64: 0 | I64: =SUM(D64:H64) -> 0
A65: Hauptspeise 2: | B65: =B34 -> 0 | D65: =D34*$D$49 -> 0 | E65: =E34*$D$49 -> 0 | F65: =F34*$D$49 -> 0 | G65: 0 | H65: 0 | I65: 0
A66: Hauptspeise 3: | B66: 0 | D66: =D35*$D$50 -> 0 | E66: =E35*$D$50 -> 0 | F66: =F35*$D$50 -> 0 | G66: 0 | H66: 0 | I66: 0
A67: Hauptspeise 4: | B67: 0 | D67: =D36*$D$51 -> 0 | E67: =E36*$D$51 -> 0 | F67: =F36*$D$51 -> 0 | G67: 0 | H67: 0 | I67: 0
A68: Hauptspeise 5: | B68: 0 | D68: =D37*$D$52 -> 0 | E68: =E37*$D$52 -> 0 | F68: =F37*$D$52 -> 0 | G68: 0 | H68: 0 | I68: 0
A69: Speise 4: | B69: 0 | D69: =D38*$D$53 -> 0 | E69: =E38*$D$53 -> 0 | F69: =F38*$D$53 -> 0 | G69: 0 | H69: 0 | I69: 0
A70: Speise 5: | B70: 0 | D70: =D39*$D$54 -> 0 | E70: =E39*$D$54 -> 0 | F70: =F39*$D$54 -> 0 | G70: 0 | H70: 0 | I70: 0
A71: Speise 6: | B71: 0 | D71: =D40*$D$55 -> 0 | E71: =E40*$D$55 -> 0 | F71: =F40*$D$55 -> 0 | G71: 0 | H71: 0 | I71: 0
A72: Speise 7: | B72: 0 | D72: =D41*$D$56 -> 0 | E72: =E41*$D$56 -> 0 | F72: =F41*$D$56 -> 0 | G72: 0 | H72: 0 | I72: 0
A73: Speise 8: | B73: 0 | D73: =D42*$D$57 -> 0 | E73: =E42*$D$57 -> 0 | F73: =F42*$D$57 -> 0 | G73: 0 | H73: 0 | I73: 0
A74: Speise 9: | B74: 0 | D74: =D43*$D$58 -> 0 | E74: =E43*$D$58 -> 0 | F74: =F43*$D$58 -> 0 | G74: 0 | H74: 0 | I74: 0
A75: Speise 10: | B75: 0 | D75: =D44*$D$59 -> 0 | E75: =E44*$D$59 -> 0 | F75: =F44*$D$59 -> 0 | G75: 0 | H75: 0 | I75: 0
A76: Brutto-Erlössummen gesamt | D76: =SUM(D64:D75) -> 0 | E76: 0 | F76: 0 | G76: 0 | H76: 0 | I76: 0
A77: Netto-Erlössummen gesamt | D77: =D76*100/(100+(100*$D27)) -> 0 | E77: =E76*100/(100+(100*$D27)) -> 0 | F77: =F76*100/(100+(100*$D27)) -> 0 | G77: =G76*100/(100+(100*$D27)) -> 0 | H77: =H76*100/(100+(100*$D27)) -> 0 | I77: =SUM(D77:H77) -> 0
D80: Montag | E80: Dienstag | F80: Mittwoch | G80: Donnerstag | H80: Freitag | I80: Erlös/Woche
D81: =D31 -> 43837 | E81: =E31 -> 43838 | F81: 43839 | G81: 43840 | H81: 43841
A82: Gesamtbruttotageserlös durch sonstige Verpflegung (Zwischenverpflegung)* | I82: =SUM(D82:H82) -> 0
A83: Nettogesamterlöse | D83: =D82*100/(100+(100*$D28)) -> 0 | E83: =E82*100/(100+(100*$D28)) -> 0 | F83: =F82*100/(100+(100*$D28)) -> 0 | G83: =G82*100/(100+(100*$D28)) -> 0 | H83: =H82*100/(100+(100*$D28)) -> 0 | I83: =SUM(D83:H83) -> 0
A86: Sonstige Nettoerlöse pro Monat | D86: Subventionen pro Monat

Sheet KostenKW02
A1: Kalkulations-Check | F1: =KWMonat(ErlösKW02!F9,Hilfstabelle!F2) -> 1
A2: Kostendaten
A6: =ErlösKW02!F8 -> 2024-01-08 | B6: =ErlösKW02!F9 -> 2
A8: Nun geben Sie bitte die folgenden Kostendaten zur Mittagsverpflegung ein:
A10: Geben Sie einen ungefähren, gerundeten Anteil an, der auf die warme Mittagsverpflegung entfällt, z.B. entfällt 70 % Ihres gesamten Wareneinsatzes auf die Mittagsverpflegung, die restlichen 30% sind dem Bereich Zwischenverpflegung zuzuordnen. Kosten die unabhängig von der Verpflegungform anfallen (z.B. Miete) werden zu 50% aufgeteilt. Falls Sie nur Mittagsverpflegung anbieten, geben Sie als Anteil bei allen Kostenpunkten 100% ein.
E13: Gesamtwert in € | F13: %-Anteil Mittagsverpflegung
A15: Wareneinsatz | C15: Nettowarenwert pro Woche | D15: (alle Speisen und Getränke für eine Woche) | G15: Wareneinkaufspreis abzüglich 7% Umsatzsteuer
G16: (Rechenweg Einkaufspreis * 100 / 107 = Nettowarenwert)
A17: Gemeinkosten | C17: Fixe Kosten pro Woche | D17: Miete / Pacht
D18: Kosten für Müllabfuhr | G18: kann meist in der Schule oder beim Sach-aufwandsträger eingesehen werden
D19: Kosten für Versicherungen (Brand-, Wasserschäden)
D20: Sonstiges
C27: Variable Kosten pro Woche | D27: Reinigungs- und Desinfektionsmittel
D28: Energiekosten | G28: kann meist in der Schule oder beim Sach-aufwandsträger eingesehen werden
D29: Wasser- und Abwasserkosten
D30: Heizungskosten
D31: Kosten für Schädlingsbekämpfung
D32: Kosten für Reinigung der Mensa | G32: kann meist in der Schule oder beim Sach-aufwandsträger eingesehen werden
D33: Verbrauchsgüter (Servietten, Alufolie…)
D34: Ersatzbeschaffungen bis ca. 100 € (Geschirr, kleine Küchengeräte…)
D35: Wäschekosten (Personal-, Küche- und Tischwäsche)
D36: Kosten für Reparatur- und Wartungsarbeiten
D37: Kosten für Schulungs- und Weiterbildungsmaßnahmen
D38: Beiträge (z.B. Berufsgenossenschaft)
D39: Verwaltungskosten ( z.B. für Essensabrechnung, Bürobedarf...)
D46: Sonstige Gemeinkosten
D48: Gesamtgemeinkosten pro Woche | E48: =SUM(E17:E25,E27:E46) -> 0
A50: Personalkosten | C50: gesamte Lohnkosten inklusive Lohnnebenkosten (Sozialabgaben) pro Woche für:
D51: Küchenleiter
D52: Küchenmitarbeiter
D53: Spül- und Putzkräfte
D54: Praktikanten, Azubis…
D55: sonstiges
D57: Gesamtpersonalkosten pro Woche | E57: =SUM(E51:E55) -> 0
D59: Sonstiges
D61: Gesamtkosten pro Schulwoche | E61: =SUM(E15,E48,E57,E59) -> 0

Sheet ErgebnisKW02
A1: Kalkulations-Check | F1: =KWMonat(ErlösKW02!F9,Hilfstabelle!F2) -> 1
A2: Ergebnisausgabe: Daten der aktuellen Kalenderwoche
A6: =ErlösKW02!$F$8 -> 2024-01-08 | B6: =ErlösKW02!$F$9 & " KW" -> 2 KW
B9: Bericht
A11: Gesamtnettoerlös pro Schulwoche | B11: =ErlösKW02!I77+ErlösKW02!I83+ErlösKW02!G86 -> 0
A12: Gesamtkosten pro Schulwoche | B12: =KostenKW02!E61 -> 0
A13: Überschuss / Unterdeckung pro Schulwoche | B13: =B11-B12 -> 0
C16: Bericht
A17: Ergebnisart | B17: Verpflegungsform | C17: pro Woche
A18: Nettoerlös | B18: Mittagsverpflegung | C18: =ErlösKW02!I77 -> 0
B19: Zwischenverpflegung | C19: =ErlösKW02!I83 -> 0
A20: Kosten | B20: Mittagsverpflegung | C20: =KostenKW02!E15*KostenKW02!F15+KostenKW02!E17*KostenKW02!F17+KostenKW02!E18*KostenKW02!F18+KostenKW02!E19*KostenKW02!F19+KostenKW02!E20*KostenKW02!F20+KostenKW02!E27*KostenKW02!F27+KostenKW02!E28*KostenKW02!F28+KostenKW02!E29*KostenKW02!F29+KostenKW02!E30*KostenKW02!F30+KostenKW02!E31*KostenKW02!F31+KostenKW02!E32*KostenKW02!F32+KostenKW02!E33*KostenKW02!F33+KostenKW02!E34*KostenKW02!F34+KostenKW02!E35*KostenKW02!F35+KostenKW02!E36*KostenKW02!F36+KostenKW02!E37*KostenKW02!F37+KostenKW02!E38*KostenKW02!F38+KostenKW02!E39*KostenKW02!F39+KostenKW02!E46*KostenKW02!F46+KostenKW02!E51*KostenKW02!F51+KostenKW02!E52*KostenKW02!F52+KostenKW02!E53*KostenKW02!F53+KostenKW02!E54*KostenKW02!F54+KostenKW02!E55*KostenKW02!F55+KostenKW02!E59*KostenKW02!F59 -> 0
B21: Zwischenverpflegung | C21: =ErgebnisKW02!B12-ErgebnisKW02!C20 -> 0
A22: Überschuss / Unterdeckung | B22: Mittagsverpflegung | C22: =C18-C20 -> 0
B23: Zwischenverpflegung | C23: =C19-C21 -> 0
A25: Kennzahlen (bezogen auf eine Schulwoche)
A26: Ergebnisart | B26: Gesamt | C26: Mittagsverpflegung | D26: Zwischenverpflegung
A27: Erlös | B27: =B11/B11 ->  | C27: =C18/B11 ->  | D27: =C19/B11 -> 
A28: Kosten | B28: =B12/B12 ->  | C28: =C20/B12 ->  | D28: =C21/B12 -> 
A29: Überschuss / Unterdeckung | B29: =B13/B13 ->  | C29: =C22/B13 ->  | D29: =C23/B13 ->  | F29: Richtwerte Kostenverteilung Mittagsverpflegung¹:
A30: Personalkosten | B30: =KostenKW02!E57/ErgebnisKW02!B12 ->  | C30: =(KostenKW02!E51*KostenKW02!F51+KostenKW02!E52*KostenKW02!F52+KostenKW02!E53*KostenKW02!F53+KostenKW02!E54*KostenKW02!F54+KostenKW02!E55*KostenKW02!F55)/ErgebnisKW02!C20 ->  | D30: =(KostenKW02!E57-(KostenKW02!E51*KostenKW02!F51+KostenKW02!E52*KostenKW02!F52+KostenKW02!E53*KostenKW02!F53+KostenKW02!E54*KostenKW02!F54+KostenKW02!E55*KostenKW02!F55))/C21 ->  | G30: Frisch- und Mischküche | H30: Kühlkostsystem | I30: Warmverpflegung
A31: Wareneinsatzkosten | B31: =KostenKW02!E15/ErgebnisKW02!B12 ->  | C31: =(KostenKW02!E15*KostenKW02!F15)/ErgebnisKW02!C20 ->  | D31: =(KostenKW02!E15-(KostenKW02!E15*KostenKW02!F15))/ErgebnisKW02!C21 ->  | F31: Wareneinstandskosten | G31: 0.45 | H31: 55- 57 % | I31: 60 - 63 %
A32: Gemeinkosten | B32: =KostenKW02!E48/ErgebnisKW02!B12 ->  | C32: =(KostenKW02!E17*KostenKW02!F17+KostenKW02!E18*KostenKW02!F18+KostenKW02!E19*KostenKW02!F19+KostenKW02!E20*KostenKW02!F20+KostenKW02!E27*KostenKW02!F27+KostenKW02!E28*KostenKW02!F28+KostenKW02!E29*KostenKW02!F29+KostenKW02!E30*KostenKW02!F30+KostenKW02!E31*KostenKW02!F31+KostenKW02!E32*KostenKW02!F32+KostenKW02!E33*KostenKW02!F33+KostenKW02!E34*KostenKW02!F34+KostenKW02!E35*KostenKW02!F35+KostenKW02!E36*KostenKW02!F36+KostenKW02!E37*KostenKW02!F37+KostenKW02!E38*KostenKW02!F38+KostenKW02!E39*KostenKW02!F39+KostenKW02!E46*KostenKW02!F46)/ErgebnisKW02!C20 ->  | D32: =(KostenKW02!E48-(KostenKW02!E17*KostenKW02!F17+KostenKW02!E18*KostenKW02!F18+KostenKW02!E19*KostenKW02!F19+KostenKW02!E20*KostenKW02!F20+KostenKW02!E27*KostenKW02!F27+KostenKW02!E28*KostenKW02!F28+KostenKW02!E29*KostenKW02!F29+KostenKW02!E30*KostenKW02!F30+KostenKW02!E31*KostenKW02!F31+KostenKW02!E32*KostenKW02!F32+KostenKW02!E33*KostenKW02!F33+KostenKW02!E34*KostenKW02!F34+KostenKW02!E35*KostenKW02!F35+KostenKW02!E36*KostenKW02!F36+KostenKW02!E37*KostenKW02!F37+KostenKW02!E38*KostenKW02!F38+KostenKW02!E39*KostenKW02!F39+KostenKW02!E46*KostenKW02!F46))/ErgebnisKW02!C21 ->  | F32: Personalkosten | G32: 50- 52 % | H32: 40- 42 % | I32: 0.02
A33: Sonstige Kosten | B33: =KostenKW02!E59/ErgebnisKW02!B12 ->  | C33: =(KostenKW02!E59*KostenKW02!F59)/ErgebnisKW02!C20 ->  | D33: =(KostenKW02!E59-(KostenKW02!E59*KostenKW02!F59))/ErgebnisKW02!C21 ->  | F33: Gemeinkosten | G33: 3- 5 % | H33: 0.03 | I33: 35 - 38 %
A35: Akzeptanzquote der Mittagsverpflegung | B35: =ErlösKW02!I47/(ErlösKW02!D15*ErlösKW02!D17) -> 
A37: Grafische Darstellungen (alle bezogen auf eine Woche)
A74: ¹ Arens-Azevêdo, U. und Lichtenberg, W., 2007: Planung kleiner Küchen in Schulen, Kitas und Heimen. hrsg. von AID infodienst, Bonn, S. 33

Sheet ForecastKW02
A1: Kalkulations-Check | F1: =KWMonat(ErlösKW02!F9,Hilfstabelle!F2) -> 1
A2: Hochrechnung
A6: =ErlösKW02!$F$8 -> 2024-01-08 | B6: =ErlösKW02!$F$9 -> 2
B9: Hochrechnung | E9: Hochrechnung
A11: Gesamtnettoerlös pro vollem Schulmonat | B11: =ErgebnisKW02!B11*4.3 -> 0 | D11: Gesamtnettoerlös pro Schuljahr | E11: =ErgebnisKW02!B11*(52-14.5) -> 0
A12: Gesamtkosten pro vollem Schulmonat | B12: =ErgebnisKW02!B12*4.3 -> 0 | D12: Gesamtkosten pro Schuljahr | E12: =ErgebnisKW02!B12*(52-14.5) -> 0
A13: Überschuss / Unterdeckung pro vollem Schulmonat | B13: =B11-B12 -> 0 | D13: Überschuss / Unterdeckung pro Schuljahr | E13: =E11-E12 -> 0
C15: Bericht | D15: Hochrechnung | E15: Hochrechnung
A16: Ergebnisart | B16: Verpflegungsform | C16: pro Woche | D16: pro Monat | E16: pro Jahr
A17: Nettoerlös | B17: Mittagsverpflegung | C17: =ErlösKW02!I77 -> 0 | D17: =ForecastKW02!$C17*4.3 -> 0 | E17: =Tabelle6211[[#This Row],[pro Woche]]*(52-14.5) -> 0
B18: Zwischenverpflegung | C18: =ErlösKW02!I83 -> 0 | D18: =ForecastKW02!$C18*4.3 -> 0 | E18: =E11-E17 -> 0
A19: Kosten | B19: Mittagsverpflegung | C19: =KostenKW02!E15*KostenKW02!F15+KostenKW02!E17*KostenKW02!F17+KostenKW02!E18*KostenKW02!F18+KostenKW02!E19*KostenKW02!F19+KostenKW02!E20*KostenKW02!F20+KostenKW02!E27*KostenKW02!F27+KostenKW02!E28*KostenKW02!F28+KostenKW02!E29*KostenKW02!F29+KostenKW02!E30*KostenKW02!F30+KostenKW02!E31*KostenKW02!F31+KostenKW02!E32*KostenKW02!F32+KostenKW02!E33*KostenKW02!F33+KostenKW02!E34*KostenKW02!F34+KostenKW02!E35*KostenKW02!F35+KostenKW02!E36*KostenKW02!F36+KostenKW02!E37*KostenKW02!F37+KostenKW02!E38*KostenKW02!F38+KostenKW02!E39*KostenKW02!F39+KostenKW02!E46*KostenKW02!F46+KostenKW02!E51*KostenKW02!F51+KostenKW02!E52*KostenKW02!F52+KostenKW02!E53*KostenKW02!F53+KostenKW02!E54*KostenKW02!F54+KostenKW02!E55*KostenKW02!F55+KostenKW02!E59*KostenKW02!F59 -> 0 | D19: =ForecastKW02!$C19*4.3 -> 0 | E19: =Tabelle6211[[#This Row],[pro Woche]]*(52-14.5) -> 0
B20: Zwischenverpflegung | C20: =ErgebnisKW02!B12-ForecastKW02!C19 -> 0 | D20: =ForecastKW02!$C20*4.3 -> 0 | E20: =E12-E19 -> 0
A21: Überschuss / Unterdeckung | B21: Mittagsverpflegung | C21: =C17-C19 -> 0 | D21: =ForecastKW02!$C21*4.3 -> 0 | E21: =E17-E19 -> 0
B22: Zwischenverpflegung | C22: =C18-C20 -> 0 | D22: =ForecastKW02!$C22*4.3 -> 0 | E22: =E18-E20 -> 0

Sheet ErlösKW03
A1: Kalkulations-Check | F1: =KWMonat(F9,Hilfstabelle!F2) -> 1 | G1: =KWMonat(F9,Hilfstabelle!F2) -> 1
A2: Rahmen- und Erlösdaten
A6: =F8 -> 2024-01-15 | B6: =F9 -> 3
A8: Zunächst werden einige Basisdaten zur Mittagsverpflegung an Ihrer Schule benötigt: | F8: =IF($F$9=1,Hauptmenue!E9,VLOOKUP($F$9,Hilfstabelle!$D$3:$F$54,3,2)) -> 2024-01-15 | G8: =Hauptmenue!E9 -> 2024-01-01
F9: 3 | G9: Kalenderwoche
A11: Es könnten an diese Stelle auch die Daten der Schule eingetragen werden
A13: Schulart:
A15: gesamte Schülerzahl der Schule: *
A17: An wievielen Tagen pro Woche gibt es ein warmes Mittagessen? *
A19: Wieviele Hauptgerichte gibt es zur Auswahl:
A21: Welches Küchensystem liegt an der Schule vor: (bitte ankreuzen) | D21: Zubereitungsküche | E21: Aufbereitungsküche | F21: Verteilerküche
A24: Nur bei Aufbereitungs- und Verteilerküche: Welches Belieferungssystem liegt vor? | D24: Cook & Chill | E24: Cook & Freeze | F24: Cook & Hold
A27: Abzuführende Umsatzsteuer Mittagsverpflegung: (0%, 7% oder 19%) | D27: 0.19 | E27: Woche: | G27: z. B. Schulwoche, Ferien
A28: Abzuführende Umsatzsteuer Zwischenverpflegung: (0%, 7% oder 19%) | D28: 0.07
D30: Essensteilnehmerzahlen pro Speise
D31: =VLOOKUP(F9,Hilfstabelle!$D$3:$F$54,3,2) -> 43844 | E31: =D31+1 -> 43845 | F31: =E31+1 -> 43846 | G31: =F31+1 -> 43847 | H31: 43848
B32: Eingabe individueller Bezeichnungen möglich | D32: Montag | E32: Dienstag | F32: Mittwoch | G32: Donnerstag | H32: Freitag | I32: Woche gesamt
A33: Hauptspeise 1: | I33: =SUM(D33:H33) -> 0
A34: Hauptspeise 2: | I34: 0
A35: Hauptspeise 3: | I35: 0
A36: Hauptspeise 4: | I36: 0
A37: Hauptspeise 5: | I37: 0
A38: Speise 4: | I38: 0
A39: Speise 5: | I39: 0
A40: Speise 6: | I40: 0
A41: Speise 7: | I41: 0
A42: Speise 8: | I42: 0
A43: Speise 9: | I43: 0
A44: Speise 10: | I44: 0
D47: Bruttopreise | H47: Summe Hauptspeisen/Woche: | I47: =SUM(I33:I37) -> 0
A48: Hauptspeise 1: | B48: =B33 -> 0
A49: Hauptspeise 2: | B49: =B34 -> 0
A50: Hauptspeise 3: | B50: =B35 -> 0
A51: Hauptspeise 4: | B51: 0
A52: Hauptspeise 5: | B52: =B37 -> 0
A53: Speise 4: | B53: =B38 -> 0
A54: Speise 5: | B54: 0
A55: Speise 6: | B55: 0
A56: Speise 7: | B56: 0
A57: Speise 8: | B57: 0
A58: Speise 9: | B58: 0
A59: Speise 10: | B59: 0
D61: Erlössumme Brutto
D62: =D31 -> 43844 | E62: =E31 -> 43845 | F62: 43846 | G62: 43847 | H62: 43848
D63: Montag | E63: Dienstag | F63: Mittwoch | G63: Donnerstag | H63: Freitag | I63: Erlös/Woche
A64: Hauptspeise 1: | B64: =B33 -> 0 | D64: =D33*$D$48 -> 0 | E64: =E33*$D$48 -> 0 | F64: 0 | G64: 0 | H64: 0 | I64: =SUM(D64:H64) -> 0
A65: Hauptspeise 2: | B65: =B34 -> 0 | D65: =D34*$D$49 -> 0 | E65: =E34*$D$49 -> 0 | F65: =F34*$D$49 -> 0 | G65: 0 | H65: 0 | I65: 0
A66: Hauptspeise 3: | B66: 0 | D66: =D35*$D$50 -> 0 | E66: =E35*$D$50 -> 0 | F66: =F35*$D$50 -> 0 | G66: 0 | H66: 0 | I66: 0
A67: Hauptspeise 4: | B67: 0 | D67: =D36*$D$51 -> 0 | E67: =E36*$D$51 -> 0 | F67: =F36*$D$51 -> 0 | G67: 0 | H67: 0 | I67: 0
A68: Hauptspeise 5: | B68: 0 | D68: =D37*$D$52 -> 0 | E68: =E37*$D$52 -> 0 | F68: =F37*$D$52 -> 0 | G68: 0 | H68: 0 | I68: 0
A69: Speise 4: | B69: 0 | D69: =D38*$D$53 -> 0 | E69: =E38*$D$53 -> 0 | F69: =F38*$D$53 -> 0 | G69: 0 | H69: 0 | I69: 0
A70: Speise 5: | B70: 0 | D70: =D39*$D$54 -> 0 | E70: =E39*$D$54 -> 0 | F70: =F39*$D$54 -> 0 | G70: 0 | H70: 0 | I70: 0
A71: Speise 6: | B71: 0 | D71: =D40*$D$55 -> 0 | E71: =E40*$D$55 -> 0 | F71: =F40*$D$55 -> 0 | G71: 0 | H71: 0 | I71: 0
A72: Speise 7: | B72: 0 | D72: =D41*$D$56 -> 0 | E72: =E41*$D$56 -> 0 | F72: =F41*$D$56 -> 0 | G72: 0 | H72: 0 | I72: 0
A73: Speise 8: | B73: 0 | D73: =D42*$D$57 -> 0 | E73: =E42*$D$57 -> 0 | F73: =F42*$D$57 -> 0 | G73: 0 | H73: 0 | I73: 0
A74: Speise 9: | B74: 0 | D74: =D43*$D$58 -> 0 | E74: =E43*$D$58 -> 0 | F74: =F43*$D$58 -> 0 | G74: 0 | H74: 0 | I74: 0
A75: Speise 10: | B75: 0 | D75: =D44*$D$59 -> 0 | E75: =E44*$D$59 -> 0 | F75: =F44*$D$59 -> 0 | G75: 0 | H75: 0 | I75: 0
A76: Brutto-Erlössummen gesamt | D76: =SUM(D64:D75) -> 0 | E76: 0 | F76: 0 | G76: 0 | H76: 0 | I76: 0
A77: Netto-Erlössummen gesamt | D77: =D76*100/(100+(100*$D27)) -> 0 | E77: =E76*100/(100+(100*$D27)) -> 0 | F77: =F76*100/(100+(100*$D27)) -> 0 | G77: =G76*100/(100+(100*$D27)) -> 0 | H77: =H76*100/(100+(100*$D27)) -> 0 | I77: =SUM(D77:H77) -> 0
D80: Montag | E80: Dienstag | F80: Mittwoch | G80: Donnerstag | H80: Freitag | I80: Erlös/Woche
D81: =D31 -> 43844 | E81: =E31 -> 43845 | F81: 43846 | G81: 43847 | H81: 43848
A82: Gesamtbruttotageserlös durch sonstige Verpflegung (Zwischenverpflegung)* | I82: =SUM(D82:H82) -> 0
A83: Nettogesamterlöse | D83: =D82*100/(100+(100*$D28)) -> 0 | E83: =E82*100/(100+(100*$D28)) -> 0 | F83: =F82*100/(100+(100*$D28)) -> 0 | G83: =G82*100/(100+(100*$D28)) -> 0 | H83: =H82*100/(100+(100*$D28)) -> 0 | I83: =SUM(D83:H83) -> 0
A86: Sonstige Nettoerlöse pro Monat | D86: Subventionen pro Monat

Sheet KostenKW03
A1: Kalkulations-Check | F1: =KWMonat(ErlösKW03!F9,Hilfstabelle!F2) -> 1
A2: Kostendaten
A6: =ErlösKW03!F8 -> 2024-01-15 | B6: =ErlösKW03!F9 -> 3
A8: Nun geben Sie bitte die folgenden Kostendaten zur Mittagsverpflegung ein:
A10: Geben Sie einen ungefähren, gerundeten Anteil an, der auf die warme Mittagsverpflegung entfällt, z.B. entfällt 70 % Ihres gesamten Wareneinsatzes auf die Mittagsverpflegung, die restlichen 30% sind dem Bereich Zwischenverpflegung zuzuordnen. Kosten die unabhängig von der Verpflegungform anfallen (z.B. Miete) werden zu 50% aufgeteilt. Falls Sie nur Mittagsverpflegung anbieten, geben Sie als Anteil bei allen Kostenpunkten 100% ein.
E13: Gesamtwert in € | F13: %-Anteil Mittagsverpflegung
A15: Wareneinsatz | C15: Nettowarenwert pro Woche | D15: (alle Speisen und Getränke für eine Woche) | G15: Wareneinkaufspreis abzüglich 7% Umsatzsteuer
G16: (Rechenweg Einkaufspreis * 100 / 107 = Nettowarenwert)
A17: Gemeinkosten | C17: Fixe Kosten pro Woche | D17: Miete / Pacht
D18: Kosten für Müllabfuhr | G18: kann meist in der Schule oder beim Sach-aufwandsträger eingesehen werden
D19: Kosten für Versicherungen (Brand-, Wasserschäden)
D20: Sonstiges
C27: Variable Kosten pro Woche | D27: Reinigungs- und Desinfektionsmittel
D28: Energiekosten | G28: kann meist in der Schule oder beim Sach-aufwandsträger eingesehen werden
D29: Wasser- und Abwasserkosten
D30: Heizungskosten
D31: Kosten für Schädlingsbekämpfung
D32: Kosten für Reinigung der Mensa | G32: kann meist in der Schule oder beim Sach-aufwandsträger eingesehen werden
D33: Verbrauchsgüter (Servietten, Alufolie…)
D34: Ersatzbeschaffungen bis ca. 100 € (Geschirr, kleine Küchengeräte…)
D35: Wäschekosten (Personal-, Küche- und Tischwäsche)
D36: Kosten für Reparatur- und Wartungsarbeiten
D37: Kosten für Schulungs- und Weiterbildungsmaßnahmen
D38: Beiträge (z.B. Berufsgenossenschaft)
D39: Verwaltungskosten ( z.B. für Essensabrechnung, Bürobedarf...)
D46: Sonstige Gemeinkosten
D48: Gesamtgemeinkosten pro Woche | E48: =SUM(E17:E25,E27:E46) -> 0
A50: Personalkosten | C50: gesamte Lohnkosten inklusive Lohnnebenkosten (Sozialabgaben) pro Woche für:
D51: Küchenleiter
D52: Küchenmitarbeiter
D53: Spül- und Putzkräfte
D54: Praktikanten, Azubis…
D55: sonstiges
D57: Gesamtpersonalkosten pro Woche | E57: =SUM(E51:E55) -> 0
D59: Sonstiges
D61: Gesamtkosten pro Schulwoche | E61: =SUM(E15,E48,E57,E59) -> 0

Sheet ErgebnisKW03
A1: Kalkulations-Check | F1: =KWMonat(ErlösKW03!F9,Hilfstabelle!F2) -> 1
A2: Ergebnisausgabe: Daten der aktuellen Kalenderwoche
A6: =ErlösKW03!$F$8 -> 2024-01-15 | B6: =ErlösKW03!$F$9 & " KW" -> 3 KW
B9: Bericht
A11: Gesamtnettoerlös pro Schulwoche | B11: =ErlösKW03!I77+ErlösKW03!I83+ErlösKW03!G86 -> 0
A12: Gesamtkosten pro Schulwoche | B12: =KostenKW03!E61 -> 0
A13: Überschuss / Unterdeckung pro Schulwoche | B13: =B11-B12 -> 0
C16: Bericht
A17: Ergebnisart | B17: Verpflegungsform | C17: pro Woche
A18: Nettoerlös | B18: Mittagsverpflegung | C18: =ErlösKW03!I77 -> 0
B19: Zwischenverpflegung | C19: =ErlösKW03!I83 -> 0
A20: Kosten | B20: Mittagsverpflegung | C20: =KostenKW03!E15*KostenKW03!F15+KostenKW03!E17*KostenKW03!F17+KostenKW03!E18*KostenKW03!F18+KostenKW03!E19*KostenKW03!F19+KostenKW03!E20*KostenKW03!F20+KostenKW03!E27*KostenKW03!F27+KostenKW03!E28*KostenKW03!F28+KostenKW03!E29*KostenKW03!F29+KostenKW03!E30*KostenKW03!F30+KostenKW03!E31*KostenKW03!F31+KostenKW03!E32*KostenKW03!F32+KostenKW03!E33*KostenKW03!F33+KostenKW03!E34*KostenKW03!F34+KostenKW03!E35*KostenKW03!F35+KostenKW03!E36*KostenKW03!F36+KostenKW03!E37*KostenKW03!F37+KostenKW03!E38*KostenKW03!F38+KostenKW03!E39*KostenKW03!F39+KostenKW03!E46*KostenKW03!F46+KostenKW03!E51*KostenKW03!F51+KostenKW03!E52*KostenKW03!F52+KostenKW03!E53*KostenKW03!F53+KostenKW03!E54*KostenKW03!F54+KostenKW03!E55*KostenKW03!F55+KostenKW03!E59*KostenKW03!F59 -> 0
B21: Zwischenverpflegung | C21: =ErgebnisKW03!B12-ErgebnisKW03!C20 -> 0
A22: Überschuss / Unterdeckung | B22: Mittagsverpflegung | C22: =C18-C20 -> 0
B23: Zwischenverpflegung | C23: =C19-C21 -> 0
A25: Kennzahlen (bezogen auf eine Schulwoche)
A26: Ergebnisart | B26: Gesamt | C26: Mittagsverpflegung | D26: Zwischenverpflegung
A27: Erlös | B27: =B11/B11 ->  | C27: =C18/B11 ->  | D27: =C19/B11 -> 
A28: Kosten | B28: =B12/B12 ->  | C28: =C20/B12 ->  | D28: =C21/B12 -> 
A29: Überschuss / Unterdeckung | B29: =B13/B13 ->  | C29: =C22/B13 ->  | D29: =C23/B13 ->  | F29: Richtwerte Kostenverteilung Mittagsverpflegung¹:
A30: Personalkosten | B30: =KostenKW03!E57/ErgebnisKW03!B12 ->  | C30: =(KostenKW03!E51*KostenKW03!F51+KostenKW03!E52*KostenKW03!F52+KostenKW03!E53*KostenKW03!F53+KostenKW03!E54*KostenKW03!F54+KostenKW03!E55*KostenKW03!F55)/ErgebnisKW03!C20 ->  | D30: =(KostenKW03!E57-(KostenKW03!E51*KostenKW03!F51+KostenKW03!E52*KostenKW03!F52+KostenKW03!E53*KostenKW03!F53+KostenKW03!E54*KostenKW03!F54+KostenKW03!E55*KostenKW03!F55))/C21 ->  | G30: Frisch- und Mischküche | H30: Kühlkostsystem | I30: Warmverpflegung
A31: Wareneinsatzkosten | B31: =KostenKW03!E15/ErgebnisKW03!B12 ->  | C31: =(KostenKW03!E15*KostenKW03!F15)/ErgebnisKW03!C20 ->  | D31: =(KostenKW03!E15-(KostenKW03!E15*KostenKW03!F15))/ErgebnisKW03!C21 ->  | F31: Wareneinstandskosten | G31: 0.45 | H31: 55- 57 % | I31: 60 - 63 %
A32: Gemeinkosten | B32: =KostenKW03!E48/ErgebnisKW03!B12 ->  | C32: =(KostenKW03!E17*KostenKW03!F17+KostenKW03!E18*KostenKW03!F18+KostenKW03!E19*KostenKW03!F19+KostenKW03!E20*KostenKW03!F20+KostenKW03!E27*KostenKW03!F27+KostenKW03!E28*KostenKW03!F28+KostenKW03!E29*KostenKW03!F29+KostenKW03!E30*KostenKW03!F30+KostenKW03!E31*KostenKW03!F31+KostenKW03!E32*KostenKW03!F32+KostenKW03!E33*KostenKW03!F33+KostenKW03!E34*KostenKW03!F34+KostenKW03!E35*KostenKW03!F35+KostenKW03!E36*KostenKW03!F36+KostenKW03!E37*KostenKW03!F37+KostenKW03!E38*KostenKW03!F38+KostenKW03!E39*KostenKW03!F39+KostenKW03!E46*KostenKW03!F46)/ErgebnisKW03!C20 ->  | D32: =(KostenKW03!E48-(KostenKW03!E17*KostenKW03!F17+KostenKW03!E18*KostenKW03!F18+KostenKW03!E19*KostenKW03!F19+KostenKW03!E20*KostenKW03!F20+KostenKW03!E27*KostenKW03!F27+KostenKW03!E28*KostenKW03!F28+KostenKW03!E29*KostenKW03!F29+KostenKW03!E30*KostenKW03!F30+KostenKW03!E31*KostenKW03!F31+KostenKW03!E32*KostenKW03!F32+KostenKW03!E33*KostenKW03!F33+KostenKW03!E34*KostenKW03!F34+KostenKW03!E35*KostenKW03!F35+KostenKW03!E36*KostenKW03!F36+KostenKW03!E37*KostenKW03!F37+KostenKW03!E38*KostenKW03!F38+KostenKW03!E39*KostenKW03!F39+KostenKW03!E46*KostenKW03!F46))/ErgebnisKW03!C21 ->  | F32: Personalkosten | G32: 50- 52 % | H32: 40- 42 % | I32: 0.02
A33: Sonstige Kosten | B33: =KostenKW03!E59/ErgebnisKW03!B12 ->  | C33: =(KostenKW03!E59*KostenKW03!F59)/ErgebnisKW03!C20 ->  | D33: =(KostenKW03!E59-(KostenKW03!E59*KostenKW03!F59))/ErgebnisKW03!C21 ->  | F33: Gemeinkosten | G33: 3- 5 % | H33: 0.03 | I33: 35 - 38 %
A35: Akzeptanzquote der Mittagsverpflegung | B35: =ErlösKW03!I47/(ErlösKW03!D15*ErlösKW03!D17) -> 
A37: Grafische Darstellungen (alle bezogen auf eine Woche)
A74: ¹ Arens-Azevêdo, U. und Lichtenberg, W., 2007: Planung kleiner Küchen in Schulen, Kitas und Heimen. hrsg. von AID infodienst, Bonn, S. 33

Sheet ForecastKW03
A1: Kalkulations-Check | F1: =KWMonat(ErlösKW03!F9,Hilfstabelle!F2) -> 1
A2: Hochrechnung
A6: =ErlösKW03!$F$8 -> 2024-01-15 | B6: =ErlösKW03!$F$9 -> 3
B9: Hochrechnung | E9: Hochrechnung
A11: Gesamtnettoerlös pro vollem Schulmonat | B11: =ErgebnisKW03!B11*4.3 -> 0 | D11: Gesamtnettoerlös pro Schuljahr | E11: =ErgebnisKW03!B11*(52-14.5) -> 0
A12: Gesamtkosten pro vollem Schulmonat | B12: =ErgebnisKW03!B12*4.3 -> 0 | D12: Gesamtkosten pro Schuljahr | E12: =ErgebnisKW03!B12*(52-14.5) -> 0
A13: Überschuss / Unterdeckung pro vollem Schulmonat | B13: =B11-B12 -> 0 | D13: Überschuss / Unterdeckung pro Schuljahr | E13: =E11-E12 -> 0
C15: Bericht | D15: Hochrechnung | E15: Hochrechnung
A16: Ergebnisart | B16: Verpflegungsform | C16: pro Woche | D16: pro Monat | E16: pro Jahr
A17: Nettoerlös | B17: Mittagsverpflegung | C17: =ErlösKW03!I77 -> 0 | D17: =ForecastKW03!$C17*4.3 -> 0 | E17: =Tabelle6216[[#This Row],[pro Woche]]*(52-14.5) -> 0
B18: Zwischenverpflegung | C18: =ErlösKW03!I83 -> 0 | D18: =ForecastKW03!$C18*4.3 -> 0 | E18: =E11-E17 -> 0
A19: Kosten | B19: Mittagsverpflegung | C19: =KostenKW03!E15*KostenKW03!F15+KostenKW03!E17*KostenKW03!F17+KostenKW03!E18*KostenKW03!F18+KostenKW03!E19*KostenKW03!F19+KostenKW03!E20*KostenKW03!F20+KostenKW03!E27*KostenKW03!F27+KostenKW03!E28*KostenKW03!F28+KostenKW03!E29*KostenKW03!F29+KostenKW03!E30*KostenKW03!F30+KostenKW03!E31*KostenKW03!F31+KostenKW03!E32*KostenKW03!F32+KostenKW03!E33*KostenKW03!F33+KostenKW03!E34*KostenKW03!F34+KostenKW03!E35*KostenKW03!F35+KostenKW03!E36*KostenKW03!F36+KostenKW03!E37*KostenKW03!F37+KostenKW03!E38*KostenKW03!F38+KostenKW03!E39*KostenKW03!F39+KostenKW03!E46*KostenKW03!F46+KostenKW03!E51*KostenKW03!F51+KostenKW03!E52*KostenKW03!F52+KostenKW03!E53*KostenKW03!F53+KostenKW03!E54*KostenKW03!F54+KostenKW03!E55*KostenKW03!F55+KostenKW03!E59*KostenKW03!F59 -> 0 | D19: =ForecastKW03!$C19*4.3 -> 0 | E19: =Tabelle6216[[#This Row],[pro Woche]]*(52-14.5) -> 0
B20: Zwischenverpflegung | C20: =ErgebnisKW03!B12-ForecastKW03!C19 -> 0 | D20: =ForecastKW03!$C20*4.3 -> 0 | E20: =E12-E19 -> 0
A21: Überschuss / Unterdeckung | B21: Mittagsverpflegung | C21: =C17-C19 -> 0 | D21: =ForecastKW03!$C21*4.3 -> 0 | E21: =E17-E19 -> 0
B22: Zwischenverpflegung | C22: =C18-C20 -> 0 | D22: =ForecastKW03!$C22*4.3 -> 0 | E22: =E18-E20 -> 0

Sheet ErlösKW04
A1: Kalkulations-Check | F1: =KWMonat(F9,Hilfstabelle!F2) -> 1 | G1: =KWMonat(F9,Hilfstabelle!F2) -> 1
A2: Rahmen- und Erlösdaten
A6: =F8 -> 2024-01-22 | B6: =F9 -> 4
A8: Zunächst werden einige Basisdaten zur Mittagsverpflegung an Ihrer Schule benötigt: | F8: =IF($F$9=1,Hauptmenue!E9,VLOOKUP($F$9,Hilfstabelle!$D$3:$F$54,3,2)) -> 2024-01-22 | G8: =Hauptmenue!E9 -> 2024-01-01
F9: 4 | G9: Kalenderwoche
A11: Es könnten an diese Stelle auch die Daten der Schule eingetragen werden
A13: Schulart:
A15: gesamte Schülerzahl der Schule: *
A17: An wievielen Tagen pro Woche gibt es ein warmes Mittagessen? *
A19: Wieviele Hauptgerichte gibt es zur Auswahl:
A21: Welches Küchensystem liegt an der Schule vor: (bitte ankreuzen) | D21: Zubereitungsküche | E21: Aufbereitungsküche | F21: Verteilerküche
A24: Nur bei Aufbereitungs- und Verteilerküche: Welches Belieferungssystem liegt vor? | D24: Cook & Chill | E24: Cook & Freeze | F24: Cook & Hold
A27: Abzuführende Umsatzsteuer Mittagsverpflegung: (0%, 7% oder 19%) | D27: 0.19 | E27: Woche: | G27: z. B. Schulwoche, Ferien
A28: Abzuführende Umsatzsteuer Zwischenverpflegung: (0%, 7% oder 19%) | D28: 0.07
D30: Essensteilnehmerzahlen pro Speise
D31: =VLOOKUP(F9,Hilfstabelle!$D$3:$F$54,3,2) -> 43851 | E31: =D31+1 -> 43852 | F31: =E31+1 -> 43853 | G31: =F31+1 -> 43854 | H31: 43855
B32: Eingabe individueller Bezeichnungen möglich | D32: Montag | E32: Dienstag | F32: Mittwoch | G32: Donnerstag | H32: Freitag | I32: Woche gesamt
A33: Hauptspeise 1: | I33: =SUM(D33:H33) -> 0
A34: Hauptspeise 2: | I34: 0
A35: Hauptspeise 3: | I35: 0
A36: Hauptspeise 4: | I36: 0
A37: Hauptspeise 5: | I37: 0
A38: Speise 4: | I38: 0
A39: Speise 5: | I39: 0
A40: Speise 6: | I40: 0
A41: Speise 7: | I41: 0
A42: Speise 8: | I42: 0
A43: Speise 9: | I43: 0
A44: Speise 10: | I44: 0
D47: Bruttopreise | H47: Summe Hauptspeisen/Woche: | I47: =SUM(I33:I37) -> 0
A48: Hauptspeise 1: | B48: =B33 -> 0
A49: Hauptspeise 2: | B49: =B34 -> 0
A50: Hauptspeise 3: | B50: =B35 -> 0
A51: Hauptspeise 4: | B51: 0
A52: Hauptspeise 5: | B52: =B37 -> 0
A53: Speise 4: | B53: =B38 -> 0
A54: Speise 5: | B54: 0
A55: Speise 6: | B55: 0
A56: Speise 7: | B56: 0
A57: Speise 8: | B57: 0
A58: Speise 9: | B58: 0
A59: Speise 10: | B59: 0
D61: Erlössumme Brutto
D62: =D31 -> 43851 | E62: =E31 -> 43852 | F62: 43853 | G62: 43854 | H62: 43855
D63: Montag | E63: Dienstag | F63: Mittwoch | G63: Donnerstag | H63: Freitag | I63: Erlös/Woche
A64: Hauptspeise 1: | B64: =B33 -> 0 | D64: =D33*$D$48 -> 0 | E64: =E33*$D$48 -> 0 | F64: 0 | G64: 0 | H64: 0 | I64: =SUM(D64:H64) -> 0
A65: Hauptspeise 2: | B65: =B34 -> 0 | D65: =D34*$D$49 -> 0 | E65: =E34*$D$49 -> 0 | F65: =F34*$D$49 -> 0 | G65: 0 | H65: 0 | I65: 0
A66: Hauptspeise 3: | B66: 0 | D66: =D35*$D$50 -> 0 | E66: =E35*$D$50 -> 0 | F66: =F35*$D$50 -> 0 | G66: 0 | H66: 0 | I66: 0
A67: Hauptspeise 4: | B67: 0 | D67: =D36*$D$51 -> 0 | E67: =E36*$D$51 -> 0 | F67: =F36*$D$51 -> 0 | G67: 0 | H67: 0 | I67: 0
A68: Hauptspeise 5: | B68: 0 | D68: =D37*$D$52 -> 0 | E68: =E37*$D$52 -> 0 | F68: =F37*$D$52 -> 0 | G68: 0 | H68: 0 | I68: 0
A69: Speise 4: | B69: 0 | D69: =D38*$D$53 -> 0 | E69: =E38*$D$53 -> 0 | F69: =F38*$D$53 -> 0 | G69: 0 | H69: 0 | I69: 0
A70: Speise 5: | B70: 0 | D70: =D39*$D$54 -> 0 | E70: =E39*$D$54 -> 0 | F70: =F39*$D$54 -> 0 | G70: 0 | H70: 0 | I70: 0
A71: Speise 6: | B71: 0 | D71: =D40*$D$55 -> 0 | E71: =E40*$D$55 -> 0 | F71: =F40*$D$55 -> 0 | G71: 0 | H71: 0 | I71: 0
A72: Speise 7: | B72: 0 | D72: =D41*$D$56 -> 0 | E72: =E41*$D$56 -> 0 | F72: =F41*$D$56 -> 0 | G72: 0 | H72: 0 | I72: 0
A73: Speise 8: | B73: 0 | D73: =D42*$D$57 -> 0 | E73: =E42*$D$57 -> 0 | F73: =F42*$D$57 -> 0 | G73: 0 | H73: 0 | I73: 0
A74: Speise 9: | B74: 0 | D74: =D43*$D$58 -> 0 | E74: =E43*$D$58 -> 0 | F74: =F43*$D$58 -> 0 | G74: 0 | H74: 0 | I74: 0
A75: Speise 10: | B75: 0 | D75: =D44*$D$59 -> 0 | E75: =E44*$D$59 -> 0 | F75: =F44*$D$59 -> 0 | G75: 0 | H75: 0 | I75: 0
A76: Brutto-Erlössummen gesamt | D76: =SUM(D64:D75) -> 0 | E76: 0 | F76: 0 | G76: 0 | H76: 0 | I76: 0
A77: Netto-Erlössummen gesamt | D77: =D76*100/(100+(100*$D27)) -> 0 | E77: =E76*100/(100+(100*$D27)) -> 0 | F77: =F76*100/(100+(100*$D27)) -> 0 | G77: =G76*100/(100+(100*$D27)) -> 0 | H77: =H76*100/(100+(100*$D27)) -> 0 | I77: =SUM(D77:H77) -> 0
D80: Montag | E80: Dienstag | F80: Mittwoch | G80: Donnerstag | H80: Freitag | I80: Erlös/Woche
D81: =D31 -> 43851 | E81: =E31 -> 43852 | F81: 43853 | G81: 43854 | H81: 43855
A82: Gesamtbruttotageserlös durch sonstige Verpflegung (Zwischenverpflegung)* | I82: =SUM(D82:H82) -> 0
A83: Nettogesamterlöse | D83: =D82*100/(100+(100*$D28)) -> 0 | E83: =E82*100/(100+(100*$D28)) -> 0 | F83: =F82*100/(100+(100*$D28)) -> 0 | G83: =G82*100/(100+(100*$D28)) -> 0 | H83: =H82*100/(100+(100*$D28)) -> 0 | I83: =SUM(D83:H83) -> 0
A86: Sonstige Nettoerlöse pro Monat | D86: Subventionen pro Monat

Sheet KostenKW04
A1: Kalkulations-Check | F1: =KWMonat(ErlösKW04!F9,Hilfstabelle!F2) -> 1
A2: Kostendaten
A6: =ErlösKW04!F8 -> 2024-01-22 | B6: =ErlösKW04!F9 -> 4
A8: Nun geben Sie bitte die folgenden Kostendaten zur Mittagsverpflegung ein:
A10: Geben Sie einen ungefähren, gerundeten Anteil an, der auf die warme Mittagsverpflegung entfällt, z.B. entfällt 70 % Ihres gesamten Wareneinsatzes auf die Mittagsverpflegung, die restlichen 30% sind dem Bereich Zwischenverpflegung zuzuordnen. Kosten die unabhängig von der Verpflegungform anfallen (z.B. Miete) werden zu 50% aufgeteilt. Falls Sie nur Mittagsverpflegung anbieten, geben Sie als Anteil bei allen Kostenpunkten 100% ein.
E13: Gesamtwert in € | F13: %-Anteil Mittagsverpflegung
A15: Wareneinsatz | C15: Nettowarenwert pro Woche | D15: (alle Speisen und Getränke für eine Woche) | G15: Wareneinkaufspreis abzüglich 7% Umsatzsteuer
G16: (Rechenweg Einkaufspreis * 100 / 107 = Nettowarenwert)
A17: Gemeinkosten | C17: Fixe Kosten pro Woche | D17: Miete / Pacht
D18: Kosten für Müllabfuhr | G18: kann meist in der Schule oder beim Sach-aufwandsträger eingesehen werden
D19: Kosten für Versicherungen (Brand-, Wasserschäden)
D20: Sonstiges
C27: Variable Kosten pro Woche | D27: Reinigungs- und Desinfektionsmittel
D28: Energiekosten | G28: kann meist in der Schule oder beim Sach-aufwandsträger eingesehen werden
D29: Wasser- und Abwasserkosten
D30: Heizungskosten
D31: Kosten für Schädlingsbekämpfung
D32: Kosten für Reinigung der Mensa | G32: kann meist in der Schule oder beim Sach-aufwandsträger eingesehen werden
D33: Verbrauchsgüter (Servietten, Alufolie…)
D34: Ersatzbeschaffungen bis ca. 100 € (Geschirr, kleine Küchengeräte…)
D35: Wäschekosten (Personal-, Küche- und Tischwäsche)
D36: Kosten für Reparatur- und Wartungsarbeiten
D37: Kosten für Schulungs- und Weiterbildungsmaßnahmen
D38: Beiträge (z.B. Berufsgenossenschaft)
D39: Verwaltungskosten ( z.B. für Essensabrechnung, Bürobedarf...)
D46: Sonstige Gemeinkosten
D48: Gesamtgemeinkosten pro Woche | E48: =SUM(E17:E25,E27:E46) -> 0
A50: Personalkosten | C50: gesamte Lohnkosten inklusive Lohnnebenkosten (Sozialabgaben) pro Woche für:
D51: Küchenleiter
D52: Küchenmitarbeiter
D53: Spül- und Putzkräfte
D54: Praktikanten, Azubis…
D55: sonstiges
D57: Gesamtpersonalkosten pro Woche | E57: =SUM(E51:E55) -> 0
D59: Sonstiges
D61: Gesamtkosten pro Schulwoche | E61: =SUM(E15,E48,E57,E59) -> 0

Sheet ErgebnisKW04
A1: Kalkulations-Check | F1: =KWMonat(ErlösKW04!F9,Hilfstabelle!F2) -> 1
A2: Ergebnisausgabe: Daten der aktuellen Kalenderwoche
A6: =ErlösKW04!$F$8 -> 2024-01-22 | B6: =ErlösKW04!$F$9 & " KW" -> 4 KW
B9: Bericht
A11: Gesamtnettoerlös pro Schulwoche | B11: =ErlösKW04!I77+ErlösKW04!I83+ErlösKW04!G86 -> 0
A12: Gesamtkosten pro Schulwoche | B12: =KostenKW04!E61 -> 0
A13: Überschuss / Unterdeckung pro Schulwoche | B13: =B11-B12 -> 0
C16: Bericht
A17: Ergebnisart | B17: Verpflegungsform | C17: pro Woche
A18: Nettoerlös | B18: Mittagsverpflegung | C18: =ErlösKW04!I77 -> 0
B19: Zwischenverpflegung | C19: =ErlösKW04!I83 -> 0
A20: Kosten | B20: Mittagsverpflegung | C20: =KostenKW04!E15*KostenKW04!F15+KostenKW04!E17*KostenKW04!F17+KostenKW04!E18*KostenKW04!F18+KostenKW04!E19*KostenKW04!F19+KostenKW04!E20*KostenKW04!F20+KostenKW04!E27*KostenKW04!F27+KostenKW04!E28*KostenKW04!F28+KostenKW04!E29*KostenKW04!F29+KostenKW04!E30*KostenKW04!F30+KostenKW04!E31*KostenKW04!F31+KostenKW04!E32*KostenKW04!F32+KostenKW04!E33*KostenKW04!F33+KostenKW04!E34*KostenKW04!F34+KostenKW04!E35*KostenKW04!F35+KostenKW04!E36*KostenKW04!F36+KostenKW04!E37*KostenKW04!F37+KostenKW04!E38*KostenKW04!F38+KostenKW04!E39*KostenKW04!F39+KostenKW04!E46*KostenKW04!F46+KostenKW04!E51*KostenKW04!F51+KostenKW04!E52*KostenKW04!F52+KostenKW04!E53*KostenKW04!F53+KostenKW04!E54*KostenKW04!F54+KostenKW04!E55*KostenKW04!F55+KostenKW04!E59*KostenKW04!F59 -> 0
B21: Zwischenverpflegung | C21: =ErgebnisKW04!B12-ErgebnisKW04!C20 -> 0
A22: Überschuss / Unterdeckung | B22: Mittagsverpflegung | C22: =C18-C20 -> 0
B23: Zwischenverpflegung | C23: =C19-C21 -> 0
A25: Kennzahlen (bezogen auf eine Schulwoche)
A26: Ergebnisart | B26: Gesamt | C26: Mittagsverpflegung | D26: Zwischenverpflegung
A27: Erlös | B27: =B11/B11 ->  | C27: =C18/B11 ->  | D27: =C19/B11 -> 
A28: Kosten | B28: =B12/B12 ->  | C28: =C20/B12 ->  | D28: =C21/B12 -> 
A29: Überschuss / Unterdeckung | B29: =B13/B13 ->  | C29: =C22/B13 ->  | D29: =C23/B13 ->  | F29: Richtwerte Kostenverteilung Mittagsverpflegung¹:
A30: Personalkosten | B30: =KostenKW04!E57/ErgebnisKW04!B12 ->  | C30: =(KostenKW04!E51*KostenKW04!F51+KostenKW04!E52*KostenKW04!F52+KostenKW04!E53*KostenKW04!F53+KostenKW04!E54*KostenKW04!F54+KostenKW04!E55*KostenKW04!F55)/ErgebnisKW04!C20 ->  | D30: =(KostenKW04!E57-(KostenKW04!E51*KostenKW04!F51+KostenKW04!E52*KostenKW04!F52+KostenKW04!E53*KostenKW04!F53+KostenKW04!E54*KostenKW04!F54+KostenKW04!E55*KostenKW04!F55))/C21 ->  | G30: Frisch- und Mischküche | H30: Kühlkostsystem | I30: Warmverpflegung
A31: Wareneinsatzkosten | B31: =KostenKW04!E15/ErgebnisKW04!B12 ->  | C31: =(KostenKW04!E15*KostenKW04!F15)/ErgebnisKW04!C20 ->  | D31: =(KostenKW04!E15-(KostenKW04!E15*KostenKW04!F15))/ErgebnisKW04!C21 ->  | F31: Wareneinstandskosten | G31: 0.45 | H31: 55- 57 % | I31: 60 - 63 %
A32: Gemeinkosten | B32: =KostenKW04!E48/ErgebnisKW04!B12 ->  | C32: =(KostenKW04!E17*KostenKW04!F17+KostenKW04!E18*KostenKW04!F18+KostenKW04!E19*KostenKW04!F19+KostenKW04!E20*KostenKW04!F20+KostenKW04!E27*KostenKW04!F27+KostenKW04!E28*KostenKW04!F28+KostenKW04!E29*KostenKW04!F29+KostenKW04!E30*KostenKW04!F30+KostenKW04!E31*KostenKW04!F31+KostenKW04!E32*KostenKW04!F32+KostenKW04!E33*KostenKW04!F33+KostenKW04!E34*KostenKW04!F34+KostenKW04!E35*KostenKW04!F35+KostenKW04!E36*KostenKW04!F36+KostenKW04!E37*KostenKW04!F37+KostenKW04!E38*KostenKW04!F38+KostenKW04!E39*KostenKW04!F39+KostenKW04!E46*KostenKW04!F46)/ErgebnisKW04!C20 ->  | D32: =(KostenKW04!E48-(KostenKW04!E17*KostenKW04!F17+KostenKW04!E18*KostenKW04!F18+KostenKW04!E19*KostenKW04!F19+KostenKW04!E20*KostenKW04!F20+KostenKW04!E27*KostenKW04!F27+KostenKW04!E28*KostenKW04!F28+KostenKW04!E29*KostenKW04!F29+KostenKW04!E30*KostenKW04!F30+KostenKW04!E31*KostenKW04!F31+KostenKW04!E32*KostenKW04!F32+KostenKW04!E33*KostenKW04!F33+KostenKW04!E34*KostenKW04!F34+KostenKW04!E35*KostenKW04!F35+KostenKW04!E36*KostenKW04!F36+KostenKW04!E37*KostenKW04!F37+KostenKW04!E38*KostenKW04!F38+KostenKW04!E39*KostenKW04!F39+KostenKW04!E46*KostenKW04!F46))/ErgebnisKW04!C21 ->  | F32: Personalkosten | G32: 50- 52 % | H32: 40- 42 % | I32: 0.02
A33: Sonstige Kosten | B33: =KostenKW04!E59/ErgebnisKW04!B12 ->  | C33: =(KostenKW04!E59*KostenKW04!F59)/ErgebnisKW04!C20 ->  | D33: =(KostenKW04!E59-(KostenKW04!E59*KostenKW04!F59))/ErgebnisKW04!C21 ->  | F33: Gemeinkosten | G33: 3- 5 % | H33: 0.03 | I33: 35 - 38 %
A35: Akzeptanzquote der Mittagsverpflegung | B35: =ErlösKW04!I47/(ErlösKW04!D15*ErlösKW04!D17) -> 
A37: Grafische Darstellungen (alle bezogen auf eine Woche)
A74: ¹ Arens-Azevêdo, U. und Lichtenberg, W., 2007: Planung kleiner Küchen in Schulen, Kitas und Heimen. hrsg. von AID infodienst, Bonn, S. 33

Sheet ForecastKW04
A1: Kalkulations-Check | F1: =KWMonat(ErlösKW04!F9,Hilfstabelle!F2) -> 1
A2: Hochrechnung
A6: =ErlösKW04!$F$8 -> 2024-01-22 | B6: =ErlösKW04!$F$9 -> 4
B9: Hochrechnung | E9: Hochrechnung
A11: Gesamtnettoerlös pro vollem Schulmonat | B11: =ErgebnisKW04!B11*4.3 -> 0 | D11: Gesamtnettoerlös pro Schuljahr | E11: =ErgebnisKW04!B11*(52-14.5) -> 0
A12: Gesamtkosten pro vollem Schulmonat | B12: =ErgebnisKW04!B12*4.3 -> 0 | D12: Gesamtkosten pro Schuljahr | E12: =ErgebnisKW04!B12*(52-14.5) -> 0
A13: Überschuss / Unterdeckung pro vollem Schulmonat | B13: =B11-B12 -> 0 | D13: Überschuss / Unterdeckung pro Schuljahr | E13: =E11-E12 -> 0
C15: Bericht | D15: Hochrechnung | E15: Hochrechnung
A16: Ergebnisart | B16: Verpflegungsform | C16: pro Woche | D16: pro Monat | E16: pro Jahr
A17: Nettoerlös | B17: Mittagsverpflegung | C17: =ErlösKW04!I77 -> 0 | D17: =ForecastKW04!$C17*4.3 -> 0 | E17: =Tabelle6221[[#This Row],[pro Woche]]*(52-14.5) -> 0
B18: Zwischenverpflegung | C18: =ErlösKW04!I83 -> 0 | D18: =ForecastKW04!$C18*4.3 -> 0 | E18: =E11-E17 -> 0
A19: Kosten | B19: Mittagsverpflegung | C19: =KostenKW04!E15*KostenKW04!F15+KostenKW04!E17*KostenKW04!F17+KostenKW04!E18*KostenKW04!F18+KostenKW04!E19*KostenKW04!F19+KostenKW04!E20*KostenKW04!F20+KostenKW04!E27*KostenKW04!F27+KostenKW04!E28*KostenKW04!F28+KostenKW04!E29*KostenKW04!F29+KostenKW04!E30*KostenKW04!F30+KostenKW04!E31*KostenKW04!F31+KostenKW04!E32*KostenKW04!F32+KostenKW04!E33*KostenKW04!F33+KostenKW04!E34*KostenKW04!F34+KostenKW04!E35*KostenKW04!F35+KostenKW04!E36*KostenKW04!F36+KostenKW04!E37*KostenKW04!F37+KostenKW04!E38*KostenKW04!F38+KostenKW04!E39*KostenKW04!F39+KostenKW04!E46*KostenKW04!F46+KostenKW04!E51*KostenKW04!F51+KostenKW04!E52*KostenKW04!F52+KostenKW04!E53*KostenKW04!F53+KostenKW04!E54*KostenKW04!F54+KostenKW04!E55*KostenKW04!F55+KostenKW04!E59*KostenKW04!F59 -> 0 | D19: =ForecastKW04!$C19*4.3 -> 0 | E19: =Tabelle6221[[#This Row],[pro Woche]]*(52-14.5) -> 0
B20: Zwischenverpflegung | C20: =ErgebnisKW04!B12-ForecastKW04!C19 -> 0 | D20: =ForecastKW04!$C20*4.3 -> 0 | E20: =E12-E19 -> 0
A21: Überschuss / Unterdeckung | B21: Mittagsverpflegung | C21: =C17-C19 -> 0 | D21: =ForecastKW04!$C21*4.3 -> 0 | E21: =E17-E19 -> 0
B22: Zwischenverpflegung | C22: =C18-C20 -> 0 | D22: =ForecastKW04!$C22*4.3 -> 0 | E22: =E18-E20 -> 0

Sheet ErlösKW05
A1: Kalkulations-Check | F1: =KWMonat(F9,Hilfstabelle!F2) -> 1 | G1: =KWMonat(F9,Hilfstabelle!F2) -> 1
A2: Rahmen- und Erlösdaten
A6: =F8 -> 2024-01-29 | B6: =F9 -> 5
A8: Zunächst werden einige Basisdaten zur Mittagsverpflegung an Ihrer Schule benötigt: | F8: =IF($F$9=1,Hauptmenue!E9,VLOOKUP($F$9,Hilfstabelle!$D$3:$F$54,3,2)) -> 2024-01-29 | G8: =Hauptmenue!E9 -> 2024-01-01
F9: 5 | G9: Kalenderwoche
A11: Es könnten an diese Stelle auch die Daten der Schule eingetragen werden
A13: Schulart:
A15: gesamte Schülerzahl der Schule: *
A17: An wievielen Tagen pro Woche gibt es ein warmes Mittagessen? *
A19: Wieviele Hauptgerichte gibt es zur Auswahl:
A21: Welches Küchensystem liegt an der Schule vor: (bitte ankreuzen) | D21: Zubereitungsküche | E21: Aufbereitungsküche | F21: Verteilerküche
A24: Nur bei Aufbereitungs- und Verteilerküche: Welches Belieferungssystem liegt vor? | D24: Cook & Chill | E24: Cook & Freeze | F24: Cook & Hold
A27: Abzuführende Umsatzsteuer Mittagsverpflegung: (0%, 7% oder 19%) | D27: 0.19 | E27: Woche: | G27: z. B. Schulwoche, Ferien
A28: Abzuführende Umsatzsteuer Zwischenverpflegung: (0%, 7% oder 19%) | D28: 0.07
D30: Essensteilnehmerzahlen pro Speise
D31: =VLOOKUP(F9,Hilfstabelle!$D$3:$F$54,3,2) -> 43858 | E31: =D31+1 -> 43859 | F31: =E31+1 -> 43860 | G31: =F31+1 -> 43861 | H31: 43862
B32: Eingabe individueller Bezeichnungen möglich | D32: Montag | E32: Dienstag | F32: Mittwoch | G32: Donnerstag | H32: Freitag | I32: Woche gesamt
A33: Hauptspeise 1: | I33: =SUM(D33:H33) -> 0
A34: Hauptspeise 2: | I34: 0
A35: Hauptspeise 3: | I35: 0
A36: Hauptspeise 4: | I36: 0
A37: Hauptspeise 5: | I37: 0
A38: Speise 4: | I38: 0
A39: Speise 5: | I39: 0
A40: Speise 6: | I40: 0
A41: Speise 7: | I41: 0
A42: Speise 8: | I42: 0
A43: Speise 9: | I43: 0
A44: Speise 10: | I44: 0
D47: Bruttopreise | H47: Summe Hauptspeisen/Woche: | I47: =SUM(I33:I37) -> 0
A48: Hauptspeise 1: | B48: =B33 -> 0
A49: Hauptspeise 2: | B49: =B34 -> 0
A50: Hauptspeise 3: | B50: =B35 -> 0
A51: Hauptspeise 4: | B51: 0
A52: Hauptspeise 5: | B52: =B37 -> 0
A53: Speise 4: | B53: =B38 -> 0
A54: Speise 5: | B54: 0
A55: Speise 6: | B55: 0
A56: Speise 7: | B56: 0
A57: Speise 8: | B57: 0
A58: Speise 9: | B58: 0
A59: Speise 10: | B59: 0
D61: Erlössumme Brutto
D62: =D31 -> 43858 | E62: =E31 -> 43859 | F62: 43860 | G62: 43861 | H62: 43862
D63: Montag | E63: Dienstag | F63: Mittwoch | G63: Donnerstag | H63: Freitag | I63: Erlös/Woche
A64: Hauptspeise 1: | B64: =B33 -> 0 | D64: =D33*$D$48 -> 0 | E64: =E33*$D$48 -> 0 | F64: 0 | G64: 0 | H64: 0 | I64: =SUM(D64:H64) -> 0
A65: Hauptspeise 2: | B65: =B34 -> 0 | D65: =D34*$D$49 -> 0 | E65: =E34*$D$49 -> 0 | F65: =F34*$D$49 -> 0 | G65: 0 | H65: 0 | I65: 0
A66: Hauptspeise 3: | B66: 0 | D66: =D35*$D$50 -> 0 | E66: =E35*$D$50 -> 0 | F66: =F35*$D$50 -> 0 | G66: 0 | H66: 0 | I66: 0
A67: Hauptspeise 4: | B67: 0 | D67: =D36*$D$51 -> 0 | E67: =E36*$D$51 -> 0 | F67: =F36*$D$51 -> 0 | G67: 0 | H67: 0 | I67: 0
A68: Hauptspeise 5: | B68: 0 | D68: =D37*$D$52 -> 0 | E68: =E37*$D$52 -> 0 | F68: =F37*$D$52 -> 0 | G68: 0 | H68: 0 | I68: 0
A69: Speise 4: | B69: 0 | D69: =D38*$D$53 -> 0 | E69: =E38*$D$53 -> 0 | F69: =F38*$D$53 -> 0 | G69: 0 | H69: 0 | I69: 0
A70: Speise 5: | B70: 0 | D70: =D39*$D$54 -> 0 | E70: =E39*$D$54 -> 0 | F70: =F39*$D$54 -> 0 | G70: 0 | H70: 0 | I70: 0
A71: Speise 6: | B71: 0 | D71: =D40*$D$55 -> 0 | E71: =E40*$D$55 -> 0 | F71: =F40*$D$55 -> 0 | G71: 0 | H71: 0 | I71: 0
A72: Speise 7: | B72: 0 | D72: =D41*$D$56 -> 0 | E72: =E41*$D$56 -> 0 | F72: =F41*$D$56 -> 0 | G72: 0 | H72: 0 | I72: 0
A73: Speise 8: | B73: 0 | D73: =D42*$D$57 -> 0 | E73: =E42*$D$57 -> 0 | F73: =F42*$D$57 -> 0 | G73: 0 | H73: 0 | I73: 0
A74: Speise 9: | B74: 0 | D74: =D43*$D$58 -> 0 | E74: =E43*$D$58 -> 0 | F74: =F43*$D$58 -> 0 | G74: 0 | H74: 0 | I74: 0
A75: Speise 10: | B75: 0 | D75: =D44*$D$59 -> 0 | E75: =E44*$D$59 -> 0 | F75: =F44*$D$59 -> 0 | G75: 0 | H75: 0 | I75: 0
A76: Brutto-Erlössummen gesamt | D76: =SUM(D64:D75) -> 0 | E76: 0 | F76: 0 | G76: 0 | H76: 0 | I76: 0
A77: Netto-Erlössummen gesamt | D77: =D76*100/(100+(100*$D27)) -> 0 | E77: =E76*100/(100+(100*$D27)) -> 0 | F77: =F76*100/(100+(100*$D27)) -> 0 | G77: =G76*100/(100+(100*$D27)) -> 0 | H77: =H76*100/(100+(100*$D27)) -> 0 | I77: =SUM(D77:H77) -> 0
D80: Montag | E80: Dienstag | F80: Mittwoch | G80: Donnerstag | H80: Freitag | I80: Erlös/Woche
D81: =D31 -> 43858 | E81: =E31 -> 43859 | F81: 43860 | G81: 43861 | H81: 43862
A82: Gesamtbruttotageserlös durch sonstige Verpflegung (Zwischenverpflegung)* | I82: =SUM(D82:H82) -> 0
A83: Nettogesamterlöse | D83: =D82*100/(100+(100*$D28)) -> 0 | E83: =E82*100/(100+(100*$D28)) -> 0 | F83: =F82*100/(100+(100*$D28)) -> 0 | G83: =G82*100/(100+(100*$D28)) -> 0 | H83: =H82*100/(100+(100*$D28)) -> 0 | I83: =SUM(D83:H83) -> 0
A86: Sonstige Nettoerlöse pro Monat | D86: Subventionen pro Monat

Sheet KostenKW05
A1: Kalkulations-Check | F1: =KWMonat(ErlösKW05!F9,Hilfstabelle!F2) -> 1
A2: Kostendaten
A6: =ErlösKW05!F8 -> 2024-01-29 | B6: =ErlösKW05!F9 -> 5
A8: Nun geben Sie bitte die folgenden Kostendaten zur Mittagsverpflegung ein:
A10: Geben Sie einen ungefähren, gerundeten Anteil an, der auf die warme Mittagsverpflegung entfällt, z.B. entfällt 70 % Ihres gesamten Wareneinsatzes auf die Mittagsverpflegung, die restlichen 30% sind dem Bereich Zwischenverpflegung zuzuordnen. Kosten die unabhängig von der Verpflegungform anfallen (z.B. Miete) werden zu 50% aufgeteilt. Falls Sie nur Mittagsverpflegung anbieten, geben Sie als Anteil bei allen Kostenpunkten 100% ein.
E13: Gesamtwert in € | F13: %-Anteil Mittagsverpflegung
A15: Wareneinsatz | C15: Nettowarenwert pro Woche | D15: (alle Speisen und Getränke für eine Woche) | G15: Wareneinkaufspreis abzüglich 7% Umsatzsteuer
G16: (Rechenweg Einkaufspreis * 100 / 107 = Nettowarenwert)
A17: Gemeinkosten | C17: Fixe Kosten pro Woche | D17: Miete / Pacht
D18: Kosten für Müllabfuhr | G18: kann meist in der Schule oder beim Sach-aufwandsträger eingesehen werden
D19: Kosten für Versicherungen (Brand-, Wasserschäden)
D20: Sonstiges
C27: Variable Kosten pro Woche | D27: Reinigungs- und Desinfektionsmittel
D28: Energiekosten | G28: kann meist in der Schule oder beim Sach-aufwandsträger eingesehen werden
D29: Wasser- und Abwasserkosten
D30: Heizungskosten
D31: Kosten für Schädlingsbekämpfung
D32: Kosten für Reinigung der Mensa | G32: kann meist in der Schule oder beim Sach-aufwandsträger eingesehen werden
D33: Verbrauchsgüter (Servietten, Alufolie…)
D34: Ersatzbeschaffungen bis ca. 100 € (Geschirr, kleine Küchengeräte…)
D35: Wäschekosten (Personal-, Küche- und Tischwäsche)
D36: Kosten für Reparatur- und Wartungsarbeiten
D37: Kosten für Schulungs- und Weiterbildungsmaßnahmen
D38: Beiträge (z.B. Berufsgenossenschaft)
D39: Verwaltungskosten ( z.B. für Essensabrechnung, Bürobedarf...)
D46: Sonstige Gemeinkosten
D48: Gesamtgemeinkosten pro Woche | E48: =SUM(E17:E25,E27:E46) -> 0
A50: Personalkosten | C50: gesamte Lohnkosten inklusive Lohnnebenkosten (Sozialabgaben) pro Woche für:
D51: Küchenleiter
D52: Küchenmitarbeiter
D53: Spül- und Putzkräfte
D54: Praktikanten, Azubis…
D55: sonstiges
D57: Gesamtpersonalkosten pro Woche | E57: =SUM(E51:E55) -> 0
D59: Sonstiges
D61: Gesamtkosten pro Schulwoche | E61: =SUM(E15,E48,E57,E59) -> 0

Sheet ErgebnisKW05
A1: Kalkulations-Check | F1: =KWMonat(ErlösKW05!F9,Hilfstabelle!F2) -> 1
A2: Ergebnisausgabe: Daten der aktuellen Kalenderwoche
A6: =ErlösKW05!$F$8 -> 2024-01-29 | B6: =ErlösKW05!$F$9 & " KW" -> 5 KW
B9: Bericht
A11: Gesamtnettoerlös pro Schulwoche | B11: =ErlösKW05!I77+ErlösKW05!I83+ErlösKW05!G86 -> 0
A12: Gesamtkosten pro Schulwoche | B12: =KostenKW05!E61 -> 0
A13: Überschuss / Unterdeckung pro Schulwoche | B13: =B11-B12 -> 0
C16: Bericht
A17: Ergebnisart | B17: Verpflegungsform | C17: pro Woche
A18: Nettoerlös | B18: Mittagsverpflegung | C18: =ErlösKW05!I77 -> 0
B19: Zwischenverpflegung | C19: =ErlösKW05!I83 -> 0
A20: Kosten | B20: Mittagsverpflegung | C20: =KostenKW05!E15*KostenKW05!F15+KostenKW05!E17*KostenKW05!F17+KostenKW05!E18*KostenKW05!F18+KostenKW05!E19*KostenKW05!F19+KostenKW05!E20*KostenKW05!F20+KostenKW05!E27*KostenKW05!F27+KostenKW05!E28*KostenKW05!F28+KostenKW05!E29*KostenKW05!F29+KostenKW05!E30*KostenKW05!F30+KostenKW05!E31*KostenKW05!F31+KostenKW05!E32*KostenKW05!F32+KostenKW05!E33*KostenKW05!F33+KostenKW05!E34*KostenKW05!F34+KostenKW05!E35*KostenKW05!F35+KostenKW05!E36*KostenKW05!F36+KostenKW05!E37*KostenKW05!F37+KostenKW05!E38*KostenKW05!F38+KostenKW05!E39*KostenKW05!F39+KostenKW05!E46*KostenKW05!F46+KostenKW05!E51*KostenKW05!F51+KostenKW05!E52*KostenKW05!F52+KostenKW05!E53*KostenKW05!F53+KostenKW05!E54*KostenKW05!F54+KostenKW05!E55*KostenKW05!F55+KostenKW05!E59*KostenKW05!F59 -> 0
B21: Zwischenverpflegung | C21: =ErgebnisKW05!B12-ErgebnisKW05!C20 -> 0
A22: Überschuss / Unterdeckung | B22: Mittagsverpflegung | C22: =C18-C20 -> 0
B23: Zwischenverpflegung | C23: =C19-C21 -> 0
A25: Kennzahlen (bezogen auf eine Schulwoche)
A26: Ergebnisart | B26: Gesamt | C26: Mittagsverpflegung | D26: Zwischenverpflegung
A27: Erlös | B27: =B11/B11 ->  | C27: =C18/B11 ->  | D27: =C19/B11 -> 
A28: Kosten | B28: =B12/B12 ->  | C28: =C20/B12 ->  | D28: =C21/B12 -> 
A29: Überschuss / Unterdeckung | B29: =B13/B13 ->  | C29: =C22/B13 ->  | D29: =C23/B13 ->  | F29: Richtwerte Kostenverteilung Mittagsverpflegung¹:
A30: Personalkosten | B30: =KostenKW05!E57/ErgebnisKW05!B12 ->  | C30: =(KostenKW05!E51*KostenKW05!F51+KostenKW05!E52*KostenKW05!F52+KostenKW05!E53*KostenKW05!F53+KostenKW05!E54*KostenKW05!F54+KostenKW05!E55*KostenKW05!F55)/ErgebnisKW05!C20 ->  | D30: =(KostenKW05!E57-(KostenKW05!E51*KostenKW05!F51+KostenKW05!E52*KostenKW05!F52+KostenKW05!E53*KostenKW05!F53+KostenKW05!E54*KostenKW05!F54+KostenKW05!E55*KostenKW05!F55))/C21 ->  | G30: Frisch- und Mischküche | H30: Kühlkostsystem | I30: Warmverpflegung
A31: Wareneinsatzkosten | B31: =KostenKW05!E15/ErgebnisKW05!B12 ->  | C31: =(KostenKW05!E15*KostenKW05!F15)/ErgebnisKW05!C20 ->  | D31: =(KostenKW05!E15-(KostenKW05!E15*KostenKW05!F15))/ErgebnisKW05!C21 ->  | F31: Wareneinstandskosten | G31: 0.45 | H31: 55- 57 % | I31: 60 - 63 %
A32: Gemeinkosten | B32: =KostenKW05!E48/ErgebnisKW05!B12 ->  | C32: =(KostenKW05!E17*KostenKW05!F17+KostenKW05!E18*KostenKW05!F18+KostenKW05!E19*KostenKW05!F19+KostenKW05!E20*KostenKW05!F20+KostenKW05!E27*KostenKW05!F27+KostenKW05!E28*KostenKW05!F28+KostenKW05!E29*KostenKW05!F29+KostenKW05!E30*KostenKW05!F30+KostenKW05!E31*KostenKW05!F31+KostenKW05!E32*KostenKW05!F32+KostenKW05!E33*KostenKW05!F33+KostenKW05!E34*KostenKW05!F34+KostenKW05!E35*KostenKW05!F35+KostenKW05!E36*KostenKW05!F36+KostenKW05!E37*KostenKW05!F37+KostenKW05!E38*KostenKW05!F38+KostenKW05!E39*KostenKW05!F39+KostenKW05!E46*KostenKW05!F46)/ErgebnisKW05!C20 ->  | D32: =(KostenKW05!E48-(KostenKW05!E17*KostenKW05!F17+KostenKW05!E18*KostenKW05!F18+KostenKW05!E19*KostenKW05!F19+KostenKW05!E20*KostenKW05!F20+KostenKW05!E27*KostenKW05!F27+KostenKW05!E28*KostenKW05!F28+KostenKW05!E29*KostenKW05!F29+KostenKW05!E30*KostenKW05!F30+KostenKW05!E31*KostenKW05!F31+KostenKW05!E32*KostenKW05!F32+KostenKW05!E33*KostenKW05!F33+KostenKW05!E34*KostenKW05!F34+KostenKW05!E35*KostenKW05!F35+KostenKW05!E36*KostenKW05!F36+KostenKW05!E37*KostenKW05!F37+KostenKW05!E38*KostenKW05!F38+KostenKW05!E39*KostenKW05!F39+KostenKW05!E46*KostenKW05!F46))/ErgebnisKW05!C21 ->  | F32: Personalkosten | G32: 50- 52 % | H32: 40- 42 % | I32: 0.02
A33: Sonstige Kosten | B33: =KostenKW05!E59/ErgebnisKW05!B12 ->  | C33: =(KostenKW05!E59*KostenKW05!F59)/ErgebnisKW05!C20 ->  | D33: =(KostenKW05!E59-(KostenKW05!E59*KostenKW05!F59))/ErgebnisKW05!C21 ->  | F33: Gemeinkosten | G33: 3- 5 % | H33: 0.03 | I33: 35 - 38 %
A35: Akzeptanzquote der Mittagsverpflegung | B35: =ErlösKW05!I47/(ErlösKW05!D15*ErlösKW05!D17) -> 
A37: Grafische Darstellungen (alle bezogen auf eine Woche)
A74: ¹ Arens-Azevêdo, U. und Lichtenberg, W., 2007: Planung kleiner Küchen in Schulen, Kitas und Heimen. hrsg. von AID infodienst, Bonn, S. 33

Sheet ForecastKW05
A1: Kalkulations-Check | F1: =KWMonat(ErlösKW05!F9,Hilfstabelle!F2) -> 1
A2: Hochrechnung
A6: =ErlösKW05!$F$8 -> 2024-01-29 | B6: =ErlösKW05!$F$9 -> 5
B9: Hochrechnung | E9: Hochrechnung
A11: Gesamtnettoerlös pro vollem Schulmonat | B11: =ErgebnisKW05!B11*4.3 -> 0 | D11: Gesamtnettoerlös pro Schuljahr | E11: =ErgebnisKW05!B11*(52-14.5) -> 0
A12: Gesamtkosten pro vollem Schulmonat | B12: =ErgebnisKW05!B12*4.3 -> 0 | D12: Gesamtkosten pro Schuljahr | E12: =ErgebnisKW05!B12*(52-14.5) -> 0
A13: Überschuss / Unterdeckung pro vollem Schulmonat | B13: =B11-B12 -> 0 | D13: Überschuss / Unterdeckung pro Schuljahr | E13: =E11-E12 -> 0
C15: Bericht | D15: Hochrechnung | E15: Hochrechnung
A16: Ergebnisart | B16: Verpflegungsform | C16: pro Woche | D16: pro Monat | E16: pro Jahr
A17: Nettoerlös | B17: Mittagsverpflegung | C17: =ErlösKW05!I77 -> 0 | D17: =ForecastKW05!$C17*4.3 -> 0 | E17: =Tabelle6226[[#This Row],[pro Woche]]*(52-14.5) -> 0
B18: Zwischenverpflegung | C18: =ErlösKW05!I83 -> 0 | D18: =ForecastKW05!$C18*4.3 -> 0 | E18: =E11-E17 -> 0
A19: Kosten | B19: Mittagsverpflegung | C19: =KostenKW05!E15*KostenKW05!F15+KostenKW05!E17*KostenKW05!F17+KostenKW05!E18*KostenKW05!F18+KostenKW05!E19*KostenKW05!F19+KostenKW05!E20*KostenKW05!F20+KostenKW05!E27*KostenKW05!F27+KostenKW05!E28*KostenKW05!F28+KostenKW05!E29*KostenKW05!F29+KostenKW05!E30*KostenKW05!F30+KostenKW05!E31*KostenKW05!F31+KostenKW05!E32*KostenKW05!F32+KostenKW05!E33*KostenKW05!F33+KostenKW05!E34*KostenKW05!F34+KostenKW05!E35*KostenKW05!F35+KostenKW05!E36*KostenKW05!F36+KostenKW05!E37*KostenKW05!F37+KostenKW05!E38*KostenKW05!F38+KostenKW05!E39*KostenKW05!F39+KostenKW05!E46*KostenKW05!F46+KostenKW05!E51*KostenKW05!F51+KostenKW05!E52*KostenKW05!F52+KostenKW05!E53*KostenKW05!F53+KostenKW05!E54*KostenKW05!F54+KostenKW05!E55*KostenKW05!F55+KostenKW05!E59*KostenKW05!F59 -> 0 | D19: =ForecastKW05!$C19*4.3 -> 0 | E19: =Tabelle6226[[#This Row],[pro Woche]]*(52-14.5) -> 0
B20: Zwischenverpflegung | C20: =ErgebnisKW05!B12-ForecastKW05!C19 -> 0 | D20: =ForecastKW05!$C20*4.3 -> 0 | E20: =E12-E19 -> 0
A21: Überschuss / Unterdeckung | B21: Mittagsverpflegung | C21: =C17-C19 -> 0 | D21: =ForecastKW05!$C21*4.3 -> 0 | E21: =E17-E19 -> 0
B22: Zwischenverpflegung | C22: =C18-C20 -> 0 | D22: =ForecastKW05!$C22*4.3 -> 0 | E22: =E18-E20 -> 0

Sheet ErlösKW06
A1: Kalkulations-Check | F1: =KWMonat(F9,Hilfstabelle!F2) -> 2 | G1: =KWMonat(F9,Hilfstabelle!F2) -> 2
A2: Rahmen- und Erlösdaten
A6: =F8 -> 2024-02-05 | B6: =F9 -> 6
A8: Zunächst werden einige Basisdaten zur Mittagsverpflegung an Ihrer Schule benötigt: | F8: =IF($F$9=1,Hauptmenue!E9,VLOOKUP($F$9,Hilfstabelle!$D$3:$F$54,3,2)) -> 2024-02-05 | G8: =Hauptmenue!E9 -> 2024-01-01
F9: 6 | G9: Kalenderwoche
A11: Es könnten an diese Stelle auch die Daten der Schule eingetragen werden
A13: Schulart:
A15: gesamte Schülerzahl der Schule: *
A17: An wievielen Tagen pro Woche gibt es ein warmes Mittagessen? *
A19: Wieviele Hauptgerichte gibt es zur Auswahl:
A21: Welches Küchensystem liegt an der Schule vor: (bitte ankreuzen) | D21: Zubereitungsküche | E21: Aufbereitungsküche | F21: Verteilerküche
A24: Nur bei Aufbereitungs- und Verteilerküche: Welches Belieferungssystem liegt vor? | D24: Cook & Chill | E24: Cook & Freeze | F24: Cook & Hold
A27: Abzuführende Umsatzsteuer Mittagsverpflegung: (0%, 7% oder 19%) | D27: 0.19 | E27: Woche: | G27: z. B. Schulwoche, Ferien
A28: Abzuführende Umsatzsteuer Zwischenverpflegung: (0%, 7% oder 19%) | D28: 0.07
D30: Essensteilnehmerzahlen pro Speise
D31: =VLOOKUP(F9,Hilfstabelle!$D$3:$F$54,3,2) -> 43865 | E31: =D31+1 -> 43866 | F31: =E31+1 -> 43867 | G31: =F31+1 -> 43868 | H31: 43869
B32: Eingabe individueller Bezeichnungen möglich | D32: Montag | E32: Dienstag | F32: Mittwoch | G32: Donnerstag | H32: Freitag | I32: Woche gesamt
A33: Hauptspeise 1: | I33: =SUM(D33:H33) -> 0
A34: Hauptspeise 2: | I34: 0
A35: Hauptspeise 3: | I35: 0
A36: Hauptspeise 4: | I36: 0
A37: Hauptspeise 5: | I37: 0
A38: Speise 4: | I38: 0
A39: Speise 5: | I39: 0
A40: Speise 6: | I40: 0
A41: Speise 7: | I41: 0
A42: Speise 8: | I42: 0
A43: Speise 9: | I43: 0
A44: Speise 10: | I44: 0
D47: Bruttopreise | H47: Summe Hauptspeisen/Woche: | I47: =SUM(I33:I37) -> 0
A48: Hauptspeise 1: | B48: =B33 -> 0
A49: Hauptspeise 2: | B49: =B34 -> 0
A50: Hauptspeise 3: | B50: =B35 -> 0
A51: Hauptspeise 4: | B51: 0
A52: Hauptspeise 5: | B52: =B37 -> 0
A53: Speise 4: | B53: =B38 -> 0
A54: Speise 5: | B54: 0
A55: Speise 6: | B55: 0
A56: Speise 7: | B56: 0
A57: Speise 8: | B57: 0
A58: Speise 9: | B58: 0
A59: Speise 10: | B59: 0
D61: Erlössumme Brutto
D62: =D31 -> 43865 | E62: =E31 -> 43866 | F62: 43867 | G62: 43868 | H62: 43869
D63: Montag | E63: Dienstag | F63: Mittwoch | G63: Donnerstag | H63: Freitag | I63: Erlös/Woche
A64: Hauptspeise 1: | B64: =B33 -> 0 | D64: =D33*$D$48 -> 0 | E64: =E33*$D$48 -> 0 | F64: 0 | G64: 0 | H64: 0 | I64: =SUM(D64:H64) -> 0
A65: Hauptspeise 2: | B65: =B34 -> 0 | D65: =D34*$D$49 -> 0 | E65: =E34*$D$49 -> 0 | F65: =F34*$D$49 -> 0 | G65: 0 | H65: 0 | I65: 0
A66: Hauptspeise 3: | B66: 0 | D66: =D35*$D$50 -> 0 | E66: =E35*$D$50 -> 0 | F66: =F35*$D$50 -> 0 | G66: 0 | H66: 0 | I66: 0
A67: Hauptspeise 4: | B67: 0 | D67: =D36*$D$51 -> 0 | E67: =E36*$D$51 -> 0 | F67: =F36*$D$51 -> 0 | G67: 0 | H67: 0 | I67: 0
A68: Hauptspeise 5: | B68: 0 | D68: =D37*$D$52 -> 0 | E68: =E37*$D$52 -> 0 | F68: =F37*$D$52 -> 0 | G68: 0 | H68: 0 | I68: 0
A69: Speise 4: | B69: 0 | D69: =D38*$D$53 -> 0 | E69: =E38*$D$53 -> 0 | F69: =F38*$D$53 -> 0 | G69: 0 | H69: 0 | I69: 0
A70: Speise 5: | B70: 0 | D70: =D39*$D$54 -> 0 | E70: =E39*$D$54 -> 0 | F70: =F39*$D$54 -> 0 | G70: 0 | H70: 0 | I70: 0
A71: Speise 6: | B71: 0 | D71: =D40*$D$55 -> 0 | E71: =E40*$D$55 -> 0 | F71: =F40*$D$55 -> 0 | G71: 0 | H71: 0 | I71: 0
A72: Speise 7: | B72: 0 | D72: =D41*$D$56 -> 0 | E72: =E41*$D$56 -> 0 | F72: =F41*$D$56 -> 0 | G72: 0 | H72: 0 | I72: 0
A73: Speise 8: | B73: 0 | D73: =D42*$D$57 -> 0 | E73: =E42*$D$57 -> 0 | F73: =F42*$D$57 -> 0 | G73: 0 | H73: 0 | I73: 0
A74: Speise 9: | B74: 0 | D74: =D43*$D$58 -> 0 | E74: =E43*$D$58 -> 0 | F74: =F43*$D$58 -> 0 | G74: 0 | H74: 0 | I74: 0
A75: Speise 10: | B75: 0 | D75: =D44*$D$59 -> 0 | E75: =E44*$D$59 -> 0 | F75: =F44*$D$59 -> 0 | G75: 0 | H75: 0 | I75: 0
A76: Brutto-Erlössummen gesamt | D76: =SUM(D64:D75) -> 0 | E76: 0 | F76: 0 | G76: 0 | H76: 0 | I76: 0
A77: Netto-Erlössummen gesamt | D77: =D76*100/(100+(100*$D27)) -> 0 | E77: =E76*100/(100+(100*$D27)) -> 0 | F77: =F76*100/(100+(100*$D27)) -> 0 | G77: =G76*100/(100+(100*$D27)) -> 0 | H77: =H76*100/(100+(100*$D27)) -> 0 | I77: =SUM(D77:H77) -> 0
D80: Montag | E80: Dienstag | F80: Mittwoch | G80: Donnerstag | H80: Freitag | I80: Erlös/Woche
D81: =D31 -> 43865 | E81: =E31 -> 43866 | F81: 43867 | G81: 43868 | H81: 43869
A82: Gesamtbruttotageserlös durch sonstige Verpflegung (Zwischenverpflegung)* | I82: =SUM(D82:H82) -> 0
A83: Nettogesamterlöse | D83: =D82*100/(100+(100*$D28)) -> 0 | E83: =E82*100/(100+(100*$D28)) -> 0 | F83: =F82*100/(100+(100*$D28)) -> 0 | G83: =G82*100/(100+(100*$D28)) -> 0 | H83: =H82*100/(100+(100*$D28)) -> 0 | I83: =SUM(D83:H83) -> 0
A86: Sonstige Nettoerlöse pro Monat | D86: Subventionen pro Monat

Sheet KostenKW06
A1: Kalkulations-Check | F1: =KWMonat(ErlösKW06!F9,Hilfstabelle!F2) -> 2
A2: Kostendaten
A6: =ErlösKW06!F8 -> 2024-02-05 | B6: =ErlösKW06!F9 -> 6
A8: Nun geben Sie bitte die folgenden Kostendaten zur Mittagsverpflegung ein:
A10: Geben Sie einen ungefähren, gerundeten Anteil an, der auf die warme Mittagsverpflegung entfällt, z.B. entfällt 70 % Ihres gesamten Wareneinsatzes auf die Mittagsverpflegung, die restlichen 30% sind dem Bereich Zwischenverpflegung zuzuordnen. Kosten die unabhängig von der Verpflegungform anfallen (z.B. Miete) werden zu 50% aufgeteilt. Falls Sie nur Mittagsverpflegung anbieten, geben Sie als Anteil bei allen Kostenpunkten 100% ein.
E13: Gesamtwert in € | F13: %-Anteil Mittagsverpflegung
A15: Wareneinsatz | C15: Nettowarenwert pro Woche | D15: (alle Speisen und Getränke für eine Woche) | G15: Wareneinkaufspreis abzüglich 7% Umsatzsteuer
G16: (Rechenweg Einkaufspreis * 100 / 107 = Nettowarenwert)
A17: Gemeinkosten | C17: Fixe Kosten pro Woche | D17: Miete / Pacht
D18: Kosten für Müllabfuhr | G18: kann meist in der Schule oder beim Sach-aufwandsträger eingesehen werden
D19: Kosten für Versicherungen (Brand-, Wasserschäden)
D20: Sonstiges
C27: Variable Kosten pro Woche | D27: Reinigungs- und Desinfektionsmittel
D28: Energiekosten | G28: kann meist in der Schule oder beim Sach-aufwandsträger eingesehen werden
D29: Wasser- und Abwasserkosten
D30: Heizungskosten
D31: Kosten für Schädlingsbekämpfung
D32: Kosten für Reinigung der Mensa | G32: kann meist in der Schule oder beim Sach-aufwandsträger eingesehen werden
D33: Verbrauchsgüter (Servietten, Alufolie…)
D34: Ersatzbeschaffungen bis ca. 100 € (Geschirr, kleine Küchengeräte…)
D35: Wäschekosten (Personal-, Küche- und Tischwäsche)
D36: Kosten für Reparatur- und Wartungsarbeiten
D37: Kosten für Schulungs- und Weiterbildungsmaßnahmen
D38: Beiträge (z.B. Berufsgenossenschaft)
D39: Verwaltungskosten ( z.B. für Essensabrechnung, Bürobedarf...)
D46: Sonstige Gemeinkosten
D48: Gesamtgemeinkosten pro Woche | E48: =SUM(E17:E25,E27:E46) -> 0
A50: Personalkosten | C50: gesamte Lohnkosten inklusive Lohnnebenkosten (Sozialabgaben) pro Woche für:
D51: Küchenleiter
D52: Küchenmitarbeiter
D53: Spül- und Putzkräfte
D54: Praktikanten, Azubis…
D55: sonstiges
D57: Gesamtpersonalkosten pro Woche | E57: =SUM(E51:E55) -> 0
D59: Sonstiges
D61: Gesamtkosten pro Schulwoche | E61: =SUM(E15,E48,E57,E59) -> 0

Sheet ErgebnisKW06
A1: Kalkulations-Check | F1: =KWMonat(ErlösKW06!F9,Hilfstabelle!F2) -> 2
A2: Ergebnisausgabe: Daten der aktuellen Kalenderwoche
A6: =ErlösKW06!$F$8 -> 2024-02-05 | B6: =ErlösKW06!$F$9 & " KW" -> 6 KW
B9: Bericht
A11: Gesamtnettoerlös pro Schulwoche | B11: =ErlösKW06!I77+ErlösKW06!I83+ErlösKW06!G86 -> 0
A12: Gesamtkosten pro Schulwoche | B12: =KostenKW06!E61 -> 0
A13: Überschuss / Unterdeckung pro Schulwoche | B13: =B11-B12 -> 0
C16: Bericht
A17: Ergebnisart | B17: Verpflegungsform | C17: pro Woche
A18: Nettoerlös | B18: Mittagsverpflegung | C18: =ErlösKW06!I77 -> 0
B19: Zwischenverpflegung | C19: =ErlösKW06!I83 -> 0
A20: Kosten | B20: Mittagsverpflegung | C20: =KostenKW06!E15*KostenKW06!F15+KostenKW06!E17*KostenKW06!F17+KostenKW06!E18*KostenKW06!F18+KostenKW06!E19*KostenKW06!F19+KostenKW06!E20*KostenKW06!F20+KostenKW06!E27*KostenKW06!F27+KostenKW06!E28*KostenKW06!F28+KostenKW06!E29*KostenKW06!F29+KostenKW06!E30*KostenKW06!F30+KostenKW06!E31*KostenKW06!F31+KostenKW06!E32*KostenKW06!F32+KostenKW06!E33*KostenKW06!F33+KostenKW06!E34*KostenKW06!F34+KostenKW06!E35*KostenKW06!F35+KostenKW06!E36*KostenKW06!F36+KostenKW06!E37*KostenKW06!F37+KostenKW06!E38*KostenKW06!F38+KostenKW06!E39*KostenKW06!F39+KostenKW06!E46*KostenKW06!F46+KostenKW06!E51*KostenKW06!F51+KostenKW06!E52*KostenKW06!F52+KostenKW06!E53*KostenKW06!F53+KostenKW06!E54*KostenKW06!F54+KostenKW06!E55*KostenKW06!F55+KostenKW06!E59*KostenKW06!F59 -> 0
B21: Zwischenverpflegung | C21: =ErgebnisKW06!B12-ErgebnisKW06!C20 -> 0
A22: Überschuss / Unterdeckung | B22: Mittagsverpflegung | C22: =C18-C20 -> 0
B23: Zwischenverpflegung | C23: =C19-C21 -> 0
A25: Kennzahlen (bezogen auf eine Schulwoche)
A26: Ergebnisart | B26: Gesamt | C26: Mittagsverpflegung | D26: Zwischenverpflegung
A27: Erlös | B27: =B11/B11 ->  | C27: =C18/B11 ->  | D27: =C19/B11 -> 
A28: Kosten | B28: =B12/B12 ->  | C28: =C20/B12 ->  | D28: =C21/B12 -> 
A29: Überschuss / Unterdeckung | B29: =B13/B13 ->  | C29: =C22/B13 ->  | D29: =C23/B13 ->  | F29: Richtwerte Kostenverteilung Mittagsverpflegung¹:
A30: Personalkosten | B30: =KostenKW06!E57/ErgebnisKW06!B12 ->  | C30: =(KostenKW06!E51*KostenKW06!F51+KostenKW06!E52*KostenKW06!F52+KostenKW06!E53*KostenKW06!F53+KostenKW06!E54*KostenKW06!F54+KostenKW06!E55*KostenKW06!F55)/ErgebnisKW06!C20 ->  | D30: =(KostenKW06!E57-(KostenKW06!E51*KostenKW06!F51+KostenKW06!E52*KostenKW06!F52+KostenKW06!E53*KostenKW06!F53+KostenKW06!E54*KostenKW06!F54+KostenKW06!E55*KostenKW06!F55))/C21 ->  | G30: Frisch- und Mischküche | H30: Kühlkostsystem | I30: Warmverpflegung
A31: Wareneinsatzkosten | B31: =KostenKW06!E15/ErgebnisKW06!B12 ->  | C31: =(KostenKW06!E15*KostenKW06!F15)/ErgebnisKW06!C20 ->  | D31: =(KostenKW06!E15-(KostenKW06!E15*KostenKW06!F15))/ErgebnisKW06!C21 ->  | F31: Wareneinstandskosten | G31: 0.45 | H31: 55- 57 % | I31: 60 - 63 %
A32: Gemeinkosten | B32: =KostenKW06!E48/ErgebnisKW06!B12 ->  | C32: =(KostenKW06!E17*KostenKW06!F17+KostenKW06!E18*KostenKW06!F18+KostenKW06!E19*KostenKW06!F19+KostenKW06!E20*KostenKW06!F20+KostenKW06!E27*KostenKW06!F27+KostenKW06!E28*KostenKW06!F28+KostenKW06!E29*KostenKW06!F29+KostenKW06!E30*KostenKW06!F30+KostenKW06!E31*KostenKW06!F31+KostenKW06!E32*KostenKW06!F32+KostenKW06!E33*KostenKW06!F33+KostenKW06!E34*KostenKW06!F34+KostenKW06!E35*KostenKW06!F35+KostenKW06!E36*KostenKW06!F36+KostenKW06!E37*KostenKW06!F37+KostenKW06!E38*KostenKW06!F38+KostenKW06!E39*KostenKW06!F39+KostenKW06!E46*KostenKW06!F46)/ErgebnisKW06!C20 ->  | D32: =(KostenKW06!E48-(KostenKW06!E17*KostenKW06!F17+KostenKW06!E18*KostenKW06!F18+KostenKW06!E19*KostenKW06!F19+KostenKW06!E20*KostenKW06!F20+KostenKW06!E27*KostenKW06!F27+KostenKW06!E28*KostenKW06!F28+KostenKW06!E29*KostenKW06!F29+KostenKW06!E30*KostenKW06!F30+KostenKW06!E31*KostenKW06!F31+KostenKW06!E32*KostenKW06!F32+KostenKW06!E33*KostenKW06!F33+KostenKW06!E34*KostenKW06!F34+KostenKW06!E35*KostenKW06!F35+KostenKW06!E36*KostenKW06!F36+KostenKW06!E37*KostenKW06!F37+KostenKW06!E38*KostenKW06!F38+KostenKW06!E39*KostenKW06!F39+KostenKW06!E46*KostenKW06!F46))/ErgebnisKW06!C21 ->  | F32: Personalkosten | G32: 50- 52 % | H32: 40- 42 % | I32: 0.02
A33: Sonstige Kosten | B33: =KostenKW06!E59/ErgebnisKW06!B12 ->  | C33: =(KostenKW06!E59*KostenKW06!F59)/ErgebnisKW06!C20 ->  | D33: =(KostenKW06!E59-(KostenKW06!E59*KostenKW06!F59))/ErgebnisKW06!C21 ->  | F33: Gemeinkosten | G33: 3- 5 % | H33: 0.03 | I33: 35 - 38 %
A35: Akzeptanzquote der Mittagsverpflegung | B35: =ErlösKW06!I47/(ErlösKW06!D15*ErlösKW06!D17) -> 
A37: Grafische Darstellungen (alle bezogen auf eine Woche)
A74: ¹ Arens-Azevêdo, U. und Lichtenberg, W., 2007: Planung kleiner Küchen in Schulen, Kitas und Heimen. hrsg. von AID infodienst, Bonn, S. 33

Sheet ForecastKW06
A1: Kalkulations-Check | F1: =KWMonat(ErlösKW06!F9,Hilfstabelle!F2) -> 2
A2: Hochrechnung
A6: =ErlösKW06!$F$8 -> 2024-02-05 | B6: =ErlösKW06!$F$9 -> 6
B9: Hochrechnung | E9: Hochrechnung
A11: Gesamtnettoerlös pro vollem Schulmonat | B11: =ErgebnisKW06!B11*4.3 -> 0 | D11: Gesamtnettoerlös pro Schuljahr | E11: =ErgebnisKW06!B11*(52-14.5) -> 0
A12: Gesamtkosten pro vollem Schulmonat | B12: =ErgebnisKW06!B12*4.3 -> 0 | D12: Gesamtkosten pro Schuljahr | E12: =ErgebnisKW06!B12*(52-14.5) -> 0
A13: Überschuss / Unterdeckung pro vollem Schulmonat | B13: =B11-B12 -> 0 | D13: Überschuss / Unterdeckung pro Schuljahr | E13: =E11-E12 -> 0
C15: Bericht | D15: Hochrechnung | E15: Hochrechnung
A16: Ergebnisart | B16: Verpflegungsform | C16: pro Woche | D16: pro Monat | E16: pro Jahr
A17: Nettoerlös | B17: Mittagsverpflegung | C17: =ErlösKW06!I77 -> 0 | D17: =ForecastKW06!$C17*4.3 -> 0 | E17: =Tabelle6231[[#This Row],[pro Woche]]*(52-14.5) -> 0
B18: Zwischenverpflegung | C18: =ErlösKW06!I83 -> 0 | D18: =ForecastKW06!$C18*4.3 -> 0 | E18: =E11-E17 -> 0
A19: Kosten | B19: Mittagsverpflegung | C19: =KostenKW06!E15*KostenKW06!F15+KostenKW06!E17*KostenKW06!F17+KostenKW06!E18*KostenKW06!F18+KostenKW06!E19*KostenKW06!F19+KostenKW06!E20*KostenKW06!F20+KostenKW06!E27*KostenKW06!F27+KostenKW06!E28*KostenKW06!F28+KostenKW06!E29*KostenKW06!F29+KostenKW06!E30*KostenKW06!F30+KostenKW06!E31*KostenKW06!F31+KostenKW06!E32*KostenKW06!F32+KostenKW06!E33*KostenKW06!F33+KostenKW06!E34*KostenKW06!F34+KostenKW06!E35*KostenKW06!F35+KostenKW06!E36*KostenKW06!F36+KostenKW06!E37*KostenKW06!F37+KostenKW06!E38*KostenKW06!F38+KostenKW06!E39*KostenKW06!F39+KostenKW06!E46*KostenKW06!F46+KostenKW06!E51*KostenKW06!F51+KostenKW06!E52*KostenKW06!F52+KostenKW06!E53*KostenKW06!F53+KostenKW06!E54*KostenKW06!F54+KostenKW06!E55*KostenKW06!F55+KostenKW06!E59*KostenKW06!F59 -> 0 | D19: =ForecastKW06!$C19*4.3 -> 0 | E19: =Tabelle6231[[#This Row],[pro Woche]]*(52-14.5) -> 0
B20: Zwischenverpflegung | C20: =ErgebnisKW06!B12-ForecastKW06!C19 -> 0 | D20: =ForecastKW06!$C20*4.3 -> 0 | E20: =E12-E19 -> 0
A21: Überschuss / Unterdeckung | B21: Mittagsverpflegung | C21: =C17-C19 -> 0 | D21: =ForecastKW06!$C21*4.3 -> 0 | E21: =E17-E19 -> 0
B22: Zwischenverpflegung | C22: =C18-C20 -> 0 | D22: =ForecastKW06!$C22*4.3 -> 0 | E22: =E18-E20 -> 0

Sheet ErlösKW07
A1: Kalkulations-Check | F1: =KWMonat(F9,Hilfstabelle!F2) -> 2 | G1: =KWMonat(F9,Hilfstabelle!F2) -> 2
A2: Rahmen- und Erlösdaten
A6: =F8 -> 2024-02-12 | B6: =F9 -> 7
A8: Zunächst werden einige Basisdaten zur Mittagsverpflegung an Ihrer Schule benötigt: | F8: =IF($F$9=1,Hauptmenue!E9,VLOOKUP($F$9,Hilfstabelle!$D$3:$F$54,3,2)) -> 2024-02-12 | G8: =Hauptmenue!E9 -> 2024-01-01
F9: 7 | G9: Kalenderwoche
A11: Es könnten an diese Stelle auch die Daten der Schule eingetragen werden
A13: Schulart:
A15: gesamte Schülerzahl der Schule: *
A17: An wievielen Tagen pro Woche gibt es ein warmes Mittagessen? *
A19: Wieviele Hauptgerichte gibt es zur Auswahl:
A21: Welches Küchensystem liegt an der Schule vor: (bitte ankreuzen) | D21: Zubereitungsküche | E21: Aufbereitungsküche | F21: Verteilerküche
A24: Nur bei Aufbereitungs- und Verteilerküche: Welches Belieferungssystem liegt vor? | D24: Cook & Chill | E24: Cook & Freeze | F24: Cook & Hold
A27: Abzuführende Umsatzsteuer Mittagsverpflegung: (0%, 7% oder 19%) | D27: 0.19 | E27: Woche: | G27: z. B. Schulwoche, Ferien
A28: Abzuführende Umsatzsteuer Zwischenverpflegung: (0%, 7% oder 19%) | D28: 0.07
D30: Essensteilnehmerzahlen pro Speise
D31: =VLOOKUP(F9,Hilfstabelle!$D$3:$F$54,3,2) -> 43872 | E31: =D31+1 -> 43873 | F31: =E31+1 -> 43874 | G31: =F31+1 -> 43875 | H31: 43876
B32: Eingabe individueller Bezeichnungen möglich | D32: Montag | E32: Dienstag | F32: Mittwoch | G32: Donnerstag | H32: Freitag | I32: Woche gesamt
A33: Hauptspeise 1: | I33: =SUM(D33:H33) -> 0
A34: Hauptspeise 2: | I34: 0
A35: Hauptspeise 3: | I35: 0
A36: Hauptspeise 4: | I36: 0
A37: Hauptspeise 5: | I37: 0
A38: Speise 4: | I38: 0
A39: Speise 5: | I39: 0
A40: Speise 6: | I40: 0
A41: Speise 7: | I41: 0
A42: Speise 8: | I42: 0
A43: Speise 9: | I43: 0
A44: Speise 10: | I44: 0
D47: Bruttopreise | H47: Summe Hauptspeisen/Woche: | I47: =SUM(I33:I37) -> 0
A48: Hauptspeise 1: | B48: =B33 -> 0
A49: Hauptspeise 2: | B49: =B34 -> 0
A50: Hauptspeise 3: | B50: =B35 -> 0
A51: Hauptspeise 4: | B51: 0
A52: Hauptspeise 5: | B52: =B37 -> 0
A53: Speise 4: | B53: =B38 -> 0
A54: Speise 5: | B54: 0
A55: Speise 6: | B55: 0
A56: Speise 7: | B56: 0
A57: Speise 8: | B57: 0
A58: Speise 9: | B58: 0
A59: Speise 10: | B59: 0
D61: Erlössumme Brutto
D62: =D31 -> 43872 | E62: =E31 -> 43873 | F62: 43874 | G62: 43875 | H62: 43876
D63: Montag | E63: Dienstag | F63: Mittwoch | G63: Donnerstag | H63: Freitag | I63: Erlös/Woche
A64: Hauptspeise 1: | B64: =B33 -> 0 | D64: =D33*$D$48 -> 0 | E64: =E33*$D$48 -> 0 | F64: 0 | G64: 0 | H64: 0 | I64: =SUM(D64:H64) -> 0
A65: Hauptspeise 2: | B65: =B34 -> 0 | D65: =D34*$D$49 -> 0 | E65: =E34*$D$49 -> 0 | F65: =F34*$D$49 -> 0 | G65: 0 | H65: 0 | I65: 0
A66: Hauptspeise 3: | B66: 0 | D66: =D35*$D$50 -> 0 | E66: =E35*$D$50 -> 0 | F66: =F35*$D$50 -> 0 | G66: 0 | H66: 0 | I66: 0
A67: Hauptspeise 4: | B67: 0 | D67: =D36*$D$51 -> 0 | E67: =E36*$D$51 -> 0 | F67: =F36*$D$51 -> 0 | G67: 0 | H67: 0 | I67: 0
A68: Hauptspeise 5: | B68: 0 | D68: =D37*$D$52 -> 0 | E68: =E37*$D$52 -> 0 | F68: =F37*$D$52 -> 0 | G68: 0 | H68: 0 | I68: 0
A69: Speise 4: | B69: 0 | D69: =D38*$D$53 -> 0 | E69: =E38*$D$53 -> 0 | F69: =F38*$D$53 -> 0 | G69: 0 | H69: 0 | I69: 0
A70: Speise 5: | B70: 0 | D70: =D39*$D$54 -> 0 | E70: =E39*$D$54 -> 0 | F70: =F39*$D$54 -> 0 | G70: 0 | H70: 0 | I70: 0
A71: Speise 6: | B71: 0 | D71: =D40*$D$55 -> 0 | E71: =E40*$D$55 -> 0 | F71: =F40*$D$55 -> 0 | G71: 0 | H71: 0 | I71: 0
A72: Speise 7: | B72: 0 | D72: =D41*$D$56 -> 0 | E72: =E41*$D$56 -> 0 | F72: =F41*$D$56 -> 0 | G72: 0 | H72: 0 | I72: 0
A73: Speise 8: | B73: 0 | D73: =D42*$D$57 -> 0 | E73: =E42*$D$57 -> 0 | F73: =F42*$D$57 -> 0 | G73: 0 | H73: 0 | I73: 0
A74: Speise 9: | B74: 0 | D74: =D43*$D$58 -> 0 | E74: =E43*$D$58 -> 0 | F74: =F43*$D$58 -> 0 | G74: 0 | H74: 0 | I74: 0
A75: Speise 10: | B75: 0 | D75: =D44*$D$59 -> 0 | E75: =E44*$D$59 -> 0 | F75: =F44*$D$59 -> 0 | G75: 0 | H75: 0 | I75: 0
A76: Brutto-Erlössummen gesamt | D76: =SUM(D64:D75) -> 0 | E76: 0 | F76: 0 | G76: 0 | H76: 0 | I76: 0
A77: Netto-Erlössummen gesamt | D77: =D76*100/(100+(100*$D27)) -> 0 | E77: =E76*100/(100+(100*$D27)) -> 0 | F77: =F76*100/(100+(100*$D27)) -> 0 | G77: =G76*100/(100+(100*$D27)) -> 0 | H77: =H76*100/(100+(100*$D27)) -> 0 | I77: =SUM(D77:H77) -> 0
D80: Montag | E80: Dienstag | F80: Mittwoch | G80: Donnerstag | H80: Freitag | I80: Erlös/Woche
D81: =D31 -> 43872 | E81: =E31 -> 43873 | F81: 43874 | G81: 43875 | H81: 43876
A82: Gesamtbruttotageserlös durch sonstige Verpflegung (Zwischenverpflegung)* | I82: =SUM(D82:H82) -> 0
A83: Nettogesamterlöse | D83: =D82*100/(100+(100*$D28)) -> 0 | E83: =E82*100/(100+(100*$D28)) -> 0 | F83: =F82*100/(100+(100*$D28)) -> 0 | G83: =G82*100/(100+(100*$D28)) -> 0 | H83: =H82*100/(100+(100*$D28)) -> 0 | I83: =SUM(D83:H83) -> 0
A86: Sonstige Nettoerlöse pro Monat | D86: Subventionen pro Monat

Sheet KostenKW07
A1: Kalkulations-Check | F1: =KWMonat(ErlösKW07!F9,Hilfstabelle!F2) -> 2
A2: Kostendaten
A6: =ErlösKW07!F8 -> 2024-02-12 | B6: =ErlösKW07!F9 -> 7
A8: Nun geben Sie bitte die folgenden Kostendaten zur Mittagsverpflegung ein:
A10: Geben Sie einen ungefähren, gerundeten Anteil an, der auf die warme Mittagsverpflegung entfällt, z.B. entfällt 70 % Ihres gesamten Wareneinsatzes auf die Mittagsverpflegung, die restlichen 30% sind dem Bereich Zwischenverpflegung zuzuordnen. Kosten die unabhängig von der Verpflegungform anfallen (z.B. Miete) werden zu 50% aufgeteilt. Falls Sie nur Mittagsverpflegung anbieten, geben Sie als Anteil bei allen Kostenpunkten 100% ein.
E13: Gesamtwert in € | F13: %-Anteil Mittagsverpflegung
A15: Wareneinsatz | C15: Nettowarenwert pro Woche | D15: (alle Speisen und Getränke für eine Woche) | G15: Wareneinkaufspreis abzüglich 7% Umsatzsteuer
G16: (Rechenweg Einkaufspreis * 100 / 107 = Nettowarenwert)
A17: Gemeinkosten | C17: Fixe Kosten pro Woche | D17: Miete / Pacht
D18: Kosten für Müllabfuhr | G18: kann meist in der Schule oder beim Sach-aufwandsträger eingesehen werden
D19: Kosten für Versicherungen (Brand-, Wasserschäden)
D20: Sonstiges
C27: Variable Kosten pro Woche | D27: Reinigungs- und Desinfektionsmittel
D28: Energiekosten | G28: kann meist in der Schule oder beim Sach-aufwandsträger eingesehen werden
D29: Wasser- und Abwasserkosten
D30: Heizungskosten
D31: Kosten für Schädlingsbekämpfung
D32: Kosten für Reinigung der Mensa | G32: kann meist in der Schule oder beim Sach-aufwandsträger eingesehen werden
D33: Verbrauchsgüter (Servietten, Alufolie…)
D34: Ersatzbeschaffungen bis ca. 100 € (Geschirr, kleine Küchengeräte…)
D35: Wäschekosten (Personal-, Küche- und Tischwäsche)
D36: Kosten für Reparatur- und Wartungsarbeiten
D37: Kosten für Schulungs- und Weiterbildungsmaßnahmen
D38: Beiträge (z.B. Berufsgenossenschaft)
D39: Verwaltungskosten ( z.B. für Essensabrechnung, Bürobedarf...)
D46: Sonstige Gemeinkosten
D48: Gesamtgemeinkosten pro Woche | E48: =SUM(E17:E25,E27:E46) -> 0
A50: Personalkosten | C50: gesamte Lohnkosten inklusive Lohnnebenkosten (Sozialabgaben) pro Woche für:
D51: Küchenleiter
D52: Küchenmitarbeiter
D53: Spül- und Putzkräfte
D54: Praktikanten, Azubis…
D55: sonstiges
D57: Gesamtpersonalkosten pro Woche | E57: =SUM(E51:E55) -> 0
D59: Sonstiges
D61: Gesamtkosten pro Schulwoche | E61: =SUM(E15,E48,E57,E59) -> 0

Sheet ErgebnisKW07
A1: Kalkulations-Check | F1: =KWMonat(ErlösKW07!F9,Hilfstabelle!F2) -> 2
A2: Ergebnisausgabe: Daten der aktuellen Kalenderwoche
A6: =ErlösKW07!$F$8 -> 2024-02-12 | B6: =ErlösKW07!$F$9 & " KW" -> 7 KW
B9: Bericht
A11: Gesamtnettoerlös pro Schulwoche | B11: =ErlösKW07!I77+ErlösKW07!I83+ErlösKW07!G86 -> 0
A12: Gesamtkosten pro Schulwoche | B12: =KostenKW07!E61 -> 0
A13: Überschuss / Unterdeckung pro Schulwoche | B13: =B11-B12 -> 0
C16: Bericht
A17: Ergebnisart | B17: Verpflegungsform | C17: pro Woche
A18: Nettoerlös | B18: Mittagsverpflegung | C18: =ErlösKW07!I77 -> 0
B19: Zwischenverpflegung | C19: =ErlösKW07!I83 -> 0
A20: Kosten | B20: Mittagsverpflegung | C20: =KostenKW07!E15*KostenKW07!F15+KostenKW07!E17*KostenKW07!F17+KostenKW07!E18*KostenKW07!F18+KostenKW07!E19*KostenKW07!F19+KostenKW07!E20*KostenKW07!F20+KostenKW07!E27*KostenKW07!F27+KostenKW07!E28*KostenKW07!F28+KostenKW07!E29*KostenKW07!F29+KostenKW07!E30*KostenKW07!F30+KostenKW07!E31*KostenKW07!F31+KostenKW07!E32*KostenKW07!F32+KostenKW07!E33*KostenKW07!F33+KostenKW07!E34*KostenKW07!F34+KostenKW07!E35*KostenKW07!F35+KostenKW07!E36*KostenKW07!F36+KostenKW07!E37*KostenKW07!F37+KostenKW07!E38*KostenKW07!F38+KostenKW07!E39*KostenKW07!F39+KostenKW07!E46*KostenKW07!F46+KostenKW07!E51*KostenKW07!F51+KostenKW07!E52*KostenKW07!F52+KostenKW07!E53*KostenKW07!F53+KostenKW07!E54*KostenKW07!F54+KostenKW07!E55*KostenKW07!F55+KostenKW07!E59*KostenKW07!F59 -> 0
B21: Zwischenverpflegung | C21: =ErgebnisKW07!B12-ErgebnisKW07!C20 -> 0
A22: Überschuss / Unterdeckung | B22: Mittagsverpflegung | C22: =C18-C20 -> 0
B23: Zwischenverpflegung | C23: =C19-C21 -> 0
A25: Kennzahlen (bezogen auf eine Schulwoche)
A26: Ergebnisart | B26: Gesamt | C26: Mittagsverpflegung | D26: Zwischenverpflegung
A27: Erlös | B27: =B11/B11 ->  | C27: =C18/B11 ->  | D27: =C19/B11 -> 
A28: Kosten | B28: =B12/B12 ->  | C28: =C20/B12 ->  | D28: =C21/B12 -> 
A29: Überschuss / Unterdeckung | B29: =B13/B13 ->  | C29: =C22/B13 ->  | D29: =C23/B13 ->  | F29: Richtwerte Kostenverteilung Mittagsverpflegung¹:
A30: Personalkosten | B30: =KostenKW07!E57/ErgebnisKW07!B12 ->  | C30: =(KostenKW07!E51*KostenKW07!F51+KostenKW07!E52*KostenKW07!F52+KostenKW07!E53*KostenKW07!F53+KostenKW07!E54*KostenKW07!F54+KostenKW07!E55*KostenKW07!F55)/ErgebnisKW07!C20 ->  | D30: =(KostenKW07!E57-(KostenKW07!E51*KostenKW07!F51+KostenKW07!E52*KostenKW07!F52+KostenKW07!E53*KostenKW07!F53+KostenKW07!E54*KostenKW07!F54+KostenKW07!E55*KostenKW07!F55))/C21 ->  | G30: Frisch- und Mischküche | H30: Kühlkostsystem | I30: Warmverpflegung
A31: Wareneinsatzkosten | B31: =KostenKW07!E15/ErgebnisKW07!B12 ->  | C31: =(KostenKW07!E15*KostenKW07!F15)/ErgebnisKW07!C20 ->  | D31: =(KostenKW07!E15-(KostenKW07!E15*KostenKW07!F15))/ErgebnisKW07!C21 ->  | F31: Wareneinstandskosten | G31: 0.45 | H31: 55- 57 % | I31: 60 - 63 %
A32: Gemeinkosten | B32: =KostenKW07!E48/ErgebnisKW07!B12 ->  | C32: =(KostenKW07!E17*KostenKW07!F17+KostenKW07!E18*KostenKW07!F18+KostenKW07!E19*KostenKW07!F19+KostenKW07!E20*KostenKW07!F20+KostenKW07!E27*KostenKW07!F27+KostenKW07!E28*KostenKW07!F28+KostenKW07!E29*KostenKW07!F29+KostenKW07!E30*KostenKW07!F30+KostenKW07!E31*KostenKW07!F31+KostenKW07!E32*KostenKW07!F32+KostenKW07!E33*KostenKW07!F33+KostenKW07!E34*KostenKW07!F34+KostenKW07!E35*KostenKW07!F35+KostenKW07!E36*KostenKW07!F36+KostenKW07!E37*KostenKW07!F37+KostenKW07!E38*KostenKW07!F38+KostenKW07!E39*KostenKW07!F39+KostenKW07!E46*KostenKW07!F46)/ErgebnisKW07!C20 ->  | D32: =(KostenKW07!E48-(KostenKW07!E17*KostenKW07!F17+KostenKW07!E18*KostenKW07!F18+KostenKW07!E19*KostenKW07!F19+KostenKW07!E20*KostenKW07!F20+KostenKW07!E27*KostenKW07!F27+KostenKW07!E28*KostenKW07!F28+KostenKW07!E29*KostenKW07!F29+KostenKW07!E30*KostenKW07!F30+KostenKW07!E31*KostenKW07!F31+KostenKW07!E32*KostenKW07!F32+KostenKW07!E33*KostenKW07!F33+KostenKW07!E34*KostenKW07!F34+KostenKW07!E35*KostenKW07!F35+KostenKW07!E36*KostenKW07!F36+KostenKW07!E37*KostenKW07!F37+KostenKW07!E38*KostenKW07!F38+KostenKW07!E39*KostenKW07!F39+KostenKW07!E46*KostenKW07!F46))/ErgebnisKW07!C21 ->  | F32: Personalkosten | G32: 50- 52 % | H32: 40- 42 % | I32: 0.02
A33: Sonstige Kosten | B33: =KostenKW07!E59/ErgebnisKW07!B12 ->  | C33: =(KostenKW07!E59*KostenKW07!F59)/ErgebnisKW07!C20 ->  | D33: =(KostenKW07!E59-(KostenKW07!E59*KostenKW07!F59))/ErgebnisKW07!C21 ->  | F33: Gemeinkosten | G33: 3- 5 % | H33: 0.03 | I33: 35 - 38 %
A35: Akzeptanzquote der Mittagsverpflegung | B35: =ErlösKW07!I47/(ErlösKW07!D15*ErlösKW07!D17) -> 
A37: Grafische Darstellungen (alle bezogen auf eine Woche)
A74: ¹ Arens-Azevêdo, U. und Lichtenberg, W., 2007: Planung kleiner Küchen in Schulen, Kitas und Heimen. hrsg. von AID infodienst, Bonn, S. 33

Sheet ForecastKW07
A1: Kalkulations-Check | F1: =KWMonat(ErlösKW07!F9,Hilfstabelle!F2) -> 2
A2: Hochrechnung
A6: =ErlösKW07!$F$8 -> 2024-02-12 | B6: =ErlösKW07!$F$9 -> 7
B9: Hochrechnung | E9: Hochrechnung
A11: Gesamtnettoerlös pro vollem Schulmonat | B11: =ErgebnisKW07!B11*4.3 -> 0 | D11: Gesamtnettoerlös pro Schuljahr | E11: =ErgebnisKW07!B11*(52-14.5) -> 0
A12: Gesamtkosten pro vollem Schulmonat | B12: =ErgebnisKW07!B12*4.3 -> 0 | D12: Gesamtkosten pro Schuljahr | E12: =ErgebnisKW07!B12*(52-14.5) -> 0
A13: Überschuss / Unterdeckung pro vollem Schulmonat | B13: =B11-B12 -> 0 | D13: Überschuss / Unterdeckung pro Schuljahr | E13: =E11-E12 -> 0
C15: Bericht | D15: Hochrechnung | E15: Hochrechnung
A16: Ergebnisart | B16: Verpflegungsform | C16: pro Woche | D16: pro Monat | E16: pro Jahr
A17: Nettoerlös | B17: Mittagsverpflegung | C17: =ErlösKW07!I77 -> 0 | D17: =ForecastKW07!$C17*4.3 -> 0 | E17: =Tabelle6236[[#This Row],[pro Woche]]*(52-14.5) -> 0
B18: Zwischenverpflegung | C18: =ErlösKW07!I83 -> 0 | D18: =ForecastKW07!$C18*4.3 -> 0 | E18: =E11-E17 -> 0
A19: Kosten | B19: Mittagsverpflegung | C19: =KostenKW07!E15*KostenKW07!F15+KostenKW07!E17*KostenKW07!F17+KostenKW07!E18*KostenKW07!F18+KostenKW07!E19*KostenKW07!F19+KostenKW07!E20*KostenKW07!F20+KostenKW07!E27*KostenKW07!F27+KostenKW07!E28*KostenKW07!F28+KostenKW07!E29*KostenKW07!F29+KostenKW07!E30*KostenKW07!F30+KostenKW07!E31*KostenKW07!F31+KostenKW07!E32*KostenKW07!F32+KostenKW07!E33*KostenKW07!F33+KostenKW07!E34*KostenKW07!F34+KostenKW07!E35*KostenKW07!F35+KostenKW07!E36*KostenKW07!F36+KostenKW07!E37*KostenKW07!F37+KostenKW07!E38*KostenKW07!F38+KostenKW07!E39*KostenKW07!F39+KostenKW07!E46*KostenKW07!F46+KostenKW07!E51*KostenKW07!F51+KostenKW07!E52*KostenKW07!F52+KostenKW07!E53*KostenKW07!F53+KostenKW07!E54*KostenKW07!F54+KostenKW07!E55*KostenKW07!F55+KostenKW07!E59*KostenKW07!F59 -> 0 | D19: =ForecastKW07!$C19*4.3 -> 0 | E19: =Tabelle6236[[#This Row],[pro Woche]]*(52-14.5) -> 0
B20: Zwischenverpflegung | C20: =ErgebnisKW07!B12-ForecastKW07!C19 -> 0 | D20: =ForecastKW07!$C20*4.3 -> 0 | E20: =E12-E19 -> 0
A21: Überschuss / Unterdeckung | B21: Mittagsverpflegung | C21: =C17-C19 -> 0 | D21: =ForecastKW07!$C21*4.3 -> 0 | E21: =E17-E19 -> 0
B22: Zwischenverpflegung | C22: =C18-C20 -> 0 | D22: =ForecastKW07!$C22*4.3 -> 0 | E22: =E18-E20 -> 0

Sheet ErlösKW08
A1: Kalkulations-Check | F1: =KWMonat(F9,Hilfstabelle!F2) -> 2 | G1: =KWMonat(F9,Hilfstabelle!F2) -> 2
A2: Rahmen- und Erlösdaten
A6: =F8 -> 2024-02-19 | B6: =F9 -> 8
A8: Zunächst werden einige Basisdaten zur Mittagsverpflegung an Ihrer Schule benötigt: | F8: =IF($F$9=1,Hauptmenue!E9,VLOOKUP($F$9,Hilfstabelle!$D$3:$F$54,3,2)) -> 2024-02-19 | G8: =Hauptmenue!E9 -> 2024-01-01
F9: 8 | G9: Kalenderwoche
A11: Es könnten an diese Stelle auch die Daten der Schule eingetragen werden
A13: Schulart:
A15: gesamte Schülerzahl der Schule: *
A17: An wievielen Tagen pro Woche gibt es ein warmes Mittagessen? *
A19: Wieviele Hauptgerichte gibt es zur Auswahl:
A21: Welches Küchensystem liegt an der Schule vor: (bitte ankreuzen) | D21: Zubereitungsküche | E21: Aufbereitungsküche | F21: Verteilerküche
A24: Nur bei Aufbereitungs- und Verteilerküche: Welches Belieferungssystem liegt vor? | D24: Cook & Chill | E24: Cook & Freeze | F24: Cook & Hold
A27: Abzuführende Umsatzsteuer Mittagsverpflegung: (0%, 7% oder 19%) | D27: 0.19 | E27: Woche: | G27: z. B. Schulwoche, Ferien
A28: Abzuführende Umsatzsteuer Zwischenverpflegung: (0%, 7% oder 19%) | D28: 0.07
D30: Essensteilnehmerzahlen pro Speise
D31: =VLOOKUP(F9,Hilfstabelle!$D$3:$F$54,3,2) -> 43879 | E31: =D31+1 -> 43880 | F31: =E31+1 -> 43881 | G31: =F31+1 -> 43882 | H31: 43883
B32: Eingabe individueller Bezeichnungen möglich | D32: Montag | E32: Dienstag | F32: Mittwoch | G32: Donnerstag | H32: Freitag | I32: Woche gesamt
A33: Hauptspeise 1: | I33: =SUM(D33:H33) -> 0
A34: Hauptspeise 2: | I34: 0
A35: Hauptspeise 3: | I35: 0
A36: Hauptspeise 4: | I36: 0
A37: Hauptspeise 5: | I37: 0
A38: Speise 4: | I38: 0
A39: Speise 5: | I39: 0
A40: Speise 6: | I40: 0
A41: Speise 7: | I41: 0
A42: Speise 8: | I42: 0
A43: Speise 9: | I43: 0
A44: Speise 10: | I44: 0
D47: Bruttopreise | H47: Summe Hauptspeisen/Woche: | I47: =SUM(I33:I37) -> 0
A48: Hauptspeise 1: | B48: =B33 -> 0
A49: Hauptspeise 2: | B49: =B34 -> 0
A50: Hauptspeise 3: | B50: =B35 -> 0
A51: Hauptspeise 4: | B51: 0
A52: Hauptspeise 5: | B52: =B37 -> 0
A53: Speise 4: | B53: =B38 -> 0
A54: Speise 5: | B54: 0
A55: Speise 6: | B55: 0
A56: Speise 7: | B56: 0
A57: Speise 8: | B57: 0
A58: Speise 9: | B58: 0
A59: Speise 10: | B59: 0
D61: Erlössumme Brutto
D62: =D31 -> 43879 | E62: =E31 -> 43880 | F62: 43881 | G62: 43882 | H62: 43883
D63: Montag | E63: Dienstag | F63: Mittwoch | G63: Donnerstag | H63: Freitag | I63: Erlös/Woche
A64: Hauptspeise 1: | B64: =B33 -> 0 | D64: =D33*$D$48 -> 0 | E64: =E33*$D$48 -> 0 | F64: 0 | G64: 0 | H64: 0 | I64: =SUM(D64:H64) -> 0
A65: Hauptspeise 2: | B65: =B34 -> 0 | D65: =D34*$D$49 -> 0 | E65: =E34*$D$49 -> 0 | F65: =F34*$D$49 -> 0 | G65: 0 | H65: 0 | I65: 0
A66: Hauptspeise 3: | B66: 0 | D66: =D35*$D$50 -> 0 | E66: =E35*$D$50 -> 0 | F66: =F35*$D$50 -> 0 | G66: 0 | H66: 0 | I66: 0
A67: Hauptspeise 4: | B67: 0 | D67: =D36*$D$51 -> 0 | E67: =E36*$D$51 -> 0 | F67: =F36*$D$51 -> 0 | G67: 0 | H67: 0 | I67: 0
A68: Hauptspeise 5: | B68: 0 | D68: =D37*$D$52 -> 0 | E68: =E37*$D$52 -> 0 | F68: =F37*$D$52 -> 0 | G68: 0 | H68: 0 | I68: 0
A69: Speise 4: | B69: 0 | D69: =D38*$D$53 -> 0 | E69: =E38*$D$53 -> 0 | F69: =F38*$D$53 -> 0 | G69: 0 | H69: 0 | I69: 0
A70: Speise 5: | B70: 0 | D70: =D39*$D$54 -> 0 | E70: =E39*$D$54 -> 0 | F70: =F39*$D$54 -> 0 | G70: 0 | H70: 0 | I70: 0
A71: Speise 6: | B71: 0 | D71: =D40*$D$55 -> 0 | E71: =E40*$D$55 -> 0 | F71: =F40*$D$55 -> 0 | G71: 0 | H71: 0 | I71: 0
A72: Speise 7: | B72: 0 | D72: =D41*$D$56 -> 0 | E72: =E41*$D$56 -> 0 | F72: =F41*$D$56 -> 0 | G72: 0 | H72: 0 | I72: 0
A73: Speise 8: | B73: 0 | D73: =D42*$D$57 -> 0 | E73: =E42*$D$57 -> 0 | F73: =F42*$D$57 -> 0 | G73: 0 | H73: 0 | I73: 0
A74: Speise 9: | B74: 0 | D74: =D43*$D$58 -> 0 | E74: =E43*$D$58 -> 0 | F74: =F43*$D$58 -> 0 | G74: 0 | H74: 0 | I74: 0
A75: Speise 10: | B75: 0 | D75: =D44*$D$59 -> 0 | E75: =E44*$D$59 -> 0 | F75: =F44*$D$59 -> 0 | G75: 0 | H75: 0 | I75: 0
A76: Brutto-Erlössummen gesamt | D76: =SUM(D64:D75) -> 0 | E76: 0 | F76: 0 | G76: 0 | H76: 0 | I76: 0
A77: Netto-Erlössummen gesamt | D77: =D76*100/(100+(100*$D27)) -> 0 | E77: =E76*100/(100+(100*$D27)) -> 0 | F77: =F76*100/(100+(100*$D27)) -> 0 | G77: =G76*100/(100+(100*$D27)) -> 0 | H77: =H76*100/(100+(100*$D27)) -> 0 | I77: =SUM(D77:H77) -> 0
D80: Montag | E80: Dienstag | F80: Mittwoch | G80: Donnerstag | H80: Freitag | I80: Erlös/Woche
D81: =D31 -> 43879 | E81: =E31 -> 43880 | F81: 43881 | G81: 43882 | H81: 43883
A82: Gesamtbruttotageserlös durch sonstige Verpflegung (Zwischenverpflegung)* | I82: =SUM(D82:H82) -> 0
A83: Nettogesamterlöse | D83: =D82*100/(100+(100*$D28)) -> 0 | E83: =E82*100/(100+(100*$D28)) -> 0 | F83: =F82*100/(100+(100*$D28)) -> 0 | G83: =G82*100/(100+(100*$D28)) -> 0 | H83: =H82*100/(100+(100*$D28)) -> 0 | I83: =SUM(D83:H83) -> 0
A86: Sonstige Nettoerlöse pro Monat | D86: Subventionen pro Monat

Sheet KostenKW08
A1: Kalkulations-Check | F1: =KWMonat(ErlösKW08!F9,Hilfstabelle!F2) -> 2
A2: Kostendaten
A6: =ErlösKW08!F8 -> 2024-02-19 | B6: =ErlösKW08!F9 -> 8
A8: Nun geben Sie bitte die folgenden Kostendaten zur Mittagsverpflegung ein:
A10: Geben Sie einen ungefähren, gerundeten Anteil an, der auf die warme Mittagsverpflegung entfällt, z.B. entfällt 70 % Ihres gesamten Wareneinsatzes auf die Mittagsverpflegung, die restlichen 30% sind dem Bereich Zwischenverpflegung zuzuordnen. Kosten die unabhängig von der Verpflegungform anfallen (z.B. Miete) werden zu 50% aufgeteilt. Falls Sie nur Mittagsverpflegung anbieten, geben Sie als Anteil bei allen Kostenpunkten 100% ein.
E13: Gesamtwert in € | F13: %-Anteil Mittagsverpflegung
A15: Wareneinsatz | C15: Nettowarenwert pro Woche | D15: (alle Speisen und Getränke für eine Woche) | G15: Wareneinkaufspreis abzüglich 7% Umsatzsteuer
G16: (Rechenweg Einkaufspreis * 100 / 107 = Nettowarenwert)
A17: Gemeinkosten | C17: Fixe Kosten pro Woche | D17: Miete / Pacht
D18: Kosten für Müllabfuhr | G18: kann meist in der Schule oder beim Sach-aufwandsträger eingesehen werden
D19: Kosten für Versicherungen (Brand-, Wasserschäden)
D20: Sonstiges
C27: Variable Kosten pro Woche | D27: Reinigungs- und Desinfektionsmittel
D28: Energiekosten | G28: kann meist in der Schule oder beim Sach-aufwandsträger eingesehen werden
D29: Wasser- und Abwasserkosten
D30: Heizungskosten
D31: Kosten für Schädlingsbekämpfung
D32: Kosten für Reinigung der Mensa | G32: kann meist in der Schule oder beim Sach-aufwandsträger eingesehen werden
D33: Verbrauchsgüter (Servietten, Alufolie…)
D34: Ersatzbeschaffungen bis ca. 100 € (Geschirr, kleine Küchengeräte…)
D35: Wäschekosten (Personal-, Küche- und Tischwäsche)
D36: Kosten für Reparatur- und Wartungsarbeiten
D37: Kosten für Schulungs- und Weiterbildungsmaßnahmen
D38: Beiträge (z.B. Berufsgenossenschaft)
D39: Verwaltungskosten ( z.B. für Essensabrechnung, Bürobedarf...)
D46: Sonstige Gemeinkosten
D48: Gesamtgemeinkosten pro Woche | E48: =SUM(E17:E25,E27:E46) -> 0
A50: Personalkosten | C50: gesamte Lohnkosten inklusive Lohnnebenkosten (Sozialabgaben) pro Woche für:
D51: Küchenleiter
D52: Küchenmitarbeiter
D53: Spül- und Putzkräfte
D54: Praktikanten, Azubis…
D55: sonstiges
D57: Gesamtpersonalkosten pro Woche | E57: =SUM(E51:E55) -> 0
D59: Sonstiges
D61: Gesamtkosten pro Schulwoche | E61: =SUM(E15,E48,E57,E59) -> 0

Sheet ErgebnisKW08
A1: Kalkulations-Check | F1: =KWMonat(ErlösKW08!F9,Hilfstabelle!F2) -> 2
A2: Ergebnisausgabe: Daten der aktuellen Kalenderwoche
A6: =ErlösKW08!$F$8 -> 2024-02-19 | B6: =ErlösKW08!$F$9 & " KW" -> 8 KW
B9: Bericht
A11: Gesamtnettoerlös pro Schulwoche | B11: =ErlösKW08!I77+ErlösKW08!I83+ErlösKW08!G86 -> 0
A12: Gesamtkosten pro Schulwoche | B12: =KostenKW08!E61 -> 0
A13: Überschuss / Unterdeckung pro Schulwoche | B13: =B11-B12 -> 0
C16: Bericht
A17: Ergebnisart | B17: Verpflegungsform | C17: pro Woche
A18: Nettoerlös | B18: Mittagsverpflegung | C18: =ErlösKW08!I77 -> 0
B19: Zwischenverpflegung | C19: =ErlösKW08!I83 -> 0
A20: Kosten | B20: Mittagsverpflegung | C20: =KostenKW08!E15*KostenKW08!F15+KostenKW08!E17*KostenKW08!F17+KostenKW08!E18*KostenKW08!F18+KostenKW08!E19*KostenKW08!F19+KostenKW08!E20*KostenKW08!F20+KostenKW08!E27*KostenKW08!F27+KostenKW08!E28*KostenKW08!F28+KostenKW08!E29*KostenKW08!F29+KostenKW08!E30*KostenKW08!F30+KostenKW08!E31*KostenKW08!F31+KostenKW08!E32*KostenKW08!F32+KostenKW08!E33*KostenKW08!F33+KostenKW08!E34*KostenKW08!F34+KostenKW08!E35*KostenKW08!F35+KostenKW08!E36*KostenKW08!F36+KostenKW08!E37*KostenKW08!F37+KostenKW08!E38*KostenKW08!F38+KostenKW08!E39*KostenKW08!F39+KostenKW08!E46*KostenKW08!F46+KostenKW08!E51*KostenKW08!F51+KostenKW08!E52*KostenKW08!F52+KostenKW08!E53*KostenKW08!F53+KostenKW08!E54*KostenKW08!F54+KostenKW08!E55*KostenKW08!F55+KostenKW08!E59*KostenKW08!F59 -> 0
B21: Zwischenverpflegung | C21: =ErgebnisKW08!B12-ErgebnisKW08!C20 -> 0
A22: Überschuss / Unterdeckung | B22: Mittagsverpflegung | C22: =C18-C20 -> 0
B23: Zwischenverpflegung | C23: =C19-C21 -> 0
A25: Kennzahlen (bezogen auf eine Schulwoche)
A26: Ergebnisart | B26: Gesamt | C26: Mittagsverpflegung | D26: Zwischenverpflegung
A27: Erlös | B27: =B11/B11 ->  | C27: =C18/B11 ->  | D27: =C19/B11 -> 
A28: Kosten | B28: =B12/B12 ->  | C28: =C20/B12 ->  | D28: =C21/B12 -> 
A29: Überschuss / Unterdeckung | B29: =B13/B13 ->  | C29: =C22/B13 ->  | D29: =C23/B13 ->  | F29: Richtwerte Kostenverteilung Mittagsverpflegung¹:
A30: Personalkosten | B30: =KostenKW08!E57/ErgebnisKW08!B12 ->  | C30: =(KostenKW08!E51*KostenKW08!F51+KostenKW08!E52*KostenKW08!F52+KostenKW08!E53*KostenKW08!F53+KostenKW08!E54*KostenKW08!F54+KostenKW08!E55*KostenKW08!F55)/ErgebnisKW08!C20 ->  | D30: =(KostenKW08!E57-(KostenKW08!E51*KostenKW08!F51+KostenKW08!E52*KostenKW08!F52+KostenKW08!E53*KostenKW08!F53+KostenKW08!E54*KostenKW08!F54+KostenKW08!E55*KostenKW08!F55))/C21 ->  | G30: Frisch- und Mischküche | H30: Kühlkostsystem | I30: Warmverpflegung
A31: Wareneinsatzkosten | B31: =KostenKW08!E15/ErgebnisKW08!B12 ->  | C31: =(KostenKW08!E15*KostenKW08!F15)/ErgebnisKW08!C20 ->  | D31: =(KostenKW08!E15-(KostenKW08!E15*KostenKW08!F15))/ErgebnisKW08!C21 ->  | F31: Wareneinstandskosten | G31: 0.45 | H31: 55- 57 % | I31: 60 - 63 %
A32: Gemeinkosten | B32: =KostenKW08!E48/ErgebnisKW08!B12 ->  | C32: =(KostenKW08!E17*KostenKW08!F17+KostenKW08!E18*KostenKW08!F18+KostenKW08!E19*KostenKW08!F19+KostenKW08!E20*KostenKW08!F20+KostenKW08!E27*KostenKW08!F27+KostenKW08!E28*KostenKW08!F28+KostenKW08!E29*KostenKW08!F29+KostenKW08!E30*KostenKW08!F30+KostenKW08!E31*KostenKW08!F31+KostenKW08!E32*KostenKW08!F32+KostenKW08!E33*KostenKW08!F33+KostenKW08!E34*KostenKW08!F34+KostenKW08!E35*KostenKW08!F35+KostenKW08!E36*KostenKW08!F36+KostenKW08!E37*KostenKW08!F37+KostenKW08!E38*KostenKW08!F38+KostenKW08!E39*KostenKW08!F39+KostenKW08!E46*KostenKW08!F46)/ErgebnisKW08!C20 ->  | D32: =(KostenKW08!E48-(KostenKW08!E17*KostenKW08!F17+KostenKW08!E18*KostenKW08!F18+KostenKW08!E19*KostenKW08!F19+KostenKW08!E20*KostenKW08!F20+KostenKW08!E27*KostenKW08!F27+KostenKW08!E28*KostenKW08!F28+KostenKW08!E29*KostenKW08!F29+KostenKW08!E30*KostenKW08!F30+KostenKW08!E31*KostenKW08!F31+KostenKW08!E32*KostenKW08!F32+KostenKW08!E33*KostenKW08!F33+KostenKW08!E34*KostenKW08!F34+KostenKW08!E35*KostenKW08!F35+KostenKW08!E36*KostenKW08!F36+KostenKW08!E37*KostenKW08!F37+KostenKW08!E38*KostenKW08!F38+KostenKW08!E39*KostenKW08!F39+KostenKW08!E46*KostenKW08!F46))/ErgebnisKW08!C21 ->  | F32: Personalkosten | G32: 50- 52 % | H32: 40- 42 % | I32: 0.02
A33: Sonstige Kosten | B33: =KostenKW08!E59/ErgebnisKW08!B12 ->  | C33: =(KostenKW08!E59*KostenKW08!F59)/ErgebnisKW08!C20 ->  | D33: =(KostenKW08!E59-(KostenKW08!E59*KostenKW08!F59))/ErgebnisKW08!C21 ->  | F33: Gemeinkosten | G33: 3- 5 % | H33: 0.03 | I33: 35 - 38 %
A35: Akzeptanzquote der Mittagsverpflegung | B35: =ErlösKW08!I47/(ErlösKW08!D15*ErlösKW08!D17) -> 
A37: Grafische Darstellungen (alle bezogen auf eine Woche)
A74: ¹ Arens-Azevêdo, U. und Lichtenberg, W., 2007: Planung kleiner Küchen in Schulen, Kitas und Heimen. hrsg. von AID infodienst, Bonn, S. 33

Sheet ForecastKW08
A1: Kalkulations-Check | F1: =KWMonat(ErlösKW08!F9,Hilfstabelle!F2) -> 2
A2: Hochrechnung
A6: =ErlösKW08!$F$8 -> 2024-02-19 | B6: =ErlösKW08!$F$9 -> 8
B9: Hochrechnung | E9: Hochrechnung
A11: Gesamtnettoerlös pro vollem Schulmonat | B11: =ErgebnisKW08!B11*4.3 -> 0 | D11: Gesamtnettoerlös pro Schuljahr | E11: =ErgebnisKW08!B11*(52-14.5) -> 0
A12: Gesamtkosten pro vollem Schulmonat | B12: =ErgebnisKW08!B12*4.3 -> 0 | D12: Gesamtkosten pro Schuljahr | E12: =ErgebnisKW08!B12*(52-14.5) -> 0
A13: Überschuss / Unterdeckung pro vollem Schulmonat | B13: =B11-B12 -> 0 | D13: Überschuss / Unterdeckung pro Schuljahr | E13: =E11-E12 -> 0
C15: Bericht | D15: Hochrechnung | E15: Hochrechnung
A16: Ergebnisart | B16: Verpflegungsform | C16: pro Woche | D16: pro Monat | E16: pro Jahr
A17: Nettoerlös | B17: Mittagsverpflegung | C17: =ErlösKW08!I77 -> 0 | D17: =ForecastKW08!$C17*4.3 -> 0 | E17: =Tabelle6241[[#This Row],[pro Woche]]*(52-14.5) -> 0
B18: Zwischenverpflegung | C18: =ErlösKW08!I83 -> 0 | D18: =ForecastKW08!$C18*4.3 -> 0 | E18: =E11-E17 -> 0
A19: Kosten | B19: Mittagsverpflegung | C19: =KostenKW08!E15*KostenKW08!F15+KostenKW08!E17*KostenKW08!F17+KostenKW08!E18*KostenKW08!F18+KostenKW08!E19*KostenKW08!F19+KostenKW08!E20*KostenKW08!F20+KostenKW08!E27*KostenKW08!F27+KostenKW08!E28*KostenKW08!F28+KostenKW08!E29*KostenKW08!F29+KostenKW08!E30*KostenKW08!F30+KostenKW08!E31*KostenKW08!F31+KostenKW08!E32*KostenKW08!F32+KostenKW08!E33*KostenKW08!F33+KostenKW08!E34*KostenKW08!F34+KostenKW08!E35*KostenKW08!F35+KostenKW08!E36*KostenKW08!F36+KostenKW08!E37*KostenKW08!F37+KostenKW08!E38*KostenKW08!F38+KostenKW08!E39*KostenKW08!F39+KostenKW08!E46*KostenKW08!F46+KostenKW08!E51*KostenKW08!F51+KostenKW08!E52*KostenKW08!F52+KostenKW08!E53*KostenKW08!F53+KostenKW08!E54*KostenKW08!F54+KostenKW08!E55*KostenKW08!F55+KostenKW08!E59*KostenKW08!F59 -> 0 | D19: =ForecastKW08!$C19*4.3 -> 0 | E19: =Tabelle6241[[#This Row],[pro Woche]]*(52-14.5) -> 0
B20: Zwischenverpflegung | C20: =ErgebnisKW08!B12-ForecastKW08!C19 -> 0 | D20: =ForecastKW08!$C20*4.3 -> 0 | E20: =E12-E19 -> 0
A21: Überschuss / Unterdeckung | B21: Mittagsverpflegung | C21: =C17-C19 -> 0 | D21: =ForecastKW08!$C21*4.3 -> 0 | E21: =E17-E19 -> 0
B22: Zwischenverpflegung | C22: =C18-C20 -> 0 | D22: =ForecastKW08!$C22*4.3 -> 0 | E22: =E18-E20 -> 0

Sheet ErlösKW09
A1: Kalkulations-Check | F1: =KWMonat(F9,Hilfstabelle!F2) -> 2 | G1: =KWMonat(F9,Hilfstabelle!F2) -> 2
A2: Rahmen- und Erlösdaten
A6: =F8 -> 2024-02-26 | B6: =F9 -> 9
A8: Zunächst werden einige Basisdaten zur Mittagsverpflegung an Ihrer Schule benötigt: | F8: =IF($F$9=1,Hauptmenue!E9,VLOOKUP($F$9,Hilfstabelle!$D$3:$F$54,3,2)) -> 2024-02-26 | G8: =Hauptmenue!E9 -> 2024-01-01
F9: 9 | G9: Kalenderwoche
A11: Es könnten an diese Stelle auch die Daten der Schule eingetragen werden
A13: Schulart:
A15: gesamte Schülerzahl der Schule: *
A17: An wievielen Tagen pro Woche gibt es ein warmes Mittagessen? *
A19: Wieviele Hauptgerichte gibt es zur Auswahl:
A21: Welches Küchensystem liegt an der Schule vor: (bitte ankreuzen) | D21: Zubereitungsküche | E21: Aufbereitungsküche | F21: Verteilerküche
A24: Nur bei Aufbereitungs- und Verteilerküche: Welches Belieferungssystem liegt vor? | D24: Cook & Chill | E24: Cook & Freeze | F24: Cook & Hold
A27: Abzuführende Umsatzsteuer Mittagsverpflegung: (0%, 7% oder 19%) | D27: 0.19 | E27: Woche: | G27: z. B. Schulwoche, Ferien
A28: Abzuführende Umsatzsteuer Zwischenverpflegung: (0%, 7% oder 19%) | D28: 0.07
D30: Essensteilnehmerzahlen pro Speise
D31: =VLOOKUP(F9,Hilfstabelle!$D$3:$F$54,3,2) -> 43886 | E31: =D31+1 -> 43887 | F31: =E31+1 -> 43888 | G31: =F31+1 -> 43889 | H31: 43890
B32: Eingabe individueller Bezeichnungen möglich | D32: Montag | E32: Dienstag | F32: Mittwoch | G32: Donnerstag | H32: Freitag | I32: Woche gesamt
A33: Hauptspeise 1: | I33: =SUM(D33:H33) -> 0
A34: Hauptspeise 2: | I34: 0
A35: Hauptspeise 3: | I35: 0
A36: Hauptspeise 4: | I36: 0
A37: Hauptspeise 5: | I37: 0
A38: Speise 4: | I38: 0
A39: Speise 5: | I39: 0
A40: Speise 6: | I40: 0
A41: Speise 7: | I41: 0
A42: Speise 8: | I42: 0
A43: Speise 9: | I43: 0
A44: Speise 10: | I44: 0
D47: Bruttopreise | H47: Summe Hauptspeisen/Woche: | I47: =SUM(I33:I37) -> 0
A48: Hauptspeise 1: | B48: =B33 -> 0
A49: Hauptspeise 2: | B49: =B34 -> 0
A50: Hauptspeise 3: | B50: =B35 -> 0
A51: Hauptspeise 4: | B51: 0
A52: Hauptspeise 5: | B52: =B37 -> 0
A53: Speise 4: | B53: =B38 -> 0
A54: Speise 5: | B54: 0
A55: Speise 6: | B55: 0
A56: Speise 7: | B56: 0
A57: Speise 8: | B57: 0
A58: Speise 9: | B58: 0
A59: Speise 10: | B59: 0
D61: Erlössumme Brutto
D62: =D31 -> 43886 | E62: =E31 -> 43887 | F62: 43888 | G62: 43889 | H62: 43890
D63: Montag | E63: Dienstag | F63: Mittwoch | G63: Donnerstag | H63: Freitag | I63: Erlös/Woche
A64: Hauptspeise 1: | B64: =B33 -> 0 | D64: =D33*$D$48 -> 0 | E64: =E33*$D$48 -> 0 | F64: 0 | G64: 0 | H64: 0 | I64: =SUM(D64:H64) -> 0
A65: Hauptspeise 2: | B65: =B34 -> 0 | D65: =D34*$D$49 -> 0 | E65: =E34*$D$49 -> 0 | F65: =F34*$D$49 -> 0 | G65: 0 | H65: 0 | I65: 0
A66: Hauptspeise 3: | B66: 0 | D66: =D35*$D$50 -> 0 | E66: =E35*$D$50 -> 0 | F66: =F35*$D$50 -> 0 | G66: 0 | H66: 0 | I66: 0
A67: Hauptspeise 4: | B67: 0 | D67: =D36*$D$51 -> 0 | E67: =E36*$D$51 -> 0 | F67: =F36*$D$51 -> 0 | G67: 0 | H67: 0 | I67: 0
A68: Hauptspeise 5: | B68: 0 | D68: =D37*$D$52 -> 0 | E68: =E37*$D$52 -> 0 | F68: =F37*$D$52 -> 0 | G68: 0 | H68: 0 | I68: 0
A69: Speise 4: | B69: 0 | D69: =D38*$D$53 -> 0 | E69: =E38*$D$53 -> 0 | F69: =F38*$D$53 -> 0 | G69: 0 | H69: 0 | I69: 0
A70: Speise 5: | B70: 0 | D70: =D39*$D$54 -> 0 | E70: =E39*$D$54 -> 0 | F70: =F39*$D$54 -> 0 | G70: 0 | H70: 0 | I70: 0
A71: Speise 6: | B71: 0 | D71: =D40*$D$55 -> 0 | E71: =E40*$D$55 -> 0 | F71: =F40*$D$55 -> 0 | G71: 0 | H71: 0 | I71: 0
A72: Speise 7: | B72: 0 | D72: =D41*$D$56 -> 0 | E72: =E41*$D$56 -> 0 | F72: =F41*$D$56 -> 0 | G72: 0 | H72: 0 | I72: 0
A73: Speise 8: | B73: 0 | D73: =D42*$D$57 -> 0 | E73: =E42*$D$57 -> 0 | F73: =F42*$D$57 -> 0 | G73: 0 | H73: 0 | I73: 0
A74: Speise 9: | B74: 0 | D74: =D43*$D$58 -> 0 | E74: =E43*$D$58 -> 0 | F74: =F43*$D$58 -> 0 | G74: 0 | H74: 0 | I74: 0
A75: Speise 10: | B75: 0 | D75: =D44*$D$59 -> 0 | E75: =E44*$D$59 -> 0 | F75: =F44*$D$59 -> 0 | G75: 0 | H75: 0 | I75: 0
A76: Brutto-Erlössummen gesamt | D76: =SUM(D64:D75) -> 0 | E76: 0 | F76: 0 | G76: 0 | H76: 0 | I76: 0
A77: Netto-Erlössummen gesamt | D77: =D76*100/(100+(100*$D27)) -> 0 | E77: =E76*100/(100+(100*$D27)) -> 0 | F77: =F76*100/(100+(100*$D27)) -> 0 | G77: =G76*100/(100+(100*$D27)) -> 0 | H77: =H76*100/(100+(100*$D27)) -> 0 | I77: =SUM(D77:H77) -> 0
D80: Montag | E80: Dienstag | F80: Mittwoch | G80: Donnerstag | H80: Freitag | I80: Erlös/Woche
D81: =D31 -> 43886 | E81: =E31 -> 43887 | F81: 43888 | G81: 43889 | H81: 43890
A82: Gesamtbruttotageserlös durch sonstige Verpflegung (Zwischenverpflegung)* | I82: =SUM(D82:H82) -> 0
A83: Nettogesamterlöse | D83: =D82*100/(100+(100*$D28)) -> 0 | E83: =E82*100/(100+(100*$D28)) -> 0 | F83: =F82*100/(100+(100*$D28)) -> 0 | G83: =G82*100/(100+(100*$D28)) -> 0 | H83: =H82*100/(100+(100*$D28)) -> 0 | I83: =SUM(D83:H83) -> 0
A86: Sonstige Nettoerlöse pro Monat | D86: Subventionen pro Monat

Sheet KostenKW09
A1: Kalkulations-Check | F1: =KWMonat(ErlösKW09!F9,Hilfstabelle!F2) -> 2
A2: Kostendaten
A6: =ErlösKW09!F8 -> 2024-02-26 | B6: =ErlösKW09!F9 -> 9
A8: Nun geben Sie bitte die folgenden Kostendaten zur Mittagsverpflegung ein:
A10: Geben Sie einen ungefähren, gerundeten Anteil an, der auf die warme Mittagsverpflegung entfällt, z.B. entfällt 70 % Ihres gesamten Wareneinsatzes auf die Mittagsverpflegung, die restlichen 30% sind dem Bereich Zwischenverpflegung zuzuordnen. Kosten die unabhängig von der Verpflegungform anfallen (z.B. Miete) werden zu 50% aufgeteilt. Falls Sie nur Mittagsverpflegung anbieten, geben Sie als Anteil bei allen Kostenpunkten 100% ein.
E13: Gesamtwert in € | F13: %-Anteil Mittagsverpflegung
A15: Wareneinsatz | C15: Nettowarenwert pro Woche | D15: (alle Speisen und Getränke für eine Woche) | G15: Wareneinkaufspreis abzüglich 7% Umsatzsteuer
G16: (Rechenweg Einkaufspreis * 100 / 107 = Nettowarenwert)
A17: Gemeinkosten | C17: Fixe Kosten pro Woche | D17: Miete / Pacht
D18: Kosten für Müllabfuhr | G18: kann meist in der Schule oder beim Sach-aufwandsträger eingesehen werden
D19: Kosten für Versicherungen (Brand-, Wasserschäden)
D20: Sonstiges
C27: Variable Kosten pro Woche | D27: Reinigungs- und Desinfektionsmittel
D28: Energiekosten | G28: kann meist in der Schule oder beim Sach-aufwandsträger eingesehen werden
D29: Wasser- und Abwasserkosten
D30: Heizungskosten
D31: Kosten für Schädlingsbekämpfung
D32: Kosten für Reinigung der Mensa | G32: kann meist in der Schule oder beim Sach-aufwandsträger eingesehen werden
D33: Verbrauchsgüter (Servietten, Alufolie…)
D34: Ersatzbeschaffungen bis ca. 100 € (Geschirr, kleine Küchengeräte…)
D35: Wäschekosten (Personal-, Küche- und Tischwäsche)
D36: Kosten für Reparatur- und Wartungsarbeiten
D37: Kosten für Schulungs- und Weiterbildungsmaßnahmen
D38: Beiträge (z.B. Berufsgenossenschaft)
D39: Verwaltungskosten ( z.B. für Essensabrechnung, Bürobedarf...)
D46: Sonstige Gemeinkosten
D48: Gesamtgemeinkosten pro Woche | E48: =SUM(E17:E25,E27:E46) -> 0
A50: Personalkosten | C50: gesamte Lohnkosten inklusive Lohnnebenkosten (Sozialabgaben) pro Woche für:
D51: Küchenleiter
D52: Küchenmitarbeiter
D53: Spül- und Putzkräfte
D54: Praktikanten, Azubis…
D55: sonstiges
D57: Gesamtpersonalkosten pro Woche | E57: =SUM(E51:E55) -> 0
D59: Sonstiges
D61: Gesamtkosten pro Schulwoche | E61: =SUM(E15,E48,E57,E59) -> 0

Sheet ErgebnisKW09
A1: Kalkulations-Check | F1: =KWMonat(ErlösKW09!F9,Hilfstabelle!F2) -> 2
A2: Ergebnisausgabe: Daten der aktuellen Kalenderwoche
A6: =ErlösKW09!$F$8 -> 2024-02-26 | B6: =ErlösKW09!$F$9 & " KW" -> 9 KW
B9: Bericht
A11: Gesamtnettoerlös pro Schulwoche | B11: =ErlösKW09!I77+ErlösKW09!I83+ErlösKW09!G86 -> 0
A12: Gesamtkosten pro Schulwoche | B12: =KostenKW09!E61 -> 0
A13: Überschuss / Unterdeckung pro Schulwoche | B13: =B11-B12 -> 0
C16: Bericht
A17: Ergebnisart | B17: Verpflegungsform | C17: pro Woche
A18: Nettoerlös | B18: Mittagsverpflegung | C18: =ErlösKW09!I77 -> 0
B19: Zwischenverpflegung | C19: =ErlösKW09!I83 -> 0
A20: Kosten | B20: Mittagsverpflegung | C20: =KostenKW09!E15*KostenKW09!F15+KostenKW09!E17*KostenKW09!F17+KostenKW09!E18*KostenKW09!F18+KostenKW09!E19*KostenKW09!F19+KostenKW09!E20*KostenKW09!F20+KostenKW09!E27*KostenKW09!F27+KostenKW09!E28*KostenKW09!F28+KostenKW09!E29*KostenKW09!F29+KostenKW09!E30*KostenKW09!F30+KostenKW09!E31*KostenKW09!F31+KostenKW09!E32*KostenKW09!F32+KostenKW09!E33*KostenKW09!F33+KostenKW09!E34*KostenKW09!F34+KostenKW09!E35*KostenKW09!F35+KostenKW09!E36*KostenKW09!F36+KostenKW09!E37*KostenKW09!F37+KostenKW09!E38*KostenKW09!F38+KostenKW09!E39*KostenKW09!F39+KostenKW09!E46*KostenKW09!F46+KostenKW09!E51*KostenKW09!F51+KostenKW09!E52*KostenKW09!F52+KostenKW09!E53*KostenKW09!F53+KostenKW09!E54*KostenKW09!F54+KostenKW09!E55*KostenKW09!F55+KostenKW09!E59*KostenKW09!F59 -> 0
B21: Zwischenverpflegung | C21: =ErgebnisKW09!B12-ErgebnisKW09!C20 -> 0
A22: Überschuss / Unterdeckung | B22: Mittagsverpflegung | C22: =C18-C20 -> 0
B23: Zwischenverpflegung | C23: =C19-C21 -> 0
A25: Kennzahlen (bezogen auf eine Schulwoche)
A26: Ergebnisart | B26: Gesamt | C26: Mittagsverpflegung | D26: Zwischenverpflegung
A27: Erlös | B27: =B11/B11 ->  | C27: =C18/B11 ->  | D27: =C19/B11 -> 
A28: Kosten | B28: =B12/B12 ->  | C28: =C20/B12 ->  | D28: =C21/B12 -> 
A29: Überschuss / Unterdeckung | B29: =B13/B13 ->  | C29: =C22/B13 ->  | D29: =C23/B13 ->  | F29: Richtwerte Kostenverteilung Mittagsverpflegung¹:
A30: Personalkosten | B30: =KostenKW09!E57/ErgebnisKW09!B12 ->  | C30: =(KostenKW09!E51*KostenKW09!F51+KostenKW09!E52*KostenKW09!F52+KostenKW09!E53*KostenKW09!F53+KostenKW09!E54*KostenKW09!F54+KostenKW09!E55*KostenKW09!F55)/ErgebnisKW09!C20 ->  | D30: =(KostenKW09!E57-(KostenKW09!E51*KostenKW09!F51+KostenKW09!E52*KostenKW09!F52+KostenKW09!E53*KostenKW09!F53+KostenKW09!E54*KostenKW09!F54+KostenKW09!E55*KostenKW09!F55))/C21 ->  | G30: Frisch- und Mischküche | H30: Kühlkostsystem | I30: Warmverpflegung
A31: Wareneinsatzkosten | B31: =KostenKW09!E15/ErgebnisKW09!B12 ->  | C31: =(KostenKW09!E15*KostenKW09!F15)/ErgebnisKW09!C20 ->  | D31: =(KostenKW09!E15-(KostenKW09!E15*KostenKW09!F15))/ErgebnisKW09!C21 ->  | F31: Wareneinstandskosten | G31: 0.45 | H31: 55- 57 % | I31: 60 - 63 %
A32: Gemeinkosten | B32: =KostenKW09!E48/ErgebnisKW09!B12 ->  | C32: =(KostenKW09!E17*KostenKW09!F17+KostenKW09!E18*KostenKW09!F18+KostenKW09!E19*KostenKW09!F19+KostenKW09!E20*KostenKW09!F20+KostenKW09!E27*KostenKW09!F27+KostenKW09!E28*KostenKW09!F28+KostenKW09!E29*KostenKW09!F29+KostenKW09!E30*KostenKW09!F30+KostenKW09!E31*KostenKW09!F31+KostenKW09!E32*KostenKW09!F32+KostenKW09!E33*KostenKW09!F33+KostenKW09!E34*KostenKW09!F34+KostenKW09!E35*KostenKW09!F35+KostenKW09!E36*KostenKW09!F36+KostenKW09!E37*KostenKW09!F37+KostenKW09!E38*KostenKW09!F38+KostenKW09!E39*KostenKW09!F39+KostenKW09!E46*KostenKW09!F46)/ErgebnisKW09!C20 ->  | D32: =(KostenKW09!E48-(KostenKW09!E17*KostenKW09!F17+KostenKW09!E18*KostenKW09!F18+KostenKW09!E19*KostenKW09!F19+KostenKW09!E20*KostenKW09!F20+KostenKW09!E27*KostenKW09!F27+KostenKW09!E28*KostenKW09!F28+KostenKW09!E29*KostenKW09!F29+KostenKW09!E30*KostenKW09!F30+KostenKW09!E31*KostenKW09!F31+KostenKW09!E32*KostenKW09!F32+KostenKW09!E33*KostenKW09!F33+KostenKW09!E34*KostenKW09!F34+KostenKW09!E35*KostenKW09!F35+KostenKW09!E36*KostenKW09!F36+KostenKW09!E37*KostenKW09!F37+KostenKW09!E38*KostenKW09!F38+KostenKW09!E39*KostenKW09!F39+KostenKW09!E46*KostenKW09!F46))/ErgebnisKW09!C21 ->  | F32: Personalkosten | G32: 50- 52 % | H32: 40- 42 % | I32: 0.02
A33: Sonstige Kosten | B33: =KostenKW09!E59/ErgebnisKW09!B12 ->  | C33: =(KostenKW09!E59*KostenKW09!F59)/ErgebnisKW09!C20 ->  | D33: =(KostenKW09!E59-(KostenKW09!E59*KostenKW09!F59))/ErgebnisKW09!C21 ->  | F33: Gemeinkosten | G33: 3- 5 % | H33: 0.03 | I33: 35 - 38 %
A35: Akzeptanzquote der Mittagsverpflegung | B35: =ErlösKW09!I47/(ErlösKW09!D15*ErlösKW09!D17) -> 
A37: Grafische Darstellungen (alle bezogen auf eine Woche)
A74: ¹ Arens-Azevêdo, U. und Lichtenberg, W., 2007: Planung kleiner Küchen in Schulen, Kitas und Heimen. hrsg. von AID infodienst, Bonn, S. 33

Sheet ForecastKW09
A1: Kalkulations-Check | F1: =KWMonat(ErlösKW09!F9,Hilfstabelle!F2) -> 2
A2: Hochrechnung
A6: =ErlösKW09!$F$8 -> 2024-02-26 | B6: =ErlösKW09!$F$9 -> 9
B9: Hochrechnung | E9: Hochrechnung
A11: Gesamtnettoerlös pro vollem Schulmonat | B11: =ErgebnisKW09!B11*4.3 -> 0 | D11: Gesamtnettoerlös pro Schuljahr | E11: =ErgebnisKW09!B11*(52-14.5) -> 0
A12: Gesamtkosten pro vollem Schulmonat | B12: =ErgebnisKW09!B12*4.3 -> 0 | D12: Gesamtkosten pro Schuljahr | E12: =ErgebnisKW09!B12*(52-14.5) -> 0
A13: Überschuss / Unterdeckung pro vollem Schulmonat | B13: =B11-B12 -> 0 | D13: Überschuss / Unterdeckung pro Schuljahr | E13: =E11-E12 -> 0
C15: Bericht | D15: Hochrechnung | E15: Hochrechnung
A16: Ergebnisart | B16: Verpflegungsform | C16: pro Woche | D16: pro Monat | E16: pro Jahr
A17: Nettoerlös | B17: Mittagsverpflegung | C17: =ErlösKW09!I77 -> 0 | D17: =ForecastKW09!$C17*4.3 -> 0 | E17: =Tabelle6246[[#This Row],[pro Woche]]*(52-14.5) -> 0
B18: Zwischenverpflegung | C18: =ErlösKW09!I83 -> 0 | D18: =ForecastKW09!$C18*4.3 -> 0 | E18: =E11-E17 -> 0
A19: Kosten | B19: Mittagsverpflegung | C19: =KostenKW09!E15*KostenKW09!F15+KostenKW09!E17*KostenKW09!F17+KostenKW09!E18*KostenKW09!F18+KostenKW09!E19*KostenKW09!F19+KostenKW09!E20*KostenKW09!F20+KostenKW09!E27*KostenKW09!F27+KostenKW09!E28*KostenKW09!F28+KostenKW09!E29*KostenKW09!F29+KostenKW09!E30*KostenKW09!F30+KostenKW09!E31*KostenKW09!F31+KostenKW09!E32*KostenKW09!F32+KostenKW09!E33*KostenKW09!F33+KostenKW09!E34*KostenKW09!F34+KostenKW09!E35*KostenKW09!F35+KostenKW09!E36*KostenKW09!F36+KostenKW09!E37*KostenKW09!F37+KostenKW09!E38*KostenKW09!F38+KostenKW09!E39*KostenKW09!F39+KostenKW09!E46*KostenKW09!F46+KostenKW09!E51*KostenKW09!F51+KostenKW09!E52*KostenKW09!F52+KostenKW09!E53*KostenKW09!F53+KostenKW09!E54*KostenKW09!F54+KostenKW09!E55*KostenKW09!F55+KostenKW09!E59*KostenKW09!F59 -> 0 | D19: =ForecastKW09!$C19*4.3 -> 0 | E19: =Tabelle6246[[#This Row],[pro Woche]]*(52-14.5) -> 0
B20: Zwischenverpflegung | C20: =ErgebnisKW09!B12-ForecastKW09!C19 -> 0 | D20: =ForecastKW09!$C20*4.3 -> 0 | E20: =E12-E19 -> 0
A21: Überschuss / Unterdeckung | B21: Mittagsverpflegung | C21: =C17-C19 -> 0 | D21: =ForecastKW09!$C21*4.3 -> 0 | E21: =E17-E19 -> 0
B22: Zwischenverpflegung | C22: =C18-C20 -> 0 | D22: =ForecastKW09!$C22*4.3 -> 0 | E22: =E18-E20 -> 0

Sheet ErlösKW10
A1: Kalkulations-Check | F1: =KWMonat(F9,Hilfstabelle!F2) -> 3 | G1: =KWMonat(F9,Hilfstabelle!F2) -> 3
A2: Rahmen- und Erlösdaten
A6: =F8 -> 2024-03-04 | B6: =F9 -> 10
A8: Zunächst werden einige Basisdaten zur Mittagsverpflegung an Ihrer Schule benötigt: | F8: =IF($F$9=1,Hauptmenue!E9,VLOOKUP($F$9,Hilfstabelle!$D$3:$F$54,3,2)) -> 2024-03-04 | G8: =Hauptmenue!E9 -> 2024-01-01
F9: 10 | G9: Kalenderwoche
A11: Es könnten an diese Stelle auch die Daten der Schule eingetragen werden
A13: Schulart:
A15: gesamte Schülerzahl der Schule: *
A17: An wievielen Tagen pro Woche gibt es ein warmes Mittagessen? *
A19: Wieviele Hauptgerichte gibt es zur Auswahl:
A21: Welches Küchensystem liegt an der Schule vor: (bitte ankreuzen) | D21: Zubereitungsküche | E21: Aufbereitungsküche | F21: Verteilerküche
A24: Nur bei Aufbereitungs- und Verteilerküche: Welches Belieferungssystem liegt vor? | D24: Cook & Chill | E24: Cook & Freeze | F24: Cook & Hold
A27: Abzuführende Umsatzsteuer Mittagsverpflegung: (0%, 7% oder 19%) | D27: 0.19 | E27: Woche: | G27: z. B. Schulwoche, Ferien
A28: Abzuführende Umsatzsteuer Zwischenverpflegung: (0%, 7% oder 19%) | D28: 0.07
D30: Essensteilnehmerzahlen pro Speise
D31: =VLOOKUP(F9,Hilfstabelle!$D$3:$F$54,3,2) -> 43893 | E31: =D31+1 -> 43894 | F31: =E31+1 -> 43895 | G31: =F31+1 -> 43896 | H31: 43897
B32: Eingabe individueller Bezeichnungen möglich | D32: Montag | E32: Dienstag | F32: Mittwoch | G32: Donnerstag | H32: Freitag | I32: Woche gesamt
A33: Hauptspeise 1: | I33: =SUM(D33:H33) -> 0
A34: Hauptspeise 2: | I34: 0
A35: Hauptspeise 3: | I35: 0
A36: Hauptspeise 4: | I36: 0
A37: Hauptspeise 5: | I37: 0
A38: Speise 4: | I38: 0
A39: Speise 5: | I39: 0
A40: Speise 6: | I40: 0
A41: Speise 7: | I41: 0
A42: Speise 8: | I42: 0
A43: Speise 9: | I43: 0
A44: Speise 10: | I44: 0
D47: Bruttopreise | H47: Summe Hauptspeisen/Woche: | I47: =SUM(I33:I37) -> 0
A48: Hauptspeise 1: | B48: =B33 -> 0
A49: Hauptspeise 2: | B49: =B34 -> 0
A50: Hauptspeise 3: | B50: =B35 -> 0
A51: Hauptspeise 4: | B51: 0
A52: Hauptspeise 5: | B52: =B37 -> 0
A53: Speise 4: | B53: =B38 -> 0
A54: Speise 5: | B54: 0
A55: Speise 6: | B55: 0
A56: Speise 7: | B56: 0
A57: Speise 8: | B57: 0
A58: Speise 9: | B58: 0
A59: Speise 10: | B59: 0
D61: Erlössumme Brutto
D62: =D31 -> 43893 | E62: =E31 -> 43894 | F62: 43895 | G62: 43896 | H62: 43897
D63: Montag | E63: Dienstag | F63: Mittwoch | G63: Donnerstag | H63: Freitag | I63: Erlös/Woche
A64: Hauptspeise 1: | B64: =B33 -> 0 | D64: =D33*$D$48 -> 0 | E64: =E33*$D$48 -> 0 | F64: 0 | G64: 0 | H64: 0 | I64: =SUM(D64:H64) -> 0
A65: Hauptspeise 2: | B65: =B34 -> 0 | D65: =D34*$D$49 -> 0 | E65: =E34*$D$49 -> 0 | F65: =F34*$D$49 -> 0 | G65: 0 | H65: 0 | I65: 0
A66: Hauptspeise 3: | B66: 0 | D66: =D35*$D$50 -> 0 | E66: =E35*$D$50 -> 0 | F66: =F35*$D$50 -> 0 | G66: 0 | H66: 0 | I66: 0
A67: Hauptspeise 4: | B67: 0 | D67: =D36*$D$51 -> 0 | E67: =E36*$D$51 -> 0 | F67: =F36*$D$51 -> 0 | G67: 0 | H67: 0 | I67: 0
A68: Hauptspeise 5: | B68: 0 | D68: =D37*$D$52 -> 0 | E68: =E37*$D$52 -> 0 | F68: =F37*$D$52 -> 0 | G68: 0 | H68: 0 | I68: 0
A69: Speise 4: | B69: 0 | D69: =D38*$D$53 -> 0 | E69: =E38*$D$53 -> 0 | F69: =F38*$D$53 -> 0 | G69: 0 | H69: 0 | I69: 0
A70: Speise 5: | B70: 0 | D70: =D39*$D$54 -> 0 | E70: =E39*$D$54 -> 0 | F70: =F39*$D$54 -> 0 | G70: 0 | H70: 0 | I70: 0
A71: Speise 6: | B71: 0 | D71: =D40*$D$55 -> 0 | E71: =E40*$D$55 -> 0 | F71: =F40*$D$55 -> 0 | G71: 0 | H71: 0 | I71: 0
A72: Speise 7: | B72: 0 | D72: =D41*$D$56 -> 0 | E72: =E41*$D$56 -> 0 | F72: =F41*$D$56 -> 0 | G72: 0 | H72: 0 | I72: 0
A73: Speise 8: | B73: 0 | D73: =D42*$D$57 -> 0 | E73: =E42*$D$57 -> 0 | F73: =F42*$D$57 -> 0 | G73: 0 | H73: 0 | I73: 0
A74: Speise 9: | B74: 0 | D74: =D43*$D$58 -> 0 | E74: =E43*$D$58 -> 0 | F74: =F43*$D$58 -> 0 | G74: 0 | H74: 0 | I74: 0
A75: Speise 10: | B75: 0 | D75: =D44*$D$59 -> 0 | E75: =E44*$D$59 -> 0 | F75: =F44*$D$59 -> 0 | G75: 0 | H75: 0 | I75: 0
A76: Brutto-Erlössummen gesamt | D76: =SUM(D64:D75) -> 0 | E76: 0 | F76: 0 | G76: 0 | H76: 0 | I76: 0
A77: Netto-Erlössummen gesamt | D77: =D76*100/(100+(100*$D27)) -> 0 | E77: =E76*100/(100+(100*$D27)) -> 0 | F77: =F76*100/(100+(100*$D27)) -> 0 | G77: =G76*100/(100+(100*$D27)) -> 0 | H77: =H76*100/(100+(100*$D27)) -> 0 | I77: =SUM(D77:H77) -> 0
D80: Montag | E80: Dienstag | F80: Mittwoch | G80: Donnerstag | H80: Freitag | I80: Erlös/Woche
D81: =D31 -> 43893 | E81: =E31 -> 43894 | F81: 43895 | G81: 43896 | H81: 43897
A82: Gesamtbruttotageserlös durch sonstige Verpflegung (Zwischenverpflegung)* | I82: =SUM(D82:H82) -> 0
A83: Nettogesamterlöse | D83: =D82*100/(100+(100*$D28)) -> 0 | E83: =E82*100/(100+(100*$D28)) -> 0 | F83: =F82*100/(100+(100*$D28)) -> 0 | G83: =G82*100/(100+(100*$D28)) -> 0 | H83: =H82*100/(100+(100*$D28)) -> 0 | I83: =SUM(D83:H83) -> 0
A86: Sonstige Nettoerlöse pro Monat | D86: Subventionen pro Monat

Sheet KostenKW10
A1: Kalkulations-Check | F1: =KWMonat(ErlösKW10!F9,Hilfstabelle!F2) -> 3
A2: Kostendaten
A6: =ErlösKW10!F8 -> 2024-03-04 | B6: =ErlösKW10!F9 -> 10
A8: Nun geben Sie bitte die folgenden Kostendaten zur Mittagsverpflegung ein:
A10: Geben Sie einen ungefähren, gerundeten Anteil an, der auf die warme Mittagsverpflegung entfällt, z.B. entfällt 70 % Ihres gesamten Wareneinsatzes auf die Mittagsverpflegung, die restlichen 30% sind dem Bereich Zwischenverpflegung zuzuordnen. Kosten die unabhängig von der Verpflegungform anfallen (z.B. Miete) werden zu 50% aufgeteilt. Falls Sie nur Mittagsverpflegung anbieten, geben Sie als Anteil bei allen Kostenpunkten 100% ein.
E13: Gesamtwert in € | F13: %-Anteil Mittagsverpflegung
A15: Wareneinsatz | C15: Nettowarenwert pro Woche | D15: (alle Speisen und Getränke für eine Woche) | G15: Wareneinkaufspreis abzüglich 7% Umsatzsteuer
G16: (Rechenweg Einkaufspreis * 100 / 107 = Nettowarenwert)
A17: Gemeinkosten | C17: Fixe Kosten pro Woche | D17: Miete / Pacht
D18: Kosten für Müllabfuhr | G18: kann meist in der Schule oder beim Sach-aufwandsträger eingesehen werden
D19: Kosten für Versicherungen (Brand-, Wasserschäden)
D20: Sonstiges
C27: Variable Kosten pro Woche | D27: Reinigungs- und Desinfektionsmittel
D28: Energiekosten | G28: kann meist in der Schule oder beim Sach-aufwandsträger eingesehen werden
D29: Wasser- und Abwasserkosten
D30: Heizungskosten
D31: Kosten für Schädlingsbekämpfung
D32: Kosten für Reinigung der Mensa | G32: kann meist in der Schule oder beim Sach-aufwandsträger eingesehen werden
D33: Verbrauchsgüter (Servietten, Alufolie…)
D34: Ersatzbeschaffungen bis ca. 100 € (Geschirr, kleine Küchengeräte…)
D35: Wäschekosten (Personal-, Küche- und Tischwäsche)
D36: Kosten für Reparatur- und Wartungsarbeiten
D37: Kosten für Schulungs- und Weiterbildungsmaßnahmen
D38: Beiträge (z.B. Berufsgenossenschaft)
D39: Verwaltungskosten ( z.B. für Essensabrechnung, Bürobedarf...)
D46: Sonstige Gemeinkosten
D48: Gesamtgemeinkosten pro Woche | E48: =SUM(E17:E25,E27:E46) -> 0
A50: Personalkosten | C50: gesamte Lohnkosten inklusive Lohnnebenkosten (Sozialabgaben) pro Woche für:
D51: Küchenleiter
D52: Küchenmitarbeiter
D53: Spül- und Putzkräfte
D54: Praktikanten, Azubis…
D55: sonstiges
D57: Gesamtpersonalkosten pro Woche | E57: =SUM(E51:E55) -> 0
D59: Sonstiges
D61: Gesamtkosten pro Schulwoche | E61: =SUM(E15,E48,E57,E59) -> 0

Sheet ErgebnisKW10
A1: Kalkulations-Check | F1: =KWMonat(ErlösKW10!F9,Hilfstabelle!F2) -> 3
A2: Ergebnisausgabe: Daten der aktuellen Kalenderwoche
A6: =ErlösKW10!$F$8 -> 2024-03-04 | B6: =ErlösKW10!$F$9 & " KW" -> 10 KW
B9: Bericht
A11: Gesamtnettoerlös pro Schulwoche | B11: =ErlösKW10!I77+ErlösKW10!I83+ErlösKW10!G86 -> 0
A12: Gesamtkosten pro Schulwoche | B12: =KostenKW10!E61 -> 0
A13: Überschuss / Unterdeckung pro Schulwoche | B13: =B11-B12 -> 0
C16: Bericht
A17: Ergebnisart | B17: Verpflegungsform | C17: pro Woche
A18: Nettoerlös | B18: Mittagsverpflegung | C18: =ErlösKW10!I77 -> 0
B19: Zwischenverpflegung | C19: =ErlösKW10!I83 -> 0
A20: Kosten | B20: Mittagsverpflegung | C20: =KostenKW10!E15*KostenKW10!F15+KostenKW10!E17*KostenKW10!F17+KostenKW10!E18*KostenKW10!F18+KostenKW10!E19*KostenKW10!F19+KostenKW10!E20*KostenKW10!F20+KostenKW10!E27*KostenKW10!F27+KostenKW10!E28*KostenKW10!F28+KostenKW10!E29*KostenKW10!F29+KostenKW10!E30*KostenKW10!F30+KostenKW10!E31*KostenKW10!F31+KostenKW10!E32*KostenKW10!F32+KostenKW10!E33*KostenKW10!F33+KostenKW10!E34*KostenKW10!F34+KostenKW10!E35*KostenKW10!F35+KostenKW10!E36*KostenKW10!F36+KostenKW10!E37*KostenKW10!F37+KostenKW10!E38*KostenKW10!F38+KostenKW10!E39*KostenKW10!F39+KostenKW10!E46*KostenKW10!F46+KostenKW10!E51*KostenKW10!F51+KostenKW10!E52*KostenKW10!F52+KostenKW10!E53*KostenKW10!F53+KostenKW10!E54*KostenKW10!F54+KostenKW10!E55*KostenKW10!F55+KostenKW10!E59*KostenKW10!F59 -> 0
B21: Zwischenverpflegung | C21: =ErgebnisKW10!B12-ErgebnisKW10!C20 -> 0
A22: Überschuss / Unterdeckung | B22: Mittagsverpflegung | C22: =C18-C20 -> 0
B23: Zwischenverpflegung | C23: =C19-C21 -> 0
A25: Kennzahlen (bezogen auf eine Schulwoche)
A26: Ergebnisart | B26: Gesamt | C26: Mittagsverpflegung | D26: Zwischenverpflegung
A27: Erlös | B27: =B11/B11 ->  | C27: =C18/B11 ->  | D27: =C19/B11 -> 
A28: Kosten | B28: =B12/B12 ->  | C28: =C20/B12 ->  | D28: =C21/B12 -> 
A29: Überschuss / Unterdeckung | B29: =B13/B13 ->  | C29: =C22/B13 ->  | D29: =C23/B13 ->  | F29: Richtwerte Kostenverteilung Mittagsverpflegung¹:
A30: Personalkosten | B30: =KostenKW10!E57/ErgebnisKW10!B12 ->  | C30: =(KostenKW10!E51*KostenKW10!F51+KostenKW10!E52*KostenKW10!F52+KostenKW10!E53*KostenKW10!F53+KostenKW10!E54*KostenKW10!F54+KostenKW10!E55*KostenKW10!F55)/ErgebnisKW10!C20 ->  | D30: =(KostenKW10!E57-(KostenKW10!E51*KostenKW10!F51+KostenKW10!E52*KostenKW10!F52+KostenKW10!E53*KostenKW10!F53+KostenKW10!E54*KostenKW10!F54+KostenKW10!E55*KostenKW10!F55))/C21 ->  | G30: Frisch- und Mischküche | H30: Kühlkostsystem | I30: Warmverpflegung
A31: Wareneinsatzkosten | B31: =KostenKW10!E15/ErgebnisKW10!B12 ->  | C31: =(KostenKW10!E15*KostenKW10!F15)/ErgebnisKW10!C20 ->  | D31: =(KostenKW10!E15-(KostenKW10!E15*KostenKW10!F15))/ErgebnisKW10!C21 ->  | F31: Wareneinstandskosten | G31: 0.45 | H31: 55- 57 % | I31: 60 - 63 %
A32: Gemeinkosten | B32: =KostenKW10!E48/ErgebnisKW10!B12 ->  | C32: =(KostenKW10!E17*KostenKW10!F17+KostenKW10!E18*KostenKW10!F18+KostenKW10!E19*KostenKW10!F19+KostenKW10!E20*KostenKW10!F20+KostenKW10!E27*KostenKW10!F27+KostenKW10!E28*KostenKW10!F28+KostenKW10!E29*KostenKW10!F29+KostenKW10!E30*KostenKW10!F30+KostenKW10!E31*KostenKW10!F31+KostenKW10!E32*KostenKW10!F32+KostenKW10!E33*KostenKW10!F33+KostenKW10!E34*KostenKW10!F34+KostenKW10!E35*KostenKW10!F35+KostenKW10!E36*KostenKW10!F36+KostenKW10!E37*KostenKW10!F37+KostenKW10!E38*KostenKW10!F38+KostenKW10!E39*KostenKW10!F39+KostenKW10!E46*KostenKW10!F46)/ErgebnisKW10!C20 ->  | D32: =(KostenKW10!E48-(KostenKW10!E17*KostenKW10!F17+KostenKW10!E18*KostenKW10!F18+KostenKW10!E19*KostenKW10!F19+KostenKW10!E20*KostenKW10!F20+KostenKW10!E27*KostenKW10!F27+KostenKW10!E28*KostenKW10!F28+KostenKW10!E29*KostenKW10!F29+KostenKW10!E30*KostenKW10!F30+KostenKW10!E31*KostenKW10!F31+KostenKW10!E32*KostenKW10!F32+KostenKW10!E33*KostenKW10!F33+KostenKW10!E34*KostenKW10!F34+KostenKW10!E35*KostenKW10!F35+KostenKW10!E36*KostenKW10!F36+KostenKW10!E37*KostenKW10!F37+KostenKW10!E38*KostenKW10!F38+KostenKW10!E39*KostenKW10!F39+KostenKW10!E46*KostenKW10!F46))/ErgebnisKW10!C21 ->  | F32: Personalkosten | G32: 50- 52 % | H32: 40- 42 % | I32: 0.02
A33: Sonstige Kosten | B33: =KostenKW10!E59/ErgebnisKW10!B12 ->  | C33: =(KostenKW10!E59*KostenKW10!F59)/ErgebnisKW10!C20 ->  | D33: =(KostenKW10!E59-(KostenKW10!E59*KostenKW10!F59))/ErgebnisKW10!C21 ->  | F33: Gemeinkosten | G33: 3- 5 % | H33: 0.03 | I33: 35 - 38 %
A35: Akzeptanzquote der Mittagsverpflegung | B35: =ErlösKW10!I47/(ErlösKW10!D15*ErlösKW10!D17) -> 
A37: Grafische Darstellungen (alle bezogen auf eine Woche)
A74: ¹ Arens-Azevêdo, U. und Lichtenberg, W., 2007: Planung kleiner Küchen in Schulen, Kitas und Heimen. hrsg. von AID infodienst, Bonn, S. 33

Sheet ForecastKW10
A1: Kalkulations-Check | F1: =KWMonat(ErlösKW10!F9,Hilfstabelle!F2) -> 3
A2: Hochrechnung
A6: =ErlösKW10!$F$8 -> 2024-03-04 | B6: =ErlösKW10!$F$9 -> 10
B9: Hochrechnung | E9: Hochrechnung
A11: Gesamtnettoerlös pro vollem Schulmonat | B11: =ErgebnisKW10!B11*4.3 -> 0 | D11: Gesamtnettoerlös pro Schuljahr | E11: =ErgebnisKW10!B11*(52-14.5) -> 0
A12: Gesamtkosten pro vollem Schulmonat | B12: =ErgebnisKW10!B12*4.3 -> 0 | D12: Gesamtkosten pro Schuljahr | E12: =ErgebnisKW10!B12*(52-14.5) -> 0
A13: Überschuss / Unterdeckung pro vollem Schulmonat | B13: =B11-B12 -> 0 | D13: Überschuss / Unterdeckung pro Schuljahr | E13: =E11-E12 -> 0
C15: Bericht | D15: Hochrechnung | E15: Hochrechnung
A16: Ergebnisart | B16: Verpflegungsform | C16: pro Woche | D16: pro Monat | E16: pro Jahr
A17: Nettoerlös | B17: Mittagsverpflegung | C17: =ErlösKW10!I77 -> 0 | D17: =ForecastKW10!$C17*4.3 -> 0 | E17: =Tabelle6251[[#This Row],[pro Woche]]*(52-14.5) -> 0
B18: Zwischenverpflegung | C18: =ErlösKW10!I83 -> 0 | D18: =ForecastKW10!$C18*4.3 -> 0 | E18: =E11-E17 -> 0
A19: Kosten | B19: Mittagsverpflegung | C19: =KostenKW10!E15*KostenKW10!F15+KostenKW10!E17*KostenKW10!F17+KostenKW10!E18*KostenKW10!F18+KostenKW10!E19*KostenKW10!F19+KostenKW10!E20*KostenKW10!F20+KostenKW10!E27*KostenKW10!F27+KostenKW10!E28*KostenKW10!F28+KostenKW10!E29*KostenKW10!F29+KostenKW10!E30*KostenKW10!F30+KostenKW10!E31*KostenKW10!F31+KostenKW10!E32*KostenKW10!F32+KostenKW10!E33*KostenKW10!F33+KostenKW10!E34*KostenKW10!F34+KostenKW10!E35*KostenKW10!F35+KostenKW10!E36*KostenKW10!F36+KostenKW10!E37*KostenKW10!F37+KostenKW10!E38*KostenKW10!F38+KostenKW10!E39*KostenKW10!F39+KostenKW10!E46*KostenKW10!F46+KostenKW10!E51*KostenKW10!F51+KostenKW10!E52*KostenKW10!F52+KostenKW10!E53*KostenKW10!F53+KostenKW10!E54*KostenKW10!F54+KostenKW10!E55*KostenKW10!F55+KostenKW10!E59*KostenKW10!F59 -> 0 | D19: =ForecastKW10!$C19*4.3 -> 0 | E19: =Tabelle6251[[#This Row],[pro Woche]]*(52-14.5) -> 0
B20: Zwischenverpflegung | C20: =ErgebnisKW10!B12-ForecastKW10!C19 -> 0 | D20: =ForecastKW10!$C20*4.3 -> 0 | E20: =E12-E19 -> 0
A21: Überschuss / Unterdeckung | B21: Mittagsverpflegung | C21: =C17-C19 -> 0 | D21: =ForecastKW10!$C21*4.3 -> 0 | E21: =E17-E19 -> 0
B22: Zwischenverpflegung | C22: =C18-C20 -> 0 | D22: =ForecastKW10!$C22*4.3 -> 0 | E22: =E18-E20 -> 0

Sheet ErlösKW11
A1: Kalkulations-Check | F1: =KWMonat(F9,Hilfstabelle!F2) -> 3 | G1: =KWMonat(F9,Hilfstabelle!F2) -> 3
A2: Rahmen- und Erlösdaten
A6: =F8 -> 2024-03-11 | B6: =F9 -> 11
A8: Zunächst werden einige Basisdaten zur Mittagsverpflegung an Ihrer Schule benötigt: | F8: =IF($F$9=1,Hauptmenue!E9,VLOOKUP($F$9,Hilfstabelle!$D$3:$F$54,3,2)) -> 2024-03-11 | G8: =Hauptmenue!E9 -> 2024-01-01
F9: 11 | G9: Kalenderwoche
A11: Es könnten an diese Stelle auch die Daten der Schule eingetragen werden
A13: Schulart:
A15: gesamte Schülerzahl der Schule: *
A17: An wievielen Tagen pro Woche gibt es ein warmes Mittagessen? *
A19: Wieviele Hauptgerichte gibt es zur Auswahl:
A21: Welches Küchensystem liegt an der Schule vor: (bitte ankreuzen) | D21: Zubereitungsküche | E21: Aufbereitungsküche | F21: Verteilerküche
A24: Nur bei Aufbereitungs- und Verteilerküche: Welches Belieferungssystem liegt vor? | D24: Cook & Chill | E24: Cook & Freeze | F24: Cook & Hold
A27: Abzuführende Umsatzsteuer Mittagsverpflegung: (0%, 7% oder 19%) | D27: 0.19 | E27: Woche: | G27: z. B. Schulwoche, Ferien
A28: Abzuführende Umsatzsteuer Zwischenverpflegung: (0%, 7% oder 19%) | D28: 0.07
D30: Essensteilnehmerzahlen pro Speise
D31: =VLOOKUP(F9,Hilfstabelle!$D$3:$F$54,3,2) -> 43900 | E31: =D31+1 -> 43901 | F31: =E31+1 -> 43902 | G31: =F31+1 -> 43903 | H31: 43904
B32: Eingabe individueller Bezeichnungen möglich | D32: Montag | E32: Dienstag | F32: Mittwoch | G32: Donnerstag | H32: Freitag | I32: Woche gesamt
A33: Hauptspeise 1: | I33: =SUM(D33:H33) -> 0
A34: Hauptspeise 2: | I34: 0
A35: Hauptspeise 3: | I35: 0
A36: Hauptspeise 4: | I36: 0
A37: Hauptspeise 5: | I37: 0
A38: Speise 4: | I38: 0
A39: Speise 5: | I39: 0
A40: Speise 6: | I40: 0
A41: Speise 7: | I41: 0
A42: Speise 8: | I42: 0
A43: Speise 9: | I43: 0
A44: Speise 10: | I44: 0
D47: Bruttopreise | H47: Summe Hauptspeisen/Woche: | I47: =SUM(I33:I37) -> 0
A48: Hauptspeise 1: | B48: =B33 -> 0
A49: Hauptspeise 2: | B49: =B34 -> 0
A50: Hauptspeise 3: | B50: =B35 -> 0
A51: Hauptspeise 4: | B51: 0
A52: Hauptspeise 5: | B52: =B37 -> 0
A53: Speise 4: | B53: =B38 -> 0
A54: Speise 5: | B54: 0
A55: Speise 6: | B55: 0
A56: Speise 7: | B56: 0
A57: Speise 8: | B57: 0
A58: Speise 9: | B58: 0
A59: Speise 10: | B59: 0
D61: Erlössumme Brutto
D62: =D31 -> 43900 | E62: =E31 -> 43901 | F62: 43902 | G62: 43903 | H62: 43904
D63: Montag | E63: Dienstag | F63: Mittwoch | G63: Donnerstag | H63: Freitag | I63: Erlös/Woche
A64: Hauptspeise 1: | B64: =B33 -> 0 | D64: =D33*$D$48 -> 0 | E64: =E33*$D$48 -> 0 | F64: 0 | G64: 0 | H64: 0 | I64: =SUM(D64:H64) -> 0
A65: Hauptspeise 2: | B65: =B34 -> 0 | D65: =D34*$D$49 -> 0 | E65: =E34*$D$49 -> 0 | F65: =F34*$D$49 -> 0 | G65: 0 | H65: 0 | I65: 0
A66: Hauptspeise 3: | B66: 0 | D66: =D35*$D$50 -> 0 | E66: =E35*$D$50 -> 0 | F66: =F35*$D$50 -> 0 | G66: 0 | H66: 0 | I66: 0
A67: Hauptspeise 4: | B67: 0 | D67: =D36*$D$51 -> 0 | E67: =E36*$D$51 -> 0 | F67: =F36*$D$51 -> 0 | G67: 0 | H67: 0 | I67: 0
A68: Hauptspeise 5: | B68: 0 | D68: =D37*$D$52 -> 0 | E68: =E37*$D$52 -> 0 | F68: =F37*$D$52 -> 0 | G68: 0 | H68: 0 | I68: 0
A69: Speise 4: | B69: 0 | D69: =D38*$D$53 -> 0 | E69: =E38*$D$53 -> 0 | F69: =F38*$D$53 -> 0 | G69: 0 | H69: 0 | I69: 0
A70: Speise 5: | B70: 0 | D70: =D39*$D$54 -> 0 | E70: =E39*$D$54 -> 0 | F70: =F39*$D$54 -> 0 | G70: 0 | H70: 0 | I70: 0
A71: Speise 6: | B71: 0 | D71: =D40*$D$55 -> 0 | E71: =E40*$D$55 -> 0 | F71: =F40*$D$55 -> 0 | G71: 0 | H71: 0 | I71: 0
A72: Speise 7: | B72: 0 | D72: =D41*$D$56 -> 0 | E72: =E41*$D$56 -> 0 | F72: =F41*$D$56 -> 0 | G72: 0 | H72: 0 | I72: 0
A73: Speise 8: | B73: 0 | D73: =D42*$D$57 -> 0 | E73: =E42*$D$57 -> 0 | F73: =F42*$D$57 -> 0 | G73: 0 | H73: 0 | I73: 0
A74: Speise 9: | B74: 0 | D74: =D43*$D$58 -> 0 | E74: =E43*$D$58 -> 0 | F74: =F43*$D$58 -> 0 | G74: 0 | H74: 0 | I74: 0
A75: Speise 10: | B75: 0 | D75: =D44*$D$59 -> 0 | E75: =E44*$D$59 -> 0 | F75: =F44*$D$59 -> 0 | G75: 0 | H75: 0 | I75: 0
A76: Brutto-Erlössummen gesamt | D76: =SUM(D64:D75) -> 0 | E76: 0 | F76: 0 | G76: 0 | H76: 0 | I76: 0
A77: Netto-Erlössummen gesamt | D77: =D76*100/(100+(100*$D27)) -> 0 | E77: =E76*100/(100+(100*$D27)) -> 0 | F77: =F76*100/(100+(100*$D27)) -> 0 | G77: =G76*100/(100+(100*$D27)) -> 0 | H77: =H76*100/(100+(100*$D27)) -> 0 | I77: =SUM(D77:H77) -> 0
D80: Montag | E80: Dienstag | F80: Mittwoch | G80: Donnerstag | H80: Freitag | I80: Erlös/Woche
D81: =D31 -> 43900 | E81: =E31 -> 43901 | F81: 43902 | G81: 43903 | H81: 43904
A82: Gesamtbruttotageserlös durch sonstige Verpflegung (Zwischenverpflegung)* | I82: =SUM(D82:H82) -> 0
A83: Nettogesamterlöse | D83: =D82*100/(100+(100*$D28)) -> 0 | E83: =E82*100/(100+(100*$D28)) -> 0 | F83: =F82*100/(100+(100*$D28)) -> 0 | G83: =G82*100/(100+(100*$D28)) -> 0 | H83: =H82*100/(100+(100*$D28)) -> 0 | I83: =SUM(D83:H83) -> 0
A86: Sonstige Nettoerlöse pro Monat | D86: Subventionen pro Monat

Sheet KostenKW11
A1: Kalkulations-Check | F1: =KWMonat(ErlösKW11!F9,Hilfstabelle!F2) -> 3
A2: Kostendaten
A6: =ErlösKW11!F8 -> 2024-03-11 | B6: =ErlösKW11!F9 -> 11
A8: Nun geben Sie bitte die folgenden Kostendaten zur Mittagsverpflegung ein:
A10: Geben Sie einen ungefähren, gerundeten Anteil an, der auf die warme Mittagsverpflegung entfällt, z.B. entfällt 70 % Ihres gesamten Wareneinsatzes auf die Mittagsverpflegung, die restlichen 30% sind dem Bereich Zwischenverpflegung zuzuordnen. Kosten die unabhängig von der Verpflegungform anfallen (z.B. Miete) werden zu 50% aufgeteilt. Falls Sie nur Mittagsverpflegung anbieten, geben Sie als Anteil bei allen Kostenpunkten 100% ein.
E13: Gesamtwert in € | F13: %-Anteil Mittagsverpflegung
A15: Wareneinsatz | C15: Nettowarenwert pro Woche | D15: (alle Speisen und Getränke für eine Woche) | G15: Wareneinkaufspreis abzüglich 7% Umsatzsteuer
G16: (Rechenweg Einkaufspreis * 100 / 107 = Nettowarenwert)
A17: Gemeinkosten | C17: Fixe Kosten pro Woche | D17: Miete / Pacht
D18: Kosten für Müllabfuhr | G18: kann meist in der Schule oder beim Sach-aufwandsträger eingesehen werden
D19: Kosten für Versicherungen (Brand-, Wasserschäden)
D20: Sonstiges
C27: Variable Kosten pro Woche | D27: Reinigungs- und Desinfektionsmittel
D28: Energiekosten | G28: kann meist in der Schule oder beim Sach-aufwandsträger eingesehen werden
D29: Wasser- und Abwasserkosten
D30: Heizungskosten
D31: Kosten für Schädlingsbekämpfung
D32: Kosten für Reinigung der Mensa | G32: kann meist in der Schule oder beim Sach-aufwandsträger eingesehen werden
D33: Verbrauchsgüter (Servietten, Alufolie…)
D34: Ersatzbeschaffungen bis ca. 100 € (Geschirr, kleine Küchengeräte…)
D35: Wäschekosten (Personal-, Küche- und Tischwäsche)
D36: Kosten für Reparatur- und Wartungsarbeiten
D37: Kosten für Schulungs- und Weiterbildungsmaßnahmen
D38: Beiträge (z.B. Berufsgenossenschaft)
D39: Verwaltungskosten ( z.B. für Essensabrechnung, Bürobedarf...)
D46: Sonstige Gemeinkosten
D48: Gesamtgemeinkosten pro Woche | E48: =SUM(E17:E25,E27:E46) -> 0
A50: Personalkosten | C50: gesamte Lohnkosten inklusive Lohnnebenkosten (Sozialabgaben) pro Woche für:
D51: Küchenleiter
D52: Küchenmitarbeiter
D53: Spül- und Putzkräfte
D54: Praktikanten, Azubis…
D55: sonstiges
D57: Gesamtpersonalkosten pro Woche | E57: =SUM(E51:E55) -> 0
D59: Sonstiges
D61: Gesamtkosten pro Schulwoche | E61: =SUM(E15,E48,E57,E59) -> 0

Sheet ErgebnisKW11
A1: Kalkulations-Check | F1: =KWMonat(ErlösKW11!F9,Hilfstabelle!F2) -> 3
A2: Ergebnisausgabe: Daten der aktuellen Kalenderwoche
A6: =ErlösKW11!$F$8 -> 2024-03-11 | B6: =ErlösKW11!$F$9 & " KW" -> 11 KW
B9: Bericht
A11: Gesamtnettoerlös pro Schulwoche | B11: =ErlösKW11!I77+ErlösKW11!I83+ErlösKW11!G86 -> 0
A12: Gesamtkosten pro Schulwoche | B12: =KostenKW11!E61 -> 0
A13: Überschuss / Unterdeckung pro Schulwoche | B13: =B11-B12 -> 0
C16: Bericht
A17: Ergebnisart | B17: Verpflegungsform | C17: pro Woche
A18: Nettoerlös | B18: Mittagsverpflegung | C18: =ErlösKW11!I77 -> 0
B19: Zwischenverpflegung | C19: =ErlösKW11!I83 -> 0
A20: Kosten | B20: Mittagsverpflegung | C20: =KostenKW11!E15*KostenKW11!F15+KostenKW11!E17*KostenKW11!F17+KostenKW11!E18*KostenKW11!F18+KostenKW11!E19*KostenKW11!F19+KostenKW11!E20*KostenKW11!F20+KostenKW11!E27*KostenKW11!F27+KostenKW11!E28*KostenKW11!F28+KostenKW11!E29*KostenKW11!F29+KostenKW11!E30*KostenKW11!F30+KostenKW11!E31*KostenKW11!F31+KostenKW11!E32*KostenKW11!F32+KostenKW11!E33*KostenKW11!F33+KostenKW11!E34*KostenKW11!F34+KostenKW11!E35*KostenKW11!F35+KostenKW11!E36*KostenKW11!F36+KostenKW11!E37*KostenKW11!F37+KostenKW11!E38*KostenKW11!F38+KostenKW11!E39*KostenKW11!F39+KostenKW11!E46*KostenKW11!F46+KostenKW11!E51*KostenKW11!F51+KostenKW11!E52*KostenKW11!F52+KostenKW11!E53*KostenKW11!F53+KostenKW11!E54*KostenKW11!F54+KostenKW11!E55*KostenKW11!F55+KostenKW11!E59*KostenKW11!F59 -> 0
B21: Zwischenverpflegung | C21: =ErgebnisKW11!B12-ErgebnisKW11!C20 -> 0
A22: Überschuss / Unterdeckung | B22: Mittagsverpflegung | C22: =C18-C20 -> 0
B23: Zwischenverpflegung | C23: =C19-C21 -> 0
A25: Kennzahlen (bezogen auf eine Schulwoche)
A26: Ergebnisart | B26: Gesamt | C26: Mittagsverpflegung | D26: Zwischenverpflegung
A27: Erlös | B27: =B11/B11 ->  | C27: =C18/B11 ->  | D27: =C19/B11 -> 
A28: Kosten | B28: =B12/B12 ->  | C28: =C20/B12 ->  | D28: =C21/B12 -> 
A29: Überschuss / Unterdeckung | B29: =B13/B13 ->  | C29: =C22/B13 ->  | D29: =C23/B13 ->  | F29: Richtwerte Kostenverteilung Mittagsverpflegung¹:
A30: Personalkosten | B30: =KostenKW11!E57/ErgebnisKW11!B12 ->  | C30: =(KostenKW11!E51*KostenKW11!F51+KostenKW11!E52*KostenKW11!F52+KostenKW11!E53*KostenKW11!F53+KostenKW11!E54*KostenKW11!F54+KostenKW11!E55*KostenKW11!F55)/ErgebnisKW11!C20 ->  | D30: =(KostenKW11!E57-(KostenKW11!E51*KostenKW11!F51+KostenKW11!E52*KostenKW11!F52+KostenKW11!E53*KostenKW11!F53+KostenKW11!E54*KostenKW11!F54+KostenKW11!E55*KostenKW11!F55))/C21 ->  | G30: Frisch- und Mischküche | H30: Kühlkostsystem | I30: Warmverpflegung
A31: Wareneinsatzkosten | B31: =KostenKW11!E15/ErgebnisKW11!B12 ->  | C31: =(KostenKW11!E15*KostenKW11!F15)/ErgebnisKW11!C20 ->  | D31: =(KostenKW11!E15-(KostenKW11!E15*KostenKW11!F15))/ErgebnisKW11!C21 ->  | F31: Wareneinstandskosten | G31: 0.45 | H31: 55- 57 % | I31: 60 - 63 %
A32: Gemeinkosten | B32: =KostenKW11!E48/ErgebnisKW11!B12 ->  | C32: =(KostenKW11!E17*KostenKW11!F17+KostenKW11!E18*KostenKW11!F18+KostenKW11!E19*KostenKW11!F19+KostenKW11!E20*KostenKW11!F20+KostenKW11!E27*KostenKW11!F27+KostenKW11!E28*KostenKW11!F28+KostenKW11!E29*KostenKW11!F29+KostenKW11!E30*KostenKW11!F30+KostenKW11!E31*KostenKW11!F31+KostenKW11!E32*KostenKW11!F32+KostenKW11!E33*KostenKW11!F33+KostenKW11!E34*KostenKW11!F34+KostenKW11!E35*KostenKW11!F35+KostenKW11!E36*KostenKW11!F36+KostenKW11!E37*KostenKW11!F37+KostenKW11!E38*KostenKW11!F38+KostenKW11!E39*KostenKW11!F39+KostenKW11!E46*KostenKW11!F46)/ErgebnisKW11!C20 ->  | D32: =(KostenKW11!E48-(KostenKW11!E17*KostenKW11!F17+KostenKW11!E18*KostenKW11!F18+KostenKW11!E19*KostenKW11!F19+KostenKW11!E20*KostenKW11!F20+KostenKW11!E27*KostenKW11!F27+KostenKW11!E28*KostenKW11!F28+KostenKW11!E29*KostenKW11!F29+KostenKW11!E30*KostenKW11!F30+KostenKW11!E31*KostenKW11!F31+KostenKW11!E32*KostenKW11!F32+KostenKW11!E33*KostenKW11!F33+KostenKW11!E34*KostenKW11!F34+KostenKW11!E35*KostenKW11!F35+KostenKW11!E36*KostenKW11!F36+KostenKW11!E37*KostenKW11!F37+KostenKW11!E38*KostenKW11!F38+KostenKW11!E39*KostenKW11!F39+KostenKW11!E46*KostenKW11!F46))/ErgebnisKW11!C21 ->  | F32: Personalkosten | G32: 50- 52 % | H32: 40- 42 % | I32: 0.02
A33: Sonstige Kosten | B33: =KostenKW11!E59/ErgebnisKW11!B12 ->  | C33: =(KostenKW11!E59*KostenKW11!F59)/ErgebnisKW11!C20 ->  | D33: =(KostenKW11!E59-(KostenKW11!E59*KostenKW11!F59))/ErgebnisKW11!C21 ->  | F33: Gemeinkosten | G33: 3- 5 % | H33: 0.03 | I33: 35 - 38 %
A35: Akzeptanzquote der Mittagsverpflegung | B35: =ErlösKW11!I47/(ErlösKW11!D15*ErlösKW11!D17) -> 
A37: Grafische Darstellungen (alle bezogen auf eine Woche)
A74: ¹ Arens-Azevêdo, U. und Lichtenberg, W., 2007: Planung kleiner Küchen in Schulen, Kitas und Heimen. hrsg. von AID infodienst, Bonn, S. 33

Sheet ForecastKW11
A1: Kalkulations-Check | F1: =KWMonat(ErlösKW11!F9,Hilfstabelle!F2) -> 3
A2: Hochrechnung
A6: =ErlösKW11!$F$8 -> 2024-03-11 | B6: =ErlösKW11!$F$9 -> 11
B9: Hochrechnung | E9: Hochrechnung
A11: Gesamtnettoerlös pro vollem Schulmonat | B11: =ErgebnisKW11!B11*4.3 -> 0 | D11: Gesamtnettoerlös pro Schuljahr | E11: =ErgebnisKW11!B11*(52-14.5) -> 0
A12: Gesamtkosten pro vollem Schulmonat | B12: =ErgebnisKW11!B12*4.3 -> 0 | D12: Gesamtkosten pro Schuljahr | E12: =ErgebnisKW11!B12*(52-14.5) -> 0
A13: Überschuss / Unterdeckung pro vollem Schulmonat | B13: =B11-B12 -> 0 | D13: Überschuss / Unterdeckung pro Schuljahr | E13: =E11-E12 -> 0
C15: Bericht | D15: Hochrechnung | E15: Hochrechnung
A16: Ergebnisart | B16: Verpflegungsform | C16: pro Woche | D16: pro Monat | E16: pro Jahr
A17: Nettoerlös | B17: Mittagsverpflegung | C17: =ErlösKW11!I77 -> 0 | D17: =ForecastKW11!$C17*4.3 -> 0 | E17: =Tabelle6256[[#This Row],[pro Woche]]*(52-14.5) -> 0
B18: Zwischenverpflegung | C18: =ErlösKW11!I83 -> 0 | D18: =ForecastKW11!$C18*4.3 -> 0 | E18: =E11-E17 -> 0
A19: Kosten | B19: Mittagsverpflegung | C19: =KostenKW11!E15*KostenKW11!F15+KostenKW11!E17*KostenKW11!F17+KostenKW11!E18*KostenKW11!F18+KostenKW11!E19*KostenKW11!F19+KostenKW11!E20*KostenKW11!F20+KostenKW11!E27*KostenKW11!F27+KostenKW11!E28*KostenKW11!F28+KostenKW11!E29*KostenKW11!F29+KostenKW11!E30*KostenKW11!F30+KostenKW11!E31*KostenKW11!F31+KostenKW11!E32*KostenKW11!F32+KostenKW11!E33*KostenKW11!F33+KostenKW11!E34*KostenKW11!F34+KostenKW11!E35*KostenKW11!F35+KostenKW11!E36*KostenKW11!F36+KostenKW11!E37*KostenKW11!F37+KostenKW11!E38*KostenKW11!F38+KostenKW11!E39*KostenKW11!F39+KostenKW11!E46*KostenKW11!F46+KostenKW11!E51*KostenKW11!F51+KostenKW11!E52*KostenKW11!F52+KostenKW11!E53*KostenKW11!F53+KostenKW11!E54*KostenKW11!F54+KostenKW11!E55*KostenKW11!F55+KostenKW11!E59*KostenKW11!F59 -> 0 | D19: =ForecastKW11!$C19*4.3 -> 0 | E19: =Tabelle6256[[#This Row],[pro Woche]]*(52-14.5) -> 0
B20: Zwischenverpflegung | C20: =ErgebnisKW11!B12-ForecastKW11!C19 -> 0 | D20: =ForecastKW11!$C20*4.3 -> 0 | E20: =E12-E19 -> 0
A21: Überschuss / Unterdeckung | B21: Mittagsverpflegung | C21: =C17-C19 -> 0 | D21: =ForecastKW11!$C21*4.3 -> 0 | E21: =E17-E19 -> 0
B22: Zwischenverpflegung | C22: =C18-C20 -> 0 | D22: =ForecastKW11!$C22*4.3 -> 0 | E22: =E18-E20 -> 0

Sheet ErlösKW12
A1: Kalkulations-Check | F1: =KWMonat(F9,Hilfstabelle!F2) -> 3 | G1: =KWMonat(F9,Hilfstabelle!F2) -> 3
A2: Rahmen- und Erlösdaten
A6: =F8 -> 2024-03-18 | B6: =F9 -> 12
A8: Zunächst werden einige Basisdaten zur Mittagsverpflegung an Ihrer Schule benötigt: | F8: =IF($F$9=1,Hauptmenue!E9,VLOOKUP($F$9,Hilfstabelle!$D$3:$F$54,3,2)) -> 2024-03-18 | G8: =Hauptmenue!E9 -> 2024-01-01
F9: 12 | G9: Kalenderwoche
A11: Es könnten an diese Stelle auch die Daten der Schule eingetragen werden
A13: Schulart:
A15: gesamte Schülerzahl der Schule: *
A17: An wievielen Tagen pro Woche gibt es ein warmes Mittagessen? *
A19: Wieviele Hauptgerichte gibt es zur Auswahl:
A21: Welches Küchensystem liegt an der Schule vor: (bitte ankreuzen) | D21: Zubereitungsküche | E21: Aufbereitungsküche | F21: Verteilerküche
A24: Nur bei Aufbereitungs- und Verteilerküche: Welches Belieferungssystem liegt vor? | D24: Cook & Chill | E24: Cook & Freeze | F24: Cook & Hold
A27: Abzuführende Umsatzsteuer Mittagsverpflegung: (0%, 7% oder 19%) | D27: 0.19 | E27: Woche: | G27: z. B. Schulwoche, Ferien
A28: Abzuführende Umsatzsteuer Zwischenverpflegung: (0%, 7% oder 19%) | D28: 0.07
D30: Essensteilnehmerzahlen pro Speise
D31: =VLOOKUP(F9,Hilfstabelle!$D$3:$F$54,3,2) -> 43907 | E31: =D31+1 -> 43908 | F31: =E31+1 -> 43909 | G31: =F31+1 -> 43910 | H31: 43911
B32: Eingabe individueller Bezeichnungen möglich | D32: Montag | E32: Dienstag | F32: Mittwoch | G32: Donnerstag | H32: Freitag | I32: Woche gesamt
A33: Hauptspeise 1: | I33: =SUM(D33:H33) -> 0
A34: Hauptspeise 2: | I34: 0
A35: Hauptspeise 3: | I35: 0
A36: Hauptspeise 4: | I36: 0
A37: Hauptspeise 5: | I37: 0
A38: Speise 4: | I38: 0
A39: Speise 5: | I39: 0
A40: Speise 6: | I40: 0
A41: Speise 7: | I41: 0
A42: Speise 8: | I42: 0
A43: Speise 9: | I43: 0
A44: Speise 10: | I44: 0
D47: Bruttopreise | H47: Summe Hauptspeisen/Woche: | I47: =SUM(I33:I37) -> 0
A48: Hauptspeise 1: | B48: =B33 -> 0
A49: Hauptspeise 2: | B49: =B34 -> 0
A50: Hauptspeise 3: | B50: =B35 -> 0
A51: Hauptspeise 4: | B51: 0
A52: Hauptspeise 5: | B52: =B37 -> 0
A53: Speise 4: | B53: =B38 -> 0
A54: Speise 5: | B54: 0
A55: Speise 6: | B55: 0
A56: Speise 7: | B56: 0
A57: Speise 8: | B57: 0
A58: Speise 9: | B58: 0
A59: Speise 10: | B59: 0
D61: Erlössumme Brutto
D62: =D31 -> 43907 | E62: =E31 -> 43908 | F62: 43909 | G62: 43910 | H62: 43911
D63: Montag | E63: Dienstag | F63: Mittwoch | G63: Donnerstag | H63: Freitag | I63: Erlös/Woche
A64: Hauptspeise 1: | B64: =B33 -> 0 | D64: =D33*$D$48 -> 0 | E64: =E33*$D$48 -> 0 | F64: 0 | G64: 0 | H64: 0 | I64: =SUM(D64:H64) -> 0
A65: Hauptspeise 2: | B65: =B34 -> 0 | D65: =D34*$D$49 -> 0 | E65: =E34*$D$49 -> 0 | F65: =F34*$D$49 -> 0 | G65: 0 | H65: 0 | I65: 0
A66: Hauptspeise 3: | B66: 0 | D66: =D35*$D$50 -> 0 | E66: =E35*$D$50 -> 0 | F66: =F35*$D$50 -> 0 | G66: 0 | H66: 0 | I66: 0
A67: Hauptspeise 4: | B67: 0 | D67: =D36*$D$51 -> 0 | E67: =E36*$D$51 -> 0 | F67: =F36*$D$51 -> 0 | G67: 0 | H67: 0 | I67: 0
A68: Hauptspeise 5: | B68: 0 | D68: =D37*$D$52 -> 0 | E68: =E37*$D$52 -> 0 | F68: =F37*$D$52 -> 0 | G68: 0 | H68: 0 | I68: 0
A69: Speise 4: | B69: 0 | D69: =D38*$D$53 -> 0 | E69: =E38*$D$53 -> 0 | F69: =F38*$D$53 -> 0 | G69: 0 | H69: 0 | I69: 0
A70: Speise 5: | B70: 0 | D70: =D39*$D$54 -> 0 | E70: =E39*$D$54 -> 0 | F70: =F39*$D$54 -> 0 | G70: 0 | H70: 0 | I70: 0
A71: Speise 6: | B71: 0 | D71: =D40*$D$55 -> 0 | E71: =E40*$D$55 -> 0 | F71: =F40*$D$55 -> 0 | G71: 0 | H71: 0 | I71: 0
A72: Speise 7: | B72: 0 | D72: =D41*$D$56 -> 0 | E72: =E41*$D$56 -> 0 | F72: =F41*$D$56 -> 0 | G72: 0 | H72: 0 | I72: 0
A73: Speise 8: | B73: 0 | D73: =D42*$D$57 -> 0 | E73: =E42*$D$57 -> 0 | F73: =F42*$D$57 -> 0 | G73: 0 | H73: 0 | I73: 0
A74: Speise 9: | B74: 0 | D74: =D43*$D$58 -> 0 | E74: =E43*$D$58 -> 0 | F74: =F43*$D$58 -> 0 | G74: 0 | H74: 0 | I74: 0
A75: Speise 10: | B75: 0 | D75: =D44*$D$59 -> 0 | E75: =E44*$D$59 -> 0 | F75: =F44*$D$59 -> 0 | G75: 0 | H75: 0 | I75: 0
A76: Brutto-Erlössummen gesamt | D76: =SUM(D64:D75) -> 0 | E76: 0 | F76: 0 | G76: 0 | H76: 0 | I76: 0
A77: Netto-Erlössummen gesamt | D77: =D76*100/(100+(100*$D27)) -> 0 | E77: =E76*100/(100+(100*$D27)) -> 0 | F77: =F76*100/(100+(100*$D27)) -> 0 | G77: =G76*100/(100+(100*$D27)) -> 0 | H77: =H76*100/(100+(100*$D27)) -> 0 | I77: =SUM(D77:H77) -> 0
D80: Montag | E80: Dienstag | F80: Mittwoch | G80: Donnerstag | H80: Freitag | I80: Erlös/Woche
D81: =D31 -> 43907 | E81: =E31 -> 43908 | F81: 43909 | G81: 43910 | H81: 43911
A82: Gesamtbruttotageserlös durch sonstige Verpflegung (Zwischenverpflegung)* | I82: =SUM(D82:H82) -> 0
A83: Nettogesamterlöse | D83: =D82*100/(100+(100*$D28)) -> 0 | E83: =E82*100/(100+(100*$D28)) -> 0 | F83: =F82*100/(100+(100*$D28)) -> 0 | G83: =G82*100/(100+(100*$D28)) -> 0 | H83: =H82*100/(100+(100*$D28)) -> 0 | I83: =SUM(D83:H83) -> 0
A86: Sonstige Nettoerlöse pro Monat | D86: Subventionen pro Monat

Sheet KostenKW12
A1: Kalkulations-Check | F1: =KWMonat(ErlösKW12!F9,Hilfstabelle!F2) -> 3
A2: Kostendaten
A6: =ErlösKW12!F8 -> 2024-03-18 | B6: =ErlösKW12!F9 -> 12
A8: Nun geben Sie bitte die folgenden Kostendaten zur Mittagsverpflegung ein:
A10: Geben Sie einen ungefähren, gerundeten Anteil an, der auf die warme Mittagsverpflegung entfällt, z.B. entfällt 70 % Ihres gesamten Wareneinsatzes auf die Mittagsverpflegung, die restlichen 30% sind dem Bereich Zwischenverpflegung zuzuordnen. Kosten die unabhängig von der Verpflegungform anfallen (z.B. Miete) werden zu 50% aufgeteilt. Falls Sie nur Mittagsverpflegung anbieten, geben Sie als Anteil bei allen Kostenpunkten 100% ein.
E13: Gesamtwert in € | F13: %-Anteil Mittagsverpflegung
A15: Wareneinsatz | C15: Nettowarenwert pro Woche | D15: (alle Speisen und Getränke für eine Woche) | G15: Wareneinkaufspreis abzüglich 7% Umsatzsteuer
G16: (Rechenweg Einkaufspreis * 100 / 107 = Nettowarenwert)
A17: Gemeinkosten | C17: Fixe Kosten pro Woche | D17: Miete / Pacht
D18: Kosten für Müllabfuhr | G18: kann meist in der Schule oder beim Sach-aufwandsträger eingesehen werden
D19: Kosten für Versicherungen (Brand-, Wasserschäden)
D20: Sonstiges
C27: Variable Kosten pro Woche | D27: Reinigungs- und Desinfektionsmittel
D28: Energiekosten | G28: kann meist in der Schule oder beim Sach-aufwandsträger eingesehen werden
D29: Wasser- und Abwasserkosten
D30: Heizungskosten
D31: Kosten für Schädlingsbekämpfung
D32: Kosten für Reinigung der Mensa | G32: kann meist in der Schule oder beim Sach-aufwandsträger eingesehen werden
D33: Verbrauchsgüter (Servietten, Alufolie…)
D34: Ersatzbeschaffungen bis ca. 100 € (Geschirr, kleine Küchengeräte…)
D35: Wäschekosten (Personal-, Küche- und Tischwäsche)
D36: Kosten für Reparatur- und Wartungsarbeiten
D37: Kosten für Schulungs- und Weiterbildungsmaßnahmen
D38: Beiträge (z.B. Berufsgenossenschaft)
D39: Verwaltungskosten ( z.B. für Essensabrechnung, Bürobedarf...)
D46: Sonstige Gemeinkosten
D48: Gesamtgemeinkosten pro Woche | E48: =SUM(E17:E25,E27:E46) -> 0
A50: Personalkosten | C50: gesamte Lohnkosten inklusive Lohnnebenkosten (Sozialabgaben) pro Woche für:
D51: Küchenleiter
D52: Küchenmitarbeiter
D53: Spül- und Putzkräfte
D54: Praktikanten, Azubis…
D55: sonstiges
D57: Gesamtpersonalkosten pro Woche | E57: =SUM(E51:E55) -> 0
D59: Sonstiges
D61: Gesamtkosten pro Schulwoche | E61: =SUM(E15,E48,E57,E59) -> 0

Sheet ErgebnisKW12
A1: Kalkulations-Check | F1: =KWMonat(ErlösKW12!F9,Hilfstabelle!F2) -> 3
A2: Ergebnisausgabe: Daten der aktuellen Kalenderwoche
A6: =ErlösKW12!$F$8 -> 2024-03-18 | B6: =ErlösKW12!$F$9 & " KW" -> 12 KW
B9: Bericht
A11: Gesamtnettoerlös pro Schulwoche | B11: =ErlösKW12!I77+ErlösKW12!I83+ErlösKW12!G86 -> 0
A12: Gesamtkosten pro Schulwoche | B12: =KostenKW12!E61 -> 0
A13: Überschuss / Unterdeckung pro Schulwoche | B13: =B11-B12 -> 0
C16: Bericht
A17: Ergebnisart | B17: Verpflegungsform | C17: pro Woche
A18: Nettoerlös | B18: Mittagsverpflegung | C18: =ErlösKW12!I77 -> 0
B19: Zwischenverpflegung | C19: =ErlösKW12!I83 -> 0
A20: Kosten | B20: Mittagsverpflegung | C20: =KostenKW12!E15*KostenKW12!F15+KostenKW12!E17*KostenKW12!F17+KostenKW12!E18*KostenKW12!F18+KostenKW12!E19*KostenKW12!F19+KostenKW12!E20*KostenKW12!F20+KostenKW12!E27*KostenKW12!F27+KostenKW12!E28*KostenKW12!F28+KostenKW12!E29*KostenKW12!F29+KostenKW12!E30*KostenKW12!F30+KostenKW12!E31*KostenKW12!F31+KostenKW12!E32*KostenKW12!F32+KostenKW12!E33*KostenKW12!F33+KostenKW12!E34*KostenKW12!F34+KostenKW12!E35*KostenKW12!F35+KostenKW12!E36*KostenKW12!F36+KostenKW12!E37*KostenKW12!F37+KostenKW12!E38*KostenKW12!F38+KostenKW12!E39*KostenKW12!F39+KostenKW12!E46*KostenKW12!F46+KostenKW12!E51*KostenKW12!F51+KostenKW12!E52*KostenKW12!F52+KostenKW12!E53*KostenKW12!F53+KostenKW12!E54*KostenKW12!F54+KostenKW12!E55*KostenKW12!F55+KostenKW12!E59*KostenKW12!F59 -> 0
B21: Zwischenverpflegung | C21: =ErgebnisKW12!B12-ErgebnisKW12!C20 -> 0
A22: Überschuss / Unterdeckung | B22: Mittagsverpflegung | C22: =C18-C20 -> 0
B23: Zwischenverpflegung | C23: =C19-C21 -> 0
A25: Kennzahlen (bezogen auf eine Schulwoche)
A26: Ergebnisart | B26: Gesamt | C26: Mittagsverpflegung | D26: Zwischenverpflegung
A27: Erlös | B27: =B11/B11 ->  | C27: =C18/B11 ->  | D27: =C19/B11 -> 
A28: Kosten | B28: =B12/B12 ->  | C28: =C20/B12 ->  | D28: =C21/B12 -> 
A29: Überschuss / Unterdeckung | B29: =B13/B13 ->  | C29: =C22/B13 ->  | D29: =C23/B13 ->  | F29: Richtwerte Kostenverteilung Mittagsverpflegung¹:
A30: Personalkosten | B30: =KostenKW12!E57/ErgebnisKW12!B12 ->  | C30: =(KostenKW12!E51*KostenKW12!F51+KostenKW12!E52*KostenKW12!F52+KostenKW12!E53*KostenKW12!F53+KostenKW12!E54*KostenKW12!F54+KostenKW12!E55*KostenKW12!F55)/ErgebnisKW12!C20 ->  | D30: =(KostenKW12!E57-(KostenKW12!E51*KostenKW12!F51+KostenKW12!E52*KostenKW12!F52+KostenKW12!E53*KostenKW12!F53+KostenKW12!E54*KostenKW12!F54+KostenKW12!E55*KostenKW12!F55))/C21 ->  | G30: Frisch- und Mischküche | H30: Kühlkostsystem | I30: Warmverpflegung
A31: Wareneinsatzkosten | B31: =KostenKW12!E15/ErgebnisKW12!B12 ->  | C31: =(KostenKW12!E15*KostenKW12!F15)/ErgebnisKW12!C20 ->  | D31: =(KostenKW12!E15-(KostenKW12!E15*KostenKW12!F15))/ErgebnisKW12!C21 ->  | F31: Wareneinstandskosten | G31: 0.45 | H31: 55- 57 % | I31: 60 - 63 %
A32: Gemeinkosten | B32: =KostenKW12!E48/ErgebnisKW12!B12 ->  | C32: =(KostenKW12!E17*KostenKW12!F17+KostenKW12!E18*KostenKW12!F18+KostenKW12!E19*KostenKW12!F19+KostenKW12!E20*KostenKW12!F20+KostenKW12!E27*KostenKW12!F27+KostenKW12!E28*KostenKW12!F28+KostenKW12!E29*KostenKW12!F29+KostenKW12!E30*KostenKW12!F30+KostenKW12!E31*KostenKW12!F31+KostenKW12!E32*KostenKW12!F32+KostenKW12!E33*KostenKW12!F33+KostenKW12!E34*KostenKW12!F34+KostenKW12!E35*KostenKW12!F35+KostenKW12!E36*KostenKW12!F36+KostenKW12!E37*KostenKW12!F37+KostenKW12!E38*KostenKW12!F38+KostenKW12!E39*KostenKW12!F39+KostenKW12!E46*KostenKW12!F46)/ErgebnisKW12!C20 ->  | D32: =(KostenKW12!E48-(KostenKW12!E17*KostenKW12!F17+KostenKW12!E18*KostenKW12!F18+KostenKW12!E19*KostenKW12!F19+KostenKW12!E20*KostenKW12!F20+KostenKW12!E27*KostenKW12!F27+KostenKW12!E28*KostenKW12!F28+KostenKW12!E29*KostenKW12!F29+KostenKW12!E30*KostenKW12!F30+KostenKW12!E31*KostenKW12!F31+KostenKW12!E32*KostenKW12!F32+KostenKW12!E33*KostenKW12!F33+KostenKW12!E34*KostenKW12!F34+KostenKW12!E35*KostenKW12!F35+KostenKW12!E36*KostenKW12!F36+KostenKW12!E37*KostenKW12!F37+KostenKW12!E38*KostenKW12!F38+KostenKW12!E39*KostenKW12!F39+KostenKW12!E46*KostenKW12!F46))/ErgebnisKW12!C21 ->  | F32: Personalkosten | G32: 50- 52 % | H32: 40- 42 % | I32: 0.02
A33: Sonstige Kosten | B33: =KostenKW12!E59/ErgebnisKW12!B12 ->  | C33: =(KostenKW12!E59*KostenKW12!F59)/ErgebnisKW12!C20 ->  | D33: =(KostenKW12!E59-(KostenKW12!E59*KostenKW12!F59))/ErgebnisKW12!C21 ->  | F33: Gemeinkosten | G33: 3- 5 % | H33: 0.03 | I33: 35 - 38 %
A35: Akzeptanzquote der Mittagsverpflegung | B35: =ErlösKW12!I47/(ErlösKW12!D15*ErlösKW12!D17) -> 
A37: Grafische Darstellungen (alle bezogen auf eine Woche)
A74: ¹ Arens-Azevêdo, U. und Lichtenberg, W., 2007: Planung kleiner Küchen in Schulen, Kitas und Heimen. hrsg. von AID infodienst, Bonn, S. 33

Sheet ForecastKW12
A1: Kalkulations-Check | F1: =KWMonat(ErlösKW12!F9,Hilfstabelle!F2) -> 3
A2: Hochrechnung
A6: =ErlösKW12!$F$8 -> 2024-03-18 | B6: =ErlösKW12!$F$9 -> 12
B9: Hochrechnung | E9: Hochrechnung
A11: Gesamtnettoerlös pro vollem Schulmonat | B11: =ErgebnisKW12!B11*4.3 -> 0 | D11: Gesamtnettoerlös pro Schuljahr | E11: =ErgebnisKW12!B11*(52-14.5) -> 0
A12: Gesamtkosten pro vollem Schulmonat | B12: =ErgebnisKW12!B12*4.3 -> 0 | D12: Gesamtkosten pro Schuljahr | E12: =ErgebnisKW12!B12*(52-14.5) -> 0
A13: Überschuss / Unterdeckung pro vollem Schulmonat | B13: =B11-B12 -> 0 | D13: Überschuss / Unterdeckung pro Schuljahr | E13: =E11-E12 -> 0
C15: Bericht | D15: Hochrechnung | E15: Hochrechnung
A16: Ergebnisart | B16: Verpflegungsform | C16: pro Woche | D16: pro Monat | E16: pro Jahr
A17: Nettoerlös | B17: Mittagsverpflegung | C17: =ErlösKW12!I77 -> 0 | D17: =ForecastKW12!$C17*4.3 -> 0 | E17: =Tabelle6261[[#This Row],[pro Woche]]*(52-14.5) -> 0
B18: Zwischenverpflegung | C18: =ErlösKW12!I83 -> 0 | D18: =ForecastKW12!$C18*4.3 -> 0 | E18: =E11-E17 -> 0
A19: Kosten | B19: Mittagsverpflegung | C19: =KostenKW12!E15*KostenKW12!F15+KostenKW12!E17*KostenKW12!F17+KostenKW12!E18*KostenKW12!F18+KostenKW12!E19*KostenKW12!F19+KostenKW12!E20*KostenKW12!F20+KostenKW12!E27*KostenKW12!F27+KostenKW12!E28*KostenKW12!F28+KostenKW12!E29*KostenKW12!F29+KostenKW12!E30*KostenKW12!F30+KostenKW12!E31*KostenKW12!F31+KostenKW12!E32*KostenKW12!F32+KostenKW12!E33*KostenKW12!F33+KostenKW12!E34*KostenKW12!F34+KostenKW12!E35*KostenKW12!F35+KostenKW12!E36*KostenKW12!F36+KostenKW12!E37*KostenKW12!F37+KostenKW12!E38*KostenKW12!F38+KostenKW12!E39*KostenKW12!F39+KostenKW12!E46*KostenKW12!F46+KostenKW12!E51*KostenKW12!F51+KostenKW12!E52*KostenKW12!F52+KostenKW12!E53*KostenKW12!F53+KostenKW12!E54*KostenKW12!F54+KostenKW12!E55*KostenKW12!F55+KostenKW12!E59*KostenKW12!F59 -> 0 | D19: =ForecastKW12!$C19*4.3 -> 0 | E19: =Tabelle6261[[#This Row],[pro Woche]]*(52-14.5) -> 0
B20: Zwischenverpflegung | C20: =ErgebnisKW12!B12-ForecastKW12!C19 -> 0 | D20: =ForecastKW12!$C20*4.3 -> 0 | E20: =E12-E19 -> 0
A21: Überschuss / Unterdeckung | B21: Mittagsverpflegung | C21: =C17-C19 -> 0 | D21: =ForecastKW12!$C21*4.3 -> 0 | E21: =E17-E19 -> 0
B22: Zwischenverpflegung | C22: =C18-C20 -> 0 | D22: =ForecastKW12!$C22*4.3 -> 0 | E22: =E18-E20 -> 0

Sheet ErlösKW13
A1: Kalkulations-Check | F1: =KWMonat(F9,Hilfstabelle!F2) -> 3 | G1: =KWMonat(F9,Hilfstabelle!F2) -> 3
A2: Rahmen- und Erlösdaten
A6: =F8 -> 2024-03-25 | B6: =F9 -> 13
A8: Zunächst werden einige Basisdaten zur Mittagsverpflegung an Ihrer Schule benötigt: | F8: =IF($F$9=1,Hauptmenue!E9,VLOOKUP($F$9,Hilfstabelle!$D$3:$F$54,3,2)) -> 2024-03-25 | G8: =Hauptmenue!E9 -> 2024-01-01
F9: 13 | G9: Kalenderwoche
A11: Es könnten an diese Stelle auch die Daten der Schule eingetragen werden
A13: Schulart:
A15: gesamte Schülerzahl der Schule: *
A17: An wievielen Tagen pro Woche gibt es ein warmes Mittagessen? *
A19: Wieviele Hauptgerichte gibt es zur Auswahl:
A21: Welches Küchensystem liegt an der Schule vor: (bitte ankreuzen) | D21: Zubereitungsküche | E21: Aufbereitungsküche | F21: Verteilerküche
A24: Nur bei Aufbereitungs- und Verteilerküche: Welches Belieferungssystem liegt vor? | D24: Cook & Chill | E24: Cook & Freeze | F24: Cook & Hold
A27: Abzuführende Umsatzsteuer Mittagsverpflegung: (0%, 7% oder 19%) | D27: 0.19 | E27: Woche: | G27: z. B. Schulwoche, Ferien
A28: Abzuführende Umsatzsteuer Zwischenverpflegung: (0%, 7% oder 19%) | D28: 0.07
D30: Essensteilnehmerzahlen pro Speise
D31: =VLOOKUP(F9,Hilfstabelle!$D$3:$F$54,3,2) -> 43914 | E31: =D31+1 -> 43915 | F31: =E31+1 -> 43916 | G31: =F31+1 -> 43917 | H31: 43918
B32: Eingabe individueller Bezeichnungen möglich | D32: Montag | E32: Dienstag | F32: Mittwoch | G32: Donnerstag | H32: Freitag | I32: Woche gesamt
A33: Hauptspeise 1: | I33: =SUM(D33:H33) -> 0
A34: Hauptspeise 2: | I34: 0
A35: Hauptspeise 3: | I35: 0
A36: Hauptspeise 4: | I36: 0
A37: Hauptspeise 5: | I37: 0
A38: Speise 4: | I38: 0
A39: Speise 5: | I39: 0
A40: Speise 6: | I40: 0
A41: Speise 7: | I41: 0
A42: Speise 8: | I42: 0
A43: Speise 9: | I43: 0
A44: Speise 10: | I44: 0
D47: Bruttopreise | H47: Summe Hauptspeisen/Woche: | I47: =SUM(I33:I37) -> 0
A48: Hauptspeise 1: | B48: =B33 -> 0
A49: Hauptspeise 2: | B49: =B34 -> 0
A50: Hauptspeise 3: | B50: =B35 -> 0
A51: Hauptspeise 4: | B51: 0
A52: Hauptspeise 5: | B52: =B37 -> 0
A53: Speise 4: | B53: =B38 -> 0
A54: Speise 5: | B54: 0
A55: Speise 6: | B55: 0
A56: Speise 7: | B56: 0
A57: Speise 8: | B57: 0
A58: Speise 9: | B58: 0
A59: Speise 10: | B59: 0
D61: Erlössumme Brutto
D62: =D31 -> 43914 | E62: =E31 -> 43915 | F62: 43916 | G62: 43917 | H62: 43918
D63: Montag | E63: Dienstag | F63: Mittwoch | G63: Donnerstag | H63: Freitag | I63: Erlös/Woche
A64: Hauptspeise 1: | B64: =B33 -> 0 | D64: =D33*$D$48 -> 0 | E64: =E33*$D$48 -> 0 | F64: 0 | G64: 0 | H64: 0 | I64: =SUM(D64:H64) -> 0
A65: Hauptspeise 2: | B65: =B34 -> 0 | D65: =D34*$D$49 -> 0 | E65: =E34*$D$49 -> 0 | F65: =F34*$D$49 -> 0 | G65: 0 | H65: 0 | I65: 0
A66: Hauptspeise 3: | B66: 0 | D66: =D35*$D$50 -> 0 | E66: =E35*$D$50 -> 0 | F66: =F35*$D$50 -> 0 | G66: 0 | H66: 0 | I66: 0
A67: Hauptspeise 4: | B67: 0 | D67: =D36*$D$51 -> 0 | E67: =E36*$D$51 -> 0 | F67: =F36*$D$51 -> 0 | G67: 0 | H67: 0 | I67: 0
A68: Hauptspeise 5: | B68: 0 | D68: =D37*$D$52 -> 0 | E68: =E37*$D$52 -> 0 | F68: =F37*$D$52 -> 0 | G68: 0 | H68: 0 | I68: 0
A69: Speise 4: | B69: 0 | D69: =D38*$D$53 -> 0 | E69: =E38*$D$53 -> 0 | F69: =F38*$D$53 -> 0 | G69: 0 | H69: 0 | I69: 0
A70: Speise 5: | B70: 0 | D70: =D39*$D$54 -> 0 | E70: =E39*$D$54 -> 0 | F70: =F39*$D$54 -> 0 | G70: 0 | H70: 0 | I70: 0
A71: Speise 6: | B71: 0 | D71: =D40*$D$55 -> 0 | E71: =E40*$D$55 -> 0 | F71: =F40*$D$55 -> 0 | G71: 0 | H71: 0 | I71: 0
A72: Speise 7: | B72: 0 | D72: =D41*$D$56 -> 0 | E72: =E41*$D$56 -> 0 | F72: =F41*$D$56 -> 0 | G72: 0 | H72: 0 | I72: 0
A73: Speise 8: | B73: 0 | D73: =D42*$D$57 -> 0 | E73: =E42*$D$57 -> 0 | F73: =F42*$D$57 -> 0 | G73: 0 | H73: 0 | I73: 0
A74: Speise 9: | B74: 0 | D74: =D43*$D$58 -> 0 | E74: =E43*$D$58 -> 0 | F74: =F43*$D$58 -> 0 | G74: 0 | H74: 0 | I74: 0
A75: Speise 10: | B75: 0 | D75: =D44*$D$59 -> 0 | E75: =E44*$D$59 -> 0 | F75: =F44*$D$59 -> 0 | G75: 0 | H75: 0 | I75: 0
A76: Brutto-Erlössummen gesamt | D76: =SUM(D64:D75) -> 0 | E76: 0 | F76: 0 | G76: 0 | H76: 0 | I76: 0
A77: Netto-Erlössummen gesamt | D77: =D76*100/(100+(100*$D27)) -> 0 | E77: =E76*100/(100+(100*$D27)) -> 0 | F77: =F76*100/(100+(100*$D27)) -> 0 | G77: =G76*100/(100+(100*$D27)) -> 0 | H77: =H76*100/(100+(100*$D27)) -> 0 | I77: =SUM(D77:H77) -> 0
D80: Montag | E80: Dienstag | F80: Mittwoch | G80: Donnerstag | H80: Freitag | I80: Erlös/Woche
D81: =D31 -> 43914 | E81: =E31 -> 43915 | F81: 43916 | G81: 43917 | H81: 43918
A82: Gesamtbruttotageserlös durch sonstige Verpflegung (Zwischenverpflegung)* | I82: =SUM(D82:H82) -> 0
A83: Nettogesamterlöse | D83: =D82*100/(100+(100*$D28)) -> 0 | E83: =E82*100/(100+(100*$D28)) -> 0 | F83: =F82*100/(100+(100*$D28)) -> 0 | G83: =G82*100/(100+(100*$D28)) -> 0 | H83: =H82*100/(100+(100*$D28)) -> 0 | I83: =SUM(D83:H83) -> 0
A86: Sonstige Nettoerlöse pro Monat | D86: Subventionen pro Monat

Sheet KostenKW13
A1: Kalkulations-Check | F1: =KWMonat(ErlösKW13!F9,Hilfstabelle!F2) -> 3
A2: Kostendaten
A6: =ErlösKW13!F8 -> 2024-03-25 | B6: =ErlösKW13!F9 -> 13
A8: Nun geben Sie bitte die folgenden Kostendaten zur Mittagsverpflegung ein:
A10: Geben Sie einen ungefähren, gerundeten Anteil an, der auf die warme Mittagsverpflegung entfällt, z.B. entfällt 70 % Ihres gesamten Wareneinsatzes auf die Mittagsverpflegung, die restlichen 30% sind dem Bereich Zwischenverpflegung zuzuordnen. Kosten die unabhängig von der Verpflegungform anfallen (z.B. Miete) werden zu 50% aufgeteilt. Falls Sie nur Mittagsverpflegung anbieten, geben Sie als Anteil bei allen Kostenpunkten 100% ein.
E13: Gesamtwert in € | F13: %-Anteil Mittagsverpflegung
A15: Wareneinsatz | C15: Nettowarenwert pro Woche | D15: (alle Speisen und Getränke für eine Woche) | G15: Wareneinkaufspreis abzüglich 7% Umsatzsteuer
G16: (Rechenweg Einkaufspreis * 100 / 107 = Nettowarenwert)
A17: Gemeinkosten | C17: Fixe Kosten pro Woche | D17: Miete / Pacht
D18: Kosten für Müllabfuhr | G18: kann meist in der Schule oder beim Sach-aufwandsträger eingesehen werden
D19: Kosten für Versicherungen (Brand-, Wasserschäden)
D20: Sonstiges
C27: Variable Kosten pro Woche | D27: Reinigungs- und Desinfektionsmittel
D28: Energiekosten | G28: kann meist in der Schule oder beim Sach-aufwandsträger eingesehen werden
D29: Wasser- und Abwasserkosten
D30: Heizungskosten
D31: Kosten für Schädlingsbekämpfung
D32: Kosten für Reinigung der Mensa | G32: kann meist in der Schule oder beim Sach-aufwandsträger eingesehen werden
D33: Verbrauchsgüter (Servietten, Alufolie…)
D34: Ersatzbeschaffungen bis ca. 100 € (Geschirr, kleine Küchengeräte…)
D35: Wäschekosten (Personal-, Küche- und Tischwäsche)
D36: Kosten für Reparatur- und Wartungsarbeiten
D37: Kosten für Schulungs- und Weiterbildungsmaßnahmen
D38: Beiträge (z.B. Berufsgenossenschaft)
D39: Verwaltungskosten ( z.B. für Essensabrechnung, Bürobedarf...)
D46: Sonstige Gemeinkosten
D48: Gesamtgemeinkosten pro Woche | E48: =SUM(E17:E25,E27:E46) -> 0
A50: Personalkosten | C50: gesamte Lohnkosten inklusive Lohnnebenkosten (Sozialabgaben) pro Woche für:
D51: Küchenleiter
D52: Küchenmitarbeiter
D53: Spül- und Putzkräfte
D54: Praktikanten, Azubis…
D55: sonstiges
D57: Gesamtpersonalkosten pro Woche | E57: =SUM(E51:E55) -> 0
D59: Sonstiges
D61: Gesamtkosten pro Schulwoche | E61: =SUM(E15,E48,E57,E59) -> 0

Sheet ErgebnisKW13
A1: Kalkulations-Check | F1: =KWMonat(ErlösKW13!F9,Hilfstabelle!F2) -> 3
A2: Ergebnisausgabe: Daten der aktuellen Kalenderwoche
A6: =ErlösKW13!$F$8 -> 2024-03-25 | B6: =ErlösKW13!$F$9 & " KW" -> 13 KW
B9: Bericht
A11: Gesamtnettoerlös pro Schulwoche | B11: =ErlösKW13!I77+ErlösKW13!I83+ErlösKW13!G86 -> 0
A12: Gesamtkosten pro Schulwoche | B12: =KostenKW13!E61 -> 0
A13: Überschuss / Unterdeckung pro Schulwoche | B13: =B11-B12 -> 0
C16: Bericht
A17: Ergebnisart | B17: Verpflegungsform | C17: pro Woche
A18: Nettoerlös | B18: Mittagsverpflegung | C18: =ErlösKW13!I77 -> 0
B19: Zwischenverpflegung | C19: =ErlösKW13!I83 -> 0
A20: Kosten | B20: Mittagsverpflegung | C20: =KostenKW13!E15*KostenKW13!F15+KostenKW13!E17*KostenKW13!F17+KostenKW13!E18*KostenKW13!F18+KostenKW13!E19*KostenKW13!F19+KostenKW13!E20*KostenKW13!F20+KostenKW13!E27*KostenKW13!F27+KostenKW13!E28*KostenKW13!F28+KostenKW13!E29*KostenKW13!F29+KostenKW13!E30*KostenKW13!F30+KostenKW13!E31*KostenKW13!F31+KostenKW13!E32*KostenKW13!F32+KostenKW13!E33*KostenKW13!F33+KostenKW13!E34*KostenKW13!F34+KostenKW13!E35*KostenKW13!F35+KostenKW13!E36*KostenKW13!F36+KostenKW13!E37*KostenKW13!F37+KostenKW13!E38*KostenKW13!F38+KostenKW13!E39*KostenKW13!F39+KostenKW13!E46*KostenKW13!F46+KostenKW13!E51*KostenKW13!F51+KostenKW13!E52*KostenKW13!F52+KostenKW13!E53*KostenKW13!F53+KostenKW13!E54*KostenKW13!F54+KostenKW13!E55*KostenKW13!F55+KostenKW13!E59*KostenKW13!F59 -> 0
B21: Zwischenverpflegung | C21: =ErgebnisKW13!B12-ErgebnisKW13!C20 -> 0
A22: Überschuss / Unterdeckung | B22: Mittagsverpflegung | C22: =C18-C20 -> 0
B23: Zwischenverpflegung | C23: =C19-C21 -> 0
A25: Kennzahlen (bezogen auf eine Schulwoche)
A26: Ergebnisart | B26: Gesamt | C26: Mittagsverpflegung | D26: Zwischenverpflegung
A27: Erlös | B27: =B11/B11 ->  | C27: =C18/B11 ->  | D27: =C19/B11 -> 
A28: Kosten | B28: =B12/B12 ->  | C28: =C20/B12 ->  | D28: =C21/B12 -> 
A29: Überschuss / Unterdeckung | B29: =B13/B13 ->  | C29: =C22/B13 ->  | D29: =C23/B13 ->  | F29: Richtwerte Kostenverteilung Mittagsverpflegung¹:
A30: Personalkosten | B30: =KostenKW13!E57/ErgebnisKW13!B12 ->  | C30: =(KostenKW13!E51*KostenKW13!F51+KostenKW13!E52*KostenKW13!F52+KostenKW13!E53*KostenKW13!F53+KostenKW13!E54*KostenKW13!F54+KostenKW13!E55*KostenKW13!F55)/ErgebnisKW13!C20 ->  | D30: =(KostenKW13!E57-(KostenKW13!E51*KostenKW13!F51+KostenKW13!E52*KostenKW13!F52+KostenKW13!E53*KostenKW13!F53+KostenKW13!E54*KostenKW13!F54+KostenKW13!E55*KostenKW13!F55))/C21 ->  | G30: Frisch- und Mischküche | H30: Kühlkostsystem | I30: Warmverpflegung
A31: Wareneinsatzkosten | B31: =KostenKW13!E15/ErgebnisKW13!B12 ->  | C31: =(KostenKW13!E15*KostenKW13!F15)/ErgebnisKW13!C20 ->  | D31: =(KostenKW13!E15-(KostenKW13!E15*KostenKW13!F15))/ErgebnisKW13!C21 ->  | F31: Wareneinstandskosten | G31: 0.45 | H31: 55- 57 % | I31: 60 - 63 %
A32: Gemeinkosten | B32: =KostenKW13!E48/ErgebnisKW13!B12 ->  | C32: =(KostenKW13!E17*KostenKW13!F17+KostenKW13!E18*KostenKW13!F18+KostenKW13!E19*KostenKW13!F19+KostenKW13!E20*KostenKW13!F20+KostenKW13!E27*KostenKW13!F27+KostenKW13!E28*KostenKW13!F28+KostenKW13!E29*KostenKW13!F29+KostenKW13!E30*KostenKW13!F30+KostenKW13!E31*KostenKW13!F31+KostenKW13!E32*KostenKW13!F32+KostenKW13!E33*KostenKW13!F33+KostenKW13!E34*KostenKW13!F34+KostenKW13!E35*KostenKW13!F35+KostenKW13!E36*KostenKW13!F36+KostenKW13!E37*KostenKW13!F37+KostenKW13!E38*KostenKW13!F38+KostenKW13!E39*KostenKW13!F39+KostenKW13!E46*KostenKW13!F46)/ErgebnisKW13!C20 ->  | D32: =(KostenKW13!E48-(KostenKW13!E17*KostenKW13!F17+KostenKW13!E18*KostenKW13!F18+KostenKW13!E19*KostenKW13!F19+KostenKW13!E20*KostenKW13!F20+KostenKW13!E27*KostenKW13!F27+KostenKW13!E28*KostenKW13!F28+KostenKW13!E29*KostenKW13!F29+KostenKW13!E30*KostenKW13!F30+KostenKW13!E31*KostenKW13!F31+KostenKW13!E32*KostenKW13!F32+KostenKW13!E33*KostenKW13!F33+KostenKW13!E34*KostenKW13!F34+KostenKW13!E35*KostenKW13!F35+KostenKW13!E36*KostenKW13!F36+KostenKW13!E37*KostenKW13!F37+KostenKW13!E38*KostenKW13!F38+KostenKW13!E39*KostenKW13!F39+KostenKW13!E46*KostenKW13!F46))/ErgebnisKW13!C21 ->  | F32: Personalkosten | G32: 50- 52 % | H32: 40- 42 % | I32: 0.02
A33: Sonstige Kosten | B33: =KostenKW13!E59/ErgebnisKW13!B12 ->  | C33: =(KostenKW13!E59*KostenKW13!F59)/ErgebnisKW13!C20 ->  | D33: =(KostenKW13!E59-(KostenKW13!E59*KostenKW13!F59))/ErgebnisKW13!C21 ->  | F33: Gemeinkosten | G33: 3- 5 % | H33: 0.03 | I33: 35 - 38 %
A35: Akzeptanzquote der Mittagsverpflegung | B35: =ErlösKW13!I47/(ErlösKW13!D15*ErlösKW13!D17) -> 
A37: Grafische Darstellungen (alle bezogen auf eine Woche)
A74: ¹ Arens-Azevêdo, U. und Lichtenberg, W., 2007: Planung kleiner Küchen in Schulen, Kitas und Heimen. hrsg. von AID infodienst, Bonn, S. 33

Sheet ForecastKW13
A1: Kalkulations-Check | F1: =KWMonat(ErlösKW13!F9,Hilfstabelle!F2) -> 3
A2: Hochrechnung
A6: =ErlösKW13!$F$8 -> 2024-03-25 | B6: =ErlösKW13!$F$9 -> 13
B9: Hochrechnung | E9: Hochrechnung
A11: Gesamtnettoerlös pro vollem Schulmonat | B11: =ErgebnisKW13!B11*4.3 -> 0 | D11: Gesamtnettoerlös pro Schuljahr | E11: =ErgebnisKW13!B11*(52-14.5) -> 0
A12: Gesamtkosten pro vollem Schulmonat | B12: =ErgebnisKW13!B12*4.3 -> 0 | D12: Gesamtkosten pro Schuljahr | E12: =ErgebnisKW13!B12*(52-14.5) -> 0
A13: Überschuss / Unterdeckung pro vollem Schulmonat | B13: =B11-B12 -> 0 | D13: Überschuss / Unterdeckung pro Schuljahr | E13: =E11-E12 -> 0
C15: Bericht | D15: Hochrechnung | E15: Hochrechnung
A16: Ergebnisart | B16: Verpflegungsform | C16: pro Woche | D16: pro Monat | E16: pro Jahr
A17: Nettoerlös | B17: Mittagsverpflegung | C17: =ErlösKW13!I77 -> 0 | D17: =ForecastKW13!$C17*4.3 -> 0 | E17: =Tabelle6266[[#This Row],[pro Woche]]*(52-14.5) -> 0
B18: Zwischenverpflegung | C18: =ErlösKW13!I83 -> 0 | D18: =ForecastKW13!$C18*4.3 -> 0 | E18: =E11-E17 -> 0
A19: Kosten | B19: Mittagsverpflegung | C19: =KostenKW13!E15*KostenKW13!F15+KostenKW13!E17*KostenKW13!F17+KostenKW13!E18*KostenKW13!F18+KostenKW13!E19*KostenKW13!F19+KostenKW13!E20*KostenKW13!F20+KostenKW13!E27*KostenKW13!F27+KostenKW13!E28*KostenKW13!F28+KostenKW13!E29*KostenKW13!F29+KostenKW13!E30*KostenKW13!F30+KostenKW13!E31*KostenKW13!F31+KostenKW13!E32*KostenKW13!F32+KostenKW13!E33*KostenKW13!F33+KostenKW13!E34*KostenKW13!F34+KostenKW13!E35*KostenKW13!F35+KostenKW13!E36*KostenKW13!F36+KostenKW13!E37*KostenKW13!F37+KostenKW13!E38*KostenKW13!F38+KostenKW13!E39*KostenKW13!F39+KostenKW13!E46*KostenKW13!F46+KostenKW13!E51*KostenKW13!F51+KostenKW13!E52*KostenKW13!F52+KostenKW13!E53*KostenKW13!F53+KostenKW13!E54*KostenKW13!F54+KostenKW13!E55*KostenKW13!F55+KostenKW13!E59*KostenKW13!F59 -> 0 | D19: =ForecastKW13!$C19*4.3 -> 0 | E19: =Tabelle6266[[#This Row],[pro Woche]]*(52-14.5) -> 0
B20: Zwischenverpflegung | C20: =ErgebnisKW13!B12-ForecastKW13!C19 -> 0 | D20: =ForecastKW13!$C20*4.3 -> 0 | E20: =E12-E19 -> 0
A21: Überschuss / Unterdeckung | B21: Mittagsverpflegung | C21: =C17-C19 -> 0 | D21: =ForecastKW13!$C21*4.3 -> 0 | E21: =E17-E19 -> 0
B22: Zwischenverpflegung | C22: =C18-C20 -> 0 | D22: =ForecastKW13!$C22*4.3 -> 0 | E22: =E18-E20 -> 0

Sheet ErlösKW14
A1: Kalkulations-Check | F1: =KWMonat(F9,Hilfstabelle!F2) -> 4 | G1: =KWMonat(F9,Hilfstabelle!F2) -> 4
A2: Rahmen- und Erlösdaten
A6: =F8 -> 2024-04-01 | B6: =F9 -> 14
A8: Zunächst werden einige Basisdaten zur Mittagsverpflegung an Ihrer Schule benötigt: | F8: =IF($F$9=1,Hauptmenue!E9,VLOOKUP($F$9,Hilfstabelle!$D$3:$F$54,3,2)) -> 2024-04-01 | G8: =Hauptmenue!E9 -> 2024-01-01
F9: 14 | G9: Kalenderwoche
A11: Es könnten an diese Stelle auch die Daten der Schule eingetragen werden
A13: Schulart:
A15: gesamte Schülerzahl der Schule: *
A17: An wievielen Tagen pro Woche gibt es ein warmes Mittagessen? *
A19: Wieviele Hauptgerichte gibt es zur Auswahl:
A21: Welches Küchensystem liegt an der Schule vor: (bitte ankreuzen) | D21: Zubereitungsküche | E21: Aufbereitungsküche | F21: Verteilerküche
A24: Nur bei Aufbereitungs- und Verteilerküche: Welches Belieferungssystem liegt vor? | D24: Cook & Chill | E24: Cook & Freeze | F24: Cook & Hold
A27: Abzuführende Umsatzsteuer Mittagsverpflegung: (0%, 7% oder 19%) | D27: 0.19 | E27: Woche: | G27: z. B. Schulwoche, Ferien
A28: Abzuführende Umsatzsteuer Zwischenverpflegung: (0%, 7% oder 19%) | D28: 0.07
D30: Essensteilnehmerzahlen pro Speise
D31: =VLOOKUP(F9,Hilfstabelle!$D$3:$F$54,3,2) -> 43921 | E31: =D31+1 -> 43922 | F31: =E31+1 -> 43923 | G31: =F31+1 -> 43924 | H31: 43925
B32: Eingabe individueller Bezeichnungen möglich | D32: Montag | E32: Dienstag | F32: Mittwoch | G32: Donnerstag | H32: Freitag | I32: Woche gesamt
A33: Hauptspeise 1: | I33: =SUM(D33:H33) -> 0
A34: Hauptspeise 2: | I34: 0
A35: Hauptspeise 3: | I35: 0
A36: Hauptspeise 4: | I36: 0
A37: Hauptspeise 5: | I37: 0
A38: Speise 4: | I38: 0
A39: Speise 5: | I39: 0
A40: Speise 6: | I40: 0
A41: Speise 7: | I41: 0
A42: Speise 8: | I42: 0
A43: Speise 9: | I43: 0
A44: Speise 10: | I44: 0
D47: Bruttopreise | H47: Summe Hauptspeisen/Woche: | I47: =SUM(I33:I37) -> 0
A48: Hauptspeise 1: | B48: =B33 -> 0
A49: Hauptspeise 2: | B49: =B34 -> 0
A50: Hauptspeise 3: | B50: =B35 -> 0
A51: Hauptspeise 4: | B51: 0
A52: Hauptspeise 5: | B52: =B37 -> 0
A53: Speise 4: | B53: =B38 -> 0
A54: Speise 5: | B54: 0
A55: Speise 6: | B55: 0
A56: Speise 7: | B56: 0
A57: Speise 8: | B57: 0
A58: Speise 9: | B58: 0
A59: Speise 10: | B59: 0
D61: Erlössumme Brutto
D62: =D31 -> 43921 | E62: =E31 -> 43922 | F62: 43923 | G62: 43924 | H62: 43925
D63: Montag | E63: Dienstag | F63: Mittwoch | G63: Donnerstag | H63: Freitag | I63: Erlös/Woche
A64: Hauptspeise 1: | B64: =B33 -> 0 | D64: =D33*$D$48 -> 0 | E64: =E33*$D$48 -> 0 | F64: 0 | G64: 0 | H64: 0 | I64: =SUM(D64:H64) -> 0
A65: Hauptspeise 2: | B65: =B34 -> 0 | D65: =D34*$D$49 -> 0 | E65: =E34*$D$49 -> 0 | F65: =F34*$D$49 -> 0 | G65: 0 | H65: 0 | I65: 0
A66: Hauptspeise 3: | B66: 0 | D66: =D35*$D$50 -> 0 | E66: =E35*$D$50 -> 0 | F66: =F35*$D$50 -> 0 | G66: 0 | H66: 0 | I66: 0
A67: Hauptspeise 4: | B67: 0 | D67: =D36*$D$51 -> 0 | E67: =E36*$D$51 -> 0 | F67: =F36*$D$51 -> 0 | G67: 0 | H67: 0 | I67: 0
A68: Hauptspeise 5: | B68: 0 | D68: =D37*$D$52 -> 0 | E68: =E37*$D$52 -> 0 | F68: =F37*$D$52 -> 0 | G68: 0 | H68: 0 | I68: 0
A69: Speise 4: | B69: 0 | D69: =D38*$D$53 -> 0 | E69: =E38*$D$53 -> 0 | F69: =F38*$D$53 -> 0 | G69: 0 | H69: 0 | I69: 0
A70: Speise 5: | B70: 0 | D70: =D39*$D$54 -> 0 | E70: =E39*$D$54 -> 0 | F70: =F39*$D$54 -> 0 | G70: 0 | H70: 0 | I70: 0
A71: Speise 6: | B71: 0 | D71: =D40*$D$55 -> 0 | E71: =E40*$D$55 -> 0 | F71: =F40*$D$55 -> 0 | G71: 0 | H71: 0 | I71: 0
A72: Speise 7: | B72: 0 | D72: =D41*$D$56 -> 0 | E72: =E41*$D$56 -> 0 | F72: =F41*$D$56 -> 0 | G72: 0 | H72: 0 | I72: 0
A73: Speise 8: | B73: 0 | D73: =D42*$D$57 -> 0 | E73: =E42*$D$57 -> 0 | F73: =F42*$D$57 -> 0 | G73: 0 | H73: 0 | I73: 0
A74: Speise 9: | B74: 0 | D74: =D43*$D$58 -> 0 | E74: =E43*$D$58 -> 0 | F74: =F43*$D$58 -> 0 | G74: 0 | H74: 0 | I74: 0
A75: Speise 10: | B75: 0 | D75: =D44*$D$59 -> 0 | E75: =E44*$D$59 -> 0 | F75: =F44*$D$59 -> 0 | G75: 0 | H75: 0 | I75: 0
A76: Brutto-Erlössummen gesamt | D76: =SUM(D64:D75) -> 0 | E76: 0 | F76: 0 | G76: 0 | H76: 0 | I76: 0
A77: Netto-Erlössummen gesamt | D77: =D76*100/(100+(100*$D27)) -> 0 | E77: =E76*100/(100+(100*$D27)) -> 0 | F77: =F76*100/(100+(100*$D27)) -> 0 | G77: =G76*100/(100+(100*$D27)) -> 0 | H77: =H76*100/(100+(100*$D27)) -> 0 | I77: =SUM(D77:H77) -> 0
D80: Montag | E80: Dienstag | F80: Mittwoch | G80: Donnerstag | H80: Freitag | I80: Erlös/Woche
D81: =D31 -> 43921 | E81: =E31 -> 43922 | F81: 43923 | G81: 43924 | H81: 43925
A82: Gesamtbruttotageserlös durch sonstige Verpflegung (Zwischenverpflegung)* | I82: =SUM(D82:H82) -> 0
A83: Nettogesamterlöse | D83: =D82*100/(100+(100*$D28)) -> 0 | E83: =E82*100/(100+(100*$D28)) -> 0 | F83: =F82*100/(100+(100*$D28)) -> 0 | G83: =G82*100/(100+(100*$D28)) -> 0 | H83: =H82*100/(100+(100*$D28)) -> 0 | I83: =SUM(D83:H83) -> 0
A86: Sonstige Nettoerlöse pro Monat | D86: Subventionen pro Monat

Sheet KostenKW14
A1: Kalkulations-Check | F1: =KWMonat(ErlösKW14!F9,Hilfstabelle!F2) -> 4
A2: Kostendaten
A6: =ErlösKW14!F8 -> 2024-04-01 | B6: =ErlösKW14!F9 -> 14
A8: Nun geben Sie bitte die folgenden Kostendaten zur Mittagsverpflegung ein:
A10: Geben Sie einen ungefähren, gerundeten Anteil an, der auf die warme Mittagsverpflegung entfällt, z.B. entfällt 70 % Ihres gesamten Wareneinsatzes auf die Mittagsverpflegung, die restlichen 30% sind dem Bereich Zwischenverpflegung zuzuordnen. Kosten die unabhängig von der Verpflegungform anfallen (z.B. Miete) werden zu 50% aufgeteilt. Falls Sie nur Mittagsverpflegung anbieten, geben Sie als Anteil bei allen Kostenpunkten 100% ein.
E13: Gesamtwert in € | F13: %-Anteil Mittagsverpflegung
A15: Wareneinsatz | C15: Nettowarenwert pro Woche | D15: (alle Speisen und Getränke für eine Woche) | G15: Wareneinkaufspreis abzüglich 7% Umsatzsteuer
G16: (Rechenweg Einkaufspreis * 100 / 107 = Nettowarenwert)
A17: Gemeinkosten | C17: Fixe Kosten pro Woche | D17: Miete / Pacht
D18: Kosten für Müllabfuhr | G18: kann meist in der Schule oder beim Sach-aufwandsträger eingesehen werden
D19: Kosten für Versicherungen (Brand-, Wasserschäden)
D20: Sonstiges
C27: Variable Kosten pro Woche | D27: Reinigungs- und Desinfektionsmittel
D28: Energiekosten | G28: kann meist in der Schule oder beim Sach-aufwandsträger eingesehen werden
D29: Wasser- und Abwasserkosten
D30: Heizungskosten
D31: Kosten für Schädlingsbekämpfung
D32: Kosten für Reinigung der Mensa | G32: kann meist in der Schule oder beim Sach-aufwandsträger eingesehen werden
D33: Verbrauchsgüter (Servietten, Alufolie…)
D34: Ersatzbeschaffungen bis ca. 100 € (Geschirr, kleine Küchengeräte…)
D35: Wäschekosten (Personal-, Küche- und Tischwäsche)
D36: Kosten für Reparatur- und Wartungsarbeiten
D37: Kosten für Schulungs- und Weiterbildungsmaßnahmen
D38: Beiträge (z.B. Berufsgenossenschaft)
D39: Verwaltungskosten ( z.B. für Essensabrechnung, Bürobedarf...)
D46: Sonstige Gemeinkosten
D48: Gesamtgemeinkosten pro Woche | E48: =SUM(E17:E25,E27:E46) -> 0
A50: Personalkosten | C50: gesamte Lohnkosten inklusive Lohnnebenkosten (Sozialabgaben) pro Woche für:
D51: Küchenleiter
D52: Küchenmitarbeiter
D53: Spül- und Putzkräfte
D54: Praktikanten, Azubis…
D55: sonstiges
D57: Gesamtpersonalkosten pro Woche | E57: =SUM(E51:E55) -> 0
D59: Sonstiges
D61: Gesamtkosten pro Schulwoche | E61: =SUM(E15,E48,E57,E59) -> 0

Sheet ErgebnisKW14
A1: Kalkulations-Check | F1: =KWMonat(ErlösKW14!F9,Hilfstabelle!F2) -> 4
A2: Ergebnisausgabe: Daten der aktuellen Kalenderwoche
A6: =ErlösKW14!$F$8 -> 2024-04-01 | B6: =ErlösKW14!$F$9 & " KW" -> 14 KW
B9: Bericht
A11: Gesamtnettoerlös pro Schulwoche | B11: =ErlösKW14!I77+ErlösKW14!I83+ErlösKW14!G86 -> 0
A12: Gesamtkosten pro Schulwoche | B12: =KostenKW14!E61 -> 0
A13: Überschuss / Unterdeckung pro Schulwoche | B13: =B11-B12 -> 0
C16: Bericht
A17: Ergebnisart | B17: Verpflegungsform | C17: pro Woche
A18: Nettoerlös | B18: Mittagsverpflegung | C18: =ErlösKW14!I77 -> 0
B19: Zwischenverpflegung | C19: =ErlösKW14!I83 -> 0
A20: Kosten | B20: Mittagsverpflegung | C20: =KostenKW14!E15*KostenKW14!F15+KostenKW14!E17*KostenKW14!F17+KostenKW14!E18*KostenKW14!F18+KostenKW14!E19*KostenKW14!F19+KostenKW14!E20*KostenKW14!F20+KostenKW14!E27*KostenKW14!F27+KostenKW14!E28*KostenKW14!F28+KostenKW14!E29*KostenKW14!F29+KostenKW14!E30*KostenKW14!F30+KostenKW14!E31*KostenKW14!F31+KostenKW14!E32*KostenKW14!F32+KostenKW14!E33*KostenKW14!F33+KostenKW14!E34*KostenKW14!F34+KostenKW14!E35*KostenKW14!F35+KostenKW14!E36*KostenKW14!F36+KostenKW14!E37*KostenKW14!F37+KostenKW14!E38*KostenKW14!F38+KostenKW14!E39*KostenKW14!F39+KostenKW14!E46*KostenKW14!F46+KostenKW14!E51*KostenKW14!F51+KostenKW14!E52*KostenKW14!F52+KostenKW14!E53*KostenKW14!F53+KostenKW14!E54*KostenKW14!F54+KostenKW14!E55*KostenKW14!F55+KostenKW14!E59*KostenKW14!F59 -> 0
B21: Zwischenverpflegung | C21: =ErgebnisKW14!B12-ErgebnisKW14!C20 -> 0
A22: Überschuss / Unterdeckung | B22: Mittagsverpflegung | C22: =C18-C20 -> 0
B23: Zwischenverpflegung | C23: =C19-C21 -> 0
A25: Kennzahlen (bezogen auf eine Schulwoche)
A26: Ergebnisart | B26: Gesamt | C26: Mittagsverpflegung | D26: Zwischenverpflegung
A27: Erlös | B27: =B11/B11 ->  | C27: =C18/B11 ->  | D27: =C19/B11 -> 
A28: Kosten | B28: =B12/B12 ->  | C28: =C20/B12 ->  | D28: =C21/B12 -> 
A29: Überschuss / Unterdeckung | B29: =B13/B13 ->  | C29: =C22/B13 ->  | D29: =C23/B13 ->  | F29: Richtwerte Kostenverteilung Mittagsverpflegung¹:
A30: Personalkosten | B30: =KostenKW14!E57/ErgebnisKW14!B12 ->  | C30: =(KostenKW14!E51*KostenKW14!F51+KostenKW14!E52*KostenKW14!F52+KostenKW14!E53*KostenKW14!F53+KostenKW14!E54*KostenKW14!F54+KostenKW14!E55*KostenKW14!F55)/ErgebnisKW14!C20 ->  | D30: =(KostenKW14!E57-(KostenKW14!E51*KostenKW14!F51+KostenKW14!E52*KostenKW14!F52+KostenKW14!E53*KostenKW14!F53+KostenKW14!E54*KostenKW14!F54+KostenKW14!E55*KostenKW14!F55))/C21 ->  | G30: Frisch- und Mischküche | H30: Kühlkostsystem | I30: Warmverpflegung
A31: Wareneinsatzkosten | B31: =KostenKW14!E15/ErgebnisKW14!B12 ->  | C31: =(KostenKW14!E15*KostenKW14!F15)/ErgebnisKW14!C20 ->  | D31: =(KostenKW14!E15-(KostenKW14!E15*KostenKW14!F15))/ErgebnisKW14!C21 ->  | F31: Wareneinstandskosten | G31: 0.45 | H31: 55- 57 % | I31: 60 - 63 %
A32: Gemeinkosten | B32: =KostenKW14!E48/ErgebnisKW14!B12 ->  | C32: =(KostenKW14!E17*KostenKW14!F17+KostenKW14!E18*KostenKW14!F18+KostenKW14!E19*KostenKW14!F19+KostenKW14!E20*KostenKW14!F20+KostenKW14!E27*KostenKW14!F27+KostenKW14!E28*KostenKW14!F28+KostenKW14!E29*KostenKW14!F29+KostenKW14!E30*KostenKW14!F30+KostenKW14!E31*KostenKW14!F31+KostenKW14!E32*KostenKW14!F32+KostenKW14!E33*KostenKW14!F33+KostenKW14!E34*KostenKW14!F34+KostenKW14!E35*KostenKW14!F35+KostenKW14!E36*KostenKW14!F36+KostenKW14!E37*KostenKW14!F37+KostenKW14!E38*KostenKW14!F38+KostenKW14!E39*KostenKW14!F39+KostenKW14!E46*KostenKW14!F46)/ErgebnisKW14!C20 ->  | D32: =(KostenKW14!E48-(KostenKW14!E17*KostenKW14!F17+KostenKW14!E18*KostenKW14!F18+KostenKW14!E19*KostenKW14!F19+KostenKW14!E20*KostenKW14!F20+KostenKW14!E27*KostenKW14!F27+KostenKW14!E28*KostenKW14!F28+KostenKW14!E29*KostenKW14!F29+KostenKW14!E30*KostenKW14!F30+KostenKW14!E31*KostenKW14!F31+KostenKW14!E32*KostenKW14!F32+KostenKW14!E33*KostenKW14!F33+KostenKW14!E34*KostenKW14!F34+KostenKW14!E35*KostenKW14!F35+KostenKW14!E36*KostenKW14!F36+KostenKW14!E37*KostenKW14!F37+KostenKW14!E38*KostenKW14!F38+KostenKW14!E39*KostenKW14!F39+KostenKW14!E46*KostenKW14!F46))/ErgebnisKW14!C21 ->  | F32: Personalkosten | G32: 50- 52 % | H32: 40- 42 % | I32: 0.02
A33: Sonstige Kosten | B33: =KostenKW14!E59/ErgebnisKW14!B12 ->  | C33: =(KostenKW14!E59*KostenKW14!F59)/ErgebnisKW14!C20 ->  | D33: =(KostenKW14!E59-(KostenKW14!E59*KostenKW14!F59))/ErgebnisKW14!C21 ->  | F33: Gemeinkosten | G33: 3- 5 % | H33: 0.03 | I33: 35 - 38 %
A35: Akzeptanzquote der Mittagsverpflegung | B35: =ErlösKW14!I47/(ErlösKW14!D15*ErlösKW14!D17) -> 
A37: Grafische Darstellungen (alle bezogen auf eine Woche)
A74: ¹ Arens-Azevêdo, U. und Lichtenberg, W., 2007: Planung kleiner Küchen in Schulen, Kitas und Heimen. hrsg. von AID infodienst, Bonn, S. 33

Sheet ForecastKW14
A1: Kalkulations-Check | F1: =KWMonat(ErlösKW14!F9,Hilfstabelle!F2) -> 4
A2: Hochrechnung
A6: =ErlösKW14!$F$8 -> 2024-04-01 | B6: =ErlösKW14!$F$9 -> 14
B9: Hochrechnung | E9: Hochrechnung
A11: Gesamtnettoerlös pro vollem Schulmonat | B11: =ErgebnisKW14!B11*4.3 -> 0 | D11: Gesamtnettoerlös pro Schuljahr | E11: =ErgebnisKW14!B11*(52-14.5) -> 0
A12: Gesamtkosten pro vollem Schulmonat | B12: =ErgebnisKW14!B12*4.3 -> 0 | D12: Gesamtkosten pro Schuljahr | E12: =ErgebnisKW14!B12*(52-14.5) -> 0
A13: Überschuss / Unterdeckung pro vollem Schulmonat | B13: =B11-B12 -> 0 | D13: Überschuss / Unterdeckung pro Schuljahr | E13: =E11-E12 -> 0
C15: Bericht | D15: Hochrechnung | E15: Hochrechnung
A16: Ergebnisart | B16: Verpflegungsform | C16: pro Woche | D16: pro Monat | E16: pro Jahr
A17: Nettoerlös | B17: Mittagsverpflegung | C17: =ErlösKW14!I77 -> 0 | D17: =ForecastKW14!$C17*4.3 -> 0 | E17: =Tabelle6271[[#This Row],[pro Woche]]*(52-14.5) -> 0
B18: Zwischenverpflegung | C18: =ErlösKW14!I83 -> 0 | D18: =ForecastKW14!$C18*4.3 -> 0 | E18: =E11-E17 -> 0
A19: Kosten | B19: Mittagsverpflegung | C19: =KostenKW14!E15*KostenKW14!F15+KostenKW14!E17*KostenKW14!F17+KostenKW14!E18*KostenKW14!F18+KostenKW14!E19*KostenKW14!F19+KostenKW14!E20*KostenKW14!F20+KostenKW14!E27*KostenKW14!F27+KostenKW14!E28*KostenKW14!F28+KostenKW14!E29*KostenKW14!F29+KostenKW14!E30*KostenKW14!F30+KostenKW14!E31*KostenKW14!F31+KostenKW14!E32*KostenKW14!F32+KostenKW14!E33*KostenKW14!F33+KostenKW14!E34*KostenKW14!F34+KostenKW14!E35*KostenKW14!F35+KostenKW14!E36*KostenKW14!F36+KostenKW14!E37*KostenKW14!F37+KostenKW14!E38*KostenKW14!F38+KostenKW14!E39*KostenKW14!F39+KostenKW14!E46*KostenKW14!F46+KostenKW14!E51*KostenKW14!F51+KostenKW14!E52*KostenKW14!F52+KostenKW14!E53*KostenKW14!F53+KostenKW14!E54*KostenKW14!F54+KostenKW14!E55*KostenKW14!F55+KostenKW14!E59*KostenKW14!F59 -> 0 | D19: =ForecastKW14!$C19*4.3 -> 0 | E19: =Tabelle6271[[#This Row],[pro Woche]]*(52-14.5) -> 0
B20: Zwischenverpflegung | C20: =ErgebnisKW14!B12-ForecastKW14!C19 -> 0 | D20: =ForecastKW14!$C20*4.3 -> 0 | E20: =E12-E19 -> 0
A21: Überschuss / Unterdeckung | B21: Mittagsverpflegung | C21: =C17-C19 -> 0 | D21: =ForecastKW14!$C21*4.3 -> 0 | E21: =E17-E19 -> 0
B22: Zwischenverpflegung | C22: =C18-C20 -> 0 | D22: =ForecastKW14!$C22*4.3 -> 0 | E22: =E18-E20 -> 0

Sheet ErlösKW15
A1: Kalkulations-Check | F1: =KWMonat(F9,Hilfstabelle!F2) -> 4 | G1: =KWMonat(F9,Hilfstabelle!F2) -> 4
A2: Rahmen- und Erlösdaten
A6: =F8 -> 2024-04-08 | B6: =F9 -> 15
A8: Zunächst werden einige Basisdaten zur Mittagsverpflegung an Ihrer Schule benötigt: | F8: =IF($F$9=1,Hauptmenue!E9,VLOOKUP($F$9,Hilfstabelle!$D$3:$F$54,3,2)) -> 2024-04-08 | G8: =Hauptmenue!E9 -> 2024-01-01
F9: 15 | G9: Kalenderwoche
A11: Es könnten an diese Stelle auch die Daten der Schule eingetragen werden
A13: Schulart:
A15: gesamte Schülerzahl der Schule: *
A17: An wievielen Tagen pro Woche gibt es ein warmes Mittagessen? *
A19: Wieviele Hauptgerichte gibt es zur Auswahl:
A21: Welches Küchensystem liegt an der Schule vor: (bitte ankreuzen) | D21: Zubereitungsküche | E21: Aufbereitungsküche | F21: Verteilerküche
A24: Nur bei Aufbereitungs- und Verteilerküche: Welches Belieferungssystem liegt vor? | D24: Cook & Chill | E24: Cook & Freeze | F24: Cook & Hold
A27: Abzuführende Umsatzsteuer Mittagsverpflegung: (0%, 7% oder 19%) | D27: 0.19 | E27: Woche: | G27: z. B. Schulwoche, Ferien
A28: Abzuführende Umsatzsteuer Zwischenverpflegung: (0%, 7% oder 19%) | D28: 0.07
D30: Essensteilnehmerzahlen pro Speise
D31: =VLOOKUP(F9,Hilfstabelle!$D$3:$F$54,3,2) -> 43928 | E31: =D31+1 -> 43929 | F31: =E31+1 -> 43930 | G31: =F31+1 -> 43931 | H31: 43932
B32: Eingabe individueller Bezeichnungen möglich | D32: Montag | E32: Dienstag | F32: Mittwoch | G32: Donnerstag | H32: Freitag | I32: Woche gesamt
A33: Hauptspeise 1: | I33: =SUM(D33:H33) -> 0
A34: Hauptspeise 2: | I34: 0
A35: Hauptspeise 3: | I35: 0
A36: Hauptspeise 4: | I36: 0
A37: Hauptspeise 5: | I37: 0
A38: Speise 4: | I38: 0
A39: Speise 5: | I39: 0
A40: Speise 6: | I40: 0
A41: Speise 7: | I41: 0
A42: Speise 8: | I42: 0
A43: Speise 9: | I43: 0
A44: Speise 10: | I44: 0
D47: Bruttopreise | H47: Summe Hauptspeisen/Woche: | I47: =SUM(I33:I37) -> 0
A48: Hauptspeise 1: | B48: =B33 -> 0
A49: Hauptspeise 2: | B49: =B34 -> 0
A50: Hauptspeise 3: | B50: =B35 -> 0
A51: Hauptspeise 4: | B51: 0
A52: Hauptspeise 5: | B52: =B37 -> 0
A53: Speise 4: | B53: =B38 -> 0
A54: Speise 5: | B54: 0
A55: Speise 6: | B55: 0
A56: Speise 7: | B56: 0
A57: Speise 8: | B57: 0
A58: Speise 9: | B58: 0
A59: Speise 10: | B59: 0
D61: Erlössumme Brutto
D62: =D31 -> 43928 | E62: =E31 -> 43929 | F62: 43930 | G62: 43931 | H62: 43932
D63: Montag | E63: Dienstag | F63: Mittwoch | G63: Donnerstag | H63: Freitag | I63: Erlös/Woche
A64: Hauptspeise 1: | B64: =B33 -> 0 | D64: =D33*$D$48 -> 0 | E64: =E33*$D$48 -> 0 | F64: 0 | G64: 0 | H64: 0 | I64: =SUM(D64:H64) -> 0
A65: Hauptspeise 2: | B65: =B34 -> 0 | D65: =D34*$D$49 -> 0 | E65: =E34*$D$49 -> 0 | F65: =F34*$D$49 -> 0 | G65: 0 | H65: 0 | I65: 0
A66: Hauptspeise 3: | B66: 0 | D66: =D35*$D$50 -> 0 | E66: =E35*$D$50 -> 0 | F66: =F35*$D$50 -> 0 | G66: 0 | H66: 0 | I66: 0
A67: Hauptspeise 4: | B67: 0 | D67: =D36*$D$51 -> 0 | E67: =E36*$D$51 -> 0 | F67: =F36*$D$51 -> 0 | G67: 0 | H67: 0 | I67: 0
A68: Hauptspeise 5: | B68: 0 | D68: =D37*$D$52 -> 0 | E68: =E37*$D$52 -> 0 | F68: =F37*$D$52 -> 0 | G68: 0 | H68: 0 | I68: 0
A69: Speise 4: | B69: 0 | D69: =D38*$D$53 -> 0 | E69: =E38*$D$53 -> 0 | F69: =F38*$D$53 -> 0 | G69: 0 | H69: 0 | I69: 0
A70: Speise 5: | B70: 0 | D70: =D39*$D$54 -> 0 | E70: =E39*$D$54 -> 0 | F70: =F39*$D$54 -> 0 | G70: 0 | H70: 0 | I70: 0
A71: Speise 6: | B71: 0 | D71: =D40*$D$55 -> 0 | E71: =E40*$D$55 -> 0 | F71: =F40*$D$55 -> 0 | G71: 0 | H71: 0 | I71: 0
A72: Speise 7: | B72: 0 | D72: =D41*$D$56 -> 0 | E72: =E41*$D$56 -> 0 | F72: =F41*$D$56 -> 0 | G72: 0 | H72: 0 | I72: 0
A73: Speise 8: | B73: 0 | D73: =D42*$D$57 -> 0 | E73: =E42*$D$57 -> 0 | F73: =F42*$D$57 -> 0 | G73: 0 | H73: 0 | I73: 0
A74: Speise 9: | B74: 0 | D74: =D43*$D$58 -> 0 | E74: =E43*$D$58 -> 0 | F74: =F43*$D$58 -> 0 | G74: 0 | H74: 0 | I74: 0
A75: Speise 10: | B75: 0 | D75: =D44*$D$59 -> 0 | E75: =E44*$D$59 -> 0 | F75: =F44*$D$59 -> 0 | G75: 0 | H75: 0 | I75: 0
A76: Brutto-Erlössummen gesamt | D76: =SUM(D64:D75) -> 0 | E76: 0 | F76: 0 | G76: 0 | H76: 0 | I76: 0
A77: Netto-Erlössummen gesamt | D77: =D76*100/(100+(100*$D27)) -> 0 | E77: =E76*100/(100+(100*$D27)) -> 0 | F77: =F76*100/(100+(100*$D27)) -> 0 | G77: =G76*100/(100+(100*$D27)) -> 0 | H77: =H76*100/(100+(100*$D27)) -> 0 | I77: =SUM(D77:H77) -> 0
D80: Montag | E80: Dienstag | F80: Mittwoch | G80: Donnerstag | H80: Freitag | I80: Erlös/Woche
D81: =D31 -> 43928 | E81: =E31 -> 43929 | F81: 43930 | G81: 43931 | H81: 43932
A82: Gesamtbruttotageserlös durch sonstige Verpflegung (Zwischenverpflegung)* | I82: =SUM(D82:H82) -> 0
A83: Nettogesamterlöse | D83: =D82*100/(100+(100*$D28)) -> 0 | E83: =E82*100/(100+(100*$D28)) -> 0 | F83: =F82*100/(100+(100*$D28)) -> 0 | G83: =G82*100/(100+(100*$D28)) -> 0 | H83: =H82*100/(100+(100*$D28)) -> 0 | I83: =SUM(D83:H83) -> 0
A86: Sonstige Nettoerlöse pro Monat | D86: Subventionen pro Monat

Sheet KostenKW15
A1: Kalkulations-Check | F1: =KWMonat(ErlösKW15!F9,Hilfstabelle!F2) -> 4
A2: Kostendaten
A6: =ErlösKW15!F8 -> 2024-04-08 | B6: =ErlösKW15!F9 -> 15
A8: Nun geben Sie bitte die folgenden Kostendaten zur Mittagsverpflegung ein:
A10: Geben Sie einen ungefähren, gerundeten Anteil an, der auf die warme Mittagsverpflegung entfällt, z.B. entfällt 70 % Ihres gesamten Wareneinsatzes auf die Mittagsverpflegung, die restlichen 30% sind dem Bereich Zwischenverpflegung zuzuordnen. Kosten die unabhängig von der Verpflegungform anfallen (z.B. Miete) werden zu 50% aufgeteilt. Falls Sie nur Mittagsverpflegung anbieten, geben Sie als Anteil bei allen Kostenpunkten 100% ein.
E13: Gesamtwert in € | F13: %-Anteil Mittagsverpflegung
A15: Wareneinsatz | C15: Nettowarenwert pro Woche | D15: (alle Speisen und Getränke für eine Woche) | G15: Wareneinkaufspreis abzüglich 7% Umsatzsteuer
G16: (Rechenweg Einkaufspreis * 100 / 107 = Nettowarenwert)
A17: Gemeinkosten | C17: Fixe Kosten pro Woche | D17: Miete / Pacht
D18: Kosten für Müllabfuhr | G18: kann meist in der Schule oder beim Sach-aufwandsträger eingesehen werden
D19: Kosten für Versicherungen (Brand-, Wasserschäden)
D20: Sonstiges
C27: Variable Kosten pro Woche | D27: Reinigungs- und Desinfektionsmittel
D28: Energiekosten | G28: kann meist in der Schule oder beim Sach-aufwandsträger eingesehen werden
D29: Wasser- und Abwasserkosten
D30: Heizungskosten
D31: Kosten für Schädlingsbekämpfung
D32: Kosten für Reinigung der Mensa | G32: kann meist in der Schule oder beim Sach-aufwandsträger eingesehen werden
D33: Verbrauchsgüter (Servietten, Alufolie…)
D34: Ersatzbeschaffungen bis ca. 100 € (Geschirr, kleine Küchengeräte…)
D35: Wäschekosten (Personal-, Küche- und Tischwäsche)
D36: Kosten für Reparatur- und Wartungsarbeiten
D37: Kosten für Schulungs- und Weiterbildungsmaßnahmen
D38: Beiträge (z.B. Berufsgenossenschaft)
D39: Verwaltungskosten ( z.B. für Essensabrechnung, Bürobedarf...)
D46: Sonstige Gemeinkosten
D48: Gesamtgemeinkosten pro Woche | E48: =SUM(E17:E25,E27:E46) -> 0
A50: Personalkosten | C50: gesamte Lohnkosten inklusive Lohnnebenkosten (Sozialabgaben) pro Woche für:
D51: Küchenleiter
D52: Küchenmitarbeiter
D53: Spül- und Putzkräfte
D54: Praktikanten, Azubis…
D55: sonstiges
D57: Gesamtpersonalkosten pro Woche | E57: =SUM(E51:E55) -> 0
D59: Sonstiges
D61: Gesamtkosten pro Schulwoche | E61: =SUM(E15,E48,E57,E59) -> 0

Sheet ErgebnisKW15
A1: Kalkulations-Check | F1: =KWMonat(ErlösKW15!F9,Hilfstabelle!F2) -> 4
A2: Ergebnisausgabe: Daten der aktuellen Kalenderwoche
A6: =ErlösKW15!$F$8 -> 2024-04-08 | B6: =ErlösKW15!$F$9 & " KW" -> 15 KW
B9: Bericht
A11: Gesamtnettoerlös pro Schulwoche | B11: =ErlösKW15!I77+ErlösKW15!I83+ErlösKW15!G86 -> 0
A12: Gesamtkosten pro Schulwoche | B12: =KostenKW15!E61 -> 0
A13: Überschuss / Unterdeckung pro Schulwoche | B13: =B11-B12 -> 0
C16: Bericht
A17: Ergebnisart | B17: Verpflegungsform | C17: pro Woche
A18: Nettoerlös | B18: Mittagsverpflegung | C18: =ErlösKW15!I77 -> 0
B19: Zwischenverpflegung | C19: =ErlösKW15!I83 -> 0
A20: Kosten | B20: Mittagsverpflegung | C20: =KostenKW15!E15*KostenKW15!F15+KostenKW15!E17*KostenKW15!F17+KostenKW15!E18*KostenKW15!F18+KostenKW15!E19*KostenKW15!F19+KostenKW15!E20*KostenKW15!F20+KostenKW15!E27*KostenKW15!F27+KostenKW15!E28*KostenKW15!F28+KostenKW15!E29*KostenKW15!F29+KostenKW15!E30*KostenKW15!F30+KostenKW15!E31*KostenKW15!F31+KostenKW15!E32*KostenKW15!F32+KostenKW15!E33*KostenKW15!F33+KostenKW15!E34*KostenKW15!F34+KostenKW15!E35*KostenKW15!F35+KostenKW15!E36*KostenKW15!F36+KostenKW15!E37*KostenKW15!F37+KostenKW15!E38*KostenKW15!F38+KostenKW15!E39*KostenKW15!F39+KostenKW15!E46*KostenKW15!F46+KostenKW15!E51*KostenKW15!F51+KostenKW15!E52*KostenKW15!F52+KostenKW15!E53*KostenKW15!F53+KostenKW15!E54*KostenKW15!F54+KostenKW15!E55*KostenKW15!F55+KostenKW15!E59*KostenKW15!F59 -> 0
B21: Zwischenverpflegung | C21: =ErgebnisKW15!B12-ErgebnisKW15!C20 -> 0
A22: Überschuss / Unterdeckung | B22: Mittagsverpflegung | C22: =C18-C20 -> 0
B23: Zwischenverpflegung | C23: =C19-C21 -> 0
A25: Kennzahlen (bezogen auf eine Schulwoche)
A26: Ergebnisart | B26: Gesamt | C26: Mittagsverpflegung | D26: Zwischenverpflegung
A27: Erlös | B27: =B11/B11 ->  | C27: =C18/B11 ->  | D27: =C19/B11 -> 
A28: Kosten | B28: =B12/B12 ->  | C28: =C20/B12 ->  | D28: =C21/B12 -> 
A29: Überschuss / Unterdeckung | B29: =B13/B13 ->  | C29: =C22/B13 ->  | D29: =C23/B13 ->  | F29: Richtwerte Kostenverteilung Mittagsverpflegung¹:
A30: Personalkosten | B30: =KostenKW15!E57/ErgebnisKW15!B12 ->  | C30: =(KostenKW15!E51*KostenKW15!F51+KostenKW15!E52*KostenKW15!F52+KostenKW15!E53*KostenKW15!F53+KostenKW15!E54*KostenKW15!F54+KostenKW15!E55*KostenKW15!F55)/ErgebnisKW15!C20 ->  | D30: =(KostenKW15!E57-(KostenKW15!E51*KostenKW15!F51+KostenKW15!E52*KostenKW15!F52+KostenKW15!E53*KostenKW15!F53+KostenKW15!E54*KostenKW15!F54+KostenKW15!E55*KostenKW15!F55))/C21 ->  | G30: Frisch- und Mischküche | H30: Kühlkostsystem | I30: Warmverpflegung
A31: Wareneinsatzkosten | B31: =KostenKW15!E15/ErgebnisKW15!B12 ->  | C31: =(KostenKW15!E15*KostenKW15!F15)/ErgebnisKW15!C20 ->  | D31: =(KostenKW15!E15-(KostenKW15!E15*KostenKW15!F15))/ErgebnisKW15!C21 ->  | F31: Wareneinstandskosten | G31: 0.45 | H31: 55- 57 % | I31: 60 - 63 %
A32: Gemeinkosten | B32: =KostenKW15!E48/ErgebnisKW15!B12 ->  | C32: =(KostenKW15!E17*KostenKW15!F17+KostenKW15!E18*KostenKW15!F18+KostenKW15!E19*KostenKW15!F19+KostenKW15!E20*KostenKW15!F20+KostenKW15!E27*KostenKW15!F27+KostenKW15!E28*KostenKW15!F28+KostenKW15!E29*KostenKW15!F29+KostenKW15!E30*KostenKW15!F30+KostenKW15!E31*KostenKW15!F31+KostenKW15!E32*KostenKW15!F32+KostenKW15!E33*KostenKW15!F33+KostenKW15!E34*KostenKW15!F34+KostenKW15!E35*KostenKW15!F35+KostenKW15!E36*KostenKW15!F36+KostenKW15!E37*KostenKW15!F37+KostenKW15!E38*KostenKW15!F38+KostenKW15!E39*KostenKW15!F39+KostenKW15!E46*KostenKW15!F46)/ErgebnisKW15!C20 ->  | D32: =(KostenKW15!E48-(KostenKW15!E17*KostenKW15!F17+KostenKW15!E18*KostenKW15!F18+KostenKW15!E19*KostenKW15!F19+KostenKW15!E20*KostenKW15!F20+KostenKW15!E27*KostenKW15!F27+KostenKW15!E28*KostenKW15!F28+KostenKW15!E29*KostenKW15!F29+KostenKW15!E30*KostenKW15!F30+KostenKW15!E31*KostenKW15!F31+KostenKW15!E32*KostenKW15!F32+KostenKW15!E33*KostenKW15!F33+KostenKW15!E34*KostenKW15!F34+KostenKW15!E35*KostenKW15!F35+KostenKW15!E36*KostenKW15!F36+KostenKW15!E37*KostenKW15!F37+KostenKW15!E38*KostenKW15!F38+KostenKW15!E39*KostenKW15!F39+KostenKW15!E46*KostenKW15!F46))/ErgebnisKW15!C21 ->  | F32: Personalkosten | G32: 50- 52 % | H32: 40- 42 % | I32: 0.02
A33: Sonstige Kosten | B33: =KostenKW15!E59/ErgebnisKW15!B12 ->  | C33: =(KostenKW15!E59*KostenKW15!F59)/ErgebnisKW15!C20 ->  | D33: =(KostenKW15!E59-(KostenKW15!E59*KostenKW15!F59))/ErgebnisKW15!C21 ->  | F33: Gemeinkosten | G33: 3- 5 % | H33: 0.03 | I33: 35 - 38 %
A35: Akzeptanzquote der Mittagsverpflegung | B35: =ErlösKW15!I47/(ErlösKW15!D15*ErlösKW15!D17) -> 
A37: Grafische Darstellungen (alle bezogen auf eine Woche)
A74: ¹ Arens-Azevêdo, U. und Lichtenberg, W., 2007: Planung kleiner Küchen in Schulen, Kitas und Heimen. hrsg. von AID infodienst, Bonn, S. 33

Sheet ForecastKW15
A1: Kalkulations-Check | F1: =KWMonat(ErlösKW15!F9,Hilfstabelle!F2) -> 4
A2: Hochrechnung
A6: =ErlösKW15!$F$8 -> 2024-04-08 | B6: =ErlösKW15!$F$9 -> 15
B9: Hochrechnung | E9: Hochrechnung
A11: Gesamtnettoerlös pro vollem Schulmonat | B11: =ErgebnisKW15!B11*4.3 -> 0 | D11: Gesamtnettoerlös pro Schuljahr | E11: =ErgebnisKW15!B11*(52-14.5) -> 0
A12: Gesamtkosten pro vollem Schulmonat | B12: =ErgebnisKW15!B12*4.3 -> 0 | D12: Gesamtkosten pro Schuljahr | E12: =ErgebnisKW15!B12*(52-14.5) -> 0
A13: Überschuss / Unterdeckung pro vollem Schulmonat | B13: =B11-B12 -> 0 | D13: Überschuss / Unterdeckung pro Schuljahr | E13: =E11-E12 -> 0
C15: Bericht | D15: Hochrechnung | E15: Hochrechnung
A16: Ergebnisart | B16: Verpflegungsform | C16: pro Woche | D16: pro Monat | E16: pro Jahr
A17: Nettoerlös | B17: Mittagsverpflegung | C17: =ErlösKW15!I77 -> 0 | D17: =ForecastKW15!$C17*4.3 -> 0 | E17: =Tabelle6276[[#This Row],[pro Woche]]*(52-14.5) -> 0
B18: Zwischenverpflegung | C18: =ErlösKW15!I83 -> 0 | D18: =ForecastKW15!$C18*4.3 -> 0 | E18: =E11-E17 -> 0
A19: Kosten | B19: Mittagsverpflegung | C19: =KostenKW15!E15*KostenKW15!F15+KostenKW15!E17*KostenKW15!F17+KostenKW15!E18*KostenKW15!F18+KostenKW15!E19*KostenKW15!F19+KostenKW15!E20*KostenKW15!F20+KostenKW15!E27*KostenKW15!F27+KostenKW15!E28*KostenKW15!F28+KostenKW15!E29*KostenKW15!F29+KostenKW15!E30*KostenKW15!F30+KostenKW15!E31*KostenKW15!F31+KostenKW15!E32*KostenKW15!F32+KostenKW15!E33*KostenKW15!F33+KostenKW15!E34*KostenKW15!F34+KostenKW15!E35*KostenKW15!F35+KostenKW15!E36*KostenKW15!F36+KostenKW15!E37*KostenKW15!F37+KostenKW15!E38*KostenKW15!F38+KostenKW15!E39*KostenKW15!F39+KostenKW15!E46*KostenKW15!F46+KostenKW15!E51*KostenKW15!F51+KostenKW15!E52*KostenKW15!F52+KostenKW15!E53*KostenKW15!F53+KostenKW15!E54*KostenKW15!F54+KostenKW15!E55*KostenKW15!F55+KostenKW15!E59*KostenKW15!F59 -> 0 | D19: =ForecastKW15!$C19*4.3 -> 0 | E19: =Tabelle6276[[#This Row],[pro Woche]]*(52-14.5) -> 0
B20: Zwischenverpflegung | C20: =ErgebnisKW15!B12-ForecastKW15!C19 -> 0 | D20: =ForecastKW15!$C20*4.3 -> 0 | E20: =E12-E19 -> 0
A21: Überschuss / Unterdeckung | B21: Mittagsverpflegung | C21: =C17-C19 -> 0 | D21: =ForecastKW15!$C21*4.3 -> 0 | E21: =E17-E19 -> 0
B22: Zwischenverpflegung | C22: =C18-C20 -> 0 | D22: =ForecastKW15!$C22*4.3 -> 0 | E22: =E18-E20 -> 0

Sheet ErlösKW16
A1: Kalkulations-Check | F1: =KWMonat(F9,Hilfstabelle!F2) -> 4 | G1: =KWMonat(F9,Hilfstabelle!F2) -> 4
A2: Rahmen- und Erlösdaten
A6: =F8 -> 2024-04-15 | B6: =F9 -> 16
A8: Zunächst werden einige Basisdaten zur Mittagsverpflegung an Ihrer Schule benötigt: | F8: =IF($F$9=1,Hauptmenue!E9,VLOOKUP($F$9,Hilfstabelle!$D$3:$F$54,3,2)) -> 2024-04-15 | G8: =Hauptmenue!E9 -> 2024-01-01
F9: 16 | G9: Kalenderwoche
A11: Es könnten an diese Stelle auch die Daten der Schule eingetragen werden
A13: Schulart:
A15: gesamte Schülerzahl der Schule: *
A17: An wievielen Tagen pro Woche gibt es ein warmes Mittagessen? *
A19: Wieviele Hauptgerichte gibt es zur Auswahl:
A21: Welches Küchensystem liegt an der Schule vor: (bitte ankreuzen) | D21: Zubereitungsküche | E21: Aufbereitungsküche | F21: Verteilerküche
A24: Nur bei Aufbereitungs- und Verteilerküche: Welches Belieferungssystem liegt vor? | D24: Cook & Chill | E24: Cook & Freeze | F24: Cook & Hold
A27: Abzuführende Umsatzsteuer Mittagsverpflegung: (0%, 7% oder 19%) | D27: 0.19 | E27: Woche: | G27: z. B. Schulwoche, Ferien
A28: Abzuführende Umsatzsteuer Zwischenverpflegung: (0%, 7% oder 19%) | D28: 0.07
D30: Essensteilnehmerzahlen pro Speise
D31: =VLOOKUP(F9,Hilfstabelle!$D$3:$F$54,3,2) -> 43935 | E31: =D31+1 -> 43936 | F31: =E31+1 -> 43937 | G31: =F31+1 -> 43938 | H31: 43939
B32: Eingabe individueller Bezeichnungen möglich | D32: Montag | E32: Dienstag | F32: Mittwoch | G32: Donnerstag | H32: Freitag | I32: Woche gesamt
A33: Hauptspeise 1: | I33: =SUM(D33:H33) -> 0
A34: Hauptspeise 2: | I34: 0
A35: Hauptspeise 3: | I35: 0
A36: Hauptspeise 4: | I36: 0
A37: Hauptspeise 5: | I37: 0
A38: Speise 4: | I38: 0
A39: Speise 5: | I39: 0
A40: Speise 6: | I40: 0
A41: Speise 7: | I41: 0
A42: Speise 8: | I42: 0
A43: Speise 9: | I43: 0
A44: Speise 10: | I44: 0
D47: Bruttopreise | H47: Summe Hauptspeisen/Woche: | I47: =SUM(I33:I37) -> 0
A48: Hauptspeise 1: | B48: =B33 -> 0
A49: Hauptspeise 2: | B49: =B34 -> 0
A50: Hauptspeise 3: | B50: =B35 -> 0
A51: Hauptspeise 4: | B51: 0
A52: Hauptspeise 5: | B52: =B37 -> 0
A53: Speise 4: | B53: =B38 -> 0
A54: Speise 5: | B54: 0
A55: Speise 6: | B55: 0
A56: Speise 7: | B56: 0
A57: Speise 8: | B57: 0
A58: Speise 9: | B58: 0
A59: Speise 10: | B59: 0
D61: Erlössumme Brutto
D62: =D31 -> 43935 | E62: =E31 -> 43936 | F62: 43937 | G62: 43938 | H62: 43939
D63: Montag | E63: Dienstag | F63: Mittwoch | G63: Donnerstag | H63: Freitag | I63: Erlös/Woche
A64: Hauptspeise 1: | B64: =B33 -> 0 | D64: =D33*$D$48 -> 0 | E64: =E33*$D$48 -> 0 | F64: 0 | G64: 0 | H64: 0 | I64: =SUM(D64:H64) -> 0
A65: Hauptspeise 2: | B65: =B34 -> 0 | D65: =D34*$D$49 -> 0 | E65: =E34*$D$49 -> 0 | F65: =F34*$D$49 -> 0 | G65: 0 | H65: 0 | I65: 0
A66: Hauptspeise 3: | B66: 0 | D66: =D35*$D$50 -> 0 | E66: =E35*$D$50 -> 0 | F66: =F35*$D$50 -> 0 | G66: 0 | H66: 0 | I66: 0
A67: Hauptspeise 4: | B67: 0 | D67: =D36*$D$51 -> 0 | E67: =E36*$D$51 -> 0 | F67: =F36*$D$51 -> 0 | G67: 0 | H67: 0 | I67: 0
A68: Hauptspeise 5: | B68: 0 | D68: =D37*$D$52 -> 0 | E68: =E37*$D$52 -> 0 | F68: =F37*$D$52 -> 0 | G68: 0 | H68: 0 | I68: 0
A69: Speise 4: | B69: 0 | D69: =D38*$D$53 -> 0 | E69: =E38*$D$53 -> 0 | F69: =F38*$D$53 -> 0 | G69: 0 | H69: 0 | I69: 0
A70: Speise 5: | B70: 0 | D70: =D39*$D$54 -> 0 | E70: =E39*$D$54 -> 0 | F70: =F39*$D$54 -> 0 | G70: 0 | H70: 0 | I70: 0
A71: Speise 6: | B71: 0 | D71: =D40*$D$55 -> 0 | E71: =E40*$D$55 -> 0 | F71: =F40*$D$55 -> 0 | G71: 0 | H71: 0 | I71: 0
A72: Speise 7: | B72: 0 | D72: =D41*$D$56 -> 0 | E72: =E41*$D$56 -> 0 | F72: =F41*$D$56 -> 0 | G72: 0 | H72: 0 | I72: 0
A73: Speise 8: | B73: 0 | D73: =D42*$D$57 -> 0 | E73: =E42*$D$57 -> 0 | F73: =F42*$D$57 -> 0 | G73: 0 | H73: 0 | I73: 0
A74: Speise 9: | B74: 0 | D74: =D43*$D$58 -> 0 | E74: =E43*$D$58 -> 0 | F74: =F43*$D$58 -> 0 | G74: 0 | H74: 0 | I74: 0
A75: Speise 10: | B75: 0 | D75: =D44*$D$59 -> 0 | E75: =E44*$D$59 -> 0 | F75: =F44*$D$59 -> 0 | G75: 0 | H75: 0 | I75: 0
A76: Brutto-Erlössummen gesamt | D76: =SUM(D64:D75) -> 0 | E76: 0 | F76: 0 | G76: 0 | H76: 0 | I76: 0
A77: Netto-Erlössummen gesamt | D77: =D76*100/(100+(100*$D27)) -> 0 | E77: =E76*100/(100+(100*$D27)) -> 0 | F77: =F76*100/(100+(100*$D27)) -> 0 | G77: =G76*100/(100+(100*$D27)) -> 0 | H77: =H76*100/(100+(100*$D27)) -> 0 | I77: =SUM(D77:H77) -> 0
D80: Montag | E80: Dienstag | F80: Mittwoch | G80: Donnerstag | H80: Freitag | I80: Erlös/Woche
D81: =D31 -> 43935 | E81: =E31 -> 43936 | F81: 43937 | G81: 43938 | H81: 43939
A82: Gesamtbruttotageserlös durch sonstige Verpflegung (Zwischenverpflegung)* | I82: =SUM(D82:H82) -> 0
A83: Nettogesamterlöse | D83: =D82*100/(100+(100*$D28)) -> 0 | E83: =E82*100/(100+(100*$D28)) -> 0 | F83: =F82*100/(100+(100*$D28)) -> 0 | G83: =G82*100/(100+(100*$D28)) -> 0 | H83: =H82*100/(100+(100*$D28)) -> 0 | I83: =SUM(D83:H83) -> 0
A86: Sonstige Nettoerlöse pro Monat | D86: Subventionen pro Monat

Sheet KostenKW16
A1: Kalkulations-Check | F1: =KWMonat(ErlösKW16!F9,Hilfstabelle!F2) -> 4
A2: Kostendaten
A6: =ErlösKW16!F8 -> 2024-04-15 | B6: =ErlösKW16!F9 -> 16
A8: Nun geben Sie bitte die folgenden Kostendaten zur Mittagsverpflegung ein:
A10: Geben Sie einen ungefähren, gerundeten Anteil an, der auf die warme Mittagsverpflegung entfällt, z.B. entfällt 70 % Ihres gesamten Wareneinsatzes auf die Mittagsverpflegung, die restlichen 30% sind dem Bereich Zwischenverpflegung zuzuordnen. Kosten die unabhängig von der Verpflegungform anfallen (z.B. Miete) werden zu 50% aufgeteilt. Falls Sie nur Mittagsverpflegung anbieten, geben Sie als Anteil bei allen Kostenpunkten 100% ein.
E13: Gesamtwert in € | F13: %-Anteil Mittagsverpflegung
A15: Wareneinsatz | C15: Nettowarenwert pro Woche | D15: (alle Speisen und Getränke für eine Woche) | G15: Wareneinkaufspreis abzüglich 7% Umsatzsteuer
G16: (Rechenweg Einkaufspreis * 100 / 107 = Nettowarenwert)
A17: Gemeinkosten | C17: Fixe Kosten pro Woche | D17: Miete / Pacht
D18: Kosten für Müllabfuhr | G18: kann meist in der Schule oder beim Sach-aufwandsträger eingesehen werden
D19: Kosten für Versicherungen (Brand-, Wasserschäden)
D20: Sonstiges
C27: Variable Kosten pro Woche | D27: Reinigungs- und Desinfektionsmittel
D28: Energiekosten | G28: kann meist in der Schule oder beim Sach-aufwandsträger eingesehen werden
D29: Wasser- und Abwasserkosten
D30: Heizungskosten
D31: Kosten für Schädlingsbekämpfung
D32: Kosten für Reinigung der Mensa | G32: kann meist in der Schule oder beim Sach-aufwandsträger eingesehen werden
D33: Verbrauchsgüter (Servietten, Alufolie…)
D34: Ersatzbeschaffungen bis ca. 100 € (Geschirr, kleine Küchengeräte…)
D35: Wäschekosten (Personal-, Küche- und Tischwäsche)
D36: Kosten für Reparatur- und Wartungsarbeiten
D37: Kosten für Schulungs- und Weiterbildungsmaßnahmen
D38: Beiträge (z.B. Berufsgenossenschaft)
D39: Verwaltungskosten ( z.B. für Essensabrechnung, Bürobedarf...)
D46: Sonstige Gemeinkosten
D48: Gesamtgemeinkosten pro Woche | E48: =SUM(E17:E25,E27:E46) -> 0
A50: Personalkosten | C50: gesamte Lohnkosten inklusive Lohnnebenkosten (Sozialabgaben) pro Woche für:
D51: Küchenleiter
D52: Küchenmitarbeiter
D53: Spül- und Putzkräfte
D54: Praktikanten, Azubis…
D55: sonstiges
D57: Gesamtpersonalkosten pro Woche | E57: =SUM(E51:E55) -> 0
D59: Sonstiges
D61: Gesamtkosten pro Schulwoche | E61: =SUM(E15,E48,E57,E59) -> 0

Sheet ErgebnisKW16
A1: Kalkulations-Check | F1: =KWMonat(ErlösKW16!F9,Hilfstabelle!F2) -> 4
A2: Ergebnisausgabe: Daten der aktuellen Kalenderwoche
A6: =ErlösKW16!$F$8 -> 2024-04-15 | B6: =ErlösKW16!$F$9 & " KW" -> 16 KW
B9: Bericht
A11: Gesamtnettoerlös pro Schulwoche | B11: =ErlösKW16!I77+ErlösKW16!I83+ErlösKW16!G86 -> 0
A12: Gesamtkosten pro Schulwoche | B12: =KostenKW16!E61 -> 0
A13: Überschuss / Unterdeckung pro Schulwoche | B13: =B11-B12 -> 0
C16: Bericht
A17: Ergebnisart | B17: Verpflegungsform | C17: pro Woche
A18: Nettoerlös | B18: Mittagsverpflegung | C18: =ErlösKW16!I77 -> 0
B19: Zwischenverpflegung | C19: =ErlösKW16!I83 -> 0
A20: Kosten | B20: Mittagsverpflegung | C20: =KostenKW16!E15*KostenKW16!F15+KostenKW16!E17*KostenKW16!F17+KostenKW16!E18*KostenKW16!F18+KostenKW16!E19*KostenKW16!F19+KostenKW16!E20*KostenKW16!F20+KostenKW16!E27*KostenKW16!F27+KostenKW16!E28*KostenKW16!F28+KostenKW16!E29*KostenKW16!F29+KostenKW16!E30*KostenKW16!F30+KostenKW16!E31*KostenKW16!F31+KostenKW16!E32*KostenKW16!F32+KostenKW16!E33*KostenKW16!F33+KostenKW16!E34*KostenKW16!F34+KostenKW16!E35*KostenKW16!F35+KostenKW16!E36*KostenKW16!F36+KostenKW16!E37*KostenKW16!F37+KostenKW16!E38*KostenKW16!F38+KostenKW16!E39*KostenKW16!F39+KostenKW16!E46*KostenKW16!F46+KostenKW16!E51*KostenKW16!F51+KostenKW16!E52*KostenKW16!F52+KostenKW16!E53*KostenKW16!F53+KostenKW16!E54*KostenKW16!F54+KostenKW16!E55*KostenKW16!F55+KostenKW16!E59*KostenKW16!F59 -> 0
